Workbook

Sheet ACCUEILPRO
A1: Accueil
F7: =ACCUEIL!F7 -> 2021-07-04

Sheet ACCUEILPREM
A1: Accueil
F7: =ACCUEIL!F7 -> 2021-07-04

Sheet ACCUEILGP
A1: Accueil
F7: =ACCUEIL!F7 -> 2021-07-04

Sheet ACCUEIL
F7: 2021-07-04
C21: Item mensuels: ETP, satisfaction clientèle, remises commerciales, marges et accessoires crédits
E22: arrêtés au | F22: 2021-05-31

Sheet Accueilagence
A1: Accueil
E7: =ACCUEIL!F7 -> 2021-07-04

Sheet Accueilsecteur
A1: Accueil
E7: =ACCUEIL!F7 -> 2021-07-04

Sheet AccueilDircom
A1: Accueil
E7: =ACCUEIL!F7 -> 2021-07-04

Sheet DC_FICHE
A1: Accueil
A2: BAROMETRE BDD
A4: UNITE: | B4: DIRECTION REGIONALE | E4: ETP perf : | F4: =VLOOKUP(A5,'RECAP DIRCOM'!$G$6:$I$12,3,FALSE) -> 252.69
A5: =VLOOKUP(B5,LISTES!$M$6:$N$12,2,FALSE) -> 262 | B5: BAS-RHIN
C6: Coefficient du critére | E6: Résultats | I6: Ecart au 1ier | M6: Evolution | O6: Rang
E7: du 1ier | G7: DIRECTION | I7: Du mois | K7: Au 31/12/2019
A9: RANG au CLASSEMENT GENERAL | K9: =VLOOKUP($A$5,#REF!,168,FALSE) ->  | M9: =+K9-O9 ->  | O9: =VLOOKUP($A$5,'RECAP DIRCOM'!$G$6:$DG$312,168,FALSE) -> 
A11: CRITERE CLIENTS | C11: 15% | O11: =VLOOKUP($A$5,'RECAP DIRCOM'!$G$6:$DG$312,23,FALSE) -> 22.22917976
B12: PNB Evolution nette Clients BP | C12: 4% | E12: ='RECAP DIRCOM'!#REF! ->  | G12: =VLOOKUP($A$5,'RECAP DIRCOM'!$G$6:$DG$312,6,FALSE) -> 0.4 | I12: =VLOOKUP($A$5,'RECAP DIRCOM'!$G$6:$DG$312,7,FALSE) -> 400% | K12: =VLOOKUP($A$5,#REF!,7,FALSE) ->  | M12: =+K12-I12 ->  | O12: =VLOOKUP($A$5,'RECAP DIRCOM'!$G$6:$DG$312,8,FALSE) -> 0.5206996174
B13: PNB Evolution nette Clients PREMIUM | C13: 5% | E13: ='RECAP DIRCOM'!#REF! ->  | G13: =VLOOKUP($A$5,'RECAP DIRCOM'!$G$6:$DG$312,10,FALSE) -> 6.0 | I13: =VLOOKUP($A$5,'RECAP DIRCOM'!$G$6:$DG$312,11,FALSE) -> 33% | K13: =VLOOKUP($A$5,#REF!,11,FALSE) ->  | M13: =+K13-I13 ->  | O13: =VLOOKUP($A$5,'RECAP DIRCOM'!$G$6:$DG$312,12,FALSE) -> 0.3345239386
B14: PNB Evolution nette Clients Jeunes Equipés | C14: 3% | E14: ='RECAP DIRCOM'!#REF! ->  | G14: =VLOOKUP($A$5,'RECAP DIRCOM'!$G$6:$DG$312,14,FALSE) -> 0.0 | I14: =VLOOKUP($A$5,'RECAP DIRCOM'!$G$6:$DG$312,15,FALSE) -> 0% | K14: =VLOOKUP($A$5,#REF!,15,FALSE) ->  | M14: =+K14-I14 ->  | O14: =VLOOKUP($A$5,'RECAP DIRCOM'!$G$6:$DG$312,16,FALSE) -> 0
B15: PNB Evolution nette Clients Pro Actifs Equipés | C15: 3% | E15: ='RECAP DIRCOM'!W4 -> 0.0 | G15: =VLOOKUP($A$5,'RECAP DIRCOM'!$G$6:$DG$312,18,FALSE) -> 11824.6 | I15: =VLOOKUP($A$5,'RECAP DIRCOM'!$G$6:$DG$312,19,FALSE) -> 4680% | K15: =VLOOKUP($A$5,#REF!,19,FALSE) ->  | M15: =+K15-I15 ->  | O15: =VLOOKUP($A$5,'RECAP DIRCOM'!$G$6:$DG$312,20,FALSE) -> 0.077288328
A17: CRITERE BANCARISATION | C17: 15% | O17: =VLOOKUP($A$5,'RECAP DIRCOM'!$G$6:$DG$312,48,FALSE) -> 1
B18: PNB Ventes nettes forfaits | C18: 4% | E18: ='RECAP DIRCOM'!X4 -> 50.7 | G18: =VLOOKUP($A$5,'RECAP DIRCOM'!$G$6:$DG$312,31,FALSE) -> -1.6 | I18: =VLOOKUP($A$5,'RECAP DIRCOM'!$G$6:$DG$312,32,FALSE) -> 24% | K18: =VLOOKUP($A$5,#REF!,32,FALSE) ->  | M18: =+K18-I18 ->  | O18: =VLOOKUP($A$5,'RECAP DIRCOM'!$G$6:$DG$312,33,FALSE) -> 7
B19: PNB Ventes nettes IZICARTES Débit Différé | C19: 4% | E19: ='RECAP DIRCOM'!AB4 -> 26.5 | G19: =VLOOKUP($A$5,'RECAP DIRCOM'!$G$6:$DG$312,35,FALSE) -> 0.2 | I19: =VLOOKUP($A$5,'RECAP DIRCOM'!$G$6:$DG$312,36,FALSE) -> 200% | K19: =VLOOKUP($A$5,#REF!,36,FALSE) ->  | M19: =+K19-I19 ->  | O19: =VLOOKUP($A$5,'RECAP DIRCOM'!$G$6:$DG$312,37,FALSE) -> 0
B20: PNB Ventes nettes cartes HDG Débit Différé | C20: 4% | E20: ='RECAP DIRCOM'!AF4 -> 7.7 | G20: =VLOOKUP($A$5,'RECAP DIRCOM'!$G$6:$DG$312,39,FALSE) -> 0.0 | I20: =VLOOKUP($A$5,'RECAP DIRCOM'!$G$6:$DG$312,40,FALSE) -> 0% | K20: =VLOOKUP($A$5,#REF!,40,FALSE) ->  | M20: =+K20-I20 ->  | O20: =VLOOKUP($A$5,'RECAP DIRCOM'!$G$6:$DG$312,41,FALSE) -> 86110.858
B21: PNB Ventes nettes Forfaits Pro, Carte pro | C21: 3% | E21: ='RECAP DIRCOM'!AJ4 -> -1.3 | G21: =VLOOKUP($A$5,'RECAP DIRCOM'!$G$6:$DG$312,43,FALSE) -> 0.1 | I21: =VLOOKUP($A$5,'RECAP DIRCOM'!$G$6:$DG$312,44,FALSE) -> 200% | K21: =VLOOKUP($A$5,#REF!,44,FALSE) ->  | M21: =+K21-I21 ->  | O21: =VLOOKUP($A$5,'RECAP DIRCOM'!$G$6:$DG$312,45,FALSE) -> 3829
A23: CRITERE EPARGNE | C23: 10% | O23: =VLOOKUP($A$5,'RECAP DIRCOM'!$G$6:$DG$312,69,FALSE) -> 0.3255727319
B24: PNB Epargne Liquide | C24: 3% | E24: ='RECAP DIRCOM'!AU4 -> 369.0 | G24: =VLOOKUP($A$5,'RECAP DIRCOM'!$G$6:$DG$312,56,FALSE) -> 15174.4 | I24: =VLOOKUP($A$5,'RECAP DIRCOM'!$G$6:$DG$312,57,FALSE) -> 6005% | K24: =VLOOKUP($A$5,#REF!,57,FALSE) ->  | M24: =+K24-I24 ->  | O24: =VLOOKUP($A$5,'RECAP DIRCOM'!$G$6:$DG$312,58,FALSE) -> 0.4883553912
B25: PNB CA UC + arbitrage | C25: 4% | E25: ='RECAP DIRCOM'!AY4 -> 15.2 | G25: =VLOOKUP($A$5,'RECAP DIRCOM'!$G$6:$DG$312,60,FALSE) -> 8030.2 | I25: =VLOOKUP($A$5,'RECAP DIRCOM'!$G$6:$DG$312,61,FALSE) -> 3178% | K25: =VLOOKUP($A$5,#REF!,61,FALSE) ->  | M25: =+K25-I25 ->  | O25: =VLOOKUP($A$5,'RECAP DIRCOM'!$G$6:$DG$312,62,FALSE) -> 0.1214441408
B26: PNB Excédent assurance vie | C26: 3% | E26: ='RECAP DIRCOM'!#REF! ->  | G26: =VLOOKUP($A$5,'RECAP DIRCOM'!$G$6:$DG$312,64,FALSE) -> 1977.0 | I26: =VLOOKUP($A$5,'RECAP DIRCOM'!$G$6:$DG$312,65,FALSE) -> 782% | K26: =VLOOKUP($A$5,#REF!,65,FALSE) ->  | M26: =+K26-I26 ->  | O26: =VLOOKUP($A$5,'RECAP DIRCOM'!$G$6:$DG$312,66,FALSE) -> 0.3387034149
A28: CRITERE CREDITS | C28: 15% | O28: =VLOOKUP($A$5,'RECAP DIRCOM'!$G$6:$DG$312,102,FALSE) -> 0.193138786
B29: PNB crédit conso | C29: 4% | E29: ='RECAP DIRCOM'!BJ4 -> 117.4 | G29: =VLOOKUP($A$5,'RECAP DIRCOM'!$G$6:$DG$312,77,FALSE) -> 0.1 | I29: =VLOOKUP($A$5,'RECAP DIRCOM'!$G$6:$DG$312,78,FALSE) -> 300% | K29: =VLOOKUP($A$5,#REF!,78,FALSE) ->  | M29: =+K29-I29 ->  | O29: =VLOOKUP($A$5,'RECAP DIRCOM'!$G$6:$DG$312,79,FALSE) -> 5065
B30: PNB ADE crédit conso | C30: 1% | E30: ='RECAP DIRCOM'!#REF! ->  | G30: =VLOOKUP($A$5,'RECAP DIRCOM'!$G$6:$DG$312,81,FALSE) -> 0.2 | I30: =VLOOKUP($A$5,'RECAP DIRCOM'!$G$6:$DG$312,82,FALSE) -> 400% | K30: =VLOOKUP($A$5,#REF!,82,FALSE) ->  | O30: =VLOOKUP($A$5,'RECAP DIRCOM'!$G$6:$DG$312,83,FALSE) -> 0.137230722
B31: PNB crédit immo | C31: 4% | E31: ='RECAP DIRCOM'!BN4 -> 36.2 | G31: =VLOOKUP($A$5,'RECAP DIRCOM'!$G$6:$DG$312,85,FALSE) -> 4.0 | I31: =VLOOKUP($A$5,'RECAP DIRCOM'!$G$6:$DG$312,86,FALSE) -> 0% | K31: =VLOOKUP($A$5,#REF!,86,FALSE) ->  | O31: =VLOOKUP($A$5,'RECAP DIRCOM'!$G$6:$DG$312,87,FALSE) -> 0
B32: PNB ADE crédit immo | C32: 2% | E32: ='RECAP DIRCOM'!#REF! ->  | G32: =VLOOKUP($A$5,'RECAP DIRCOM'!$G$6:$DG$312,89,FALSE) -> 0.0 | I32: =VLOOKUP($A$5,'RECAP DIRCOM'!$G$6:$DG$312,90,FALSE) -> 0% | K32: =VLOOKUP($A$5,#REF!,90,FALSE) ->  | O32: =VLOOKUP($A$5,'RECAP DIRCOM'!$G$6:$DG$312,91,FALSE) -> 0
B33: PNB SACCEF | C33: 2% | E33: ='RECAP DIRCOM'!#REF! ->  | G33: =VLOOKUP($A$5,'RECAP DIRCOM'!$G$6:$DG$312,93,FALSE) -> 0.0 | I33: =VLOOKUP($A$5,'RECAP DIRCOM'!$G$6:$DG$312,94,FALSE) -> 0% | K33: =VLOOKUP($A$5,#REF!,94,FALSE) ->  | O33: =VLOOKUP($A$5,'RECAP DIRCOM'!$G$6:$DG$312,95,FALSE) -> 0
B34: PNB Crédit MLT + Crédit Bail | C34: 2% | E34: ='RECAP DIRCOM'!BR4 -> 11.8 | G34: =VLOOKUP($A$5,'RECAP DIRCOM'!$G$6:$DG$312,97,FALSE) -> 0.0 | I34: =VLOOKUP($A$5,'RECAP DIRCOM'!$G$6:$DG$312,98,FALSE) -> 0% | K34: =VLOOKUP($A$5,#REF!,98,FALSE) ->  | O34: =VLOOKUP($A$5,'RECAP DIRCOM'!$G$6:$DG$312,99,FALSE) -> 0
A36: CRITERE IARD PREVOYANCE | C36: 15% | O36: =VLOOKUP($A$5,'RECAP DIRCOM'!$G$6:$DG$312,119,FALSE) -> 
B37: PNB Ventes nettes IARD | C37: 9% | E37: ='RECAP DIRCOM'!CC4 -> 145.9 | G37: =VLOOKUP($A$5,'RECAP DIRCOM'!$G$6:$DG$312,110,FALSE) ->  | I37: =VLOOKUP($A$5,'RECAP DIRCOM'!$G$6:$DG$312,111,FALSE) ->  | K37: =VLOOKUP($A$5,#REF!,111,FALSE) ->  | M37: =+K37-I37 ->  | O37: =VLOOKUP($A$5,'RECAP DIRCOM'!$G$6:$DG$312,112,FALSE) -> 
B38: PNB Ventes nettes Prévoyance | C38: 6% | E38: ='RECAP DIRCOM'!CG4 -> 24.5 | G38: =VLOOKUP($A$5,'RECAP DIRCOM'!$G$6:$DG$312,114,FALSE) ->  | I38: =VLOOKUP($A$5,'RECAP DIRCOM'!$G$6:$DG$312,115,FALSE) ->  | K38: =VLOOKUP($A$5,#REF!,115,FALSE) ->  | M38: =+K38-I38 ->  | O38: =VLOOKUP($A$5,'RECAP DIRCOM'!$G$6:$DG$312,116,FALSE) -> 
A40: CRITERE ACCELERATEURS PNB | C40: 15% | O40: =VLOOKUP($A$5,'RECAP DIRCOM'!$G$6:$DG$312,144,FALSE) -> 
B41: PNB Ventes brutes SED Finalisées | C41: 6% | E41: ='RECAP DIRCOM'!#REF! ->  | G41: =VLOOKUP($A$5,'RECAP DIRCOM'!$G$6:$DG$312,127,FALSE) ->  | I41: =VLOOKUP($A$5,'RECAP DIRCOM'!$G$6:$DG$312,128,FALSE) ->  | K41: =VLOOKUP($A$5,#REF!,128,FALSE) ->  | M41: =+K41-I41 ->  | O41: =VLOOKUP($A$5,'RECAP DIRCOM'!$G$6:$DG$312,129,FALSE) -> 
B42: PNB clients équipés E documents | C42: 3% | E42: ='RECAP DIRCOM'!#REF! ->  | G42: =VLOOKUP($A$5,'RECAP DIRCOM'!$G$6:$DG$312,131,FALSE) ->  | I42: =VLOOKUP($A$5,'RECAP DIRCOM'!$G$6:$DG$312,132,FALSE) ->  | K42: =VLOOKUP($A$5,#REF!,132,FALSE) ->  | M42: =+K42-I42 ->  | O42: =VLOOKUP($A$5,'RECAP DIRCOM'!$G$6:$DG$312,133,FALSE) -> 
B43: Economie opt'in | C43: 3% | E43: ='RECAP DIRCOM'!#REF! ->  | G43: =VLOOKUP($A$5,'RECAP DIRCOM'!$G$6:$DG$312,135,FALSE) ->  | I43: =VLOOKUP($A$5,'RECAP DIRCOM'!$G$6:$DG$312,136,FALSE) ->  | K43: =VLOOKUP($A$5,#REF!,136,FALSE) ->  | M43: =+K43-I43 ->  | O43: =VLOOKUP($A$5,'RECAP DIRCOM'!$G$6:$DG$312,137,FALSE) -> 
B44: Remises commerciales | C44: 3% | E44: ='RECAP DIRCOM'!#REF! ->  | G44: =VLOOKUP($A$5,'RECAP DIRCOM'!$G$6:$DG$312,139,FALSE) ->  | I44: =VLOOKUP($A$5,'RECAP DIRCOM'!$G$6:$DG$312,140,FALSE) ->  | K44: =VLOOKUP($A$5,#REF!,140,FALSE) ->  | M44: =+K44-I44 ->  | O44: =VLOOKUP($A$5,'RECAP DIRCOM'!$G$6:$DG$312,141,FALSE) -> 
A46: CRITERE Qualité-Satisfaction Clients | C46: 15% | O46: =VLOOKUP($A$5,'RECAP DIRCOM'!$G$6:$DG$312,159,FALSE) -> 
B47: Objectifs NPS* | C47: 8% | E47: ='RECAP DIRCOM'!K4 -> 23 | G47: =VLOOKUP($A$5,'RECAP DIRCOM'!$G$6:$DG$312,151,FALSE) ->  | I47: =VLOOKUP($A$5,'RECAP DIRCOM'!$G$6:$DG$312,152,FALSE) ->  | K47: =VLOOKUP($A$5,#REF!,152,FALSE) ->  | M47: =+K47-I47 ->  | O47: =VLOOKUP($A$5,'RECAP DIRCOM'!$G$6:$DG$312,153,FALSE) -> 
B48: Enquête Qualité Haute Définition | C48: 7% | E48: ='RECAP DIRCOM'!N4 -> 68% | G48: =VLOOKUP($A$5,'RECAP DIRCOM'!$G$6:$DG$312,154,FALSE) ->  | I48: =VLOOKUP($A$5,'RECAP DIRCOM'!$G$6:$DG$312,155,FALSE) ->  | K48: =VLOOKUP($A$5,#REF!,155,FALSE) ->  | M48: =+K48-I48 ->  | O48: =VLOOKUP($A$5,'RECAP DIRCOM'!$G$6:$DG$312,156,FALSE) -> 

Sheet DC_TOTAL
B1: Accueil | D1: BAROMETRE BDD - DIRECTIONS REGIONALES
D2: TOTAL GENERAL
D3: =ACCUEIL!F7 -> 2021-07-04
D7: TOTAL GENERAL | G7: Total Satisfaction Clients | J7: Total Bancarisation | M7: Total Epargne | P7: Total IARD Prévoyance | S7: Total Crédits
E8: coef | F8: 100% | H8: coef | I8: =DC_SATISFACTION!L8 -> 20% | K8: coef | L8: =DC_BANCA!V8 -> 20% | N8: coef | O8: =DC_EPARGNE!N8 -> 20% | Q8: coef | R8: =DC_IARD!N8 -> 20% | T8: coef | U8: =DC_CREDIT!R8 -> 20%
A9: eds | B9: Direction | C9: ="ETP perf "&DATEMAJ!$C$28 -> ETP perf 31-mai | D9: Moyenne ecart au 1er | E9: % Ecart au 1er | F9: Rang CEGEE | G9: Moyenne ecart au 1er | H9: % Ecart au 1er | I9: Rang CEGEE | J9: Moyenne ecart au 1er | K9: % Ecart au 1er | L9: Rang CEGEE | M9: Moyenne ecart au 1er | N9: % Ecart au 1er | O9: Rang CEGEE | P9: Moyenne ecart au 1er | Q9: % Ecart au 1er | R9: Rang CEGEE | S9: Moyenne ecart au 1er | T9: % Ecart au 1er | U9: Rang CEGEE
A10: 50 | B10: Meurthe et Moselle Meuse | C10: 242 | D10: 7% | E10: 0% | F10: 1 | G10: 30% | H10: 30% | I10: 4 | J10: 1% | K10: 0% | L10: 1 | M10: 3% | N10: 0% | O10: 1 | P10: 7% | Q10: 5% | R10: 2 | S10: 1% | T10: 0% | U10: 1
A11: 262 | B11: Marne-Ardennes | C11: 227 | D11: 12% | E11: 4% | F11: 2 | G11: 17% | H11: 17% | I11: 2 | J11: 20% | K11: 19% | L11: 4 | M11: 15% | N11: 12% | O11: 3 | P11: 2% | Q11: 0% | R11: 1 | S11: 11% | T11: 10% | U11: 2
A12: 264 | B12: Vosges | C12: 133 | D12: 18% | E12: 11% | F12: 3 | G12: 0% | H12: 0% | I12: 1 | J12: 34% | K12: 32% | L12: 6 | M12: 19% | N12: 16% | O12: 5 | P12: 18% | Q12: 15% | R12: 5 | S12: 28% | T12: 27% | U12: 4
A13: 30 | B13: Moselle | C13: 266 | D13: 19% | E13: 12% | F13: 4 | G13: 32% | H13: 32% | I13: 5 | J13: 20% | K13: 18% | L13: 3 | M13: 16% | N13: 14% | O13: 4 | P13: 12% | Q13: 10% | R13: 3 | S13: 22% | T13: 22% | U13: 3
A14: 110 | B14: Bas-Rhin | C14: 253 | D14: 19% | E14: 12% | F14: 5 | G14: 33% | H14: 33% | I14: 6 | J14: 18% | K14: 17% | L14: 2 | M14: 5% | N14: 3% | O14: 2 | P14: 14% | Q14: 11% | R14: 4 | S14: 33% | T14: 33% | U14: 6
A15: 160 | B15: Aube Haute Marne | C15: 128 | D15: 30% | E15: 23% | F15: 6 | G15: 24% | H15: 24% | I15: 3 | J15: 24% | K15: 23% | L15: 5 | M15: 52% | N15: 50% | O15: 7 | P15: 30% | Q15: 27% | R15: 6 | S15: 29% | T15: 28% | U15: 5
A16: 80 | B16: Haut-Rhin | C16: 157 | D16: 45% | E16: 38% | F16: 7 | G16: 58% | H16: 58% | I16: 7 | J16: 45% | K16: 44% | L16: 7 | M16: 47% | N16: 44% | O16: 6 | P16: 36% | Q16: 33% | R16: 7 | S16: 46% | T16: 45% | U16: 7
B17: Total CEGEE Directions Régionales | C17: =SUM(C10:C16) -> 1406

Sheet DC_BANCA
B1: Accueil | D1: BAROMETRE BDD - DIRECTIONS REGIONALES
D2: BANCARISATION
D3: =ACCUEIL!F7 -> 2021-07-04
D7: Ventes Nettes produits pondérés | H7: Ventes sur client non détenteur de l’univers | L7: Mobilité Macron | P7: Remises commerciales | T7: Total Bancarisation
D8: =DATEMAJ!C8 -> au 04/07 | F8: coef | G8: ='RECAP DIRCOM'!AA4 -> 10% | H8: =DATEMAJ!C9 -> au 04/07 | J8: coef | K8: ='RECAP DIRCOM'!AE4 -> 4% | L8: =DATEMAJ!C10 -> au 04/07 | N8: coef | O8: ='RECAP DIRCOM'!AI4 -> 3% | P8: =DATEMAJ!C11 -> au 31/05 | R8: coef | S8: ='RECAP DIRCOM'!AM4 -> 3% | U8: coef | V8: ='RECAP DIRCOM'!AP4 -> 20%
B9: Direction | C9: ="ETP perf "&DATEMAJ!$C$28 -> ETP perf 31-mai | D9: VN | E9: VN / ETP | F9: % Ecart au 1er | G9: Rang | H9: VB | I9: VB / ETP | J9: % Ecart au 1er | K9: Rang | L9: Nb | M9: Nb / ETP | N9: % Ecart au 1er | O9: Rang | P9: Montant | Q9: Montant / ETP | R9: % Ecart au 1er | S9: Rang | T9: Moyenne ecart au 1er | U9: % Ecart au 1er | V9: Rang CEGEE
A10: 50 | B10: Aube Haute Marne | C10: =VLOOKUP($A10,'RECAP DIRCOM'!$G$6:$DC$12,3,FALSE) -> 128 | D10: =VLOOKUP($A10,'RECAP DIRCOM'!$G$6:$DC$12,18,FALSE) -> 4,626 | E10: =VLOOKUP($A10,'RECAP DIRCOM'!$G$6:$DC$12,19,FALSE) -> 36.23 | F10: =VLOOKUP($A10,'RECAP DIRCOM'!$G$6:$DC$12,20,FALSE) -> 29% | G10: =VLOOKUP($A10,'RECAP DIRCOM'!$G$6:$DC$12,21,FALSE) -> 4 | H10: =VLOOKUP($A10,'RECAP DIRCOM'!$G$6:$DC$12,22,FALSE) -> 2,828 | I10: =VLOOKUP($A10,'RECAP DIRCOM'!$G$6:$DC$12,23,FALSE) -> 22.15 | J10: =VLOOKUP($A10,'RECAP DIRCOM'!$G$6:$DC$12,24,FALSE) -> 16% | K10: =VLOOKUP($A10,'RECAP DIRCOM'!$G$6:$DC$12,25,FALSE) -> 5 | L10: =VLOOKUP($A10,'RECAP DIRCOM'!$G$6:$DC$12,26,FALSE) -> 539 | M10: =VLOOKUP($A10,'RECAP DIRCOM'!$G$6:$DC$12,27,FALSE) -> 4.22 | N10: =VLOOKUP($A10,'RECAP DIRCOM'!$G$6:$DC$12,28,FALSE) -> 45% | O10: =VLOOKUP($A10,'RECAP DIRCOM'!$G$6:$DC$12,29,FALSE) -> 3 | P10: =VLOOKUP($A10,'RECAP DIRCOM'!$G$6:$DC$12,30,FALSE) -> -164 | Q10: =VLOOKUP($A10,'RECAP DIRCOM'!$G$6:$DC$12,31,FALSE) -> -1.29 | R10: =VLOOKUP($A10,'RECAP DIRCOM'!$G$6:$DC$12,32,FALSE) -> 0% | S10: =VLOOKUP($A10,'RECAP DIRCOM'!$G$6:$DC$12,33,FALSE) -> 1 | T10: =VLOOKUP($A10,'RECAP DIRCOM'!$G$6:$DC$12,34,FALSE) -> 24% | U10: =VLOOKUP($A10,'RECAP DIRCOM'!$G$6:$DC$12,35,FALSE) -> 23% | V10: =VLOOKUP($A10,'RECAP DIRCOM'!$G$6:$DC$12,36,FALSE) -> 5
A11: 262 | B11: Bas-Rhin | C11: =VLOOKUP($A11,'RECAP DIRCOM'!$G$6:$DC$12,3,FALSE) -> 253 | D11: =VLOOKUP($A11,'RECAP DIRCOM'!$G$6:$DC$12,18,FALSE) -> 11,825 | E11: =VLOOKUP($A11,'RECAP DIRCOM'!$G$6:$DC$12,19,FALSE) -> 46.80 | F11: =VLOOKUP($A11,'RECAP DIRCOM'!$G$6:$DC$12,20,FALSE) -> 8% | G11: =VLOOKUP($A11,'RECAP DIRCOM'!$G$6:$DC$12,21,FALSE) -> 2 | H11: =VLOOKUP($A11,'RECAP DIRCOM'!$G$6:$DC$12,22,FALSE) -> 5,617 | I11: =VLOOKUP($A11,'RECAP DIRCOM'!$G$6:$DC$12,23,FALSE) -> 22.23 | J11: =VLOOKUP($A11,'RECAP DIRCOM'!$G$6:$DC$12,24,FALSE) -> 16% | K11: =VLOOKUP($A11,'RECAP DIRCOM'!$G$6:$DC$12,25,FALSE) -> 4 | L11: =VLOOKUP($A11,'RECAP DIRCOM'!$G$6:$DC$12,26,FALSE) -> 996 | M11: =VLOOKUP($A11,'RECAP DIRCOM'!$G$6:$DC$12,27,FALSE) -> 3.94 | N11: =VLOOKUP($A11,'RECAP DIRCOM'!$G$6:$DC$12,28,FALSE) -> 49% | O11: =VLOOKUP($A11,'RECAP DIRCOM'!$G$6:$DC$12,29,FALSE) -> 4 | P11: =VLOOKUP($A11,'RECAP DIRCOM'!$G$6:$DC$12,30,FALSE) -> -403 | Q11: =VLOOKUP($A11,'RECAP DIRCOM'!$G$6:$DC$12,31,FALSE) -> -1.60 | R11: =VLOOKUP($A11,'RECAP DIRCOM'!$G$6:$DC$12,32,FALSE) -> 24% | S11: =VLOOKUP($A11,'RECAP DIRCOM'!$G$6:$DC$12,33,FALSE) -> 7 | T11: =VLOOKUP($A11,'RECAP DIRCOM'!$G$6:$DC$12,34,FALSE) -> 18% | U11: =VLOOKUP($A11,'RECAP DIRCOM'!$G$6:$DC$12,35,FALSE) -> 17% | V11: =VLOOKUP($A11,'RECAP DIRCOM'!$G$6:$DC$12,36,FALSE) -> 2
A12: 264 | B12: Haut-Rhin | C12: =VLOOKUP($A12,'RECAP DIRCOM'!$G$6:$DC$12,3,FALSE) -> 157 | D12: =VLOOKUP($A12,'RECAP DIRCOM'!$G$6:$DC$12,18,FALSE) -> 3,538 | E12: =VLOOKUP($A12,'RECAP DIRCOM'!$G$6:$DC$12,19,FALSE) -> 22.47 | F12: =VLOOKUP($A12,'RECAP DIRCOM'!$G$6:$DC$12,20,FALSE) -> 56% | G12: =VLOOKUP($A12,'RECAP DIRCOM'!$G$6:$DC$12,21,FALSE) -> 7 | H12: =VLOOKUP($A12,'RECAP DIRCOM'!$G$6:$DC$12,22,FALSE) -> 3,000 | I12: =VLOOKUP($A12,'RECAP DIRCOM'!$G$6:$DC$12,23,FALSE) -> 19.06 | J12: =VLOOKUP($A12,'RECAP DIRCOM'!$G$6:$DC$12,24,FALSE) -> 28% | K12: =VLOOKUP($A12,'RECAP DIRCOM'!$G$6:$DC$12,25,FALSE) -> 7 | L12: =VLOOKUP($A12,'RECAP DIRCOM'!$G$6:$DC$12,26,FALSE) -> 333 | M12: =VLOOKUP($A12,'RECAP DIRCOM'!$G$6:$DC$12,27,FALSE) -> 2.12 | N12: =VLOOKUP($A12,'RECAP DIRCOM'!$G$6:$DC$12,28,FALSE) -> 72% | O12: =VLOOKUP($A12,'RECAP DIRCOM'!$G$6:$DC$12,29,FALSE) -> 7 | P12: =VLOOKUP($A12,'RECAP DIRCOM'!$G$6:$DC$12,30,FALSE) -> -213 | Q12: =VLOOKUP($A12,'RECAP DIRCOM'!$G$6:$DC$12,31,FALSE) -> -1.35 | R12: =VLOOKUP($A12,'RECAP DIRCOM'!$G$6:$DC$12,32,FALSE) -> 5% | S12: =VLOOKUP($A12,'RECAP DIRCOM'!$G$6:$DC$12,33,FALSE) -> 3 | T12: =VLOOKUP($A12,'RECAP DIRCOM'!$G$6:$DC$12,34,FALSE) -> 45% | U12: =VLOOKUP($A12,'RECAP DIRCOM'!$G$6:$DC$12,35,FALSE) -> 44% | V12: =VLOOKUP($A12,'RECAP DIRCOM'!$G$6:$DC$12,36,FALSE) -> 7
A13: 30 | B13: Marne-Ardennes | C13: =VLOOKUP($A13,'RECAP DIRCOM'!$G$6:$DC$12,3,FALSE) -> 227 | D13: =VLOOKUP($A13,'RECAP DIRCOM'!$G$6:$DC$12,18,FALSE) -> 7,518 | E13: =VLOOKUP($A13,'RECAP DIRCOM'!$G$6:$DC$12,19,FALSE) -> 33.17 | F13: =VLOOKUP($A13,'RECAP DIRCOM'!$G$6:$DC$12,20,FALSE) -> 35% | G13: =VLOOKUP($A13,'RECAP DIRCOM'!$G$6:$DC$12,21,FALSE) -> 5 | H13: =VLOOKUP($A13,'RECAP DIRCOM'!$G$6:$DC$12,22,FALSE) -> 5,567 | I13: =VLOOKUP($A13,'RECAP DIRCOM'!$G$6:$DC$12,23,FALSE) -> 24.56 | J13: =VLOOKUP($A13,'RECAP DIRCOM'!$G$6:$DC$12,24,FALSE) -> 7% | K13: =VLOOKUP($A13,'RECAP DIRCOM'!$G$6:$DC$12,25,FALSE) -> 2 | L13: =VLOOKUP($A13,'RECAP DIRCOM'!$G$6:$DC$12,26,FALSE) -> 1,743 | M13: =VLOOKUP($A13,'RECAP DIRCOM'!$G$6:$DC$12,27,FALSE) -> 7.69 | N13: =VLOOKUP($A13,'RECAP DIRCOM'!$G$6:$DC$12,28,FALSE) -> 0% | O13: =VLOOKUP($A13,'RECAP DIRCOM'!$G$6:$DC$12,29,FALSE) -> 1 | P13: =VLOOKUP($A13,'RECAP DIRCOM'!$G$6:$DC$12,30,FALSE) -> -319 | Q13: =VLOOKUP($A13,'RECAP DIRCOM'!$G$6:$DC$12,31,FALSE) -> -1.41 | R13: =VLOOKUP($A13,'RECAP DIRCOM'!$G$6:$DC$12,32,FALSE) -> 9% | S13: =VLOOKUP($A13,'RECAP DIRCOM'!$G$6:$DC$12,33,FALSE) -> 4 | T13: =VLOOKUP($A13,'RECAP DIRCOM'!$G$6:$DC$12,34,FALSE) -> 20% | U13: =VLOOKUP($A13,'RECAP DIRCOM'!$G$6:$DC$12,35,FALSE) -> 19% | V13: =VLOOKUP($A13,'RECAP DIRCOM'!$G$6:$DC$12,36,FALSE) -> 4
A14: 110 | B14: Meurthe et Moselle Meuse | C14: =VLOOKUP($A14,'RECAP DIRCOM'!$G$6:$DC$12,3,FALSE) -> 242 | D14: =VLOOKUP($A14,'RECAP DIRCOM'!$G$6:$DC$12,18,FALSE) -> 12,290 | E14: =VLOOKUP($A14,'RECAP DIRCOM'!$G$6:$DC$12,19,FALSE) -> 50.72 | F14: =VLOOKUP($A14,'RECAP DIRCOM'!$G$6:$DC$12,20,FALSE) -> 0% | G14: =VLOOKUP($A14,'RECAP DIRCOM'!$G$6:$DC$12,21,FALSE) -> 1 | H14: =VLOOKUP($A14,'RECAP DIRCOM'!$G$6:$DC$12,22,FALSE) -> 6,425 | I14: =VLOOKUP($A14,'RECAP DIRCOM'!$G$6:$DC$12,23,FALSE) -> 26.51 | J14: =VLOOKUP($A14,'RECAP DIRCOM'!$G$6:$DC$12,24,FALSE) -> 0% | K14: =VLOOKUP($A14,'RECAP DIRCOM'!$G$6:$DC$12,25,FALSE) -> 1 | L14: =VLOOKUP($A14,'RECAP DIRCOM'!$G$6:$DC$12,26,FALSE) -> 1,856 | M14: =VLOOKUP($A14,'RECAP DIRCOM'!$G$6:$DC$12,27,FALSE) -> 7.66 | N14: =VLOOKUP($A14,'RECAP DIRCOM'!$G$6:$DC$12,28,FALSE) -> 0% | O14: =VLOOKUP($A14,'RECAP DIRCOM'!$G$6:$DC$12,29,FALSE) -> 2 | P14: =VLOOKUP($A14,'RECAP DIRCOM'!$G$6:$DC$12,30,FALSE) -> -341 | Q14: =VLOOKUP($A14,'RECAP DIRCOM'!$G$6:$DC$12,31,FALSE) -> -1.41 | R14: =VLOOKUP($A14,'RECAP DIRCOM'!$G$6:$DC$12,32,FALSE) -> 9% | S14: =VLOOKUP($A14,'RECAP DIRCOM'!$G$6:$DC$12,33,FALSE) -> 5 | T14: =VLOOKUP($A14,'RECAP DIRCOM'!$G$6:$DC$12,34,FALSE) -> 1% | U14: =VLOOKUP($A14,'RECAP DIRCOM'!$G$6:$DC$12,35,FALSE) -> 0% | V14: =VLOOKUP($A14,'RECAP DIRCOM'!$G$6:$DC$12,36,FALSE) -> 1
A15: 160 | B15: Moselle | C15: =VLOOKUP($A15,'RECAP DIRCOM'!$G$6:$DC$12,3,FALSE) -> 266 | D15: =VLOOKUP($A15,'RECAP DIRCOM'!$G$6:$DC$12,18,FALSE) -> 11,322 | E15: =VLOOKUP($A15,'RECAP DIRCOM'!$G$6:$DC$12,19,FALSE) -> 42.59 | F15: =VLOOKUP($A15,'RECAP DIRCOM'!$G$6:$DC$12,20,FALSE) -> 16% | G15: =VLOOKUP($A15,'RECAP DIRCOM'!$G$6:$DC$12,21,FALSE) -> 3 | H15: =VLOOKUP($A15,'RECAP DIRCOM'!$G$6:$DC$12,22,FALSE) -> 5,986 | I15: =VLOOKUP($A15,'RECAP DIRCOM'!$G$6:$DC$12,23,FALSE) -> 22.52 | J15: =VLOOKUP($A15,'RECAP DIRCOM'!$G$6:$DC$12,24,FALSE) -> 15% | K15: =VLOOKUP($A15,'RECAP DIRCOM'!$G$6:$DC$12,25,FALSE) -> 3 | L15: =VLOOKUP($A15,'RECAP DIRCOM'!$G$6:$DC$12,26,FALSE) -> 930 | M15: =VLOOKUP($A15,'RECAP DIRCOM'!$G$6:$DC$12,27,FALSE) -> 3.50 | N15: =VLOOKUP($A15,'RECAP DIRCOM'!$G$6:$DC$12,28,FALSE) -> 55% | O15: =VLOOKUP($A15,'RECAP DIRCOM'!$G$6:$DC$12,29,FALSE) -> 6 | P15: =VLOOKUP($A15,'RECAP DIRCOM'!$G$6:$DC$12,30,FALSE) -> -351 | Q15: =VLOOKUP($A15,'RECAP DIRCOM'!$G$6:$DC$12,31,FALSE) -> -1.32 | R15: =VLOOKUP($A15,'RECAP DIRCOM'!$G$6:$DC$12,32,FALSE) -> 3% | S15: =VLOOKUP($A15,'RECAP DIRCOM'!$G$6:$DC$12,33,FALSE) -> 2 | T15: =VLOOKUP($A15,'RECAP DIRCOM'!$G$6:$DC$12,34,FALSE) -> 20% | U15: =VLOOKUP($A15,'RECAP DIRCOM'!$G$6:$DC$12,35,FALSE) -> 18% | V15: =VLOOKUP($A15,'RECAP DIRCOM'!$G$6:$DC$12,36,FALSE) -> 3
A16: 80 | B16: Vosges | C16: =VLOOKUP($A16,'RECAP DIRCOM'!$G$6:$DC$12,3,FALSE) -> 133 | D16: =VLOOKUP($A16,'RECAP DIRCOM'!$G$6:$DC$12,18,FALSE) -> 4,004 | E16: =VLOOKUP($A16,'RECAP DIRCOM'!$G$6:$DC$12,19,FALSE) -> 30.11 | F16: =VLOOKUP($A16,'RECAP DIRCOM'!$G$6:$DC$12,20,FALSE) -> 41% | G16: =VLOOKUP($A16,'RECAP DIRCOM'!$G$6:$DC$12,21,FALSE) -> 6 | H16: =VLOOKUP($A16,'RECAP DIRCOM'!$G$6:$DC$12,22,FALSE) -> 2,835 | I16: =VLOOKUP($A16,'RECAP DIRCOM'!$G$6:$DC$12,23,FALSE) -> 21.32 | J16: =VLOOKUP($A16,'RECAP DIRCOM'!$G$6:$DC$12,24,FALSE) -> 20% | K16: =VLOOKUP($A16,'RECAP DIRCOM'!$G$6:$DC$12,25,FALSE) -> 6 | L16: =VLOOKUP($A16,'RECAP DIRCOM'!$G$6:$DC$12,26,FALSE) -> 493 | M16: =VLOOKUP($A16,'RECAP DIRCOM'!$G$6:$DC$12,27,FALSE) -> 3.71 | N16: =VLOOKUP($A16,'RECAP DIRCOM'!$G$6:$DC$12,28,FALSE) -> 52% | O16: =VLOOKUP($A16,'RECAP DIRCOM'!$G$6:$DC$12,29,FALSE) -> 5 | P16: =VLOOKUP($A16,'RECAP DIRCOM'!$G$6:$DC$12,30,FALSE) -> -190 | Q16: =VLOOKUP($A16,'RECAP DIRCOM'!$G$6:$DC$12,31,FALSE) -> -1.43 | R16: =VLOOKUP($A16,'RECAP DIRCOM'!$G$6:$DC$12,32,FALSE) -> 11% | S16: =VLOOKUP($A16,'RECAP DIRCOM'!$G$6:$DC$12,33,FALSE) -> 6 | T16: =VLOOKUP($A16,'RECAP DIRCOM'!$G$6:$DC$12,34,FALSE) -> 34% | U16: =VLOOKUP($A16,'RECAP DIRCOM'!$G$6:$DC$12,35,FALSE) -> 32% | V16: =VLOOKUP($A16,'RECAP DIRCOM'!$G$6:$DC$12,36,FALSE) -> 6
B17: Total CEGEE Directions Régionales | C17: =SUM(C10:C16) -> 1406

Sheet DC_EPARGNE
B1: Accueil | D1: BAROMETRE BDD - DIRECTIONS REGIONALES
D2: EPARGNE
D3: =ACCUEIL!F7 -> 2021-07-04
D7: Excédent Epargne y/c DAV pondéré | H7: Ventes sur client non détenteur de l’univers | L7: Total Epargne
D8: =DATEMAJ!C14 -> au 04/07 | F8: coef | G8: ='RECAP DIRCOM'!AX4 -> 14% | H8: =DATEMAJ!C15 -> au 04/07 | J8: coef | K8: ='RECAP DIRCOM'!BB4 -> 6% | M8: coef | N8: ='RECAP DIRCOM'!BE4 -> 20%
B9: Direction | C9: ="ETP perf "&DATEMAJ!$C$28 -> ETP perf 31-mai | D9: Excédent | E9: Excédent / ETP | F9: % Ecart au 1er | G9: Rang | H9: VB | I9: VB / ETP | J9: % Ecart au 1er | K9: Rang | L9: Moyenne ecart au 1er | M9: % Ecart au 1er | N9: Rang CEGEE
A10: 50 | B10: Aube Haute Marne | C10: =VLOOKUP($A10,'RECAP DIRCOM'!$G$6:$DC$12,3,FALSE) -> 128 | D10: =VLOOKUP($A10,'RECAP DIRCOM'!$G$6:$DC$12,41,FALSE) -> 16,612 | E10: =VLOOKUP($A10,'RECAP DIRCOM'!$G$6:$DC$12,42,FALSE) -> 130.12 | F10: =VLOOKUP($A10,'RECAP DIRCOM'!$G$6:$DC$12,43,FALSE) -> 65% | G10: =VLOOKUP($A10,'RECAP DIRCOM'!$G$6:$DC$12,44,FALSE) -> 7 | H10: =VLOOKUP($A10,'RECAP DIRCOM'!$G$6:$DC$12,45,FALSE) -> 1,476 | I10: =VLOOKUP($A10,'RECAP DIRCOM'!$G$6:$DC$12,46,FALSE) -> 11.56 | J10: =VLOOKUP($A10,'RECAP DIRCOM'!$G$6:$DC$12,47,FALSE) -> 24% | K10: =VLOOKUP($A10,'RECAP DIRCOM'!$G$6:$DC$12,48,FALSE) -> 5 | L10: =VLOOKUP($A10,'RECAP DIRCOM'!$G$6:$DC$12,49,FALSE) -> 52% | M10: =VLOOKUP($A10,'RECAP DIRCOM'!$G$6:$DC$12,50,FALSE) -> 50% | N10: =VLOOKUP($A10,'RECAP DIRCOM'!$G$6:$DC$12,51,FALSE) -> 7
A11: 262 | B11: Bas-Rhin | C11: =VLOOKUP($A11,'RECAP DIRCOM'!$G$6:$DC$12,3,FALSE) -> 253 | D11: =VLOOKUP($A11,'RECAP DIRCOM'!$G$6:$DC$12,41,FALSE) -> 86,111 | E11: =VLOOKUP($A11,'RECAP DIRCOM'!$G$6:$DC$12,42,FALSE) -> 340.78 | F11: =VLOOKUP($A11,'RECAP DIRCOM'!$G$6:$DC$12,43,FALSE) -> 8% | G11: =VLOOKUP($A11,'RECAP DIRCOM'!$G$6:$DC$12,44,FALSE) -> 2 | H11: =VLOOKUP($A11,'RECAP DIRCOM'!$G$6:$DC$12,45,FALSE) -> 3,829 | I11: =VLOOKUP($A11,'RECAP DIRCOM'!$G$6:$DC$12,46,FALSE) -> 15.15 | J11: =VLOOKUP($A11,'RECAP DIRCOM'!$G$6:$DC$12,47,FALSE) -> 0% | K11: =VLOOKUP($A11,'RECAP DIRCOM'!$G$6:$DC$12,48,FALSE) -> 1 | L11: =VLOOKUP($A11,'RECAP DIRCOM'!$G$6:$DC$12,49,FALSE) -> 5% | M11: =VLOOKUP($A11,'RECAP DIRCOM'!$G$6:$DC$12,50,FALSE) -> 3% | N11: =VLOOKUP($A11,'RECAP DIRCOM'!$G$6:$DC$12,51,FALSE) -> 2
A12: 264 | B12: Haut-Rhin | C12: =VLOOKUP($A12,'RECAP DIRCOM'!$G$6:$DC$12,3,FALSE) -> 157 | D12: =VLOOKUP($A12,'RECAP DIRCOM'!$G$6:$DC$12,41,FALSE) -> 25,601 | E12: =VLOOKUP($A12,'RECAP DIRCOM'!$G$6:$DC$12,42,FALSE) -> 162.62 | F12: =VLOOKUP($A12,'RECAP DIRCOM'!$G$6:$DC$12,43,FALSE) -> 56% | G12: =VLOOKUP($A12,'RECAP DIRCOM'!$G$6:$DC$12,44,FALSE) -> 6 | H12: =VLOOKUP($A12,'RECAP DIRCOM'!$G$6:$DC$12,45,FALSE) -> 1,753 | I12: =VLOOKUP($A12,'RECAP DIRCOM'!$G$6:$DC$12,46,FALSE) -> 11.13 | J12: =VLOOKUP($A12,'RECAP DIRCOM'!$G$6:$DC$12,47,FALSE) -> 27% | K12: =VLOOKUP($A12,'RECAP DIRCOM'!$G$6:$DC$12,48,FALSE) -> 6 | L12: =VLOOKUP($A12,'RECAP DIRCOM'!$G$6:$DC$12,49,FALSE) -> 47% | M12: =VLOOKUP($A12,'RECAP DIRCOM'!$G$6:$DC$12,50,FALSE) -> 44% | N12: =VLOOKUP($A12,'RECAP DIRCOM'!$G$6:$DC$12,51,FALSE) -> 6
A13: 30 | B13: Marne-Ardennes | C13: =VLOOKUP($A13,'RECAP DIRCOM'!$G$6:$DC$12,3,FALSE) -> 227 | D13: =VLOOKUP($A13,'RECAP DIRCOM'!$G$6:$DC$12,41,FALSE) -> 67,445 | E13: =VLOOKUP($A13,'RECAP DIRCOM'!$G$6:$DC$12,42,FALSE) -> 297.58 | F13: =VLOOKUP($A13,'RECAP DIRCOM'!$G$6:$DC$12,43,FALSE) -> 19% | G13: =VLOOKUP($A13,'RECAP DIRCOM'!$G$6:$DC$12,44,FALSE) -> 4 | H13: =VLOOKUP($A13,'RECAP DIRCOM'!$G$6:$DC$12,45,FALSE) -> 3,268 | I13: =VLOOKUP($A13,'RECAP DIRCOM'!$G$6:$DC$12,46,FALSE) -> 14.42 | J13: =VLOOKUP($A13,'RECAP DIRCOM'!$G$6:$DC$12,47,FALSE) -> 5% | K13: =VLOOKUP($A13,'RECAP DIRCOM'!$G$6:$DC$12,48,FALSE) -> 3 | L13: =VLOOKUP($A13,'RECAP DIRCOM'!$G$6:$DC$12,49,FALSE) -> 15% | M13: =VLOOKUP($A13,'RECAP DIRCOM'!$G$6:$DC$12,50,FALSE) -> 12% | N13: =VLOOKUP($A13,'RECAP DIRCOM'!$G$6:$DC$12,51,FALSE) -> 3
A14: 110 | B14: Meurthe et Moselle Meuse | C14: =VLOOKUP($A14,'RECAP DIRCOM'!$G$6:$DC$12,3,FALSE) -> 242 | D14: =VLOOKUP($A14,'RECAP DIRCOM'!$G$6:$DC$12,41,FALSE) -> 89,412 | E14: =VLOOKUP($A14,'RECAP DIRCOM'!$G$6:$DC$12,42,FALSE) -> 368.97 | F14: =VLOOKUP($A14,'RECAP DIRCOM'!$G$6:$DC$12,43,FALSE) -> 0% | G14: =VLOOKUP($A14,'RECAP DIRCOM'!$G$6:$DC$12,44,FALSE) -> 1 | H14: =VLOOKUP($A14,'RECAP DIRCOM'!$G$6:$DC$12,45,FALSE) -> 3,339 | I14: =VLOOKUP($A14,'RECAP DIRCOM'!$G$6:$DC$12,46,FALSE) -> 13.78 | J14: =VLOOKUP($A14,'RECAP DIRCOM'!$G$6:$DC$12,47,FALSE) -> 9% | K14: =VLOOKUP($A14,'RECAP DIRCOM'!$G$6:$DC$12,48,FALSE) -> 4 | L14: =VLOOKUP($A14,'RECAP DIRCOM'!$G$6:$DC$12,49,FALSE) -> 3% | M14: =VLOOKUP($A14,'RECAP DIRCOM'!$G$6:$DC$12,50,FALSE) -> 0% | N14: =VLOOKUP($A14,'RECAP DIRCOM'!$G$6:$DC$12,51,FALSE) -> 1
A15: 160 | B15: Moselle | C15: =VLOOKUP($A15,'RECAP DIRCOM'!$G$6:$DC$12,3,FALSE) -> 266 | D15: =VLOOKUP($A15,'RECAP DIRCOM'!$G$6:$DC$12,41,FALSE) -> 76,279 | E15: =VLOOKUP($A15,'RECAP DIRCOM'!$G$6:$DC$12,42,FALSE) -> 286.94 | F15: =VLOOKUP($A15,'RECAP DIRCOM'!$G$6:$DC$12,43,FALSE) -> 22% | G15: =VLOOKUP($A15,'RECAP DIRCOM'!$G$6:$DC$12,44,FALSE) -> 5 | H15: =VLOOKUP($A15,'RECAP DIRCOM'!$G$6:$DC$12,45,FALSE) -> 3,920 | I15: =VLOOKUP($A15,'RECAP DIRCOM'!$G$6:$DC$12,46,FALSE) -> 14.75 | J15: =VLOOKUP($A15,'RECAP DIRCOM'!$G$6:$DC$12,47,FALSE) -> 3% | K15: =VLOOKUP($A15,'RECAP DIRCOM'!$G$6:$DC$12,48,FALSE) -> 2 | L15: =VLOOKUP($A15,'RECAP DIRCOM'!$G$6:$DC$12,49,FALSE) -> 16% | M15: =VLOOKUP($A15,'RECAP DIRCOM'!$G$6:$DC$12,50,FALSE) -> 14% | N15: =VLOOKUP($A15,'RECAP DIRCOM'!$G$6:$DC$12,51,FALSE) -> 4
A16: 80 | B16: Vosges | C16: =VLOOKUP($A16,'RECAP DIRCOM'!$G$6:$DC$12,3,FALSE) -> 133 | D16: =VLOOKUP($A16,'RECAP DIRCOM'!$G$6:$DC$12,41,FALSE) -> 44,163 | E16: =VLOOKUP($A16,'RECAP DIRCOM'!$G$6:$DC$12,42,FALSE) -> 332.12 | F16: =VLOOKUP($A16,'RECAP DIRCOM'!$G$6:$DC$12,43,FALSE) -> 10% | G16: =VLOOKUP($A16,'RECAP DIRCOM'!$G$6:$DC$12,44,FALSE) -> 3 | H16: =VLOOKUP($A16,'RECAP DIRCOM'!$G$6:$DC$12,45,FALSE) -> 1,237 | I16: =VLOOKUP($A16,'RECAP DIRCOM'!$G$6:$DC$12,46,FALSE) -> 9.30 | J16: =VLOOKUP($A16,'RECAP DIRCOM'!$G$6:$DC$12,47,FALSE) -> 39% | K16: =VLOOKUP($A16,'RECAP DIRCOM'!$G$6:$DC$12,48,FALSE) -> 7 | L16: =VLOOKUP($A16,'RECAP DIRCOM'!$G$6:$DC$12,49,FALSE) -> 19% | M16: =VLOOKUP($A16,'RECAP DIRCOM'!$G$6:$DC$12,50,FALSE) -> 16% | N16: =VLOOKUP($A16,'RECAP DIRCOM'!$G$6:$DC$12,51,FALSE) -> 5
B17: Total CEGEE Directions Régionales | C17: =SUM(C10:C16) -> 1406

Sheet DC_CREDIT
B1: Accueil | D1: BAROMETRE BDD - DIRECTIONS REGIONALES
D2: CREDITS
D3: =ACCUEIL!F7 -> 2021-07-04
D7: Engagements et ventes accessoires pondérés Immo | H7: Engagements et ventes accessoires pondérés Conso | L7: Ventes sur client non détenteur de l’univers | P7: Total Crédits
D8: =DATEMAJ!C18 -> au 04/07 | F8: coef | G8: ='RECAP DIRCOM'!BM4 -> 8% | H8: =DATEMAJ!C19 -> au 04/07 | J8: coef | K8: ='RECAP DIRCOM'!BQ4 -> 6% | L8: =DATEMAJ!C20 -> au 04/07 | N8: coef | O8: ='RECAP DIRCOM'!BU4 -> 6% | Q8: coef | R8: ='RECAP DIRCOM'!BX4 -> 20%
B9: Direction | C9: ="ETP perf "&DATEMAJ!$C$28 -> ETP perf 31-mai | D9: PNB | E9: PNB / ETP | F9: % Ecart au 1er | G9: Rang | H9: PNB | I9: PNB / ETP | J9: % Ecart au 1er | K9: Rang | L9: VB | M9: VB / ETP | N9: % Ecart au 1er | O9: Rang | P9: Moyenne ecart au 1er | Q9: % Ecart au 1er | R9: Rang CEGEE
A10: 50 | B10: Aube Haute Marne | C10: =VLOOKUP($A10,'RECAP DIRCOM'!$G$6:$DC$12,3,FALSE) -> 128 | D10: =VLOOKUP($A10,'RECAP DIRCOM'!$G$6:$DC$12,56,FALSE) -> 7,328 | E10: =VLOOKUP($A10,'RECAP DIRCOM'!$G$6:$DC$12,57,FALSE) -> 57.40 | F10: =VLOOKUP($A10,'RECAP DIRCOM'!$G$6:$DC$12,58,FALSE) -> 51% | G10: =VLOOKUP($A10,'RECAP DIRCOM'!$G$6:$DC$12,59,FALSE) -> 6 | H10: =VLOOKUP($A10,'RECAP DIRCOM'!$G$6:$DC$12,60,FALSE) -> 4,435 | I10: =VLOOKUP($A10,'RECAP DIRCOM'!$G$6:$DC$12,61,FALSE) -> 34.74 | J10: =VLOOKUP($A10,'RECAP DIRCOM'!$G$6:$DC$12,62,FALSE) -> 4% | K10: =VLOOKUP($A10,'RECAP DIRCOM'!$G$6:$DC$12,63,FALSE) -> 3 | L10: =VLOOKUP($A10,'RECAP DIRCOM'!$G$6:$DC$12,64,FALSE) -> 1,131 | M10: =VLOOKUP($A10,'RECAP DIRCOM'!$G$6:$DC$12,65,FALSE) -> 8.86 | N10: =VLOOKUP($A10,'RECAP DIRCOM'!$G$6:$DC$12,66,FALSE) -> 25% | O10: =VLOOKUP($A10,'RECAP DIRCOM'!$G$6:$DC$12,67,FALSE) -> 4 | P10: =VLOOKUP($A10,'RECAP DIRCOM'!$G$6:$DC$12,68,FALSE) -> 29% | Q10: =VLOOKUP($A10,'RECAP DIRCOM'!$G$6:$DC$12,69,FALSE) -> 28% | R10: =VLOOKUP($A10,'RECAP DIRCOM'!$G$6:$DC$12,70,FALSE) -> 5
A11: 262 | B11: Bas-Rhin | C11: =VLOOKUP($A11,'RECAP DIRCOM'!$G$6:$DC$12,3,FALSE) -> 253 | D11: =VLOOKUP($A11,'RECAP DIRCOM'!$G$6:$DC$12,56,FALSE) -> 15,174 | E11: =VLOOKUP($A11,'RECAP DIRCOM'!$G$6:$DC$12,57,FALSE) -> 60.05 | F11: =VLOOKUP($A11,'RECAP DIRCOM'!$G$6:$DC$12,58,FALSE) -> 49% | G11: =VLOOKUP($A11,'RECAP DIRCOM'!$G$6:$DC$12,59,FALSE) -> 5 | H11: =VLOOKUP($A11,'RECAP DIRCOM'!$G$6:$DC$12,60,FALSE) -> 8,030 | I11: =VLOOKUP($A11,'RECAP DIRCOM'!$G$6:$DC$12,61,FALSE) -> 31.78 | J11: =VLOOKUP($A11,'RECAP DIRCOM'!$G$6:$DC$12,62,FALSE) -> 12% | K11: =VLOOKUP($A11,'RECAP DIRCOM'!$G$6:$DC$12,63,FALSE) -> 5 | L11: =VLOOKUP($A11,'RECAP DIRCOM'!$G$6:$DC$12,64,FALSE) -> 1,977 | M11: =VLOOKUP($A11,'RECAP DIRCOM'!$G$6:$DC$12,65,FALSE) -> 7.82 | N11: =VLOOKUP($A11,'RECAP DIRCOM'!$G$6:$DC$12,66,FALSE) -> 34% | O11: =VLOOKUP($A11,'RECAP DIRCOM'!$G$6:$DC$12,67,FALSE) -> 6 | P11: =VLOOKUP($A11,'RECAP DIRCOM'!$G$6:$DC$12,68,FALSE) -> 33% | Q11: =VLOOKUP($A11,'RECAP DIRCOM'!$G$6:$DC$12,69,FALSE) -> 33% | R11: =VLOOKUP($A11,'RECAP DIRCOM'!$G$6:$DC$12,70,FALSE) -> 6
A12: 264 | B12: Haut-Rhin | C12: =VLOOKUP($A12,'RECAP DIRCOM'!$G$6:$DC$12,3,FALSE) -> 157 | D12: =VLOOKUP($A12,'RECAP DIRCOM'!$G$6:$DC$12,56,FALSE) -> 6,857 | E12: =VLOOKUP($A12,'RECAP DIRCOM'!$G$6:$DC$12,57,FALSE) -> 43.55 | F12: =VLOOKUP($A12,'RECAP DIRCOM'!$G$6:$DC$12,58,FALSE) -> 63% | G12: =VLOOKUP($A12,'RECAP DIRCOM'!$G$6:$DC$12,59,FALSE) -> 7 | H12: =VLOOKUP($A12,'RECAP DIRCOM'!$G$6:$DC$12,60,FALSE) -> 4,488 | I12: =VLOOKUP($A12,'RECAP DIRCOM'!$G$6:$DC$12,61,FALSE) -> 28.51 | J12: =VLOOKUP($A12,'RECAP DIRCOM'!$G$6:$DC$12,62,FALSE) -> 21% | K12: =VLOOKUP($A12,'RECAP DIRCOM'!$G$6:$DC$12,63,FALSE) -> 7 | L12: =VLOOKUP($A12,'RECAP DIRCOM'!$G$6:$DC$12,64,FALSE) -> 988 | M12: =VLOOKUP($A12,'RECAP DIRCOM'!$G$6:$DC$12,65,FALSE) -> 6.28 | N12: =VLOOKUP($A12,'RECAP DIRCOM'!$G$6:$DC$12,66,FALSE) -> 47% | O12: =VLOOKUP($A12,'RECAP DIRCOM'!$G$6:$DC$12,67,FALSE) -> 7 | P12: =VLOOKUP($A12,'RECAP DIRCOM'!$G$6:$DC$12,68,FALSE) -> 46% | Q12: =VLOOKUP($A12,'RECAP DIRCOM'!$G$6:$DC$12,69,FALSE) -> 45% | R12: =VLOOKUP($A12,'RECAP DIRCOM'!$G$6:$DC$12,70,FALSE) -> 7
A13: 30 | B13: Marne-Ardennes | C13: =VLOOKUP($A13,'RECAP DIRCOM'!$G$6:$DC$12,3,FALSE) -> 227 | D13: =VLOOKUP($A13,'RECAP DIRCOM'!$G$6:$DC$12,56,FALSE) -> 24,097 | E13: =VLOOKUP($A13,'RECAP DIRCOM'!$G$6:$DC$12,57,FALSE) -> 106.32 | F13: =VLOOKUP($A13,'RECAP DIRCOM'!$G$6:$DC$12,58,FALSE) -> 9% | G13: =VLOOKUP($A13,'RECAP DIRCOM'!$G$6:$DC$12,59,FALSE) -> 2 | H13: =VLOOKUP($A13,'RECAP DIRCOM'!$G$6:$DC$12,60,FALSE) -> 7,084 | I13: =VLOOKUP($A13,'RECAP DIRCOM'!$G$6:$DC$12,61,FALSE) -> 31.25 | J13: =VLOOKUP($A13,'RECAP DIRCOM'!$G$6:$DC$12,62,FALSE) -> 14% | K13: =VLOOKUP($A13,'RECAP DIRCOM'!$G$6:$DC$12,63,FALSE) -> 6 | L13: =VLOOKUP($A13,'RECAP DIRCOM'!$G$6:$DC$12,64,FALSE) -> 2,420 | M13: =VLOOKUP($A13,'RECAP DIRCOM'!$G$6:$DC$12,65,FALSE) -> 10.68 | N13: =VLOOKUP($A13,'RECAP DIRCOM'!$G$6:$DC$12,66,FALSE) -> 10% | O13: =VLOOKUP($A13,'RECAP DIRCOM'!$G$6:$DC$12,67,FALSE) -> 2 | P13: =VLOOKUP($A13,'RECAP DIRCOM'!$G$6:$DC$12,68,FALSE) -> 11% | Q13: =VLOOKUP($A13,'RECAP DIRCOM'!$G$6:$DC$12,69,FALSE) -> 10% | R13: =VLOOKUP($A13,'RECAP DIRCOM'!$G$6:$DC$12,70,FALSE) -> 2
A14: 110 | B14: Meurthe et Moselle Meuse | C14: =VLOOKUP($A14,'RECAP DIRCOM'!$G$6:$DC$12,3,FALSE) -> 242 | D14: =VLOOKUP($A14,'RECAP DIRCOM'!$G$6:$DC$12,56,FALSE) -> 28,442 | E14: =VLOOKUP($A14,'RECAP DIRCOM'!$G$6:$DC$12,57,FALSE) -> 117.37 | F14: =VLOOKUP($A14,'RECAP DIRCOM'!$G$6:$DC$12,58,FALSE) -> 0% | G14: =VLOOKUP($A14,'RECAP DIRCOM'!$G$6:$DC$12,59,FALSE) -> 1 | H14: =VLOOKUP($A14,'RECAP DIRCOM'!$G$6:$DC$12,60,FALSE) -> 8,537 | I14: =VLOOKUP($A14,'RECAP DIRCOM'!$G$6:$DC$12,61,FALSE) -> 35.23 | J14: =VLOOKUP($A14,'RECAP DIRCOM'!$G$6:$DC$12,62,FALSE) -> 3% | K14: =VLOOKUP($A14,'RECAP DIRCOM'!$G$6:$DC$12,63,FALSE) -> 2 | L14: =VLOOKUP($A14,'RECAP DIRCOM'!$G$6:$DC$12,64,FALSE) -> 2,867 | M14: =VLOOKUP($A14,'RECAP DIRCOM'!$G$6:$DC$12,65,FALSE) -> 11.83 | N14: =VLOOKUP($A14,'RECAP DIRCOM'!$G$6:$DC$12,66,FALSE) -> 0% | O14: =VLOOKUP($A14,'RECAP DIRCOM'!$G$6:$DC$12,67,FALSE) -> 1 | P14: =VLOOKUP($A14,'RECAP DIRCOM'!$G$6:$DC$12,68,FALSE) -> 1% | Q14: =VLOOKUP($A14,'RECAP DIRCOM'!$G$6:$DC$12,69,FALSE) -> 0% | R14: =VLOOKUP($A14,'RECAP DIRCOM'!$G$6:$DC$12,70,FALSE) -> 1
A15: 160 | B15: Moselle | C15: =VLOOKUP($A15,'RECAP DIRCOM'!$G$6:$DC$12,3,FALSE) -> 266 | D15: =VLOOKUP($A15,'RECAP DIRCOM'!$G$6:$DC$12,56,FALSE) -> 20,019 | E15: =VLOOKUP($A15,'RECAP DIRCOM'!$G$6:$DC$12,57,FALSE) -> 75.31 | F15: =VLOOKUP($A15,'RECAP DIRCOM'!$G$6:$DC$12,58,FALSE) -> 36% | G15: =VLOOKUP($A15,'RECAP DIRCOM'!$G$6:$DC$12,59,FALSE) -> 3 | H15: =VLOOKUP($A15,'RECAP DIRCOM'!$G$6:$DC$12,60,FALSE) -> 9,616 | I15: =VLOOKUP($A15,'RECAP DIRCOM'!$G$6:$DC$12,61,FALSE) -> 36.17 | J15: =VLOOKUP($A15,'RECAP DIRCOM'!$G$6:$DC$12,62,FALSE) -> 0% | K15: =VLOOKUP($A15,'RECAP DIRCOM'!$G$6:$DC$12,63,FALSE) -> 1 | L15: =VLOOKUP($A15,'RECAP DIRCOM'!$G$6:$DC$12,64,FALSE) -> 2,298 | M15: =VLOOKUP($A15,'RECAP DIRCOM'!$G$6:$DC$12,65,FALSE) -> 8.64 | N15: =VLOOKUP($A15,'RECAP DIRCOM'!$G$6:$DC$12,66,FALSE) -> 27% | O15: =VLOOKUP($A15,'RECAP DIRCOM'!$G$6:$DC$12,67,FALSE) -> 5 | P15: =VLOOKUP($A15,'RECAP DIRCOM'!$G$6:$DC$12,68,FALSE) -> 22% | Q15: =VLOOKUP($A15,'RECAP DIRCOM'!$G$6:$DC$12,69,FALSE) -> 22% | R15: =VLOOKUP($A15,'RECAP DIRCOM'!$G$6:$DC$12,70,FALSE) -> 3
A16: 80 | B16: Vosges | C16: =VLOOKUP($A16,'RECAP DIRCOM'!$G$6:$DC$12,3,FALSE) -> 133 | D16: =VLOOKUP($A16,'RECAP DIRCOM'!$G$6:$DC$12,56,FALSE) -> 8,670 | E16: =VLOOKUP($A16,'RECAP DIRCOM'!$G$6:$DC$12,57,FALSE) -> 65.20 | F16: =VLOOKUP($A16,'RECAP DIRCOM'!$G$6:$DC$12,58,FALSE) -> 44% | G16: =VLOOKUP($A16,'RECAP DIRCOM'!$G$6:$DC$12,59,FALSE) -> 4 | H16: =VLOOKUP($A16,'RECAP DIRCOM'!$G$6:$DC$12,60,FALSE) -> 4,238 | I16: =VLOOKUP($A16,'RECAP DIRCOM'!$G$6:$DC$12,61,FALSE) -> 31.87 | J16: =VLOOKUP($A16,'RECAP DIRCOM'!$G$6:$DC$12,62,FALSE) -> 12% | K16: =VLOOKUP($A16,'RECAP DIRCOM'!$G$6:$DC$12,63,FALSE) -> 4 | L16: =VLOOKUP($A16,'RECAP DIRCOM'!$G$6:$DC$12,64,FALSE) -> 1,245 | M16: =VLOOKUP($A16,'RECAP DIRCOM'!$G$6:$DC$12,65,FALSE) -> 9.36 | N16: =VLOOKUP($A16,'RECAP DIRCOM'!$G$6:$DC$12,66,FALSE) -> 21% | O16: =VLOOKUP($A16,'RECAP DIRCOM'!$G$6:$DC$12,67,FALSE) -> 3 | P16: =VLOOKUP($A16,'RECAP DIRCOM'!$G$6:$DC$12,68,FALSE) -> 28% | Q16: =VLOOKUP($A16,'RECAP DIRCOM'!$G$6:$DC$12,69,FALSE) -> 27% | R16: =VLOOKUP($A16,'RECAP DIRCOM'!$G$6:$DC$12,70,FALSE) -> 4
B17: Total CEGEE Directions Régionales | C17: =SUM(C10:C16) -> 1406

Sheet DC_IARD
B1: Accueil | D1: BAROMETRE BDD - DIRECTIONS REGIONALES
D2: IARD ET PREVOYANCE
D3: =ACCUEIL!F7 -> 2021-07-04
D7: Ventes Nettes produits pondérés | H7: Ventes sur client non détenteur de l’univers | L7: Total IARD Prévoyance
D8: =DATEMAJ!C23 -> au 04/07 | F8: coef | G8: ='RECAP DIRCOM'!CF4 -> 14% | H8: =DATEMAJ!C24 -> au 04/07 | J8: coef | K8: ='RECAP DIRCOM'!CJ4 -> 6% | M8: coef | N8: ='RECAP DIRCOM'!CM4 -> 20%
B9: Direction | C9: ="ETP perf "&DATEMAJ!$C$28 -> ETP perf 31-mai | D9: VN | E9: VN / ETP | F9: % Ecart au 1er | G9: Rang | H9: VB | I9: VB / ETP | J9: % Ecart au 1er | K9: Rang | L9: Moyenne ecart au 1er | M9: % Ecart au 1er | N9: Rang CEGEE
A10: 50 | B10: Aube Haute Marne | C10: =VLOOKUP($A10,'RECAP DIRCOM'!$G$6:$DC$12,3,FALSE) -> 128 | D10: =VLOOKUP($A10,'RECAP DIRCOM'!$G$6:$DC$12,75,FALSE) -> 12,207 | E10: =VLOOKUP($A10,'RECAP DIRCOM'!$G$6:$DC$12,76,FALSE) -> 95.61 | F10: =VLOOKUP($A10,'RECAP DIRCOM'!$G$6:$DC$12,77,FALSE) -> 34% | G10: =VLOOKUP($A10,'RECAP DIRCOM'!$G$6:$DC$12,78,FALSE) -> 6 | H10: =VLOOKUP($A10,'RECAP DIRCOM'!$G$6:$DC$12,79,FALSE) -> 2,546 | I10: =VLOOKUP($A10,'RECAP DIRCOM'!$G$6:$DC$12,80,FALSE) -> 19.94 | J10: =VLOOKUP($A10,'RECAP DIRCOM'!$G$6:$DC$12,81,FALSE) -> 19% | K10: =VLOOKUP($A10,'RECAP DIRCOM'!$G$6:$DC$12,82,FALSE) -> 5 | L10: =VLOOKUP($A10,'RECAP DIRCOM'!$G$6:$DC$12,83,FALSE) -> 30% | M10: =VLOOKUP($A10,'RECAP DIRCOM'!$G$6:$DC$12,84,FALSE) -> 27% | N10: =VLOOKUP($A10,'RECAP DIRCOM'!$G$6:$DC$12,85,FALSE) -> 6
A11: 262 | B11: Bas-Rhin | C11: =VLOOKUP($A11,'RECAP DIRCOM'!$G$6:$DC$12,3,FALSE) -> 253 | D11: =VLOOKUP($A11,'RECAP DIRCOM'!$G$6:$DC$12,75,FALSE) -> 32,503 | E11: =VLOOKUP($A11,'RECAP DIRCOM'!$G$6:$DC$12,76,FALSE) -> 128.63 | F11: =VLOOKUP($A11,'RECAP DIRCOM'!$G$6:$DC$12,77,FALSE) -> 12% | G11: =VLOOKUP($A11,'RECAP DIRCOM'!$G$6:$DC$12,78,FALSE) -> 3 | H11: =VLOOKUP($A11,'RECAP DIRCOM'!$G$6:$DC$12,79,FALSE) -> 5,065 | I11: =VLOOKUP($A11,'RECAP DIRCOM'!$G$6:$DC$12,80,FALSE) -> 20.04 | J11: =VLOOKUP($A11,'RECAP DIRCOM'!$G$6:$DC$12,81,FALSE) -> 18% | K11: =VLOOKUP($A11,'RECAP DIRCOM'!$G$6:$DC$12,82,FALSE) -> 4 | L11: =VLOOKUP($A11,'RECAP DIRCOM'!$G$6:$DC$12,83,FALSE) -> 14% | M11: =VLOOKUP($A11,'RECAP DIRCOM'!$G$6:$DC$12,84,FALSE) -> 11% | N11: =VLOOKUP($A11,'RECAP DIRCOM'!$G$6:$DC$12,85,FALSE) -> 4
A12: 264 | B12: Haut-Rhin | C12: =VLOOKUP($A12,'RECAP DIRCOM'!$G$6:$DC$12,3,FALSE) -> 157 | D12: =VLOOKUP($A12,'RECAP DIRCOM'!$G$6:$DC$12,75,FALSE) -> 14,013 | E12: =VLOOKUP($A12,'RECAP DIRCOM'!$G$6:$DC$12,76,FALSE) -> 89.01 | F12: =VLOOKUP($A12,'RECAP DIRCOM'!$G$6:$DC$12,77,FALSE) -> 39% | G12: =VLOOKUP($A12,'RECAP DIRCOM'!$G$6:$DC$12,78,FALSE) -> 7 | H12: =VLOOKUP($A12,'RECAP DIRCOM'!$G$6:$DC$12,79,FALSE) -> 2,774 | I12: =VLOOKUP($A12,'RECAP DIRCOM'!$G$6:$DC$12,80,FALSE) -> 17.62 | J12: =VLOOKUP($A12,'RECAP DIRCOM'!$G$6:$DC$12,81,FALSE) -> 28% | K12: =VLOOKUP($A12,'RECAP DIRCOM'!$G$6:$DC$12,82,FALSE) -> 7 | L12: =VLOOKUP($A12,'RECAP DIRCOM'!$G$6:$DC$12,83,FALSE) -> 36% | M12: =VLOOKUP($A12,'RECAP DIRCOM'!$G$6:$DC$12,84,FALSE) -> 33% | N12: =VLOOKUP($A12,'RECAP DIRCOM'!$G$6:$DC$12,85,FALSE) -> 7
A13: 30 | B13: Marne-Ardennes | C13: =VLOOKUP($A13,'RECAP DIRCOM'!$G$6:$DC$12,3,FALSE) -> 227 | D13: =VLOOKUP($A13,'RECAP DIRCOM'!$G$6:$DC$12,75,FALSE) -> 33,058 | E13: =VLOOKUP($A13,'RECAP DIRCOM'!$G$6:$DC$12,76,FALSE) -> 145.86 | F13: =VLOOKUP($A13,'RECAP DIRCOM'!$G$6:$DC$12,77,FALSE) -> 0% | G13: =VLOOKUP($A13,'RECAP DIRCOM'!$G$6:$DC$12,78,FALSE) -> 1 | H13: =VLOOKUP($A13,'RECAP DIRCOM'!$G$6:$DC$12,79,FALSE) -> 5,121 | I13: =VLOOKUP($A13,'RECAP DIRCOM'!$G$6:$DC$12,80,FALSE) -> 22.59 | J13: =VLOOKUP($A13,'RECAP DIRCOM'!$G$6:$DC$12,81,FALSE) -> 8% | K13: =VLOOKUP($A13,'RECAP DIRCOM'!$G$6:$DC$12,82,FALSE) -> 2 | L13: =VLOOKUP($A13,'RECAP DIRCOM'!$G$6:$DC$12,83,FALSE) -> 2% | M13: =VLOOKUP($A13,'RECAP DIRCOM'!$G$6:$DC$12,84,FALSE) -> 0% | N13: =VLOOKUP($A13,'RECAP DIRCOM'!$G$6:$DC$12,85,FALSE) -> 1
A14: 110 | B14: Meurthe et Moselle Meuse | C14: =VLOOKUP($A14,'RECAP DIRCOM'!$G$6:$DC$12,3,FALSE) -> 242 | D14: =VLOOKUP($A14,'RECAP DIRCOM'!$G$6:$DC$12,75,FALSE) -> 31,628 | E14: =VLOOKUP($A14,'RECAP DIRCOM'!$G$6:$DC$12,76,FALSE) -> 130.52 | F14: =VLOOKUP($A14,'RECAP DIRCOM'!$G$6:$DC$12,77,FALSE) -> 11% | G14: =VLOOKUP($A14,'RECAP DIRCOM'!$G$6:$DC$12,78,FALSE) -> 2 | H14: =VLOOKUP($A14,'RECAP DIRCOM'!$G$6:$DC$12,79,FALSE) -> 5,937 | I14: =VLOOKUP($A14,'RECAP DIRCOM'!$G$6:$DC$12,80,FALSE) -> 24.50 | J14: =VLOOKUP($A14,'RECAP DIRCOM'!$G$6:$DC$12,81,FALSE) -> 0% | K14: =VLOOKUP($A14,'RECAP DIRCOM'!$G$6:$DC$12,82,FALSE) -> 1 | L14: =VLOOKUP($A14,'RECAP DIRCOM'!$G$6:$DC$12,83,FALSE) -> 7% | M14: =VLOOKUP($A14,'RECAP DIRCOM'!$G$6:$DC$12,84,FALSE) -> 5% | N14: =VLOOKUP($A14,'RECAP DIRCOM'!$G$6:$DC$12,85,FALSE) -> 2
A15: 160 | B15: Moselle | C15: =VLOOKUP($A15,'RECAP DIRCOM'!$G$6:$DC$12,3,FALSE) -> 266 | D15: =VLOOKUP($A15,'RECAP DIRCOM'!$G$6:$DC$12,75,FALSE) -> 33,794 | E15: =VLOOKUP($A15,'RECAP DIRCOM'!$G$6:$DC$12,76,FALSE) -> 127.13 | F15: =VLOOKUP($A15,'RECAP DIRCOM'!$G$6:$DC$12,77,FALSE) -> 13% | G15: =VLOOKUP($A15,'RECAP DIRCOM'!$G$6:$DC$12,78,FALSE) -> 4 | H15: =VLOOKUP($A15,'RECAP DIRCOM'!$G$6:$DC$12,79,FALSE) -> 5,771 | I15: =VLOOKUP($A15,'RECAP DIRCOM'!$G$6:$DC$12,80,FALSE) -> 21.71 | J15: =VLOOKUP($A15,'RECAP DIRCOM'!$G$6:$DC$12,81,FALSE) -> 11% | K15: =VLOOKUP($A15,'RECAP DIRCOM'!$G$6:$DC$12,82,FALSE) -> 3 | L15: =VLOOKUP($A15,'RECAP DIRCOM'!$G$6:$DC$12,83,FALSE) -> 12% | M15: =VLOOKUP($A15,'RECAP DIRCOM'!$G$6:$DC$12,84,FALSE) -> 10% | N15: =VLOOKUP($A15,'RECAP DIRCOM'!$G$6:$DC$12,85,FALSE) -> 3
A16: 80 | B16: Vosges | C16: =VLOOKUP($A16,'RECAP DIRCOM'!$G$6:$DC$12,3,FALSE) -> 133 | D16: =VLOOKUP($A16,'RECAP DIRCOM'!$G$6:$DC$12,75,FALSE) -> 16,549 | E16: =VLOOKUP($A16,'RECAP DIRCOM'!$G$6:$DC$12,76,FALSE) -> 124.45 | F16: =VLOOKUP($A16,'RECAP DIRCOM'!$G$6:$DC$12,77,FALSE) -> 15% | G16: =VLOOKUP($A16,'RECAP DIRCOM'!$G$6:$DC$12,78,FALSE) -> 5 | H16: =VLOOKUP($A16,'RECAP DIRCOM'!$G$6:$DC$12,79,FALSE) -> 2,460 | I16: =VLOOKUP($A16,'RECAP DIRCOM'!$G$6:$DC$12,80,FALSE) -> 18.50 | J16: =VLOOKUP($A16,'RECAP DIRCOM'!$G$6:$DC$12,81,FALSE) -> 24% | K16: =VLOOKUP($A16,'RECAP DIRCOM'!$G$6:$DC$12,82,FALSE) -> 6 | L16: =VLOOKUP($A16,'RECAP DIRCOM'!$G$6:$DC$12,83,FALSE) -> 18% | M16: =VLOOKUP($A16,'RECAP DIRCOM'!$G$6:$DC$12,84,FALSE) -> 15% | N16: =VLOOKUP($A16,'RECAP DIRCOM'!$G$6:$DC$12,85,FALSE) -> 5
B17: Total CEGEE Directions Régionales | C17: =SUM(C10:C16) -> 1406

Sheet DC_SATISFACTION
B1: Accueil | D1: BAROMETRE BDD - DIRECTIONS REGIONALES
D2: SATISFACTION
D3: =ACCUEIL!F7 -> 2021-07-04
D7: NPS à froid (SAE) | G7: NPS à chaud (QHD) | J7: Total Satisfaction Clients
D8: =DATEMAJ!E4 -> au 31/05 | E8: coef | F8: ='RECAP DIRCOM'!M4 -> 10% | G8: =DATEMAJ!C5 -> au 31/05 | H8: coef | I8: ='RECAP DIRCOM'!P4 -> 10% | K8: coef | L8: ='RECAP DIRCOM'!S4 -> 20%
B9: Direction | C9: ="ETP perf "&DATEMAJ!$C$28 -> ETP perf 31-mai | E9: % Ecart au 1er | F9: Rang | H9: % Ecart au 1er | I9: Rang | J9: Moyenne ecart au 1er | K9: % Ecart au 1er | L9: Rang CEGEE
A10: 50 | B10: Aube Haute Marne | C10: =VLOOKUP($A10,'RECAP DIRCOM'!$G$6:$DC$12,3,FALSE) -> 128 | D10: =VLOOKUP($A10,'RECAP DIRCOM'!$G$6:$DC$12,5,FALSE) -> 16 | E10: =VLOOKUP($A10,'RECAP DIRCOM'!$G$6:$DC$12,6,FALSE) -> 30% | F10: =VLOOKUP($A10,'RECAP DIRCOM'!$G$6:$DC$12,7,FALSE) -> 2 | G10: =VLOOKUP($A10,'RECAP DIRCOM'!$G$6:$DC$12,8,FALSE) -> 56% | H10: =VLOOKUP($A10,'RECAP DIRCOM'!$G$6:$DC$12,9,FALSE) -> 18% | I10: =VLOOKUP($A10,'RECAP DIRCOM'!$G$6:$DC$12,10,FALSE) -> 5 | J10: =VLOOKUP($A10,'RECAP DIRCOM'!$G$6:$DC$12,11,FALSE) -> 24% | K10: =VLOOKUP($A10,'RECAP DIRCOM'!$G$6:$DC$12,12,FALSE) -> 24% | L10: =VLOOKUP($A10,'RECAP DIRCOM'!$G$6:$DC$12,13,FALSE) -> 3
A11: 262 | B11: Bas-Rhin | C11: =VLOOKUP($A11,'RECAP DIRCOM'!$G$6:$DC$12,3,FALSE) -> 253 | D11: =VLOOKUP($A11,'RECAP DIRCOM'!$G$6:$DC$12,5,FALSE) -> 13 | E11: =VLOOKUP($A11,'RECAP DIRCOM'!$G$6:$DC$12,6,FALSE) -> 43% | F11: =VLOOKUP($A11,'RECAP DIRCOM'!$G$6:$DC$12,7,FALSE) -> 4 | G11: =VLOOKUP($A11,'RECAP DIRCOM'!$G$6:$DC$12,8,FALSE) -> 52% | H11: =VLOOKUP($A11,'RECAP DIRCOM'!$G$6:$DC$12,9,FALSE) -> 23% | I11: =VLOOKUP($A11,'RECAP DIRCOM'!$G$6:$DC$12,10,FALSE) -> 6 | J11: =VLOOKUP($A11,'RECAP DIRCOM'!$G$6:$DC$12,11,FALSE) -> 33% | K11: =VLOOKUP($A11,'RECAP DIRCOM'!$G$6:$DC$12,12,FALSE) -> 33% | L11: =VLOOKUP($A11,'RECAP DIRCOM'!$G$6:$DC$12,13,FALSE) -> 6
A12: 264 | B12: Haut-Rhin | C12: =VLOOKUP($A12,'RECAP DIRCOM'!$G$6:$DC$12,3,FALSE) -> 157 | D12: =VLOOKUP($A12,'RECAP DIRCOM'!$G$6:$DC$12,5,FALSE) -> 6 | E12: =VLOOKUP($A12,'RECAP DIRCOM'!$G$6:$DC$12,6,FALSE) -> 74% | F12: =VLOOKUP($A12,'RECAP DIRCOM'!$G$6:$DC$12,7,FALSE) -> 7 | G12: =VLOOKUP($A12,'RECAP DIRCOM'!$G$6:$DC$12,8,FALSE) -> 39% | H12: =VLOOKUP($A12,'RECAP DIRCOM'!$G$6:$DC$12,9,FALSE) -> 43% | I12: =VLOOKUP($A12,'RECAP DIRCOM'!$G$6:$DC$12,10,FALSE) -> 7 | J12: =VLOOKUP($A12,'RECAP DIRCOM'!$G$6:$DC$12,11,FALSE) -> 58% | K12: =VLOOKUP($A12,'RECAP DIRCOM'!$G$6:$DC$12,12,FALSE) -> 58% | L12: =VLOOKUP($A12,'RECAP DIRCOM'!$G$6:$DC$12,13,FALSE) -> 7
A13: 30 | B13: Marne-Ardennes | C13: =VLOOKUP($A13,'RECAP DIRCOM'!$G$6:$DC$12,3,FALSE) -> 227 | D13: =VLOOKUP($A13,'RECAP DIRCOM'!$G$6:$DC$12,5,FALSE) -> 16 | E13: =VLOOKUP($A13,'RECAP DIRCOM'!$G$6:$DC$12,6,FALSE) -> 30% | F13: =VLOOKUP($A13,'RECAP DIRCOM'!$G$6:$DC$12,7,FALSE) -> 2 | G13: =VLOOKUP($A13,'RECAP DIRCOM'!$G$6:$DC$12,8,FALSE) -> 66% | H13: =VLOOKUP($A13,'RECAP DIRCOM'!$G$6:$DC$12,9,FALSE) -> 3% | I13: =VLOOKUP($A13,'RECAP DIRCOM'!$G$6:$DC$12,10,FALSE) -> 2 | J13: =VLOOKUP($A13,'RECAP DIRCOM'!$G$6:$DC$12,11,FALSE) -> 17% | K13: =VLOOKUP($A13,'RECAP DIRCOM'!$G$6:$DC$12,12,FALSE) -> 17% | L13: =VLOOKUP($A13,'RECAP DIRCOM'!$G$6:$DC$12,13,FALSE) -> 2
A14: 110 | B14: Meurthe et Moselle Meuse | C14: =VLOOKUP($A14,'RECAP DIRCOM'!$G$6:$DC$12,3,FALSE) -> 242 | D14: =VLOOKUP($A14,'RECAP DIRCOM'!$G$6:$DC$12,5,FALSE) -> 13 | E14: =VLOOKUP($A14,'RECAP DIRCOM'!$G$6:$DC$12,6,FALSE) -> 43% | F14: =VLOOKUP($A14,'RECAP DIRCOM'!$G$6:$DC$12,7,FALSE) -> 4 | G14: =VLOOKUP($A14,'RECAP DIRCOM'!$G$6:$DC$12,8,FALSE) -> 56% | H14: =VLOOKUP($A14,'RECAP DIRCOM'!$G$6:$DC$12,9,FALSE) -> 17% | I14: =VLOOKUP($A14,'RECAP DIRCOM'!$G$6:$DC$12,10,FALSE) -> 4 | J14: =VLOOKUP($A14,'RECAP DIRCOM'!$G$6:$DC$12,11,FALSE) -> 30% | K14: =VLOOKUP($A14,'RECAP DIRCOM'!$G$6:$DC$12,12,FALSE) -> 30% | L14: =VLOOKUP($A14,'RECAP DIRCOM'!$G$6:$DC$12,13,FALSE) -> 4
A15: 160 | B15: Moselle | C15: =VLOOKUP($A15,'RECAP DIRCOM'!$G$6:$DC$12,3,FALSE) -> 266 | D15: =VLOOKUP($A15,'RECAP DIRCOM'!$G$6:$DC$12,5,FALSE) -> 12 | E15: =VLOOKUP($A15,'RECAP DIRCOM'!$G$6:$DC$12,6,FALSE) -> 48% | F15: =VLOOKUP($A15,'RECAP DIRCOM'!$G$6:$DC$12,7,FALSE) -> 6 | G15: =VLOOKUP($A15,'RECAP DIRCOM'!$G$6:$DC$12,8,FALSE) -> 57% | H15: =VLOOKUP($A15,'RECAP DIRCOM'!$G$6:$DC$12,9,FALSE) -> 16% | I15: =VLOOKUP($A15,'RECAP DIRCOM'!$G$6:$DC$12,10,FALSE) -> 3 | J15: =VLOOKUP($A15,'RECAP DIRCOM'!$G$6:$DC$12,11,FALSE) -> 32% | K15: =VLOOKUP($A15,'RECAP DIRCOM'!$G$6:$DC$12,12,FALSE) -> 32% | L15: =VLOOKUP($A15,'RECAP DIRCOM'!$G$6:$DC$12,13,FALSE) -> 5
A16: 80 | B16: Vosges | C16: =VLOOKUP($A16,'RECAP DIRCOM'!$G$6:$DC$12,3,FALSE) -> 133 | D16: =VLOOKUP($A16,'RECAP DIRCOM'!$G$6:$DC$12,5,FALSE) -> 23 | E16: =VLOOKUP($A16,'RECAP DIRCOM'!$G$6:$DC$12,6,FALSE) -> 0% | F16: =VLOOKUP($A16,'RECAP DIRCOM'!$G$6:$DC$12,7,FALSE) -> 1 | G16: =VLOOKUP($A16,'RECAP DIRCOM'!$G$6:$DC$12,8,FALSE) -> 68% | H16: =VLOOKUP($A16,'RECAP DIRCOM'!$G$6:$DC$12,9,FALSE) -> 0% | I16: =VLOOKUP($A16,'RECAP DIRCOM'!$G$6:$DC$12,10,FALSE) -> 1 | J16: =VLOOKUP($A16,'RECAP DIRCOM'!$G$6:$DC$12,11,FALSE) -> 0% | K16: =VLOOKUP($A16,'RECAP DIRCOM'!$G$6:$DC$12,12,FALSE) -> 0% | L16: =VLOOKUP($A16,'RECAP DIRCOM'!$G$6:$DC$12,13,FALSE) -> 1
B17: Total CEGEE Directions Régionales | C17: =SUM(C10:C16) -> 1406

Sheet SE_FICHE
A1: Accueil
A2: BAROMETRE BDD
A4: UNITE: | B4: TERRITOIRE | E4: ETP perf : | F4: =VLOOKUP(A5,'RECAP SECT'!$G$6:$I$23,3,FALSE) -> 61.65
A5: =VLOOKUP(B5,LISTES!$H$6:$I$23,2,FALSE) -> 5130 | B5: COLMAR
C6: Coefficient du critére | E6: Résultats | I6: Ecart au 1ier | M6: Evolution | O6: Rang
E7: du 1ier | G7: du territoire | I7: Du mois | K7: Au 31/12/2019
A9: RANG au CLASSEMENT GENERAL | K9: =VLOOKUP($A$5,#REF!,168,FALSE) ->  | M9: =+K9-O9 ->  | O9: =VLOOKUP($A$5,'RECAP SECT'!$G$6:$DG$312,168,FALSE) ->  | S9: =VLOOKUP($A$5,#REF!,154,FALSE) ->  | U9: =+S9-O9 -> 
A11: CRITERE CONQUETE | C11: 15% | O11: =VLOOKUP($A$5,'RECAP SECT'!$G$6:$DG$312,23,FALSE) -> 25.16011977
B12: PNB Evolution nette Clients BP | C12: 4% | E12: ='RECAP SECT'!#REF! ->  | G12: =VLOOKUP($A$5,'RECAP SECT'!$G$6:$DG$312,6,FALSE) -> 0.8 | I12: =VLOOKUP($A$5,'RECAP SECT'!$G$6:$DG$312,7,FALSE) -> 1700% | K12: =VLOOKUP($A$5,#REF!,7,FALSE) ->  | M12: =+K12-I12 ->  | O12: =VLOOKUP($A$5,'RECAP SECT'!$G$6:$DG$312,8,FALSE) -> 0.4732728438 | S12: =VLOOKUP($A$5,#REF!,6,FALSE) ->  | U12: =+S12-I12 -> 
B13: PNB Evolution nette Clients PREMIUM | C13: 5% | E13: ='RECAP SECT'!#REF! ->  | G13: =VLOOKUP($A$5,'RECAP SECT'!$G$6:$DG$312,10,FALSE) -> 17.0 | I13: =VLOOKUP($A$5,'RECAP SECT'!$G$6:$DG$312,11,FALSE) -> 55% | K13: =VLOOKUP($A$5,#REF!,11,FALSE) ->  | M13: =+K13-I13 ->  | O13: =VLOOKUP($A$5,'RECAP SECT'!$G$6:$DG$312,12,FALSE) -> 0.5120321958 | S13: =VLOOKUP($A$5,#REF!,9,FALSE) ->  | U13: =+S13-I13 -> 
B14: PNB Evolution nette Clients Jeunes Equipés | C14: 3% | E14: ='RECAP SECT'!#REF! ->  | G14: =VLOOKUP($A$5,'RECAP SECT'!$G$6:$DG$312,14,FALSE) -> 0.0 | I14: =VLOOKUP($A$5,'RECAP SECT'!$G$6:$DG$312,15,FALSE) -> 0% | K14: =VLOOKUP($A$5,#REF!,15,FALSE) ->  | M14: =+K14-I14 ->  | O14: =VLOOKUP($A$5,'RECAP SECT'!$G$6:$DG$312,16,FALSE) -> 0 | S14: =VLOOKUP($A$5,#REF!,12,FALSE) ->  | U14: =+S14-I14 -> 
B15: PNB Evolution nette Clients Pro Actifs Equipés | C15: 3% | E15: ='RECAP SECT'!W4 -> 0.0 | G15: =VLOOKUP($A$5,'RECAP SECT'!$G$6:$DG$312,18,FALSE) -> 2499.1 | I15: =VLOOKUP($A$5,'RECAP SECT'!$G$6:$DG$312,19,FALSE) -> 4054% | K15: =VLOOKUP($A$5,#REF!,19,FALSE) ->  | M15: =+K15-I15 ->  | O15: =VLOOKUP($A$5,'RECAP SECT'!$G$6:$DG$312,20,FALSE) -> 0.3761867042 | S15: =VLOOKUP($A$5,#REF!,15,FALSE) ->  | U15: =+S15-I15 -> 
A17: CRITERE BANCARISATION | C17: 15% | O17: =VLOOKUP($A$5,'RECAP SECT'!$G$6:$DG$312,48,FALSE) -> 16
B18: PNB Ventes nettes forfaits | C18: 4% | E18: ='RECAP SECT'!X4 -> 65.0 | G18: =VLOOKUP($A$5,'RECAP SECT'!$G$6:$DG$312,31,FALSE) -> -1.7 | I18: =VLOOKUP($A$5,'RECAP SECT'!$G$6:$DG$312,32,FALSE) -> 18% | K18: =VLOOKUP($A$5,#REF!,32,FALSE) ->  | M18: =+K18-I18 ->  | O18: =VLOOKUP($A$5,'RECAP SECT'!$G$6:$DG$312,33,FALSE) -> 8 | S18: =VLOOKUP($A$5,#REF!,27,FALSE) ->  | U18: =+S18-I18 -> 
B19: PNB Ventes nettes IZICARTES Débit Différé | C19: 4% | E19: ='RECAP SECT'!AB4 -> 35.9 | G19: =VLOOKUP($A$5,'RECAP SECT'!$G$6:$DG$312,35,FALSE) -> 0.3 | I19: =VLOOKUP($A$5,'RECAP SECT'!$G$6:$DG$312,36,FALSE) -> 1600% | K19: =VLOOKUP($A$5,#REF!,36,FALSE) ->  | M19: =+K19-I19 ->  | O19: =VLOOKUP($A$5,'RECAP SECT'!$G$6:$DG$312,37,FALSE) -> 0 | S19: =VLOOKUP($A$5,#REF!,30,FALSE) ->  | U19: =+S19-I19 -> 
B20: PNB Ventes nettes cartes HDG Débit Différé | C20: 4% | E20: ='RECAP SECT'!AF4 -> 12.6 | G20: =VLOOKUP($A$5,'RECAP SECT'!$G$6:$DG$312,39,FALSE) -> 0.0 | I20: =VLOOKUP($A$5,'RECAP SECT'!$G$6:$DG$312,40,FALSE) -> 0% | K20: =VLOOKUP($A$5,#REF!,40,FALSE) ->  | M20: =+K20-I20 ->  | O20: =VLOOKUP($A$5,'RECAP SECT'!$G$6:$DG$312,41,FALSE) -> 16822.72858 | S20: =VLOOKUP($A$5,#REF!,33,FALSE) ->  | U20: =+S20-I20 -> 
B21: PNB Ventes nettes Forfaits Pro, Carte pro | C21: 3% | E21: ='RECAP SECT'!AJ4 -> -1.4 | G21: =VLOOKUP($A$5,'RECAP SECT'!$G$6:$DG$312,43,FALSE) -> 0.4 | I21: =VLOOKUP($A$5,'RECAP SECT'!$G$6:$DG$312,44,FALSE) -> 1500% | K21: =VLOOKUP($A$5,#REF!,44,FALSE) ->  | M21: =+K21-I21 ->  | O21: =VLOOKUP($A$5,'RECAP SECT'!$G$6:$DG$312,45,FALSE) -> 818 | S21: =VLOOKUP($A$5,#REF!,39,FALSE) ->  | U21: =+S21-I21 -> 
A23: CRITERE EPARGNE | C23: 10% | O23: =VLOOKUP($A$5,'RECAP SECT'!$G$6:$DG$312,69,FALSE) -> 0.4555687017
B24: PNB Epargne Liquide | C24: 3% | E24: ='RECAP SECT'!AU4 -> 476.3 | G24: =VLOOKUP($A$5,'RECAP SECT'!$G$6:$DG$312,56,FALSE) -> 3160.1 | I24: =VLOOKUP($A$5,'RECAP SECT'!$G$6:$DG$312,57,FALSE) -> 5126% | K24: =VLOOKUP($A$5,#REF!,57,FALSE) ->  | M24: =+K24-I24 ->  | O24: =VLOOKUP($A$5,'RECAP SECT'!$G$6:$DG$312,58,FALSE) -> 0.6850947621 | S24: =VLOOKUP($A$5,#REF!,51,FALSE) ->  | U24: =+S24-I24 -> 
B25: PNB CA UC + arbitrage | C25: 4% | E25: ='RECAP SECT'!AY4 -> 20.5 | G25: =VLOOKUP($A$5,'RECAP SECT'!$G$6:$DG$312,60,FALSE) -> 2242.0 | I25: =VLOOKUP($A$5,'RECAP SECT'!$G$6:$DG$312,61,FALSE) -> 3637% | K25: =VLOOKUP($A$5,#REF!,61,FALSE) ->  | M25: =+K25-I25 ->  | O25: =VLOOKUP($A$5,'RECAP SECT'!$G$6:$DG$312,62,FALSE) -> 0.3146082012 | S25: =VLOOKUP($A$5,#REF!,57,FALSE) ->  | U25: =+S25-I25 -> 
B26: PNB Excédent assurance vie | C26: 3% | E26: ='RECAP SECT'!#REF! ->  | G26: =VLOOKUP($A$5,'RECAP SECT'!$G$6:$DG$312,64,FALSE) -> 497.0 | I26: =VLOOKUP($A$5,'RECAP SECT'!$G$6:$DG$312,65,FALSE) -> 806% | K26: =VLOOKUP($A$5,#REF!,65,FALSE) ->  | M26: =+K26-I26 ->  | O26: =VLOOKUP($A$5,'RECAP SECT'!$G$6:$DG$312,66,FALSE) -> 0.5050363415 | S26: =VLOOKUP($A$5,#REF!,60,FALSE) ->  | U26: =+S26-I26 -> 
A28: CRITERE CREDITS | C28: 15% | O28: =VLOOKUP($A$5,'RECAP SECT'!$G$6:$DG$312,102,FALSE) -> 0.3877683581
B29: PNB crédit conso | C29: 4% | E29: ='RECAP SECT'!BJ4 -> 162.8 | G29: =VLOOKUP($A$5,'RECAP SECT'!$G$6:$DG$312,77,FALSE) -> 0.3 | I29: =VLOOKUP($A$5,'RECAP SECT'!$G$6:$DG$312,78,FALSE) -> 1200% | K29: =VLOOKUP($A$5,#REF!,78,FALSE) ->  | M29: =+K29-I29 ->  | O29: =VLOOKUP($A$5,'RECAP SECT'!$G$6:$DG$312,79,FALSE) -> 1321 | S29: =VLOOKUP($A$5,#REF!,75,FALSE) ->  | U29: =+S29-I29 -> 
B30: PNB ADE crédit conso | C30: 1% | E30: ='RECAP SECT'!#REF! ->  | G30: =VLOOKUP($A$5,'RECAP SECT'!$G$6:$DG$312,81,FALSE) -> 0.4 | I30: =VLOOKUP($A$5,'RECAP SECT'!$G$6:$DG$312,82,FALSE) -> 1600% | K30: =VLOOKUP($A$5,#REF!,82,FALSE) ->  | O30: =VLOOKUP($A$5,'RECAP SECT'!$G$6:$DG$312,83,FALSE) -> 0.2937541724 | S30: =VLOOKUP($A$5,#REF!,78,FALSE) -> 
B31: PNB crédit immo | C31: 4% | E31: ='RECAP SECT'!BN4 -> 53.1 | G31: =VLOOKUP($A$5,'RECAP SECT'!$G$6:$DG$312,85,FALSE) -> 13.0 | I31: =VLOOKUP($A$5,'RECAP SECT'!$G$6:$DG$312,86,FALSE) -> 0% | K31: =VLOOKUP($A$5,#REF!,86,FALSE) ->  | O31: =VLOOKUP($A$5,'RECAP SECT'!$G$6:$DG$312,87,FALSE) -> 0 | S31: =VLOOKUP($A$5,#REF!,81,FALSE) -> 
B32: PNB ADE crédit immo | C32: 2% | E32: ='RECAP SECT'!#REF! ->  | G32: =VLOOKUP($A$5,'RECAP SECT'!$G$6:$DG$312,89,FALSE) -> 0.0 | I32: =VLOOKUP($A$5,'RECAP SECT'!$G$6:$DG$312,90,FALSE) -> 0% | K32: =VLOOKUP($A$5,#REF!,90,FALSE) ->  | O32: =VLOOKUP($A$5,'RECAP SECT'!$G$6:$DG$312,91,FALSE) -> 0 | S32: =VLOOKUP($A$5,#REF!,84,FALSE) -> 
B33: PNB SACCEF | C33: 2% | E33: ='RECAP SECT'!#REF! ->  | G33: =VLOOKUP($A$5,'RECAP SECT'!$G$6:$DG$312,93,FALSE) -> 0.0 | I33: =VLOOKUP($A$5,'RECAP SECT'!$G$6:$DG$312,94,FALSE) -> 0% | K33: =VLOOKUP($A$5,#REF!,94,FALSE) ->  | O33: =VLOOKUP($A$5,'RECAP SECT'!$G$6:$DG$312,95,FALSE) -> 0 | S33: =VLOOKUP($A$5,#REF!,87,FALSE) -> 
B34: PNB Crédit MLT + Crédit Bail | C34: 2% | E34: ='RECAP SECT'!BR4 -> 16.3 | G34: =VLOOKUP($A$5,'RECAP SECT'!$G$6:$DG$312,97,FALSE) -> 0.0 | I34: =VLOOKUP($A$5,'RECAP SECT'!$G$6:$DG$312,98,FALSE) -> 0% | K34: =VLOOKUP($A$5,#REF!,98,FALSE) ->  | O34: =VLOOKUP($A$5,'RECAP SECT'!$G$6:$DG$312,99,FALSE) -> 0 | S34: =VLOOKUP($A$5,#REF!,90,FALSE) -> 
A36: CRITERE IARD PREVOYANCE | C36: 15% | O36: =VLOOKUP($A$5,'RECAP SECT'!$G$6:$DG$312,119,FALSE) -> 
B37: PNB Ventes nettes IARD | C37: 9% | E37: ='RECAP SECT'!CC4 -> 197.4 | G37: =VLOOKUP($A$5,'RECAP SECT'!$G$6:$DG$312,110,FALSE) ->  | I37: =VLOOKUP($A$5,'RECAP SECT'!$G$6:$DG$312,111,FALSE) ->  | K37: =VLOOKUP($A$5,#REF!,111,FALSE) ->  | M37: =+K37-I37 ->  | O37: =VLOOKUP($A$5,'RECAP SECT'!$G$6:$DG$312,112,FALSE) ->  | S37: =VLOOKUP($A$5,#REF!,102,FALSE) ->  | U37: =+S37-I37 -> 
B38: PNB Ventes nettes Prévoyance | C38: 6% | E38: ='RECAP SECT'!CG4 -> 33.1 | G38: =VLOOKUP($A$5,'RECAP SECT'!$G$6:$DG$312,114,FALSE) ->  | I38: =VLOOKUP($A$5,'RECAP SECT'!$G$6:$DG$312,115,FALSE) ->  | K38: =VLOOKUP($A$5,#REF!,115,FALSE) ->  | M38: =+K38-I38 ->  | O38: =VLOOKUP($A$5,'RECAP SECT'!$G$6:$DG$312,116,FALSE) ->  | S38: =VLOOKUP($A$5,#REF!,105,FALSE) ->  | U38: =+S38-I38 -> 
A40: CRITERE ACCELERATEURS PNB | C40: 15% | O40: =VLOOKUP($A$5,'RECAP SECT'!$G$6:$DG$312,144,FALSE) -> 
B41: PNB Ventes brutes SED Finalisées | C41: 6% | E41: ='RECAP SECT'!#REF! ->  | G41: =VLOOKUP($A$5,'RECAP SECT'!$G$6:$DG$312,127,FALSE) ->  | I41: =VLOOKUP($A$5,'RECAP SECT'!$G$6:$DG$312,128,FALSE) ->  | K41: =VLOOKUP($A$5,#REF!,128,FALSE) ->  | M41: =+K41-I41 ->  | O41: =VLOOKUP($A$5,'RECAP SECT'!$G$6:$DG$312,129,FALSE) ->  | S41: =VLOOKUP($A$5,#REF!,120,FALSE) ->  | U41: =+S41-I41 -> 
B42: PNB clients équipés E documents | C42: 3% | E42: ='RECAP SECT'!#REF! ->  | G42: =VLOOKUP($A$5,'RECAP SECT'!$G$6:$DG$312,131,FALSE) ->  | I42: =VLOOKUP($A$5,'RECAP SECT'!$G$6:$DG$312,132,FALSE) ->  | K42: =VLOOKUP($A$5,#REF!,132,FALSE) ->  | M42: =+K42-I42 ->  | O42: =VLOOKUP($A$5,'RECAP SECT'!$G$6:$DG$312,133,FALSE) ->  | S42: =VLOOKUP($A$5,#REF!,123,FALSE) ->  | U42: =+S42-I42 -> 
B43: Economie opt'in | C43: 3% | E43: ='RECAP SECT'!#REF! ->  | G43: =VLOOKUP($A$5,'RECAP SECT'!$G$6:$DG$312,135,FALSE) ->  | I43: =VLOOKUP($A$5,'RECAP SECT'!$G$6:$DG$312,136,FALSE) ->  | K43: =VLOOKUP($A$5,#REF!,136,FALSE) ->  | M43: =+K43-I43 ->  | O43: =VLOOKUP($A$5,'RECAP SECT'!$G$6:$DG$312,137,FALSE) -> 
B44: Remises commerciales | C44: 3% | E44: ='RECAP SECT'!#REF! ->  | G44: =VLOOKUP($A$5,'RECAP SECT'!$G$6:$DG$312,139,FALSE) ->  | I44: =VLOOKUP($A$5,'RECAP SECT'!$G$6:$DG$312,140,FALSE) ->  | K44: =VLOOKUP($A$5,#REF!,140,FALSE) ->  | M44: =+K44-I44 ->  | O44: =VLOOKUP($A$5,'RECAP SECT'!$G$6:$DG$312,141,FALSE) ->  | S44: =VLOOKUP($A$5,#REF!,126,FALSE) ->  | U44: =+S44-I44 -> 
A46: CRITERE Satisfaction Clients | C46: 15% | O46: =VLOOKUP($A$5,'RECAP SECT'!$G$6:$DG$312,159,FALSE) -> 
B47: Objectifs NPS* | C47: 8% | E47: ='RECAP SECT'!K4 -> 24 | G47: =VLOOKUP($A$5,'RECAP SECT'!$G$6:$DG$312,151,FALSE) ->  | I47: =VLOOKUP($A$5,'RECAP SECT'!$G$6:$DG$312,152,FALSE) ->  | K47: =VLOOKUP($A$5,#REF!,152,FALSE) ->  | M47: =+K47-I47 ->  | O47: =VLOOKUP($A$5,'RECAP SECT'!$G$6:$DG$312,153,FALSE) ->  | S47: =VLOOKUP($A$5,#REF!,138,FALSE) ->  | U47: =+S47-I47 -> 
B48: Enquête Qualité Haute Définition | C48: 7% | E48: ='RECAP SECT'!N4 -> 73% | G48: =VLOOKUP($A$5,'RECAP SECT'!$G$6:$DG$312,154,FALSE) ->  | I48: =VLOOKUP($A$5,'RECAP SECT'!$G$6:$DG$312,155,FALSE) ->  | K48: =VLOOKUP($A$5,#REF!,155,FALSE) ->  | M48: =+K48-I48 ->  | O48: =VLOOKUP($A$5,'RECAP SECT'!$G$6:$DG$312,156,FALSE) ->  | S48: =VLOOKUP($A$5,#REF!,141,FALSE) ->  | U48: =+S48-I48 -> 

Sheet SE_TOTAL
B1: Accueil | F1: BAROMETRE BDD - TERRITOIRES
F2: TOTAL GENERAL
F3: =ACCUEIL!F7 -> 2021-07-04
F7: TOTAL GENERAL | I7: Total Satisfaction Clients | L7: Total Bancarisation | O7: Total Epargne | R7: Total IARD Prévoyance | U7: Total Crédits
G8: coef | H8: 100% | J8: coef | K8: =SE_SATISFACTION!N8 -> 20% | M8: coef | N8: =SE_BANCA!X8 -> 20% | P8: coef | Q8: =SE_EPARGNE!P8 -> 20% | S8: coef | T8: =SE_IARD!P8 -> 20% | V8: coef | W8: =SE_CREDIT!T8 -> 20%
B9: Direction | C9: eds | D9: Territoire | E9: ="ETP perf "&DATEMAJ!$C$28 -> ETP perf 31-mai | F9: Moyenne ecart au 1er | G9: % Ecart au 1er | H9: Rang CEGEE | I9: Moyenne ecart au 1er | J9: % Ecart au 1er | K9: Rang CEGEE | L9: Moyenne ecart au 1er | M9: % Ecart au 1er | N9: Rang CEGEE | O9: Moyenne ecart au 1er | P9: % Ecart au 1er | Q9: Rang CEGEE | R9: Moyenne ecart au 1er | S9: % Ecart au 1er | T9: Rang CEGEE | U9: Moyenne ecart au 1er | V9: % Ecart au 1er | W9: Rang CEGEE
A10: 50 | B10: MEURTHE ET MOSELLE MEUSE | C10: 26 | D10: NANCY | E10: 66.4 | F10: 6% | G10: 0% | H10: 1 | I10: 36% | J10: 32% | K10: 9 | L10: 7% | M10: 0% | N10: 1 | O10: 2% | P10: 1% | Q10: 2 | R10: 4% | S10: 0% | T10: 1 | U10: 6% | V10: 0% | W10: 1
A11: 50 | B11: MARNE-ARDENNES | C11: 2 | D11: CHARLEVILLE MEZIERES | E11: 56.3 | F11: 10% | G11: 3% | H11: 2 | I11: 11% | J11: 7% | K11: 4 | L11: 29% | M11: 23% | N11: 10 | O11: 4% | P11: 2% | Q11: 3 | R11: 6% | S11: 2% | T11: 3 | U11: 21% | V11: 15% | W11: 4
A12: 262 | B12: MEURTHE ET MOSELLE MEUSE | C12: 27 | D12: PONT A MOUSSON | E12: 76.3 | F12: 15% | G12: 8% | H12: 3 | I12: 47% | J12: 43% | K12: 15 | L12: 10% | M12: 3% | N12: 2 | O12: 9% | P12: 7% | Q12: 4 | R12: 19% | S12: 15% | T12: 9 | U12: 13% | V12: 6% | W12: 2
A13: 262 | B13: MEURTHE ET MOSELLE MEUSE | C13: 31 | D13: VERDUN | E13: 54.9 | F13: 16% | G13: 10% | H13: 4 | I13: 18% | J13: 14% | K13: 5 | L13: 18% | M13: 12% | N13: 3 | O13: 17% | P13: 15% | Q13: 7 | R13: 26% | S13: 23% | T13: 12 | U13: 23% | V13: 17% | W13: 5
A14: 262 | B14: MARNE-ARDENNES | C14: 6 | D14: CHALONS EN CHAMPAGNE | E14: 44.6 | F14: 17% | G14: 11% | H14: 5 | I14: 6% | J14: 2% | K14: 3 | L14: 29% | M14: 23% | N14: 11 | O14: 28% | P14: 26% | Q14: 12 | R14: 16% | S14: 12% | T14: 5 | U14: 30% | V14: 24% | W14: 7
A15: 264 | B15: BAS-RHIN | C15: 5006 | D15: STRASBOURG | E15: 75.6 | F15: 18% | G15: 11% | H15: 6 | I15: 36% | J15: 32% | K15: 10 | L15: 22% | M15: 16% | N15: 5 | O15: 9% | P15: 7% | Q15: 5 | R15: 6% | S15: 2% | T15: 2 | U15: 37% | V15: 31% | W15: 12
A16: 264 | B16: MARNE-ARDENNES | C16: 11 | D16: REIMS | E16: 79.9 | F16: 18% | G16: 11% | H16: 7 | I16: 37% | J16: 34% | K16: 12 | L16: 26% | M16: 20% | N16: 8 | O16: 24% | P16: 22% | Q16: 10 | R16: 9% | S16: 5% | T16: 4 | U16: 14% | V16: 8% | W16: 3
A17: 30 | B17: VOSGES | C17: 57 | D17: EPINAL | E17: 61.2 | F17: 19% | G17: 12% | H17: 8 | I17: 4% | J17: 0% | K17: 1 | L17: 38% | M17: 32% | N17: 15 | O17: 20% | P17: 18% | Q17: 8 | R17: 18% | S17: 14% | T17: 6 | U17: 37% | V17: 31% | W17: 9
A18: 30 | B18: MOSELLE | C18: 44 | D18: MOSELLE NORD | E18: 65.5 | F18: 22% | G18: 16% | H18: 9 | I18: 48% | J18: 44% | K18: 16 | L18: 22% | M18: 15% | N18: 4 | O18: 15% | P18: 13% | Q18: 6 | R18: 19% | S18: 15% | T18: 8 | U18: 29% | V18: 23% | W18: 6
A19: 30 | B19: MOSELLE | C19: 42 | D19: MOSELLE EST | E19: 70.4 | F19: 22% | G19: 16% | H19: 10 | I19: 24% | J19: 21% | K19: 7 | L19: 25% | M19: 18% | N19: 7 | O19: 28% | P19: 26% | Q19: 13 | R19: 19% | S19: 15% | T19: 10 | U19: 37% | V19: 31% | W19: 11
A20: 110 | B20: BAS-RHIN | C20: 5101 | D20: SELESTAT | E20: 59.7 | F20: 23% | G20: 16% | H20: 11 | I20: 43% | J20: 39% | K20: 14 | L20: 24% | M20: 18% | N20: 6 | O20: 2% | P20: 0% | Q20: 1 | R20: 21% | S20: 17% | T20: 11 | U20: 45% | V20: 39% | W20: 16
A21: 110 | B21: VOSGES | C21: 55 | D21: SAINT DIE | E21: 47.1 | F21: 25% | G21: 18% | H21: 12 | I21: 5% | J21: 1% | K21: 2 | L21: 43% | M21: 36% | N21: 17 | O21: 27% | P21: 26% | Q21: 11 | R21: 35% | S21: 31% | T21: 15 | U21: 37% | V21: 31% | W21: 10
A22: 110 | B22: AUBE HAUTE MARNE | C22: 21 | D22: CHAUMONT | E22: 33.8 | F22: 26% | G22: 20% | H22: 13 | I22: 36% | J22: 32% | K22: 11 | L22: 29% | M22: 22% | N22: 9 | O22: 40% | P22: 38% | Q22: 15 | R22: 18% | S22: 14% | T22: 7 | U22: 31% | V22: 25% | W22: 8
A23: 160 | B23: MOSELLE | C23: 45 | D23: METZ | E23: 89.0 | F23: 29% | G23: 23% | H23: 14 | I23: 36% | J23: 32% | K23: 8 | L23: 35% | M23: 29% | N23: 14 | O23: 29% | P23: 28% | Q23: 14 | R23: 30% | S23: 26% | T23: 14 | U23: 38% | V23: 31% | W23: 13
A24: 160 | B24: BAS-RHIN | C24: 5060 | D24: HAGUENAU | E24: 69.7 | F24: 30% | G24: 23% | H24: 15 | I24: 38% | J24: 34% | K24: 13 | L24: 30% | M24: 23% | N24: 12 | O24: 21% | P24: 19% | Q24: 9 | R24: 39% | S24: 35% | T24: 16 | U24: 44% | V24: 38% | W24: 15
A25: 160 | B25: AUBE HAUTE MARNE | C25: 14 | D25: TROYES | E25: 66.8 | F25: 35% | G25: 28% | H25: 16 | I25: 24% | J25: 20% | K25: 6 | L25: 30% | M25: 24% | N25: 13 | O25: 62% | P25: 60% | Q25: 18 | R25: 42% | S25: 38% | T25: 17 | U25: 39% | V25: 33% | W25: 14
A26: 80 | B26: HAUT-RHIN | C26: 5130 | D26: COLMAR | E26: 61.6 | F26: 39% | G26: 32% | H26: 17 | I26: 55% | J26: 51% | K26: 17 | L26: 39% | M26: 33% | N26: 16 | O26: 41% | P26: 39% | Q26: 16 | R26: 29% | S26: 26% | T26: 13 | U26: 52% | V26: 46% | W26: 18
A27: 80 | B27: HAUT-RHIN | C27: 5169 | D27: MULHOUSE | E27: 61.0 | F27: 52% | G27: 45% | H27: 18 | I27: 66% | J27: 63% | K27: 18 | L27: 59% | M27: 53% | N27: 18 | O27: 56% | P27: 55% | Q27: 17 | R27: 49% | S27: 45% | T27: 18 | U27: 49% | V27: 43% | W27: 17
A28: Total CEGEE Directions Régionales | E28: =SUM(E10:E27) -> 1140

Sheet SE_BANCA
B1: Accueil | F1: BAROMETRE BDD - TERRITOIRES
F2: BANCARISATION
F3: =ACCUEIL!F7 -> 2021-07-04
F7: Ventes Nettes produits pondérés | J7: Ventes sur client non détenteur de l’univers | N7: Mobilité Macron | R7: Remises commerciales | V7: Total Bancarisation
F8: =DATEMAJ!C8 -> au 04/07 | H8: coef | I8: ='RECAP DIRCOM'!AA4 -> 10% | J8: =DATEMAJ!C9 -> au 04/07 | L8: coef | M8: ='RECAP DIRCOM'!AE4 -> 4% | N8: =DATEMAJ!C10 -> au 04/07 | P8: coef | Q8: ='RECAP DIRCOM'!AI4 -> 3% | R8: =DATEMAJ!C11 -> au 31/05 | T8: coef | U8: ='RECAP DIRCOM'!AM4 -> 3% | W8: coef | X8: ='RECAP DIRCOM'!AP4 -> 20%
B9: Direction | C9: eds | D9: Territoire | E9: ="ETP perf "&DATEMAJ!$C$28 -> ETP perf 31-mai | F9: VN | G9: VN / ETP | H9: % Ecart au 1er | I9: Rang | J9: VB | K9: VB / ETP | L9: % Ecart au 1er | M9: Rang | N9: Nb | O9: Nb / ETP | P9: % Ecart au 1er | Q9: Rang | R9: Montant | S9: Montant / ETP | T9: % Ecart au 1er | U9: Rang | V9: Moyenne ecart au 1er | W9: % Ecart au 1er | X9: Rang CEGEE
A10: 50 | B10: AUBE HAUTE MARNE | C10: 21 | D10: CHAUMONT | E10: =VLOOKUP($C10,'RECAP SECT'!$G$6:$DC$253,3,FALSE) -> 33.8 | F10: =VLOOKUP($C10,'RECAP SECT'!$G$6:$DC$253,18,FALSE) -> 1,581 | G10: =VLOOKUP($C10,'RECAP SECT'!$G$6:$DC$253,19,FALSE) -> 46.78 | H10: =VLOOKUP($C10,'RECAP SECT'!$G$6:$DC$253,20,FALSE) -> 28% | I10: =VLOOKUP($C10,'RECAP SECT'!$G$6:$DC$253,21,FALSE) -> 9 | J10: =VLOOKUP($C10,'RECAP SECT'!$G$6:$DC$253,22,FALSE) -> 1,000 | K10: =VLOOKUP($C10,'RECAP SECT'!$G$6:$DC$253,23,FALSE) -> 29.60 | L10: =VLOOKUP($C10,'RECAP SECT'!$G$6:$DC$253,24,FALSE) -> 18% | M10: =VLOOKUP($C10,'RECAP SECT'!$G$6:$DC$253,25,FALSE) -> 6 | N10: =VLOOKUP($C10,'RECAP SECT'!$G$6:$DC$253,26,FALSE) -> 180 | O10: =VLOOKUP($C10,'RECAP SECT'!$G$6:$DC$253,27,FALSE) -> 5.33 | P10: =VLOOKUP($C10,'RECAP SECT'!$G$6:$DC$253,28,FALSE) -> 58% | Q10: =VLOOKUP($C10,'RECAP SECT'!$G$6:$DC$253,29,FALSE) -> 9 | R10: =VLOOKUP($C10,'RECAP SECT'!$G$6:$DC$253,30,FALSE) -> -56.7 | S10: =VLOOKUP($C10,'RECAP SECT'!$G$6:$DC$253,31,FALSE) -> -1.68 | T10: =VLOOKUP($C10,'RECAP SECT'!$G$6:$DC$253,32,FALSE) -> 18% | U10: =VLOOKUP($C10,'RECAP SECT'!$G$6:$DC$253,33,FALSE) -> 9 | V10: =VLOOKUP($C10,'RECAP SECT'!$G$6:$DC$253,34,FALSE) -> 29% | W10: =VLOOKUP($C10,'RECAP SECT'!$G$6:$DC$253,35,FALSE) -> 22% | X10: =VLOOKUP($C10,'RECAP SECT'!$G$6:$DC$253,36,FALSE) -> 9
A11: 50 | B11: AUBE HAUTE MARNE | C11: 14 | D11: TROYES | E11: =VLOOKUP($C11,'RECAP SECT'!$G$6:$DC$253,3,FALSE) -> 66.8 | F11: =VLOOKUP($C11,'RECAP SECT'!$G$6:$DC$253,18,FALSE) -> 3,045 | G11: =VLOOKUP($C11,'RECAP SECT'!$G$6:$DC$253,19,FALSE) -> 45.59 | H11: =VLOOKUP($C11,'RECAP SECT'!$G$6:$DC$253,20,FALSE) -> 30% | I11: =VLOOKUP($C11,'RECAP SECT'!$G$6:$DC$253,21,FALSE) -> 10 | J11: =VLOOKUP($C11,'RECAP SECT'!$G$6:$DC$253,22,FALSE) -> 1,828 | K11: =VLOOKUP($C11,'RECAP SECT'!$G$6:$DC$253,23,FALSE) -> 27.37 | L11: =VLOOKUP($C11,'RECAP SECT'!$G$6:$DC$253,24,FALSE) -> 24% | M11: =VLOOKUP($C11,'RECAP SECT'!$G$6:$DC$253,25,FALSE) -> 9 | N11: =VLOOKUP($C11,'RECAP SECT'!$G$6:$DC$253,26,FALSE) -> 359 | O11: =VLOOKUP($C11,'RECAP SECT'!$G$6:$DC$253,27,FALSE) -> 5.37 | P11: =VLOOKUP($C11,'RECAP SECT'!$G$6:$DC$253,28,FALSE) -> 57% | Q11: =VLOOKUP($C11,'RECAP SECT'!$G$6:$DC$253,29,FALSE) -> 8 | R11: =VLOOKUP($C11,'RECAP SECT'!$G$6:$DC$253,30,FALSE) -> -107.5 | S11: =VLOOKUP($C11,'RECAP SECT'!$G$6:$DC$253,31,FALSE) -> -1.61 | T11: =VLOOKUP($C11,'RECAP SECT'!$G$6:$DC$253,32,FALSE) -> 13% | U11: =VLOOKUP($C11,'RECAP SECT'!$G$6:$DC$253,33,FALSE) -> 5 | V11: =VLOOKUP($C11,'RECAP SECT'!$G$6:$DC$253,34,FALSE) -> 30% | W11: =VLOOKUP($C11,'RECAP SECT'!$G$6:$DC$253,35,FALSE) -> 24% | X11: =VLOOKUP($C11,'RECAP SECT'!$G$6:$DC$253,36,FALSE) -> 13
A12: 262 | B12: BAS-RHIN | C12: 5060 | D12: HAGUENAU | E12: =VLOOKUP($C12,'RECAP SECT'!$G$6:$DC$253,3,FALSE) -> 69.7 | F12: =VLOOKUP($C12,'RECAP SECT'!$G$6:$DC$253,18,FALSE) -> 3,755 | G12: =VLOOKUP($C12,'RECAP SECT'!$G$6:$DC$253,19,FALSE) -> 53.87 | H12: =VLOOKUP($C12,'RECAP SECT'!$G$6:$DC$253,20,FALSE) -> 17% | I12: =VLOOKUP($C12,'RECAP SECT'!$G$6:$DC$253,21,FALSE) -> 7 | J12: =VLOOKUP($C12,'RECAP SECT'!$G$6:$DC$253,22,FALSE) -> 1,617 | K12: =VLOOKUP($C12,'RECAP SECT'!$G$6:$DC$253,23,FALSE) -> 23.20 | L12: =VLOOKUP($C12,'RECAP SECT'!$G$6:$DC$253,24,FALSE) -> 35% | M12: =VLOOKUP($C12,'RECAP SECT'!$G$6:$DC$253,25,FALSE) -> 18 | N12: =VLOOKUP($C12,'RECAP SECT'!$G$6:$DC$253,26,FALSE) -> 256 | O12: =VLOOKUP($C12,'RECAP SECT'!$G$6:$DC$253,27,FALSE) -> 3.67 | P12: =VLOOKUP($C12,'RECAP SECT'!$G$6:$DC$253,28,FALSE) -> 71% | Q12: =VLOOKUP($C12,'RECAP SECT'!$G$6:$DC$253,29,FALSE) -> 14 | R12: =VLOOKUP($C12,'RECAP SECT'!$G$6:$DC$253,30,FALSE) -> -122.0 | S12: =VLOOKUP($C12,'RECAP SECT'!$G$6:$DC$253,31,FALSE) -> -1.75 | T12: =VLOOKUP($C12,'RECAP SECT'!$G$6:$DC$253,32,FALSE) -> 23% | U12: =VLOOKUP($C12,'RECAP SECT'!$G$6:$DC$253,33,FALSE) -> 12 | V12: =VLOOKUP($C12,'RECAP SECT'!$G$6:$DC$253,34,FALSE) -> 30% | W12: =VLOOKUP($C12,'RECAP SECT'!$G$6:$DC$253,35,FALSE) -> 23% | X12: =VLOOKUP($C12,'RECAP SECT'!$G$6:$DC$253,36,FALSE) -> 12
A13: 262 | B13: BAS-RHIN | C13: 5101 | D13: SELESTAT | E13: =VLOOKUP($C13,'RECAP SECT'!$G$6:$DC$253,3,FALSE) -> 59.7 | F13: =VLOOKUP($C13,'RECAP SECT'!$G$6:$DC$253,18,FALSE) -> 3,598 | G13: =VLOOKUP($C13,'RECAP SECT'!$G$6:$DC$253,19,FALSE) -> 60.23 | H13: =VLOOKUP($C13,'RECAP SECT'!$G$6:$DC$253,20,FALSE) -> 7% | I13: =VLOOKUP($C13,'RECAP SECT'!$G$6:$DC$253,21,FALSE) -> 3 | J13: =VLOOKUP($C13,'RECAP SECT'!$G$6:$DC$253,22,FALSE) -> 1,473 | K13: =VLOOKUP($C13,'RECAP SECT'!$G$6:$DC$253,23,FALSE) -> 24.66 | L13: =VLOOKUP($C13,'RECAP SECT'!$G$6:$DC$253,24,FALSE) -> 31% | M13: =VLOOKUP($C13,'RECAP SECT'!$G$6:$DC$253,25,FALSE) -> 16 | N13: =VLOOKUP($C13,'RECAP SECT'!$G$6:$DC$253,26,FALSE) -> 239 | O13: =VLOOKUP($C13,'RECAP SECT'!$G$6:$DC$253,27,FALSE) -> 4.00 | P13: =VLOOKUP($C13,'RECAP SECT'!$G$6:$DC$253,28,FALSE) -> 68% | Q13: =VLOOKUP($C13,'RECAP SECT'!$G$6:$DC$253,29,FALSE) -> 13 | R13: =VLOOKUP($C13,'RECAP SECT'!$G$6:$DC$253,30,FALSE) -> -108.9 | S13: =VLOOKUP($C13,'RECAP SECT'!$G$6:$DC$253,31,FALSE) -> -1.82 | T13: =VLOOKUP($C13,'RECAP SECT'!$G$6:$DC$253,32,FALSE) -> 28% | U13: =VLOOKUP($C13,'RECAP SECT'!$G$6:$DC$253,33,FALSE) -> 14 | V13: =VLOOKUP($C13,'RECAP SECT'!$G$6:$DC$253,34,FALSE) -> 24% | W13: =VLOOKUP($C13,'RECAP SECT'!$G$6:$DC$253,35,FALSE) -> 18% | X13: =VLOOKUP($C13,'RECAP SECT'!$G$6:$DC$253,36,FALSE) -> 6
A14: 262 | B14: BAS-RHIN | C14: 5006 | D14: STRASBOURG | E14: =VLOOKUP($C14,'RECAP SECT'!$G$6:$DC$253,3,FALSE) -> 75.6 | F14: =VLOOKUP($C14,'RECAP SECT'!$G$6:$DC$253,18,FALSE) -> 4,472 | G14: =VLOOKUP($C14,'RECAP SECT'!$G$6:$DC$253,19,FALSE) -> 59.13 | H14: =VLOOKUP($C14,'RECAP SECT'!$G$6:$DC$253,20,FALSE) -> 9% | I14: =VLOOKUP($C14,'RECAP SECT'!$G$6:$DC$253,21,FALSE) -> 4 | J14: =VLOOKUP($C14,'RECAP SECT'!$G$6:$DC$253,22,FALSE) -> 2,527 | K14: =VLOOKUP($C14,'RECAP SECT'!$G$6:$DC$253,23,FALSE) -> 33.41 | L14: =VLOOKUP($C14,'RECAP SECT'!$G$6:$DC$253,24,FALSE) -> 7% | M14: =VLOOKUP($C14,'RECAP SECT'!$G$6:$DC$253,25,FALSE) -> 2 | N14: =VLOOKUP($C14,'RECAP SECT'!$G$6:$DC$253,26,FALSE) -> 501 | O14: =VLOOKUP($C14,'RECAP SECT'!$G$6:$DC$253,27,FALSE) -> 6.62 | P14: =VLOOKUP($C14,'RECAP SECT'!$G$6:$DC$253,28,FALSE) -> 47% | Q14: =VLOOKUP($C14,'RECAP SECT'!$G$6:$DC$253,29,FALSE) -> 6 | R14: =VLOOKUP($C14,'RECAP SECT'!$G$6:$DC$253,30,FALSE) -> -172.3 | S14: =VLOOKUP($C14,'RECAP SECT'!$G$6:$DC$253,31,FALSE) -> -2.28 | T14: =VLOOKUP($C14,'RECAP SECT'!$G$6:$DC$253,32,FALSE) -> 61% | U14: =VLOOKUP($C14,'RECAP SECT'!$G$6:$DC$253,33,FALSE) -> 18 | V14: =VLOOKUP($C14,'RECAP SECT'!$G$6:$DC$253,34,FALSE) -> 22% | W14: =VLOOKUP($C14,'RECAP SECT'!$G$6:$DC$253,35,FALSE) -> 16% | X14: =VLOOKUP($C14,'RECAP SECT'!$G$6:$DC$253,36,FALSE) -> 5
A15: 264 | B15: HAUT-RHIN | C15: 5130 | D15: COLMAR | E15: =VLOOKUP($C15,'RECAP SECT'!$G$6:$DC$253,3,FALSE) -> 61.6 | F15: =VLOOKUP($C15,'RECAP SECT'!$G$6:$DC$253,18,FALSE) -> 2,499 | G15: =VLOOKUP($C15,'RECAP SECT'!$G$6:$DC$253,19,FALSE) -> 40.54 | H15: =VLOOKUP($C15,'RECAP SECT'!$G$6:$DC$253,20,FALSE) -> 38% | I15: =VLOOKUP($C15,'RECAP SECT'!$G$6:$DC$253,21,FALSE) -> 14 | J15: =VLOOKUP($C15,'RECAP SECT'!$G$6:$DC$253,22,FALSE) -> 1,551 | K15: =VLOOKUP($C15,'RECAP SECT'!$G$6:$DC$253,23,FALSE) -> 25.16 | L15: =VLOOKUP($C15,'RECAP SECT'!$G$6:$DC$253,24,FALSE) -> 30% | M15: =VLOOKUP($C15,'RECAP SECT'!$G$6:$DC$253,25,FALSE) -> 14 | N15: =VLOOKUP($C15,'RECAP SECT'!$G$6:$DC$253,26,FALSE) -> 160 | O15: =VLOOKUP($C15,'RECAP SECT'!$G$6:$DC$253,27,FALSE) -> 2.60 | P15: =VLOOKUP($C15,'RECAP SECT'!$G$6:$DC$253,28,FALSE) -> 79% | Q15: =VLOOKUP($C15,'RECAP SECT'!$G$6:$DC$253,29,FALSE) -> 18 | R15: =VLOOKUP($C15,'RECAP SECT'!$G$6:$DC$253,30,FALSE) -> -103.2 | S15: =VLOOKUP($C15,'RECAP SECT'!$G$6:$DC$253,31,FALSE) -> -1.67 | T15: =VLOOKUP($C15,'RECAP SECT'!$G$6:$DC$253,32,FALSE) -> 18% | U15: =VLOOKUP($C15,'RECAP SECT'!$G$6:$DC$253,33,FALSE) -> 8 | V15: =VLOOKUP($C15,'RECAP SECT'!$G$6:$DC$253,34,FALSE) -> 39% | W15: =VLOOKUP($C15,'RECAP SECT'!$G$6:$DC$253,35,FALSE) -> 33% | X15: =VLOOKUP($C15,'RECAP SECT'!$G$6:$DC$253,36,FALSE) -> 16
A16: 264 | B16: HAUT-RHIN | C16: 5169 | D16: MULHOUSE | E16: =VLOOKUP($C16,'RECAP SECT'!$G$6:$DC$253,3,FALSE) -> 61.0 | F16: =VLOOKUP($C16,'RECAP SECT'!$G$6:$DC$253,18,FALSE) -> 1,039 | G16: =VLOOKUP($C16,'RECAP SECT'!$G$6:$DC$253,19,FALSE) -> 17.03 | H16: =VLOOKUP($C16,'RECAP SECT'!$G$6:$DC$253,20,FALSE) -> 74% | I16: =VLOOKUP($C16,'RECAP SECT'!$G$6:$DC$253,21,FALSE) -> 18 | J16: =VLOOKUP($C16,'RECAP SECT'!$G$6:$DC$253,22,FALSE) -> 1,449 | K16: =VLOOKUP($C16,'RECAP SECT'!$G$6:$DC$253,23,FALSE) -> 23.75 | L16: =VLOOKUP($C16,'RECAP SECT'!$G$6:$DC$253,24,FALSE) -> 34% | M16: =VLOOKUP($C16,'RECAP SECT'!$G$6:$DC$253,25,FALSE) -> 17 | N16: =VLOOKUP($C16,'RECAP SECT'!$G$6:$DC$253,26,FALSE) -> 173 | O16: =VLOOKUP($C16,'RECAP SECT'!$G$6:$DC$253,27,FALSE) -> 2.84 | P16: =VLOOKUP($C16,'RECAP SECT'!$G$6:$DC$253,28,FALSE) -> 77% | Q16: =VLOOKUP($C16,'RECAP SECT'!$G$6:$DC$253,29,FALSE) -> 17 | R16: =VLOOKUP($C16,'RECAP SECT'!$G$6:$DC$253,30,FALSE) -> -109.7 | S16: =VLOOKUP($C16,'RECAP SECT'!$G$6:$DC$253,31,FALSE) -> -1.80 | T16: =VLOOKUP($C16,'RECAP SECT'!$G$6:$DC$253,32,FALSE) -> 27% | U16: =VLOOKUP($C16,'RECAP SECT'!$G$6:$DC$253,33,FALSE) -> 13 | V16: =VLOOKUP($C16,'RECAP SECT'!$G$6:$DC$253,34,FALSE) -> 59% | W16: =VLOOKUP($C16,'RECAP SECT'!$G$6:$DC$253,35,FALSE) -> 53% | X16: =VLOOKUP($C16,'RECAP SECT'!$G$6:$DC$253,36,FALSE) -> 18
A17: 30 | B17: MARNE-ARDENNES | C17: 6 | D17: CHALONS EN CHAMPAGNE | E17: =VLOOKUP($C17,'RECAP SECT'!$G$6:$DC$253,3,FALSE) -> 44.6 | F17: =VLOOKUP($C17,'RECAP SECT'!$G$6:$DC$253,18,FALSE) -> 1,861 | G17: =VLOOKUP($C17,'RECAP SECT'!$G$6:$DC$253,19,FALSE) -> 41.71 | H17: =VLOOKUP($C17,'RECAP SECT'!$G$6:$DC$253,20,FALSE) -> 36% | I17: =VLOOKUP($C17,'RECAP SECT'!$G$6:$DC$253,21,FALSE) -> 13 | J17: =VLOOKUP($C17,'RECAP SECT'!$G$6:$DC$253,22,FALSE) -> 1,235 | K17: =VLOOKUP($C17,'RECAP SECT'!$G$6:$DC$253,23,FALSE) -> 27.69 | L17: =VLOOKUP($C17,'RECAP SECT'!$G$6:$DC$253,24,FALSE) -> 23% | M17: =VLOOKUP($C17,'RECAP SECT'!$G$6:$DC$253,25,FALSE) -> 8 | N17: =VLOOKUP($C17,'RECAP SECT'!$G$6:$DC$253,26,FALSE) -> 405 | O17: =VLOOKUP($C17,'RECAP SECT'!$G$6:$DC$253,27,FALSE) -> 9.08 | P17: =VLOOKUP($C17,'RECAP SECT'!$G$6:$DC$253,28,FALSE) -> 28% | Q17: =VLOOKUP($C17,'RECAP SECT'!$G$6:$DC$253,29,FALSE) -> 4 | R17: =VLOOKUP($C17,'RECAP SECT'!$G$6:$DC$253,30,FALSE) -> -74.3 | S17: =VLOOKUP($C17,'RECAP SECT'!$G$6:$DC$253,31,FALSE) -> -1.66 | T17: =VLOOKUP($C17,'RECAP SECT'!$G$6:$DC$253,32,FALSE) -> 17% | U17: =VLOOKUP($C17,'RECAP SECT'!$G$6:$DC$253,33,FALSE) -> 7 | V17: =VLOOKUP($C17,'RECAP SECT'!$G$6:$DC$253,34,FALSE) -> 29% | W17: =VLOOKUP($C17,'RECAP SECT'!$G$6:$DC$253,35,FALSE) -> 23% | X17: =VLOOKUP($C17,'RECAP SECT'!$G$6:$DC$253,36,FALSE) -> 11
A18: 30 | B18: MARNE-ARDENNES | C18: 2 | D18: CHARLEVILLE MEZIERES | E18: =VLOOKUP($C18,'RECAP SECT'!$G$6:$DC$253,3,FALSE) -> 56.3 | F18: =VLOOKUP($C18,'RECAP SECT'!$G$6:$DC$253,18,FALSE) -> 2,018 | G18: =VLOOKUP($C18,'RECAP SECT'!$G$6:$DC$253,19,FALSE) -> 35.87 | H18: =VLOOKUP($C18,'RECAP SECT'!$G$6:$DC$253,20,FALSE) -> 45% | I18: =VLOOKUP($C18,'RECAP SECT'!$G$6:$DC$253,21,FALSE) -> 16 | J18: =VLOOKUP($C18,'RECAP SECT'!$G$6:$DC$253,22,FALSE) -> 1,791 | K18: =VLOOKUP($C18,'RECAP SECT'!$G$6:$DC$253,23,FALSE) -> 31.84 | L18: =VLOOKUP($C18,'RECAP SECT'!$G$6:$DC$253,24,FALSE) -> 11% | M18: =VLOOKUP($C18,'RECAP SECT'!$G$6:$DC$253,25,FALSE) -> 4 | N18: =VLOOKUP($C18,'RECAP SECT'!$G$6:$DC$253,26,FALSE) -> 507 | O18: =VLOOKUP($C18,'RECAP SECT'!$G$6:$DC$253,27,FALSE) -> 9.01 | P18: =VLOOKUP($C18,'RECAP SECT'!$G$6:$DC$253,28,FALSE) -> 28% | Q18: =VLOOKUP($C18,'RECAP SECT'!$G$6:$DC$253,29,FALSE) -> 5 | R18: =VLOOKUP($C18,'RECAP SECT'!$G$6:$DC$253,30,FALSE) -> -80.9 | S18: =VLOOKUP($C18,'RECAP SECT'!$G$6:$DC$253,31,FALSE) -> -1.44 | T18: =VLOOKUP($C18,'RECAP SECT'!$G$6:$DC$253,32,FALSE) -> 1% | U18: =VLOOKUP($C18,'RECAP SECT'!$G$6:$DC$253,33,FALSE) -> 2 | V18: =VLOOKUP($C18,'RECAP SECT'!$G$6:$DC$253,34,FALSE) -> 29% | W18: =VLOOKUP($C18,'RECAP SECT'!$G$6:$DC$253,35,FALSE) -> 23% | X18: =VLOOKUP($C18,'RECAP SECT'!$G$6:$DC$253,36,FALSE) -> 10
A19: 30 | B19: MARNE-ARDENNES | C19: 11 | D19: REIMS | E19: =VLOOKUP($C19,'RECAP SECT'!$G$6:$DC$253,3,FALSE) -> 79.9 | F19: =VLOOKUP($C19,'RECAP SECT'!$G$6:$DC$253,18,FALSE) -> 3,640 | G19: =VLOOKUP($C19,'RECAP SECT'!$G$6:$DC$253,19,FALSE) -> 45.57 | H19: =VLOOKUP($C19,'RECAP SECT'!$G$6:$DC$253,20,FALSE) -> 30% | I19: =VLOOKUP($C19,'RECAP SECT'!$G$6:$DC$253,21,FALSE) -> 11 | J19: =VLOOKUP($C19,'RECAP SECT'!$G$6:$DC$253,22,FALSE) -> 2,541 | K19: =VLOOKUP($C19,'RECAP SECT'!$G$6:$DC$253,23,FALSE) -> 31.81 | L19: =VLOOKUP($C19,'RECAP SECT'!$G$6:$DC$253,24,FALSE) -> 11% | M19: =VLOOKUP($C19,'RECAP SECT'!$G$6:$DC$253,25,FALSE) -> 5 | N19: =VLOOKUP($C19,'RECAP SECT'!$G$6:$DC$253,26,FALSE) -> 831 | O19: =VLOOKUP($C19,'RECAP SECT'!$G$6:$DC$253,27,FALSE) -> 10.40 | P19: =VLOOKUP($C19,'RECAP SECT'!$G$6:$DC$253,28,FALSE) -> 17% | Q19: =VLOOKUP($C19,'RECAP SECT'!$G$6:$DC$253,29,FALSE) -> 2 | R19: =VLOOKUP($C19,'RECAP SECT'!$G$6:$DC$253,30,FALSE) -> -163.3 | S19: =VLOOKUP($C19,'RECAP SECT'!$G$6:$DC$253,31,FALSE) -> -2.04 | T19: =VLOOKUP($C19,'RECAP SECT'!$G$6:$DC$253,32,FALSE) -> 44% | U19: =VLOOKUP($C19,'RECAP SECT'!$G$6:$DC$253,33,FALSE) -> 17 | V19: =VLOOKUP($C19,'RECAP SECT'!$G$6:$DC$253,34,FALSE) -> 26% | W19: =VLOOKUP($C19,'RECAP SECT'!$G$6:$DC$253,35,FALSE) -> 20% | X19: =VLOOKUP($C19,'RECAP SECT'!$G$6:$DC$253,36,FALSE) -> 8
A20: 110 | B20: MEURTHE ET MOSELLE MEUSE | C20: 26 | D20: NANCY | E20: =VLOOKUP($C20,'RECAP SECT'!$G$6:$DC$253,3,FALSE) -> 66.4 | F20: =VLOOKUP($C20,'RECAP SECT'!$G$6:$DC$253,18,FALSE) -> 4,206 | G20: =VLOOKUP($C20,'RECAP SECT'!$G$6:$DC$253,19,FALSE) -> 63.37 | H20: =VLOOKUP($C20,'RECAP SECT'!$G$6:$DC$253,20,FALSE) -> 2% | I20: =VLOOKUP($C20,'RECAP SECT'!$G$6:$DC$253,21,FALSE) -> 2 | J20: =VLOOKUP($C20,'RECAP SECT'!$G$6:$DC$253,22,FALSE) -> 2,382 | K20: =VLOOKUP($C20,'RECAP SECT'!$G$6:$DC$253,23,FALSE) -> 35.89 | L20: =VLOOKUP($C20,'RECAP SECT'!$G$6:$DC$253,24,FALSE) -> 0% | M20: =VLOOKUP($C20,'RECAP SECT'!$G$6:$DC$253,25,FALSE) -> 1 | N20: =VLOOKUP($C20,'RECAP SECT'!$G$6:$DC$253,26,FALSE) -> 833 | O20: =VLOOKUP($C20,'RECAP SECT'!$G$6:$DC$253,27,FALSE) -> 12.55 | P20: =VLOOKUP($C20,'RECAP SECT'!$G$6:$DC$253,28,FALSE) -> 0% | Q20: =VLOOKUP($C20,'RECAP SECT'!$G$6:$DC$253,29,FALSE) -> 1 | R20: =VLOOKUP($C20,'RECAP SECT'!$G$6:$DC$253,30,FALSE) -> -127.3 | S20: =VLOOKUP($C20,'RECAP SECT'!$G$6:$DC$253,31,FALSE) -> -1.92 | T20: =VLOOKUP($C20,'RECAP SECT'!$G$6:$DC$253,32,FALSE) -> 35% | U20: =VLOOKUP($C20,'RECAP SECT'!$G$6:$DC$253,33,FALSE) -> 16 | V20: =VLOOKUP($C20,'RECAP SECT'!$G$6:$DC$253,34,FALSE) -> 7% | W20: =VLOOKUP($C20,'RECAP SECT'!$G$6:$DC$253,35,FALSE) -> 0% | X20: =VLOOKUP($C20,'RECAP SECT'!$G$6:$DC$253,36,FALSE) -> 1
A21: 110 | B21: MEURTHE ET MOSELLE MEUSE | C21: 27 | D21: PONT A MOUSSON | E21: =VLOOKUP($C21,'RECAP SECT'!$G$6:$DC$253,3,FALSE) -> 76.3 | F21: =VLOOKUP($C21,'RECAP SECT'!$G$6:$DC$253,18,FALSE) -> 4,961 | G21: =VLOOKUP($C21,'RECAP SECT'!$G$6:$DC$253,19,FALSE) -> 64.99 | H21: =VLOOKUP($C21,'RECAP SECT'!$G$6:$DC$253,20,FALSE) -> 0% | I21: =VLOOKUP($C21,'RECAP SECT'!$G$6:$DC$253,21,FALSE) -> 1 | J21: =VLOOKUP($C21,'RECAP SECT'!$G$6:$DC$253,22,FALSE) -> 2,433 | K21: =VLOOKUP($C21,'RECAP SECT'!$G$6:$DC$253,23,FALSE) -> 31.87 | L21: =VLOOKUP($C21,'RECAP SECT'!$G$6:$DC$253,24,FALSE) -> 11% | M21: =VLOOKUP($C21,'RECAP SECT'!$G$6:$DC$253,25,FALSE) -> 3 | N21: =VLOOKUP($C21,'RECAP SECT'!$G$6:$DC$253,26,FALSE) -> 696 | O21: =VLOOKUP($C21,'RECAP SECT'!$G$6:$DC$253,27,FALSE) -> 9.12 | P21: =VLOOKUP($C21,'RECAP SECT'!$G$6:$DC$253,28,FALSE) -> 27% | Q21: =VLOOKUP($C21,'RECAP SECT'!$G$6:$DC$253,29,FALSE) -> 3 | R21: =VLOOKUP($C21,'RECAP SECT'!$G$6:$DC$253,30,FALSE) -> -132.4 | S21: =VLOOKUP($C21,'RECAP SECT'!$G$6:$DC$253,31,FALSE) -> -1.73 | T21: =VLOOKUP($C21,'RECAP SECT'!$G$6:$DC$253,32,FALSE) -> 22% | U21: =VLOOKUP($C21,'RECAP SECT'!$G$6:$DC$253,33,FALSE) -> 11 | V21: =VLOOKUP($C21,'RECAP SECT'!$G$6:$DC$253,34,FALSE) -> 10% | W21: =VLOOKUP($C21,'RECAP SECT'!$G$6:$DC$253,35,FALSE) -> 3% | X21: =VLOOKUP($C21,'RECAP SECT'!$G$6:$DC$253,36,FALSE) -> 2
A22: 110 | B22: MEURTHE ET MOSELLE MEUSE | C22: 31 | D22: VERDUN | E22: =VLOOKUP($C22,'RECAP SECT'!$G$6:$DC$253,3,FALSE) -> 54.9 | F22: =VLOOKUP($C22,'RECAP SECT'!$G$6:$DC$253,18,FALSE) -> 3,123 | G22: =VLOOKUP($C22,'RECAP SECT'!$G$6:$DC$253,19,FALSE) -> 56.92 | H22: =VLOOKUP($C22,'RECAP SECT'!$G$6:$DC$253,20,FALSE) -> 12% | I22: =VLOOKUP($C22,'RECAP SECT'!$G$6:$DC$253,21,FALSE) -> 6 | J22: =VLOOKUP($C22,'RECAP SECT'!$G$6:$DC$253,22,FALSE) -> 1,610 | K22: =VLOOKUP($C22,'RECAP SECT'!$G$6:$DC$253,23,FALSE) -> 29.34 | L22: =VLOOKUP($C22,'RECAP SECT'!$G$6:$DC$253,24,FALSE) -> 18% | M22: =VLOOKUP($C22,'RECAP SECT'!$G$6:$DC$253,25,FALSE) -> 7 | N22: =VLOOKUP($C22,'RECAP SECT'!$G$6:$DC$253,26,FALSE) -> 327 | O22: =VLOOKUP($C22,'RECAP SECT'!$G$6:$DC$253,27,FALSE) -> 5.96 | P22: =VLOOKUP($C22,'RECAP SECT'!$G$6:$DC$253,28,FALSE) -> 53% | Q22: =VLOOKUP($C22,'RECAP SECT'!$G$6:$DC$253,29,FALSE) -> 7 | R22: =VLOOKUP($C22,'RECAP SECT'!$G$6:$DC$253,30,FALSE) -> -81.4 | S22: =VLOOKUP($C22,'RECAP SECT'!$G$6:$DC$253,31,FALSE) -> -1.48 | T22: =VLOOKUP($C22,'RECAP SECT'!$G$6:$DC$253,32,FALSE) -> 5% | U22: =VLOOKUP($C22,'RECAP SECT'!$G$6:$DC$253,33,FALSE) -> 3 | V22: =VLOOKUP($C22,'RECAP SECT'!$G$6:$DC$253,34,FALSE) -> 18% | W22: =VLOOKUP($C22,'RECAP SECT'!$G$6:$DC$253,35,FALSE) -> 12% | X22: =VLOOKUP($C22,'RECAP SECT'!$G$6:$DC$253,36,FALSE) -> 3
A23: 160 | B23: MOSELLE | C23: 45 | D23: METZ | E23: =VLOOKUP($C23,'RECAP SECT'!$G$6:$DC$253,3,FALSE) -> 89.0 | F23: =VLOOKUP($C23,'RECAP SECT'!$G$6:$DC$253,18,FALSE) -> 3,846 | G23: =VLOOKUP($C23,'RECAP SECT'!$G$6:$DC$253,19,FALSE) -> 43.19 | H23: =VLOOKUP($C23,'RECAP SECT'!$G$6:$DC$253,20,FALSE) -> 34% | I23: =VLOOKUP($C23,'RECAP SECT'!$G$6:$DC$253,21,FALSE) -> 12 | J23: =VLOOKUP($C23,'RECAP SECT'!$G$6:$DC$253,22,FALSE) -> 2,300 | K23: =VLOOKUP($C23,'RECAP SECT'!$G$6:$DC$253,23,FALSE) -> 25.83 | L23: =VLOOKUP($C23,'RECAP SECT'!$G$6:$DC$253,24,FALSE) -> 28% | M23: =VLOOKUP($C23,'RECAP SECT'!$G$6:$DC$253,25,FALSE) -> 13 | N23: =VLOOKUP($C23,'RECAP SECT'!$G$6:$DC$253,26,FALSE) -> 390 | O23: =VLOOKUP($C23,'RECAP SECT'!$G$6:$DC$253,27,FALSE) -> 4.38 | P23: =VLOOKUP($C23,'RECAP SECT'!$G$6:$DC$253,28,FALSE) -> 65% | Q23: =VLOOKUP($C23,'RECAP SECT'!$G$6:$DC$253,29,FALSE) -> 12 | R23: =VLOOKUP($C23,'RECAP SECT'!$G$6:$DC$253,30,FALSE) -> -153.2 | S23: =VLOOKUP($C23,'RECAP SECT'!$G$6:$DC$253,31,FALSE) -> -1.72 | T23: =VLOOKUP($C23,'RECAP SECT'!$G$6:$DC$253,32,FALSE) -> 21% | U23: =VLOOKUP($C23,'RECAP SECT'!$G$6:$DC$253,33,FALSE) -> 10 | V23: =VLOOKUP($C23,'RECAP SECT'!$G$6:$DC$253,34,FALSE) -> 35% | W23: =VLOOKUP($C23,'RECAP SECT'!$G$6:$DC$253,35,FALSE) -> 29% | X23: =VLOOKUP($C23,'RECAP SECT'!$G$6:$DC$253,36,FALSE) -> 14
A24: 160 | B24: MOSELLE | C24: 42 | D24: MOSELLE EST | E24: =VLOOKUP($C24,'RECAP SECT'!$G$6:$DC$253,3,FALSE) -> 70.4 | F24: =VLOOKUP($C24,'RECAP SECT'!$G$6:$DC$253,18,FALSE) -> 3,740 | G24: =VLOOKUP($C24,'RECAP SECT'!$G$6:$DC$253,19,FALSE) -> 53.14 | H24: =VLOOKUP($C24,'RECAP SECT'!$G$6:$DC$253,20,FALSE) -> 18% | I24: =VLOOKUP($C24,'RECAP SECT'!$G$6:$DC$253,21,FALSE) -> 8 | J24: =VLOOKUP($C24,'RECAP SECT'!$G$6:$DC$253,22,FALSE) -> 1,906 | K24: =VLOOKUP($C24,'RECAP SECT'!$G$6:$DC$253,23,FALSE) -> 27.08 | L24: =VLOOKUP($C24,'RECAP SECT'!$G$6:$DC$253,24,FALSE) -> 25% | M24: =VLOOKUP($C24,'RECAP SECT'!$G$6:$DC$253,25,FALSE) -> 12 | N24: =VLOOKUP($C24,'RECAP SECT'!$G$6:$DC$253,26,FALSE) -> 309 | O24: =VLOOKUP($C24,'RECAP SECT'!$G$6:$DC$253,27,FALSE) -> 4.39 | P24: =VLOOKUP($C24,'RECAP SECT'!$G$6:$DC$253,28,FALSE) -> 65% | Q24: =VLOOKUP($C24,'RECAP SECT'!$G$6:$DC$253,29,FALSE) -> 11 | R24: =VLOOKUP($C24,'RECAP SECT'!$G$6:$DC$253,30,FALSE) -> -105.3 | S24: =VLOOKUP($C24,'RECAP SECT'!$G$6:$DC$253,31,FALSE) -> -1.50 | T24: =VLOOKUP($C24,'RECAP SECT'!$G$6:$DC$253,32,FALSE) -> 6% | U24: =VLOOKUP($C24,'RECAP SECT'!$G$6:$DC$253,33,FALSE) -> 4 | V24: =VLOOKUP($C24,'RECAP SECT'!$G$6:$DC$253,34,FALSE) -> 25% | W24: =VLOOKUP($C24,'RECAP SECT'!$G$6:$DC$253,35,FALSE) -> 18% | X24: =VLOOKUP($C24,'RECAP SECT'!$G$6:$DC$253,36,FALSE) -> 7
A25: 160 | B25: MOSELLE | C25: 44 | D25: MOSELLE NORD | E25: =VLOOKUP($C25,'RECAP SECT'!$G$6:$DC$253,3,FALSE) -> 65.5 | F25: =VLOOKUP($C25,'RECAP SECT'!$G$6:$DC$253,18,FALSE) -> 3,737 | G25: =VLOOKUP($C25,'RECAP SECT'!$G$6:$DC$253,19,FALSE) -> 57.05 | H25: =VLOOKUP($C25,'RECAP SECT'!$G$6:$DC$253,20,FALSE) -> 12% | I25: =VLOOKUP($C25,'RECAP SECT'!$G$6:$DC$253,21,FALSE) -> 5 | J25: =VLOOKUP($C25,'RECAP SECT'!$G$6:$DC$253,22,FALSE) -> 1,780 | K25: =VLOOKUP($C25,'RECAP SECT'!$G$6:$DC$253,23,FALSE) -> 27.17 | L25: =VLOOKUP($C25,'RECAP SECT'!$G$6:$DC$253,24,FALSE) -> 24% | M25: =VLOOKUP($C25,'RECAP SECT'!$G$6:$DC$253,25,FALSE) -> 11 | N25: =VLOOKUP($C25,'RECAP SECT'!$G$6:$DC$253,26,FALSE) -> 231 | O25: =VLOOKUP($C25,'RECAP SECT'!$G$6:$DC$253,27,FALSE) -> 3.53 | P25: =VLOOKUP($C25,'RECAP SECT'!$G$6:$DC$253,28,FALSE) -> 72% | Q25: =VLOOKUP($C25,'RECAP SECT'!$G$6:$DC$253,29,FALSE) -> 16 | R25: =VLOOKUP($C25,'RECAP SECT'!$G$6:$DC$253,30,FALSE) -> -92.9 | S25: =VLOOKUP($C25,'RECAP SECT'!$G$6:$DC$253,31,FALSE) -> -1.42 | T25: =VLOOKUP($C25,'RECAP SECT'!$G$6:$DC$253,32,FALSE) -> 0% | U25: =VLOOKUP($C25,'RECAP SECT'!$G$6:$DC$253,33,FALSE) -> 1 | V25: =VLOOKUP($C25,'RECAP SECT'!$G$6:$DC$253,34,FALSE) -> 22% | W25: =VLOOKUP($C25,'RECAP SECT'!$G$6:$DC$253,35,FALSE) -> 15% | X25: =VLOOKUP($C25,'RECAP SECT'!$G$6:$DC$253,36,FALSE) -> 4
A26: 80 | B26: VOSGES | C26: 57 | D26: EPINAL | E26: =VLOOKUP($C26,'RECAP SECT'!$G$6:$DC$253,3,FALSE) -> 61.2 | F26: =VLOOKUP($C26,'RECAP SECT'!$G$6:$DC$253,18,FALSE) -> 2,383 | G26: =VLOOKUP($C26,'RECAP SECT'!$G$6:$DC$253,19,FALSE) -> 38.91 | H26: =VLOOKUP($C26,'RECAP SECT'!$G$6:$DC$253,20,FALSE) -> 40% | I26: =VLOOKUP($C26,'RECAP SECT'!$G$6:$DC$253,21,FALSE) -> 15 | J26: =VLOOKUP($C26,'RECAP SECT'!$G$6:$DC$253,22,FALSE) -> 1,669 | K26: =VLOOKUP($C26,'RECAP SECT'!$G$6:$DC$253,23,FALSE) -> 27.26 | L26: =VLOOKUP($C26,'RECAP SECT'!$G$6:$DC$253,24,FALSE) -> 24% | M26: =VLOOKUP($C26,'RECAP SECT'!$G$6:$DC$253,25,FALSE) -> 10 | N26: =VLOOKUP($C26,'RECAP SECT'!$G$6:$DC$253,26,FALSE) -> 322 | O26: =VLOOKUP($C26,'RECAP SECT'!$G$6:$DC$253,27,FALSE) -> 5.26 | P26: =VLOOKUP($C26,'RECAP SECT'!$G$6:$DC$253,28,FALSE) -> 58% | Q26: =VLOOKUP($C26,'RECAP SECT'!$G$6:$DC$253,29,FALSE) -> 10 | R26: =VLOOKUP($C26,'RECAP SECT'!$G$6:$DC$253,30,FALSE) -> -113.4 | S26: =VLOOKUP($C26,'RECAP SECT'!$G$6:$DC$253,31,FALSE) -> -1.85 | T26: =VLOOKUP($C26,'RECAP SECT'!$G$6:$DC$253,32,FALSE) -> 31% | U26: =VLOOKUP($C26,'RECAP SECT'!$G$6:$DC$253,33,FALSE) -> 15 | V26: =VLOOKUP($C26,'RECAP SECT'!$G$6:$DC$253,34,FALSE) -> 38% | W26: =VLOOKUP($C26,'RECAP SECT'!$G$6:$DC$253,35,FALSE) -> 32% | X26: =VLOOKUP($C26,'RECAP SECT'!$G$6:$DC$253,36,FALSE) -> 15
A27: 80 | B27: VOSGES | C27: 55 | D27: SAINT DIE | E27: =VLOOKUP($C27,'RECAP SECT'!$G$6:$DC$253,3,FALSE) -> 47.1 | F27: =VLOOKUP($C27,'RECAP SECT'!$G$6:$DC$253,18,FALSE) -> 1,622 | G27: =VLOOKUP($C27,'RECAP SECT'!$G$6:$DC$253,19,FALSE) -> 34.46 | H27: =VLOOKUP($C27,'RECAP SECT'!$G$6:$DC$253,20,FALSE) -> 47% | I27: =VLOOKUP($C27,'RECAP SECT'!$G$6:$DC$253,21,FALSE) -> 17 | J27: =VLOOKUP($C27,'RECAP SECT'!$G$6:$DC$253,22,FALSE) -> 1,166 | K27: =VLOOKUP($C27,'RECAP SECT'!$G$6:$DC$253,23,FALSE) -> 24.78 | L27: =VLOOKUP($C27,'RECAP SECT'!$G$6:$DC$253,24,FALSE) -> 31% | M27: =VLOOKUP($C27,'RECAP SECT'!$G$6:$DC$253,25,FALSE) -> 15 | N27: =VLOOKUP($C27,'RECAP SECT'!$G$6:$DC$253,26,FALSE) -> 171 | O27: =VLOOKUP($C27,'RECAP SECT'!$G$6:$DC$253,27,FALSE) -> 3.63 | P27: =VLOOKUP($C27,'RECAP SECT'!$G$6:$DC$253,28,FALSE) -> 71% | Q27: =VLOOKUP($C27,'RECAP SECT'!$G$6:$DC$253,29,FALSE) -> 15 | R27: =VLOOKUP($C27,'RECAP SECT'!$G$6:$DC$253,30,FALSE) -> -76.8 | S27: =VLOOKUP($C27,'RECAP SECT'!$G$6:$DC$253,31,FALSE) -> -1.63 | T27: =VLOOKUP($C27,'RECAP SECT'!$G$6:$DC$253,32,FALSE) -> 15% | U27: =VLOOKUP($C27,'RECAP SECT'!$G$6:$DC$253,33,FALSE) -> 6 | V27: =VLOOKUP($C27,'RECAP SECT'!$G$6:$DC$253,34,FALSE) -> 43% | W27: =VLOOKUP($C27,'RECAP SECT'!$G$6:$DC$253,35,FALSE) -> 36% | X27: =VLOOKUP($C27,'RECAP SECT'!$G$6:$DC$253,36,FALSE) -> 17
A28: Total CEGEE Directions Régionales | E28: =SUM(E10:E27) -> 1140

Sheet SE_EPARGNE
B1: Accueil | F1: BAROMETRE BDD - TERRITOIRES
F2: EPARGNE
F3: =ACCUEIL!F7 -> 2021-07-04
F7: Excédent Epargne y/c DAV pondéré | J7: Ventes sur client non détenteur de l’univers | N7: Total Epargne
F8: =DATEMAJ!C14 -> au 04/07 | H8: coef | I8: ='RECAP DIRCOM'!AX4 -> 14% | J8: =DATEMAJ!C15 -> au 04/07 | L8: coef | M8: ='RECAP DIRCOM'!BB4 -> 6% | O8: coef | P8: ='RECAP DIRCOM'!BE4 -> 20%
A9: eds | B9: Direction | C9: eds | D9: Territoire | E9: ="ETP perf "&DATEMAJ!$C$28 -> ETP perf 31-mai | F9: Excédent | G9: Excédent / ETP | H9: % Ecart au 1er | I9: Rang | J9: VB | K9: VB / ETP | L9: % Ecart au 1er | M9: Rang | N9: Moyenne ecart au 1er | O9: % Ecart au 1er | P9: Rang CEGEE
A10: 50 | B10: AUBE HAUTE MARNE | C10: 21 | D10: CHAUMONT | E10: =VLOOKUP($C10,'RECAP SECT'!$G$6:$DC$253,3,FALSE) -> 33.8 | F10: =VLOOKUP($C10,'RECAP SECT'!$G$6:$DC$253,41,FALSE) -> 8,629 | G10: =VLOOKUP($C10,'RECAP SECT'!$G$6:$DC$253,42,FALSE) -> 255.38 | H10: =VLOOKUP($C10,'RECAP SECT'!$G$6:$DC$253,43,FALSE) -> 46% | I10: =VLOOKUP($C10,'RECAP SECT'!$G$6:$DC$253,44,FALSE) -> 16 | J10: =VLOOKUP($C10,'RECAP SECT'!$G$6:$DC$253,45,FALSE) -> 530 | K10: =VLOOKUP($C10,'RECAP SECT'!$G$6:$DC$253,46,FALSE) -> 15.69 | L10: =VLOOKUP($C10,'RECAP SECT'!$G$6:$DC$253,47,FALSE) -> 24% | M10: =VLOOKUP($C10,'RECAP SECT'!$G$6:$DC$253,48,FALSE) -> 11 | N10: =VLOOKUP($C10,'RECAP SECT'!$G$6:$DC$253,49,FALSE) -> 40% | O10: =VLOOKUP($C10,'RECAP SECT'!$G$6:$DC$253,50,FALSE) -> 38% | P10: =VLOOKUP($C10,'RECAP SECT'!$G$6:$DC$253,51,FALSE) -> 15
A11: 50 | B11: AUBE HAUTE MARNE | C11: 14 | D11: TROYES | E11: =VLOOKUP($C11,'RECAP SECT'!$G$6:$DC$253,3,FALSE) -> 66.8 | F11: =VLOOKUP($C11,'RECAP SECT'!$G$6:$DC$253,41,FALSE) -> 7,983 | G11: =VLOOKUP($C11,'RECAP SECT'!$G$6:$DC$253,42,FALSE) -> 119.52 | H11: =VLOOKUP($C11,'RECAP SECT'!$G$6:$DC$253,43,FALSE) -> 75% | I11: =VLOOKUP($C11,'RECAP SECT'!$G$6:$DC$253,44,FALSE) -> 18 | J11: =VLOOKUP($C11,'RECAP SECT'!$G$6:$DC$253,45,FALSE) -> 946 | K11: =VLOOKUP($C11,'RECAP SECT'!$G$6:$DC$253,46,FALSE) -> 14.16 | L11: =VLOOKUP($C11,'RECAP SECT'!$G$6:$DC$253,47,FALSE) -> 31% | M11: =VLOOKUP($C11,'RECAP SECT'!$G$6:$DC$253,48,FALSE) -> 15 | N11: =VLOOKUP($C11,'RECAP SECT'!$G$6:$DC$253,49,FALSE) -> 62% | O11: =VLOOKUP($C11,'RECAP SECT'!$G$6:$DC$253,50,FALSE) -> 60% | P11: =VLOOKUP($C11,'RECAP SECT'!$G$6:$DC$253,51,FALSE) -> 18
A12: 262 | B12: BAS-RHIN | C12: 5060 | D12: HAGUENAU | E12: =VLOOKUP($C12,'RECAP SECT'!$G$6:$DC$253,3,FALSE) -> 69.7 | F12: =VLOOKUP($C12,'RECAP SECT'!$G$6:$DC$253,41,FALSE) -> 26,277 | G12: =VLOOKUP($C12,'RECAP SECT'!$G$6:$DC$253,42,FALSE) -> 377.03 | H12: =VLOOKUP($C12,'RECAP SECT'!$G$6:$DC$253,43,FALSE) -> 21% | I12: =VLOOKUP($C12,'RECAP SECT'!$G$6:$DC$253,44,FALSE) -> 9 | J12: =VLOOKUP($C12,'RECAP SECT'!$G$6:$DC$253,45,FALSE) -> 1,121 | K12: =VLOOKUP($C12,'RECAP SECT'!$G$6:$DC$253,46,FALSE) -> 16.08 | L12: =VLOOKUP($C12,'RECAP SECT'!$G$6:$DC$253,47,FALSE) -> 22% | M12: =VLOOKUP($C12,'RECAP SECT'!$G$6:$DC$253,48,FALSE) -> 8 | N12: =VLOOKUP($C12,'RECAP SECT'!$G$6:$DC$253,49,FALSE) -> 21% | O12: =VLOOKUP($C12,'RECAP SECT'!$G$6:$DC$253,50,FALSE) -> 19% | P12: =VLOOKUP($C12,'RECAP SECT'!$G$6:$DC$253,51,FALSE) -> 9
A13: 262 | B13: BAS-RHIN | C13: 5101 | D13: SELESTAT | E13: =VLOOKUP($C13,'RECAP SECT'!$G$6:$DC$253,3,FALSE) -> 59.7 | F13: =VLOOKUP($C13,'RECAP SECT'!$G$6:$DC$253,41,FALSE) -> 28,456 | G13: =VLOOKUP($C13,'RECAP SECT'!$G$6:$DC$253,42,FALSE) -> 476.30 | H13: =VLOOKUP($C13,'RECAP SECT'!$G$6:$DC$253,43,FALSE) -> 0% | I13: =VLOOKUP($C13,'RECAP SECT'!$G$6:$DC$253,44,FALSE) -> 1 | J13: =VLOOKUP($C13,'RECAP SECT'!$G$6:$DC$253,45,FALSE) -> 1,155 | K13: =VLOOKUP($C13,'RECAP SECT'!$G$6:$DC$253,46,FALSE) -> 19.33 | L13: =VLOOKUP($C13,'RECAP SECT'!$G$6:$DC$253,47,FALSE) -> 6% | M13: =VLOOKUP($C13,'RECAP SECT'!$G$6:$DC$253,48,FALSE) -> 5 | N13: =VLOOKUP($C13,'RECAP SECT'!$G$6:$DC$253,49,FALSE) -> 2% | O13: =VLOOKUP($C13,'RECAP SECT'!$G$6:$DC$253,50,FALSE) -> 0% | P13: =VLOOKUP($C13,'RECAP SECT'!$G$6:$DC$253,51,FALSE) -> 1
A14: 262 | B14: BAS-RHIN | C14: 5006 | D14: STRASBOURG | E14: =VLOOKUP($C14,'RECAP SECT'!$G$6:$DC$253,3,FALSE) -> 75.6 | F14: =VLOOKUP($C14,'RECAP SECT'!$G$6:$DC$253,41,FALSE) -> 31,378 | G14: =VLOOKUP($C14,'RECAP SECT'!$G$6:$DC$253,42,FALSE) -> 414.87 | H14: =VLOOKUP($C14,'RECAP SECT'!$G$6:$DC$253,43,FALSE) -> 13% | I14: =VLOOKUP($C14,'RECAP SECT'!$G$6:$DC$253,44,FALSE) -> 6 | J14: =VLOOKUP($C14,'RECAP SECT'!$G$6:$DC$253,45,FALSE) -> 1,553 | K14: =VLOOKUP($C14,'RECAP SECT'!$G$6:$DC$253,46,FALSE) -> 20.53 | L14: =VLOOKUP($C14,'RECAP SECT'!$G$6:$DC$253,47,FALSE) -> 0% | M14: =VLOOKUP($C14,'RECAP SECT'!$G$6:$DC$253,48,FALSE) -> 1 | N14: =VLOOKUP($C14,'RECAP SECT'!$G$6:$DC$253,49,FALSE) -> 9% | O14: =VLOOKUP($C14,'RECAP SECT'!$G$6:$DC$253,50,FALSE) -> 7% | P14: =VLOOKUP($C14,'RECAP SECT'!$G$6:$DC$253,51,FALSE) -> 5
A15: 264 | B15: HAUT-RHIN | C15: 5130 | D15: COLMAR | E15: =VLOOKUP($C15,'RECAP SECT'!$G$6:$DC$253,3,FALSE) -> 61.6 | F15: =VLOOKUP($C15,'RECAP SECT'!$G$6:$DC$253,41,FALSE) -> 16,823 | G15: =VLOOKUP($C15,'RECAP SECT'!$G$6:$DC$253,42,FALSE) -> 272.90 | H15: =VLOOKUP($C15,'RECAP SECT'!$G$6:$DC$253,43,FALSE) -> 43% | I15: =VLOOKUP($C15,'RECAP SECT'!$G$6:$DC$253,44,FALSE) -> 15 | J15: =VLOOKUP($C15,'RECAP SECT'!$G$6:$DC$253,45,FALSE) -> 818 | K15: =VLOOKUP($C15,'RECAP SECT'!$G$6:$DC$253,46,FALSE) -> 13.27 | L15: =VLOOKUP($C15,'RECAP SECT'!$G$6:$DC$253,47,FALSE) -> 35% | M15: =VLOOKUP($C15,'RECAP SECT'!$G$6:$DC$253,48,FALSE) -> 16 | N15: =VLOOKUP($C15,'RECAP SECT'!$G$6:$DC$253,49,FALSE) -> 41% | O15: =VLOOKUP($C15,'RECAP SECT'!$G$6:$DC$253,50,FALSE) -> 39% | P15: =VLOOKUP($C15,'RECAP SECT'!$G$6:$DC$253,51,FALSE) -> 16
A16: 264 | B16: HAUT-RHIN | C16: 5169 | D16: MULHOUSE | E16: =VLOOKUP($C16,'RECAP SECT'!$G$6:$DC$253,3,FALSE) -> 61.0 | F16: =VLOOKUP($C16,'RECAP SECT'!$G$6:$DC$253,41,FALSE) -> 8,779 | G16: =VLOOKUP($C16,'RECAP SECT'!$G$6:$DC$253,42,FALSE) -> 143.90 | H16: =VLOOKUP($C16,'RECAP SECT'!$G$6:$DC$253,43,FALSE) -> 70% | I16: =VLOOKUP($C16,'RECAP SECT'!$G$6:$DC$253,44,FALSE) -> 17 | J16: =VLOOKUP($C16,'RECAP SECT'!$G$6:$DC$253,45,FALSE) -> 935 | K16: =VLOOKUP($C16,'RECAP SECT'!$G$6:$DC$253,46,FALSE) -> 15.33 | L16: =VLOOKUP($C16,'RECAP SECT'!$G$6:$DC$253,47,FALSE) -> 25% | M16: =VLOOKUP($C16,'RECAP SECT'!$G$6:$DC$253,48,FALSE) -> 12 | N16: =VLOOKUP($C16,'RECAP SECT'!$G$6:$DC$253,49,FALSE) -> 56% | O16: =VLOOKUP($C16,'RECAP SECT'!$G$6:$DC$253,50,FALSE) -> 55% | P16: =VLOOKUP($C16,'RECAP SECT'!$G$6:$DC$253,51,FALSE) -> 17
A17: 30 | B17: MARNE-ARDENNES | C17: 6 | D17: CHALONS EN CHAMPAGNE | E17: =VLOOKUP($C17,'RECAP SECT'!$G$6:$DC$253,3,FALSE) -> 44.6 | F17: =VLOOKUP($C17,'RECAP SECT'!$G$6:$DC$253,41,FALSE) -> 12,816 | G17: =VLOOKUP($C17,'RECAP SECT'!$G$6:$DC$253,42,FALSE) -> 287.31 | H17: =VLOOKUP($C17,'RECAP SECT'!$G$6:$DC$253,43,FALSE) -> 40% | I17: =VLOOKUP($C17,'RECAP SECT'!$G$6:$DC$253,44,FALSE) -> 14 | J17: =VLOOKUP($C17,'RECAP SECT'!$G$6:$DC$253,45,FALSE) -> 912 | K17: =VLOOKUP($C17,'RECAP SECT'!$G$6:$DC$253,46,FALSE) -> 20.44 | L17: =VLOOKUP($C17,'RECAP SECT'!$G$6:$DC$253,47,FALSE) -> 0% | M17: =VLOOKUP($C17,'RECAP SECT'!$G$6:$DC$253,48,FALSE) -> 2 | N17: =VLOOKUP($C17,'RECAP SECT'!$G$6:$DC$253,49,FALSE) -> 28% | O17: =VLOOKUP($C17,'RECAP SECT'!$G$6:$DC$253,50,FALSE) -> 26% | P17: =VLOOKUP($C17,'RECAP SECT'!$G$6:$DC$253,51,FALSE) -> 12
A18: 30 | B18: MARNE-ARDENNES | C18: 2 | D18: CHARLEVILLE MEZIERES | E18: =VLOOKUP($C18,'RECAP SECT'!$G$6:$DC$253,3,FALSE) -> 56.3 | F18: =VLOOKUP($C18,'RECAP SECT'!$G$6:$DC$253,41,FALSE) -> 25,488 | G18: =VLOOKUP($C18,'RECAP SECT'!$G$6:$DC$253,42,FALSE) -> 453.11 | H18: =VLOOKUP($C18,'RECAP SECT'!$G$6:$DC$253,43,FALSE) -> 5% | I18: =VLOOKUP($C18,'RECAP SECT'!$G$6:$DC$253,44,FALSE) -> 4 | J18: =VLOOKUP($C18,'RECAP SECT'!$G$6:$DC$253,45,FALSE) -> 1,136 | K18: =VLOOKUP($C18,'RECAP SECT'!$G$6:$DC$253,46,FALSE) -> 20.20 | L18: =VLOOKUP($C18,'RECAP SECT'!$G$6:$DC$253,47,FALSE) -> 2% | M18: =VLOOKUP($C18,'RECAP SECT'!$G$6:$DC$253,48,FALSE) -> 3 | N18: =VLOOKUP($C18,'RECAP SECT'!$G$6:$DC$253,49,FALSE) -> 4% | O18: =VLOOKUP($C18,'RECAP SECT'!$G$6:$DC$253,50,FALSE) -> 2% | P18: =VLOOKUP($C18,'RECAP SECT'!$G$6:$DC$253,51,FALSE) -> 3
A19: 30 | B19: MARNE-ARDENNES | C19: 11 | D19: REIMS | E19: =VLOOKUP($C19,'RECAP SECT'!$G$6:$DC$253,3,FALSE) -> 79.9 | F19: =VLOOKUP($C19,'RECAP SECT'!$G$6:$DC$253,41,FALSE) -> 29,140 | G19: =VLOOKUP($C19,'RECAP SECT'!$G$6:$DC$253,42,FALSE) -> 364.79 | H19: =VLOOKUP($C19,'RECAP SECT'!$G$6:$DC$253,43,FALSE) -> 23% | I19: =VLOOKUP($C19,'RECAP SECT'!$G$6:$DC$253,44,FALSE) -> 11 | J19: =VLOOKUP($C19,'RECAP SECT'!$G$6:$DC$253,45,FALSE) -> 1,220 | K19: =VLOOKUP($C19,'RECAP SECT'!$G$6:$DC$253,46,FALSE) -> 15.27 | L19: =VLOOKUP($C19,'RECAP SECT'!$G$6:$DC$253,47,FALSE) -> 26% | M19: =VLOOKUP($C19,'RECAP SECT'!$G$6:$DC$253,48,FALSE) -> 14 | N19: =VLOOKUP($C19,'RECAP SECT'!$G$6:$DC$253,49,FALSE) -> 24% | O19: =VLOOKUP($C19,'RECAP SECT'!$G$6:$DC$253,50,FALSE) -> 22% | P19: =VLOOKUP($C19,'RECAP SECT'!$G$6:$DC$253,51,FALSE) -> 10
A20: 110 | B20: MEURTHE ET MOSELLE MEUSE | C20: 26 | D20: NANCY | E20: =VLOOKUP($C20,'RECAP SECT'!$G$6:$DC$253,3,FALSE) -> 66.4 | F20: =VLOOKUP($C20,'RECAP SECT'!$G$6:$DC$253,41,FALSE) -> 31,143 | G20: =VLOOKUP($C20,'RECAP SECT'!$G$6:$DC$253,42,FALSE) -> 469.26 | H20: =VLOOKUP($C20,'RECAP SECT'!$G$6:$DC$253,43,FALSE) -> 1% | I20: =VLOOKUP($C20,'RECAP SECT'!$G$6:$DC$253,44,FALSE) -> 3 | J20: =VLOOKUP($C20,'RECAP SECT'!$G$6:$DC$253,45,FALSE) -> 1,302 | K20: =VLOOKUP($C20,'RECAP SECT'!$G$6:$DC$253,46,FALSE) -> 19.62 | L20: =VLOOKUP($C20,'RECAP SECT'!$G$6:$DC$253,47,FALSE) -> 4% | M20: =VLOOKUP($C20,'RECAP SECT'!$G$6:$DC$253,48,FALSE) -> 4 | N20: =VLOOKUP($C20,'RECAP SECT'!$G$6:$DC$253,49,FALSE) -> 2% | O20: =VLOOKUP($C20,'RECAP SECT'!$G$6:$DC$253,50,FALSE) -> 1% | P20: =VLOOKUP($C20,'RECAP SECT'!$G$6:$DC$253,51,FALSE) -> 2
A21: 110 | B21: MEURTHE ET MOSELLE MEUSE | C21: 27 | D21: PONT A MOUSSON | E21: =VLOOKUP($C21,'RECAP SECT'!$G$6:$DC$253,3,FALSE) -> 76.3 | F21: =VLOOKUP($C21,'RECAP SECT'!$G$6:$DC$253,41,FALSE) -> 35,917 | G21: =VLOOKUP($C21,'RECAP SECT'!$G$6:$DC$253,42,FALSE) -> 470.52 | H21: =VLOOKUP($C21,'RECAP SECT'!$G$6:$DC$253,43,FALSE) -> 1% | I21: =VLOOKUP($C21,'RECAP SECT'!$G$6:$DC$253,44,FALSE) -> 2 | J21: =VLOOKUP($C21,'RECAP SECT'!$G$6:$DC$253,45,FALSE) -> 1,166 | K21: =VLOOKUP($C21,'RECAP SECT'!$G$6:$DC$253,46,FALSE) -> 15.27 | L21: =VLOOKUP($C21,'RECAP SECT'!$G$6:$DC$253,47,FALSE) -> 26% | M21: =VLOOKUP($C21,'RECAP SECT'!$G$6:$DC$253,48,FALSE) -> 13 | N21: =VLOOKUP($C21,'RECAP SECT'!$G$6:$DC$253,49,FALSE) -> 9% | O21: =VLOOKUP($C21,'RECAP SECT'!$G$6:$DC$253,50,FALSE) -> 7% | P21: =VLOOKUP($C21,'RECAP SECT'!$G$6:$DC$253,51,FALSE) -> 4
A22: 110 | B22: MEURTHE ET MOSELLE MEUSE | C22: 31 | D22: VERDUN | E22: =VLOOKUP($C22,'RECAP SECT'!$G$6:$DC$253,3,FALSE) -> 54.9 | F22: =VLOOKUP($C22,'RECAP SECT'!$G$6:$DC$253,41,FALSE) -> 22,352 | G22: =VLOOKUP($C22,'RECAP SECT'!$G$6:$DC$253,42,FALSE) -> 407.37 | H22: =VLOOKUP($C22,'RECAP SECT'!$G$6:$DC$253,43,FALSE) -> 14% | I22: =VLOOKUP($C22,'RECAP SECT'!$G$6:$DC$253,44,FALSE) -> 7 | J22: =VLOOKUP($C22,'RECAP SECT'!$G$6:$DC$253,45,FALSE) -> 871 | K22: =VLOOKUP($C22,'RECAP SECT'!$G$6:$DC$253,46,FALSE) -> 15.87 | L22: =VLOOKUP($C22,'RECAP SECT'!$G$6:$DC$253,47,FALSE) -> 23% | M22: =VLOOKUP($C22,'RECAP SECT'!$G$6:$DC$253,48,FALSE) -> 10 | N22: =VLOOKUP($C22,'RECAP SECT'!$G$6:$DC$253,49,FALSE) -> 17% | O22: =VLOOKUP($C22,'RECAP SECT'!$G$6:$DC$253,50,FALSE) -> 15% | P22: =VLOOKUP($C22,'RECAP SECT'!$G$6:$DC$253,51,FALSE) -> 7
A23: 160 | B23: MOSELLE | C23: 45 | D23: METZ | E23: =VLOOKUP($C23,'RECAP SECT'!$G$6:$DC$253,3,FALSE) -> 89.0 | F23: =VLOOKUP($C23,'RECAP SECT'!$G$6:$DC$253,41,FALSE) -> 28,753 | G23: =VLOOKUP($C23,'RECAP SECT'!$G$6:$DC$253,42,FALSE) -> 322.94 | H23: =VLOOKUP($C23,'RECAP SECT'!$G$6:$DC$253,43,FALSE) -> 32% | I23: =VLOOKUP($C23,'RECAP SECT'!$G$6:$DC$253,44,FALSE) -> 12 | J23: =VLOOKUP($C23,'RECAP SECT'!$G$6:$DC$253,45,FALSE) -> 1,415 | K23: =VLOOKUP($C23,'RECAP SECT'!$G$6:$DC$253,46,FALSE) -> 15.89 | L23: =VLOOKUP($C23,'RECAP SECT'!$G$6:$DC$253,47,FALSE) -> 23% | M23: =VLOOKUP($C23,'RECAP SECT'!$G$6:$DC$253,48,FALSE) -> 9 | N23: =VLOOKUP($C23,'RECAP SECT'!$G$6:$DC$253,49,FALSE) -> 29% | O23: =VLOOKUP($C23,'RECAP SECT'!$G$6:$DC$253,50,FALSE) -> 28% | P23: =VLOOKUP($C23,'RECAP SECT'!$G$6:$DC$253,51,FALSE) -> 14
A24: 160 | B24: MOSELLE | C24: 42 | D24: MOSELLE EST | E24: =VLOOKUP($C24,'RECAP SECT'!$G$6:$DC$253,3,FALSE) -> 70.4 | F24: =VLOOKUP($C24,'RECAP SECT'!$G$6:$DC$253,41,FALSE) -> 21,563 | G24: =VLOOKUP($C24,'RECAP SECT'!$G$6:$DC$253,42,FALSE) -> 306.38 | H24: =VLOOKUP($C24,'RECAP SECT'!$G$6:$DC$253,43,FALSE) -> 36% | I24: =VLOOKUP($C24,'RECAP SECT'!$G$6:$DC$253,44,FALSE) -> 13 | J24: =VLOOKUP($C24,'RECAP SECT'!$G$6:$DC$253,45,FALSE) -> 1,301 | K24: =VLOOKUP($C24,'RECAP SECT'!$G$6:$DC$253,46,FALSE) -> 18.49 | L24: =VLOOKUP($C24,'RECAP SECT'!$G$6:$DC$253,47,FALSE) -> 10% | M24: =VLOOKUP($C24,'RECAP SECT'!$G$6:$DC$253,48,FALSE) -> 6 | N24: =VLOOKUP($C24,'RECAP SECT'!$G$6:$DC$253,49,FALSE) -> 28% | O24: =VLOOKUP($C24,'RECAP SECT'!$G$6:$DC$253,50,FALSE) -> 26% | P24: =VLOOKUP($C24,'RECAP SECT'!$G$6:$DC$253,51,FALSE) -> 13
A25: 160 | B25: MOSELLE | C25: 44 | D25: MOSELLE NORD | E25: =VLOOKUP($C25,'RECAP SECT'!$G$6:$DC$253,3,FALSE) -> 65.5 | F25: =VLOOKUP($C25,'RECAP SECT'!$G$6:$DC$253,41,FALSE) -> 25,962 | G25: =VLOOKUP($C25,'RECAP SECT'!$G$6:$DC$253,42,FALSE) -> 396.35 | H25: =VLOOKUP($C25,'RECAP SECT'!$G$6:$DC$253,43,FALSE) -> 17% | I25: =VLOOKUP($C25,'RECAP SECT'!$G$6:$DC$253,44,FALSE) -> 8 | J25: =VLOOKUP($C25,'RECAP SECT'!$G$6:$DC$253,45,FALSE) -> 1,204 | K25: =VLOOKUP($C25,'RECAP SECT'!$G$6:$DC$253,46,FALSE) -> 18.38 | L25: =VLOOKUP($C25,'RECAP SECT'!$G$6:$DC$253,47,FALSE) -> 10% | M25: =VLOOKUP($C25,'RECAP SECT'!$G$6:$DC$253,48,FALSE) -> 7 | N25: =VLOOKUP($C25,'RECAP SECT'!$G$6:$DC$253,49,FALSE) -> 15% | O25: =VLOOKUP($C25,'RECAP SECT'!$G$6:$DC$253,50,FALSE) -> 13% | P25: =VLOOKUP($C25,'RECAP SECT'!$G$6:$DC$253,51,FALSE) -> 6
A26: 80 | B26: VOSGES | C26: 57 | D26: EPINAL | E26: =VLOOKUP($C26,'RECAP SECT'!$G$6:$DC$253,3,FALSE) -> 61.2 | F26: =VLOOKUP($C26,'RECAP SECT'!$G$6:$DC$253,41,FALSE) -> 26,777 | G26: =VLOOKUP($C26,'RECAP SECT'!$G$6:$DC$253,42,FALSE) -> 437.34 | H26: =VLOOKUP($C26,'RECAP SECT'!$G$6:$DC$253,43,FALSE) -> 8% | I26: =VLOOKUP($C26,'RECAP SECT'!$G$6:$DC$253,44,FALSE) -> 5 | J26: =VLOOKUP($C26,'RECAP SECT'!$G$6:$DC$253,45,FALSE) -> 651 | K26: =VLOOKUP($C26,'RECAP SECT'!$G$6:$DC$253,46,FALSE) -> 10.63 | L26: =VLOOKUP($C26,'RECAP SECT'!$G$6:$DC$253,47,FALSE) -> 48% | M26: =VLOOKUP($C26,'RECAP SECT'!$G$6:$DC$253,48,FALSE) -> 18 | N26: =VLOOKUP($C26,'RECAP SECT'!$G$6:$DC$253,49,FALSE) -> 20% | O26: =VLOOKUP($C26,'RECAP SECT'!$G$6:$DC$253,50,FALSE) -> 18% | P26: =VLOOKUP($C26,'RECAP SECT'!$G$6:$DC$253,51,FALSE) -> 8
A27: 80 | B27: VOSGES | C27: 55 | D27: SAINT DIE | E27: =VLOOKUP($C27,'RECAP SECT'!$G$6:$DC$253,3,FALSE) -> 47.1 | F27: =VLOOKUP($C27,'RECAP SECT'!$G$6:$DC$253,41,FALSE) -> 17,386 | G27: =VLOOKUP($C27,'RECAP SECT'!$G$6:$DC$253,42,FALSE) -> 369.50 | H27: =VLOOKUP($C27,'RECAP SECT'!$G$6:$DC$253,43,FALSE) -> 22% | I27: =VLOOKUP($C27,'RECAP SECT'!$G$6:$DC$253,44,FALSE) -> 10 | J27: =VLOOKUP($C27,'RECAP SECT'!$G$6:$DC$253,45,FALSE) -> 586 | K27: =VLOOKUP($C27,'RECAP SECT'!$G$6:$DC$253,46,FALSE) -> 12.45 | L27: =VLOOKUP($C27,'RECAP SECT'!$G$6:$DC$253,47,FALSE) -> 39% | M27: =VLOOKUP($C27,'RECAP SECT'!$G$6:$DC$253,48,FALSE) -> 17 | N27: =VLOOKUP($C27,'RECAP SECT'!$G$6:$DC$253,49,FALSE) -> 27% | O27: =VLOOKUP($C27,'RECAP SECT'!$G$6:$DC$253,50,FALSE) -> 26% | P27: =VLOOKUP($C27,'RECAP SECT'!$G$6:$DC$253,51,FALSE) -> 11
A28: Total CEGEE Directions Régionales | E28: =SUM(E10:E27) -> 1140

Sheet SE_CREDIT
B1: Accueil | F1: BAROMETRE BDD - TERRITOIRES
F2: CREDITS
F3: =ACCUEIL!F7 -> 2021-07-04
F7: Engagements et ventes accessoires pondérés Immo | J7: Engagements et ventes accessoires pondérés Conso | N7: Ventes sur client non détenteur de l’univers | R7: Total Crédits
F8: =DATEMAJ!C18 -> au 04/07 | H8: coef | I8: ='RECAP DIRCOM'!BM4 -> 8% | J8: =DATEMAJ!C19 -> au 04/07 | L8: coef | M8: ='RECAP DIRCOM'!BQ4 -> 6% | N8: =DATEMAJ!C20 -> au 04/07 | P8: coef | Q8: ='RECAP DIRCOM'!BU4 -> 6% | S8: coef | T8: ='RECAP DIRCOM'!BX4 -> 20%
B9: Direction | C9: eds | D9: Territoire | E9: ="ETP perf "&DATEMAJ!$C$28 -> ETP perf 31-mai | F9: PNB | G9: PNB / ETP | H9: % Ecart au 1er | I9: Rang | J9: PNB | K9: PNB / ETP | L9: % Ecart au 1er | M9: Rang | N9: VB | O9: VB / ETP | P9: % Ecart au 1er | Q9: Rang | R9: Moyenne ecart au 1er | S9: % Ecart au 1er | T9: Rang CEGEE
A10: 50 | B10: AUBE HAUTE MARNE | C10: 21 | D10: CHAUMONT | E10: =VLOOKUP($C10,'RECAP SECT'!$G$6:$DC$253,3,FALSE) -> 33.8 | F10: =VLOOKUP($C10,'RECAP SECT'!$G$6:$DC$253,56,FALSE) -> 2,182 | G10: =VLOOKUP($C10,'RECAP SECT'!$G$6:$DC$253,57,FALSE) -> 64.57 | H10: =VLOOKUP($C10,'RECAP SECT'!$G$6:$DC$253,58,FALSE) -> 60% | I10: =VLOOKUP($C10,'RECAP SECT'!$G$6:$DC$253,59,FALSE) -> 15 | J10: =VLOOKUP($C10,'RECAP SECT'!$G$6:$DC$253,60,FALSE) -> 1,793 | K10: =VLOOKUP($C10,'RECAP SECT'!$G$6:$DC$253,61,FALSE) -> 53.06 | L10: =VLOOKUP($C10,'RECAP SECT'!$G$6:$DC$253,62,FALSE) -> 0% | M10: =VLOOKUP($C10,'RECAP SECT'!$G$6:$DC$253,63,FALSE) -> 1 | N10: =VLOOKUP($C10,'RECAP SECT'!$G$6:$DC$253,64,FALSE) -> 418 | O10: =VLOOKUP($C10,'RECAP SECT'!$G$6:$DC$253,65,FALSE) -> 12.37 | P10: =VLOOKUP($C10,'RECAP SECT'!$G$6:$DC$253,66,FALSE) -> 24% | Q10: =VLOOKUP($C10,'RECAP SECT'!$G$6:$DC$253,67,FALSE) -> 6 | R10: =VLOOKUP($C10,'RECAP SECT'!$G$6:$DC$253,68,FALSE) -> 31% | S10: =VLOOKUP($C10,'RECAP SECT'!$G$6:$DC$253,69,FALSE) -> 25% | T10: =VLOOKUP($C10,'RECAP SECT'!$G$6:$DC$253,70,FALSE) -> 8
A11: 50 | B11: AUBE HAUTE MARNE | C11: 14 | D11: TROYES | E11: =VLOOKUP($C11,'RECAP SECT'!$G$6:$DC$253,3,FALSE) -> 66.8 | F11: =VLOOKUP($C11,'RECAP SECT'!$G$6:$DC$253,56,FALSE) -> 5,147 | G11: =VLOOKUP($C11,'RECAP SECT'!$G$6:$DC$253,57,FALSE) -> 77.05 | H11: =VLOOKUP($C11,'RECAP SECT'!$G$6:$DC$253,58,FALSE) -> 53% | I11: =VLOOKUP($C11,'RECAP SECT'!$G$6:$DC$253,59,FALSE) -> 11 | J11: =VLOOKUP($C11,'RECAP SECT'!$G$6:$DC$253,60,FALSE) -> 2,642 | K11: =VLOOKUP($C11,'RECAP SECT'!$G$6:$DC$253,61,FALSE) -> 39.55 | L11: =VLOOKUP($C11,'RECAP SECT'!$G$6:$DC$253,62,FALSE) -> 25% | M11: =VLOOKUP($C11,'RECAP SECT'!$G$6:$DC$253,63,FALSE) -> 11 | N11: =VLOOKUP($C11,'RECAP SECT'!$G$6:$DC$253,64,FALSE) -> 713 | O11: =VLOOKUP($C11,'RECAP SECT'!$G$6:$DC$253,65,FALSE) -> 10.67 | P11: =VLOOKUP($C11,'RECAP SECT'!$G$6:$DC$253,66,FALSE) -> 34% | Q11: =VLOOKUP($C11,'RECAP SECT'!$G$6:$DC$253,67,FALSE) -> 12 | R11: =VLOOKUP($C11,'RECAP SECT'!$G$6:$DC$253,68,FALSE) -> 39% | S11: =VLOOKUP($C11,'RECAP SECT'!$G$6:$DC$253,69,FALSE) -> 33% | T11: =VLOOKUP($C11,'RECAP SECT'!$G$6:$DC$253,70,FALSE) -> 14
A12: 262 | B12: BAS-RHIN | C12: 5060 | D12: HAGUENAU | E12: =VLOOKUP($C12,'RECAP SECT'!$G$6:$DC$253,3,FALSE) -> 69.7 | F12: =VLOOKUP($C12,'RECAP SECT'!$G$6:$DC$253,56,FALSE) -> 4,912 | G12: =VLOOKUP($C12,'RECAP SECT'!$G$6:$DC$253,57,FALSE) -> 70.48 | H12: =VLOOKUP($C12,'RECAP SECT'!$G$6:$DC$253,58,FALSE) -> 57% | I12: =VLOOKUP($C12,'RECAP SECT'!$G$6:$DC$253,59,FALSE) -> 14 | J12: =VLOOKUP($C12,'RECAP SECT'!$G$6:$DC$253,60,FALSE) -> 2,857 | K12: =VLOOKUP($C12,'RECAP SECT'!$G$6:$DC$253,61,FALSE) -> 40.99 | L12: =VLOOKUP($C12,'RECAP SECT'!$G$6:$DC$253,62,FALSE) -> 23% | M12: =VLOOKUP($C12,'RECAP SECT'!$G$6:$DC$253,63,FALSE) -> 8 | N12: =VLOOKUP($C12,'RECAP SECT'!$G$6:$DC$253,64,FALSE) -> 586 | O12: =VLOOKUP($C12,'RECAP SECT'!$G$6:$DC$253,65,FALSE) -> 8.41 | P12: =VLOOKUP($C12,'RECAP SECT'!$G$6:$DC$253,66,FALSE) -> 48% | Q12: =VLOOKUP($C12,'RECAP SECT'!$G$6:$DC$253,67,FALSE) -> 16 | R12: =VLOOKUP($C12,'RECAP SECT'!$G$6:$DC$253,68,FALSE) -> 44% | S12: =VLOOKUP($C12,'RECAP SECT'!$G$6:$DC$253,69,FALSE) -> 38% | T12: =VLOOKUP($C12,'RECAP SECT'!$G$6:$DC$253,70,FALSE) -> 15
A13: 262 | B13: BAS-RHIN | C13: 5101 | D13: SELESTAT | E13: =VLOOKUP($C13,'RECAP SECT'!$G$6:$DC$253,3,FALSE) -> 59.7 | F13: =VLOOKUP($C13,'RECAP SECT'!$G$6:$DC$253,56,FALSE) -> 3,237 | G13: =VLOOKUP($C13,'RECAP SECT'!$G$6:$DC$253,57,FALSE) -> 54.19 | H13: =VLOOKUP($C13,'RECAP SECT'!$G$6:$DC$253,58,FALSE) -> 67% | I13: =VLOOKUP($C13,'RECAP SECT'!$G$6:$DC$253,59,FALSE) -> 17 | J13: =VLOOKUP($C13,'RECAP SECT'!$G$6:$DC$253,60,FALSE) -> 2,530 | K13: =VLOOKUP($C13,'RECAP SECT'!$G$6:$DC$253,61,FALSE) -> 42.34 | L13: =VLOOKUP($C13,'RECAP SECT'!$G$6:$DC$253,62,FALSE) -> 20% | M13: =VLOOKUP($C13,'RECAP SECT'!$G$6:$DC$253,63,FALSE) -> 6 | N13: =VLOOKUP($C13,'RECAP SECT'!$G$6:$DC$253,64,FALSE) -> 572 | O13: =VLOOKUP($C13,'RECAP SECT'!$G$6:$DC$253,65,FALSE) -> 9.57 | P13: =VLOOKUP($C13,'RECAP SECT'!$G$6:$DC$253,66,FALSE) -> 41% | Q13: =VLOOKUP($C13,'RECAP SECT'!$G$6:$DC$253,67,FALSE) -> 15 | R13: =VLOOKUP($C13,'RECAP SECT'!$G$6:$DC$253,68,FALSE) -> 45% | S13: =VLOOKUP($C13,'RECAP SECT'!$G$6:$DC$253,69,FALSE) -> 39% | T13: =VLOOKUP($C13,'RECAP SECT'!$G$6:$DC$253,70,FALSE) -> 16
A14: 262 | B14: BAS-RHIN | C14: 5006 | D14: STRASBOURG | E14: =VLOOKUP($C14,'RECAP SECT'!$G$6:$DC$253,3,FALSE) -> 75.6 | F14: =VLOOKUP($C14,'RECAP SECT'!$G$6:$DC$253,56,FALSE) -> 7,025 | G14: =VLOOKUP($C14,'RECAP SECT'!$G$6:$DC$253,57,FALSE) -> 92.88 | H14: =VLOOKUP($C14,'RECAP SECT'!$G$6:$DC$253,58,FALSE) -> 43% | I14: =VLOOKUP($C14,'RECAP SECT'!$G$6:$DC$253,59,FALSE) -> 8 | J14: =VLOOKUP($C14,'RECAP SECT'!$G$6:$DC$253,60,FALSE) -> 2,644 | K14: =VLOOKUP($C14,'RECAP SECT'!$G$6:$DC$253,61,FALSE) -> 34.95 | L14: =VLOOKUP($C14,'RECAP SECT'!$G$6:$DC$253,62,FALSE) -> 34% | M14: =VLOOKUP($C14,'RECAP SECT'!$G$6:$DC$253,63,FALSE) -> 18 | N14: =VLOOKUP($C14,'RECAP SECT'!$G$6:$DC$253,64,FALSE) -> 819 | O14: =VLOOKUP($C14,'RECAP SECT'!$G$6:$DC$253,65,FALSE) -> 10.83 | P14: =VLOOKUP($C14,'RECAP SECT'!$G$6:$DC$253,66,FALSE) -> 34% | Q14: =VLOOKUP($C14,'RECAP SECT'!$G$6:$DC$253,67,FALSE) -> 10 | R14: =VLOOKUP($C14,'RECAP SECT'!$G$6:$DC$253,68,FALSE) -> 37% | S14: =VLOOKUP($C14,'RECAP SECT'!$G$6:$DC$253,69,FALSE) -> 31% | T14: =VLOOKUP($C14,'RECAP SECT'!$G$6:$DC$253,70,FALSE) -> 12
A15: 264 | B15: HAUT-RHIN | C15: 5130 | D15: COLMAR | E15: =VLOOKUP($C15,'RECAP SECT'!$G$6:$DC$253,3,FALSE) -> 61.6 | F15: =VLOOKUP($C15,'RECAP SECT'!$G$6:$DC$253,56,FALSE) -> 3,160 | G15: =VLOOKUP($C15,'RECAP SECT'!$G$6:$DC$253,57,FALSE) -> 51.26 | H15: =VLOOKUP($C15,'RECAP SECT'!$G$6:$DC$253,58,FALSE) -> 69% | I15: =VLOOKUP($C15,'RECAP SECT'!$G$6:$DC$253,59,FALSE) -> 18 | J15: =VLOOKUP($C15,'RECAP SECT'!$G$6:$DC$253,60,FALSE) -> 2,242 | K15: =VLOOKUP($C15,'RECAP SECT'!$G$6:$DC$253,61,FALSE) -> 36.37 | L15: =VLOOKUP($C15,'RECAP SECT'!$G$6:$DC$253,62,FALSE) -> 31% | M15: =VLOOKUP($C15,'RECAP SECT'!$G$6:$DC$253,63,FALSE) -> 16 | N15: =VLOOKUP($C15,'RECAP SECT'!$G$6:$DC$253,64,FALSE) -> 497 | O15: =VLOOKUP($C15,'RECAP SECT'!$G$6:$DC$253,65,FALSE) -> 8.06 | P15: =VLOOKUP($C15,'RECAP SECT'!$G$6:$DC$253,66,FALSE) -> 51% | Q15: =VLOOKUP($C15,'RECAP SECT'!$G$6:$DC$253,67,FALSE) -> 17 | R15: =VLOOKUP($C15,'RECAP SECT'!$G$6:$DC$253,68,FALSE) -> 52% | S15: =VLOOKUP($C15,'RECAP SECT'!$G$6:$DC$253,69,FALSE) -> 46% | T15: =VLOOKUP($C15,'RECAP SECT'!$G$6:$DC$253,70,FALSE) -> 18
A16: 264 | B16: HAUT-RHIN | C16: 5169 | D16: MULHOUSE | E16: =VLOOKUP($C16,'RECAP SECT'!$G$6:$DC$253,3,FALSE) -> 61.0 | F16: =VLOOKUP($C16,'RECAP SECT'!$G$6:$DC$253,56,FALSE) -> 3,697 | G16: =VLOOKUP($C16,'RECAP SECT'!$G$6:$DC$253,57,FALSE) -> 60.60 | H16: =VLOOKUP($C16,'RECAP SECT'!$G$6:$DC$253,58,FALSE) -> 63% | I16: =VLOOKUP($C16,'RECAP SECT'!$G$6:$DC$253,59,FALSE) -> 16 | J16: =VLOOKUP($C16,'RECAP SECT'!$G$6:$DC$253,60,FALSE) -> 2,246 | K16: =VLOOKUP($C16,'RECAP SECT'!$G$6:$DC$253,61,FALSE) -> 36.82 | L16: =VLOOKUP($C16,'RECAP SECT'!$G$6:$DC$253,62,FALSE) -> 31% | M16: =VLOOKUP($C16,'RECAP SECT'!$G$6:$DC$253,63,FALSE) -> 15 | N16: =VLOOKUP($C16,'RECAP SECT'!$G$6:$DC$253,64,FALSE) -> 491 | O16: =VLOOKUP($C16,'RECAP SECT'!$G$6:$DC$253,65,FALSE) -> 8.05 | P16: =VLOOKUP($C16,'RECAP SECT'!$G$6:$DC$253,66,FALSE) -> 51% | Q16: =VLOOKUP($C16,'RECAP SECT'!$G$6:$DC$253,67,FALSE) -> 18 | R16: =VLOOKUP($C16,'RECAP SECT'!$G$6:$DC$253,68,FALSE) -> 49% | S16: =VLOOKUP($C16,'RECAP SECT'!$G$6:$DC$253,69,FALSE) -> 43% | T16: =VLOOKUP($C16,'RECAP SECT'!$G$6:$DC$253,70,FALSE) -> 17
A17: 30 | B17: MARNE-ARDENNES | C17: 6 | D17: CHALONS EN CHAMPAGNE | E17: =VLOOKUP($C17,'RECAP SECT'!$G$6:$DC$253,3,FALSE) -> 44.6 | F17: =VLOOKUP($C17,'RECAP SECT'!$G$6:$DC$253,56,FALSE) -> 4,653 | G17: =VLOOKUP($C17,'RECAP SECT'!$G$6:$DC$253,57,FALSE) -> 104.30 | H17: =VLOOKUP($C17,'RECAP SECT'!$G$6:$DC$253,58,FALSE) -> 36% | I17: =VLOOKUP($C17,'RECAP SECT'!$G$6:$DC$253,59,FALSE) -> 7 | J17: =VLOOKUP($C17,'RECAP SECT'!$G$6:$DC$253,60,FALSE) -> 1,724 | K17: =VLOOKUP($C17,'RECAP SECT'!$G$6:$DC$253,61,FALSE) -> 38.64 | L17: =VLOOKUP($C17,'RECAP SECT'!$G$6:$DC$253,62,FALSE) -> 27% | M17: =VLOOKUP($C17,'RECAP SECT'!$G$6:$DC$253,63,FALSE) -> 14 | N17: =VLOOKUP($C17,'RECAP SECT'!$G$6:$DC$253,64,FALSE) -> 545 | O17: =VLOOKUP($C17,'RECAP SECT'!$G$6:$DC$253,65,FALSE) -> 12.22 | P17: =VLOOKUP($C17,'RECAP SECT'!$G$6:$DC$253,66,FALSE) -> 25% | Q17: =VLOOKUP($C17,'RECAP SECT'!$G$6:$DC$253,67,FALSE) -> 7 | R17: =VLOOKUP($C17,'RECAP SECT'!$G$6:$DC$253,68,FALSE) -> 30% | S17: =VLOOKUP($C17,'RECAP SECT'!$G$6:$DC$253,69,FALSE) -> 24% | T17: =VLOOKUP($C17,'RECAP SECT'!$G$6:$DC$253,70,FALSE) -> 7
A18: 30 | B18: MARNE-ARDENNES | C18: 2 | D18: CHARLEVILLE MEZIERES | E18: =VLOOKUP($C18,'RECAP SECT'!$G$6:$DC$253,3,FALSE) -> 56.3 | F18: =VLOOKUP($C18,'RECAP SECT'!$G$6:$DC$253,56,FALSE) -> 7,094 | G18: =VLOOKUP($C18,'RECAP SECT'!$G$6:$DC$253,57,FALSE) -> 126.11 | H18: =VLOOKUP($C18,'RECAP SECT'!$G$6:$DC$253,58,FALSE) -> 23% | I18: =VLOOKUP($C18,'RECAP SECT'!$G$6:$DC$253,59,FALSE) -> 4 | J18: =VLOOKUP($C18,'RECAP SECT'!$G$6:$DC$253,60,FALSE) -> 2,251 | K18: =VLOOKUP($C18,'RECAP SECT'!$G$6:$DC$253,61,FALSE) -> 40.02 | L18: =VLOOKUP($C18,'RECAP SECT'!$G$6:$DC$253,62,FALSE) -> 25% | M18: =VLOOKUP($C18,'RECAP SECT'!$G$6:$DC$253,63,FALSE) -> 10 | N18: =VLOOKUP($C18,'RECAP SECT'!$G$6:$DC$253,64,FALSE) -> 762 | O18: =VLOOKUP($C18,'RECAP SECT'!$G$6:$DC$253,65,FALSE) -> 13.55 | P18: =VLOOKUP($C18,'RECAP SECT'!$G$6:$DC$253,66,FALSE) -> 17% | Q18: =VLOOKUP($C18,'RECAP SECT'!$G$6:$DC$253,67,FALSE) -> 4 | R18: =VLOOKUP($C18,'RECAP SECT'!$G$6:$DC$253,68,FALSE) -> 21% | S18: =VLOOKUP($C18,'RECAP SECT'!$G$6:$DC$253,69,FALSE) -> 15% | T18: =VLOOKUP($C18,'RECAP SECT'!$G$6:$DC$253,70,FALSE) -> 4
A19: 30 | B19: MARNE-ARDENNES | C19: 11 | D19: REIMS | E19: =VLOOKUP($C19,'RECAP SECT'!$G$6:$DC$253,3,FALSE) -> 79.9 | F19: =VLOOKUP($C19,'RECAP SECT'!$G$6:$DC$253,56,FALSE) -> 12,351 | G19: =VLOOKUP($C19,'RECAP SECT'!$G$6:$DC$253,57,FALSE) -> 154.61 | H19: =VLOOKUP($C19,'RECAP SECT'!$G$6:$DC$253,58,FALSE) -> 5% | I19: =VLOOKUP($C19,'RECAP SECT'!$G$6:$DC$253,59,FALSE) -> 2 | J19: =VLOOKUP($C19,'RECAP SECT'!$G$6:$DC$253,60,FALSE) -> 3,109 | K19: =VLOOKUP($C19,'RECAP SECT'!$G$6:$DC$253,61,FALSE) -> 38.92 | L19: =VLOOKUP($C19,'RECAP SECT'!$G$6:$DC$253,62,FALSE) -> 27% | M19: =VLOOKUP($C19,'RECAP SECT'!$G$6:$DC$253,63,FALSE) -> 13 | N19: =VLOOKUP($C19,'RECAP SECT'!$G$6:$DC$253,64,FALSE) -> 1,113 | O19: =VLOOKUP($C19,'RECAP SECT'!$G$6:$DC$253,65,FALSE) -> 13.93 | P19: =VLOOKUP($C19,'RECAP SECT'!$G$6:$DC$253,66,FALSE) -> 14% | Q19: =VLOOKUP($C19,'RECAP SECT'!$G$6:$DC$253,67,FALSE) -> 3 | R19: =VLOOKUP($C19,'RECAP SECT'!$G$6:$DC$253,68,FALSE) -> 14% | S19: =VLOOKUP($C19,'RECAP SECT'!$G$6:$DC$253,69,FALSE) -> 8% | T19: =VLOOKUP($C19,'RECAP SECT'!$G$6:$DC$253,70,FALSE) -> 3
A20: 110 | B20: MEURTHE ET MOSELLE MEUSE | C20: 26 | D20: NANCY | E20: =VLOOKUP($C20,'RECAP SECT'!$G$6:$DC$253,3,FALSE) -> 66.4 | F20: =VLOOKUP($C20,'RECAP SECT'!$G$6:$DC$253,56,FALSE) -> 10,803 | G20: =VLOOKUP($C20,'RECAP SECT'!$G$6:$DC$253,57,FALSE) -> 162.79 | H20: =VLOOKUP($C20,'RECAP SECT'!$G$6:$DC$253,58,FALSE) -> 0% | I20: =VLOOKUP($C20,'RECAP SECT'!$G$6:$DC$253,59,FALSE) -> 1 | J20: =VLOOKUP($C20,'RECAP SECT'!$G$6:$DC$253,60,FALSE) -> 2,766 | K20: =VLOOKUP($C20,'RECAP SECT'!$G$6:$DC$253,61,FALSE) -> 41.68 | L20: =VLOOKUP($C20,'RECAP SECT'!$G$6:$DC$253,62,FALSE) -> 21% | M20: =VLOOKUP($C20,'RECAP SECT'!$G$6:$DC$253,63,FALSE) -> 7 | N20: =VLOOKUP($C20,'RECAP SECT'!$G$6:$DC$253,64,FALSE) -> 1,081 | O20: =VLOOKUP($C20,'RECAP SECT'!$G$6:$DC$253,65,FALSE) -> 16.29 | P20: =VLOOKUP($C20,'RECAP SECT'!$G$6:$DC$253,66,FALSE) -> 0% | Q20: =VLOOKUP($C20,'RECAP SECT'!$G$6:$DC$253,67,FALSE) -> 1 | R20: =VLOOKUP($C20,'RECAP SECT'!$G$6:$DC$253,68,FALSE) -> 6% | S20: =VLOOKUP($C20,'RECAP SECT'!$G$6:$DC$253,69,FALSE) -> 0% | T20: =VLOOKUP($C20,'RECAP SECT'!$G$6:$DC$253,70,FALSE) -> 1
A21: 110 | B21: MEURTHE ET MOSELLE MEUSE | C21: 27 | D21: PONT A MOUSSON | E21: =VLOOKUP($C21,'RECAP SECT'!$G$6:$DC$253,3,FALSE) -> 76.3 | F21: =VLOOKUP($C21,'RECAP SECT'!$G$6:$DC$253,56,FALSE) -> 11,774 | G21: =VLOOKUP($C21,'RECAP SECT'!$G$6:$DC$253,57,FALSE) -> 154.24 | H21: =VLOOKUP($C21,'RECAP SECT'!$G$6:$DC$253,58,FALSE) -> 5% | I21: =VLOOKUP($C21,'RECAP SECT'!$G$6:$DC$253,59,FALSE) -> 3 | J21: =VLOOKUP($C21,'RECAP SECT'!$G$6:$DC$253,60,FALSE) -> 3,112 | K21: =VLOOKUP($C21,'RECAP SECT'!$G$6:$DC$253,61,FALSE) -> 40.76 | L21: =VLOOKUP($C21,'RECAP SECT'!$G$6:$DC$253,62,FALSE) -> 23% | M21: =VLOOKUP($C21,'RECAP SECT'!$G$6:$DC$253,63,FALSE) -> 9 | N21: =VLOOKUP($C21,'RECAP SECT'!$G$6:$DC$253,64,FALSE) -> 1,098 | O21: =VLOOKUP($C21,'RECAP SECT'!$G$6:$DC$253,65,FALSE) -> 14.38 | P21: =VLOOKUP($C21,'RECAP SECT'!$G$6:$DC$253,66,FALSE) -> 12% | Q21: =VLOOKUP($C21,'RECAP SECT'!$G$6:$DC$253,67,FALSE) -> 2 | R21: =VLOOKUP($C21,'RECAP SECT'!$G$6:$DC$253,68,FALSE) -> 13% | S21: =VLOOKUP($C21,'RECAP SECT'!$G$6:$DC$253,69,FALSE) -> 6% | T21: =VLOOKUP($C21,'RECAP SECT'!$G$6:$DC$253,70,FALSE) -> 2
A22: 110 | B22: MEURTHE ET MOSELLE MEUSE | C22: 31 | D22: VERDUN | E22: =VLOOKUP($C22,'RECAP SECT'!$G$6:$DC$253,3,FALSE) -> 54.9 | F22: =VLOOKUP($C22,'RECAP SECT'!$G$6:$DC$253,56,FALSE) -> 5,865 | G22: =VLOOKUP($C22,'RECAP SECT'!$G$6:$DC$253,57,FALSE) -> 106.88 | H22: =VLOOKUP($C22,'RECAP SECT'!$G$6:$DC$253,58,FALSE) -> 34% | I22: =VLOOKUP($C22,'RECAP SECT'!$G$6:$DC$253,59,FALSE) -> 5 | J22: =VLOOKUP($C22,'RECAP SECT'!$G$6:$DC$253,60,FALSE) -> 2,659 | K22: =VLOOKUP($C22,'RECAP SECT'!$G$6:$DC$253,61,FALSE) -> 48.47 | L22: =VLOOKUP($C22,'RECAP SECT'!$G$6:$DC$253,62,FALSE) -> 9% | M22: =VLOOKUP($C22,'RECAP SECT'!$G$6:$DC$253,63,FALSE) -> 2 | N22: =VLOOKUP($C22,'RECAP SECT'!$G$6:$DC$253,64,FALSE) -> 688 | O22: =VLOOKUP($C22,'RECAP SECT'!$G$6:$DC$253,65,FALSE) -> 12.54 | P22: =VLOOKUP($C22,'RECAP SECT'!$G$6:$DC$253,66,FALSE) -> 23% | Q22: =VLOOKUP($C22,'RECAP SECT'!$G$6:$DC$253,67,FALSE) -> 5 | R22: =VLOOKUP($C22,'RECAP SECT'!$G$6:$DC$253,68,FALSE) -> 23% | S22: =VLOOKUP($C22,'RECAP SECT'!$G$6:$DC$253,69,FALSE) -> 17% | T22: =VLOOKUP($C22,'RECAP SECT'!$G$6:$DC$253,70,FALSE) -> 5
A23: 160 | B23: MOSELLE | C23: 45 | D23: METZ | E23: =VLOOKUP($C23,'RECAP SECT'!$G$6:$DC$253,3,FALSE) -> 89.0 | F23: =VLOOKUP($C23,'RECAP SECT'!$G$6:$DC$253,56,FALSE) -> 7,797 | G23: =VLOOKUP($C23,'RECAP SECT'!$G$6:$DC$253,57,FALSE) -> 87.57 | H23: =VLOOKUP($C23,'RECAP SECT'!$G$6:$DC$253,58,FALSE) -> 46% | I23: =VLOOKUP($C23,'RECAP SECT'!$G$6:$DC$253,59,FALSE) -> 9 | J23: =VLOOKUP($C23,'RECAP SECT'!$G$6:$DC$253,60,FALSE) -> 3,477 | K23: =VLOOKUP($C23,'RECAP SECT'!$G$6:$DC$253,61,FALSE) -> 39.06 | L23: =VLOOKUP($C23,'RECAP SECT'!$G$6:$DC$253,62,FALSE) -> 26% | M23: =VLOOKUP($C23,'RECAP SECT'!$G$6:$DC$253,63,FALSE) -> 12 | N23: =VLOOKUP($C23,'RECAP SECT'!$G$6:$DC$253,64,FALSE) -> 894 | O23: =VLOOKUP($C23,'RECAP SECT'!$G$6:$DC$253,65,FALSE) -> 10.04 | P23: =VLOOKUP($C23,'RECAP SECT'!$G$6:$DC$253,66,FALSE) -> 38% | Q23: =VLOOKUP($C23,'RECAP SECT'!$G$6:$DC$253,67,FALSE) -> 13 | R23: =VLOOKUP($C23,'RECAP SECT'!$G$6:$DC$253,68,FALSE) -> 38% | S23: =VLOOKUP($C23,'RECAP SECT'!$G$6:$DC$253,69,FALSE) -> 31% | T23: =VLOOKUP($C23,'RECAP SECT'!$G$6:$DC$253,70,FALSE) -> 13
A24: 160 | B24: MOSELLE | C24: 42 | D24: MOSELLE EST | E24: =VLOOKUP($C24,'RECAP SECT'!$G$6:$DC$253,3,FALSE) -> 70.4 | F24: =VLOOKUP($C24,'RECAP SECT'!$G$6:$DC$253,56,FALSE) -> 5,264 | G24: =VLOOKUP($C24,'RECAP SECT'!$G$6:$DC$253,57,FALSE) -> 74.79 | H24: =VLOOKUP($C24,'RECAP SECT'!$G$6:$DC$253,58,FALSE) -> 54% | I24: =VLOOKUP($C24,'RECAP SECT'!$G$6:$DC$253,59,FALSE) -> 13 | J24: =VLOOKUP($C24,'RECAP SECT'!$G$6:$DC$253,60,FALSE) -> 3,252 | K24: =VLOOKUP($C24,'RECAP SECT'!$G$6:$DC$253,61,FALSE) -> 46.21 | L24: =VLOOKUP($C24,'RECAP SECT'!$G$6:$DC$253,62,FALSE) -> 13% | M24: =VLOOKUP($C24,'RECAP SECT'!$G$6:$DC$253,63,FALSE) -> 3 | N24: =VLOOKUP($C24,'RECAP SECT'!$G$6:$DC$253,64,FALSE) -> 691 | O24: =VLOOKUP($C24,'RECAP SECT'!$G$6:$DC$253,65,FALSE) -> 9.82 | P24: =VLOOKUP($C24,'RECAP SECT'!$G$6:$DC$253,66,FALSE) -> 40% | Q24: =VLOOKUP($C24,'RECAP SECT'!$G$6:$DC$253,67,FALSE) -> 14 | R24: =VLOOKUP($C24,'RECAP SECT'!$G$6:$DC$253,68,FALSE) -> 37% | S24: =VLOOKUP($C24,'RECAP SECT'!$G$6:$DC$253,69,FALSE) -> 31% | T24: =VLOOKUP($C24,'RECAP SECT'!$G$6:$DC$253,70,FALSE) -> 11
A25: 160 | B25: MOSELLE | C25: 44 | D25: MOSELLE NORD | E25: =VLOOKUP($C25,'RECAP SECT'!$G$6:$DC$253,3,FALSE) -> 65.5 | F25: =VLOOKUP($C25,'RECAP SECT'!$G$6:$DC$253,56,FALSE) -> 6,959 | G25: =VLOOKUP($C25,'RECAP SECT'!$G$6:$DC$253,57,FALSE) -> 106.23 | H25: =VLOOKUP($C25,'RECAP SECT'!$G$6:$DC$253,58,FALSE) -> 35% | I25: =VLOOKUP($C25,'RECAP SECT'!$G$6:$DC$253,59,FALSE) -> 6 | J25: =VLOOKUP($C25,'RECAP SECT'!$G$6:$DC$253,60,FALSE) -> 2,886 | K25: =VLOOKUP($C25,'RECAP SECT'!$G$6:$DC$253,61,FALSE) -> 44.06 | L25: =VLOOKUP($C25,'RECAP SECT'!$G$6:$DC$253,62,FALSE) -> 17% | M25: =VLOOKUP($C25,'RECAP SECT'!$G$6:$DC$253,63,FALSE) -> 4 | N25: =VLOOKUP($C25,'RECAP SECT'!$G$6:$DC$253,64,FALSE) -> 713 | O25: =VLOOKUP($C25,'RECAP SECT'!$G$6:$DC$253,65,FALSE) -> 10.89 | P25: =VLOOKUP($C25,'RECAP SECT'!$G$6:$DC$253,66,FALSE) -> 33% | Q25: =VLOOKUP($C25,'RECAP SECT'!$G$6:$DC$253,67,FALSE) -> 9 | R25: =VLOOKUP($C25,'RECAP SECT'!$G$6:$DC$253,68,FALSE) -> 29% | S25: =VLOOKUP($C25,'RECAP SECT'!$G$6:$DC$253,69,FALSE) -> 23% | T25: =VLOOKUP($C25,'RECAP SECT'!$G$6:$DC$253,70,FALSE) -> 6
A26: 80 | B26: VOSGES | C26: 57 | D26: EPINAL | E26: =VLOOKUP($C26,'RECAP SECT'!$G$6:$DC$253,3,FALSE) -> 61.2 | F26: =VLOOKUP($C26,'RECAP SECT'!$G$6:$DC$253,56,FALSE) -> 5,053 | G26: =VLOOKUP($C26,'RECAP SECT'!$G$6:$DC$253,57,FALSE) -> 82.53 | H26: =VLOOKUP($C26,'RECAP SECT'!$G$6:$DC$253,58,FALSE) -> 49% | I26: =VLOOKUP($C26,'RECAP SECT'!$G$6:$DC$253,59,FALSE) -> 10 | J26: =VLOOKUP($C26,'RECAP SECT'!$G$6:$DC$253,60,FALSE) -> 2,219 | K26: =VLOOKUP($C26,'RECAP SECT'!$G$6:$DC$253,61,FALSE) -> 36.24 | L26: =VLOOKUP($C26,'RECAP SECT'!$G$6:$DC$253,62,FALSE) -> 32% | M26: =VLOOKUP($C26,'RECAP SECT'!$G$6:$DC$253,63,FALSE) -> 17 | N26: =VLOOKUP($C26,'RECAP SECT'!$G$6:$DC$253,64,FALSE) -> 740 | O26: =VLOOKUP($C26,'RECAP SECT'!$G$6:$DC$253,65,FALSE) -> 12.09 | P26: =VLOOKUP($C26,'RECAP SECT'!$G$6:$DC$253,66,FALSE) -> 26% | Q26: =VLOOKUP($C26,'RECAP SECT'!$G$6:$DC$253,67,FALSE) -> 8 | R26: =VLOOKUP($C26,'RECAP SECT'!$G$6:$DC$253,68,FALSE) -> 37% | S26: =VLOOKUP($C26,'RECAP SECT'!$G$6:$DC$253,69,FALSE) -> 31% | T26: =VLOOKUP($C26,'RECAP SECT'!$G$6:$DC$253,70,FALSE) -> 9
A27: 80 | B27: VOSGES | C27: 55 | D27: SAINT DIE | E27: =VLOOKUP($C27,'RECAP SECT'!$G$6:$DC$253,3,FALSE) -> 47.1 | F27: =VLOOKUP($C27,'RECAP SECT'!$G$6:$DC$253,56,FALSE) -> 3,617 | G27: =VLOOKUP($C27,'RECAP SECT'!$G$6:$DC$253,57,FALSE) -> 76.87 | H27: =VLOOKUP($C27,'RECAP SECT'!$G$6:$DC$253,58,FALSE) -> 53% | I27: =VLOOKUP($C27,'RECAP SECT'!$G$6:$DC$253,59,FALSE) -> 12 | J27: =VLOOKUP($C27,'RECAP SECT'!$G$6:$DC$253,60,FALSE) -> 2,019 | K27: =VLOOKUP($C27,'RECAP SECT'!$G$6:$DC$253,61,FALSE) -> 42.91 | L27: =VLOOKUP($C27,'RECAP SECT'!$G$6:$DC$253,62,FALSE) -> 19% | M27: =VLOOKUP($C27,'RECAP SECT'!$G$6:$DC$253,63,FALSE) -> 5 | N27: =VLOOKUP($C27,'RECAP SECT'!$G$6:$DC$253,64,FALSE) -> 505 | O27: =VLOOKUP($C27,'RECAP SECT'!$G$6:$DC$253,65,FALSE) -> 10.73 | P27: =VLOOKUP($C27,'RECAP SECT'!$G$6:$DC$253,66,FALSE) -> 34% | Q27: =VLOOKUP($C27,'RECAP SECT'!$G$6:$DC$253,67,FALSE) -> 11 | R27: =VLOOKUP($C27,'RECAP SECT'!$G$6:$DC$253,68,FALSE) -> 37% | S27: =VLOOKUP($C27,'RECAP SECT'!$G$6:$DC$253,69,FALSE) -> 31% | T27: =VLOOKUP($C27,'RECAP SECT'!$G$6:$DC$253,70,FALSE) -> 10
A28: Total CEGEE Directions Régionales | E28: =SUM(E10:E27) -> 1140

Sheet SE_IARD
B1: Accueil | F1: BAROMETRE BDD - TERRITOIRES
F2: IARD ET PREVOYANCE
F3: =ACCUEIL!F7 -> 2021-07-04
F7: Ventes Nettes produits pondérés | J7: Ventes sur client non détenteur de l’univers | N7: Total IARD Prévoyance
F8: =DATEMAJ!C23 -> au 04/07 | H8: coef | I8: ='RECAP DIRCOM'!CF4 -> 14% | J8: =DATEMAJ!C24 -> au 04/07 | L8: coef | M8: ='RECAP DIRCOM'!CJ4 -> 6% | O8: coef | P8: ='RECAP DIRCOM'!CM4 -> 20%
B9: Direction | C9: eds | D9: Territoire | E9: ="ETP perf "&DATEMAJ!$C$28 -> ETP perf 31-mai | F9: VN | G9: VN / ETP | H9: % Ecart au 1er | I9: Rang | J9: VB | K9: VB / ETP | L9: % Ecart au 1er | M9: Rang | N9: Moyenne ecart au 1er | O9: % Ecart au 1er | P9: Rang CEGEE
A10: 50 | B10: AUBE HAUTE MARNE | C10: 21 | D10: CHAUMONT | E10: =VLOOKUP($C10,'RECAP SECT'!$G$6:$DC$253,3,FALSE) -> 33.8 | F10: =VLOOKUP($C10,'RECAP SECT'!$G$6:$DC$253,75,FALSE) -> 5,358 | G10: =VLOOKUP($C10,'RECAP SECT'!$G$6:$DC$253,76,FALSE) -> 158.56 | H10: =VLOOKUP($C10,'RECAP SECT'!$G$6:$DC$253,77,FALSE) -> 20% | I10: =VLOOKUP($C10,'RECAP SECT'!$G$6:$DC$253,78,FALSE) -> 10 | J10: =VLOOKUP($C10,'RECAP SECT'!$G$6:$DC$253,79,FALSE) -> 955 | K10: =VLOOKUP($C10,'RECAP SECT'!$G$6:$DC$253,80,FALSE) -> 28.26 | L10: =VLOOKUP($C10,'RECAP SECT'!$G$6:$DC$253,81,FALSE) -> 15% | M10: =VLOOKUP($C10,'RECAP SECT'!$G$6:$DC$253,82,FALSE) -> 4 | N10: =VLOOKUP($C10,'RECAP SECT'!$G$6:$DC$253,83,FALSE) -> 18% | O10: =VLOOKUP($C10,'RECAP SECT'!$G$6:$DC$253,84,FALSE) -> 14% | P10: =VLOOKUP($C10,'RECAP SECT'!$G$6:$DC$253,85,FALSE) -> 7
A11: 50 | B11: AUBE HAUTE MARNE | C11: 14 | D11: TROYES | E11: =VLOOKUP($C11,'RECAP SECT'!$G$6:$DC$253,3,FALSE) -> 66.8 | F11: =VLOOKUP($C11,'RECAP SECT'!$G$6:$DC$253,75,FALSE) -> 6,849 | G11: =VLOOKUP($C11,'RECAP SECT'!$G$6:$DC$253,76,FALSE) -> 102.54 | H11: =VLOOKUP($C11,'RECAP SECT'!$G$6:$DC$253,77,FALSE) -> 48% | I11: =VLOOKUP($C11,'RECAP SECT'!$G$6:$DC$253,78,FALSE) -> 17 | J11: =VLOOKUP($C11,'RECAP SECT'!$G$6:$DC$253,79,FALSE) -> 1,591 | K11: =VLOOKUP($C11,'RECAP SECT'!$G$6:$DC$253,80,FALSE) -> 23.82 | L11: =VLOOKUP($C11,'RECAP SECT'!$G$6:$DC$253,81,FALSE) -> 28% | M11: =VLOOKUP($C11,'RECAP SECT'!$G$6:$DC$253,82,FALSE) -> 14 | N11: =VLOOKUP($C11,'RECAP SECT'!$G$6:$DC$253,83,FALSE) -> 42% | O11: =VLOOKUP($C11,'RECAP SECT'!$G$6:$DC$253,84,FALSE) -> 38% | P11: =VLOOKUP($C11,'RECAP SECT'!$G$6:$DC$253,85,FALSE) -> 17
A12: 262 | B12: BAS-RHIN | C12: 5060 | D12: HAGUENAU | E12: =VLOOKUP($C12,'RECAP SECT'!$G$6:$DC$253,3,FALSE) -> 69.7 | F12: =VLOOKUP($C12,'RECAP SECT'!$G$6:$DC$253,75,FALSE) -> 8,211 | G12: =VLOOKUP($C12,'RECAP SECT'!$G$6:$DC$253,76,FALSE) -> 117.82 | H12: =VLOOKUP($C12,'RECAP SECT'!$G$6:$DC$253,77,FALSE) -> 40% | I12: =VLOOKUP($C12,'RECAP SECT'!$G$6:$DC$253,78,FALSE) -> 16 | J12: =VLOOKUP($C12,'RECAP SECT'!$G$6:$DC$253,79,FALSE) -> 1,484 | K12: =VLOOKUP($C12,'RECAP SECT'!$G$6:$DC$253,80,FALSE) -> 21.29 | L12: =VLOOKUP($C12,'RECAP SECT'!$G$6:$DC$253,81,FALSE) -> 36% | M12: =VLOOKUP($C12,'RECAP SECT'!$G$6:$DC$253,82,FALSE) -> 17 | N12: =VLOOKUP($C12,'RECAP SECT'!$G$6:$DC$253,83,FALSE) -> 39% | O12: =VLOOKUP($C12,'RECAP SECT'!$G$6:$DC$253,84,FALSE) -> 35% | P12: =VLOOKUP($C12,'RECAP SECT'!$G$6:$DC$253,85,FALSE) -> 16
A13: 262 | B13: BAS-RHIN | C13: 5101 | D13: SELESTAT | E13: =VLOOKUP($C13,'RECAP SECT'!$G$6:$DC$253,3,FALSE) -> 59.7 | F13: =VLOOKUP($C13,'RECAP SECT'!$G$6:$DC$253,75,FALSE) -> 9,591 | G13: =VLOOKUP($C13,'RECAP SECT'!$G$6:$DC$253,76,FALSE) -> 160.54 | H13: =VLOOKUP($C13,'RECAP SECT'!$G$6:$DC$253,77,FALSE) -> 19% | I13: =VLOOKUP($C13,'RECAP SECT'!$G$6:$DC$253,78,FALSE) -> 8 | J13: =VLOOKUP($C13,'RECAP SECT'!$G$6:$DC$253,79,FALSE) -> 1,472 | K13: =VLOOKUP($C13,'RECAP SECT'!$G$6:$DC$253,80,FALSE) -> 24.64 | L13: =VLOOKUP($C13,'RECAP SECT'!$G$6:$DC$253,81,FALSE) -> 26% | M13: =VLOOKUP($C13,'RECAP SECT'!$G$6:$DC$253,82,FALSE) -> 12 | N13: =VLOOKUP($C13,'RECAP SECT'!$G$6:$DC$253,83,FALSE) -> 21% | O13: =VLOOKUP($C13,'RECAP SECT'!$G$6:$DC$253,84,FALSE) -> 17% | P13: =VLOOKUP($C13,'RECAP SECT'!$G$6:$DC$253,85,FALSE) -> 11
A14: 262 | B14: BAS-RHIN | C14: 5006 | D14: STRASBOURG | E14: =VLOOKUP($C14,'RECAP SECT'!$G$6:$DC$253,3,FALSE) -> 75.6 | F14: =VLOOKUP($C14,'RECAP SECT'!$G$6:$DC$253,75,FALSE) -> 14,701 | G14: =VLOOKUP($C14,'RECAP SECT'!$G$6:$DC$253,76,FALSE) -> 194.37 | H14: =VLOOKUP($C14,'RECAP SECT'!$G$6:$DC$253,77,FALSE) -> 2% | I14: =VLOOKUP($C14,'RECAP SECT'!$G$6:$DC$253,78,FALSE) -> 2 | J14: =VLOOKUP($C14,'RECAP SECT'!$G$6:$DC$253,79,FALSE) -> 2,109 | K14: =VLOOKUP($C14,'RECAP SECT'!$G$6:$DC$253,80,FALSE) -> 27.88 | L14: =VLOOKUP($C14,'RECAP SECT'!$G$6:$DC$253,81,FALSE) -> 16% | M14: =VLOOKUP($C14,'RECAP SECT'!$G$6:$DC$253,82,FALSE) -> 5 | N14: =VLOOKUP($C14,'RECAP SECT'!$G$6:$DC$253,83,FALSE) -> 6% | O14: =VLOOKUP($C14,'RECAP SECT'!$G$6:$DC$253,84,FALSE) -> 2% | P14: =VLOOKUP($C14,'RECAP SECT'!$G$6:$DC$253,85,FALSE) -> 2
A15: 264 | B15: HAUT-RHIN | C15: 5130 | D15: COLMAR | E15: =VLOOKUP($C15,'RECAP SECT'!$G$6:$DC$253,3,FALSE) -> 61.6 | F15: =VLOOKUP($C15,'RECAP SECT'!$G$6:$DC$253,75,FALSE) -> 8,902 | G15: =VLOOKUP($C15,'RECAP SECT'!$G$6:$DC$253,76,FALSE) -> 144.41 | H15: =VLOOKUP($C15,'RECAP SECT'!$G$6:$DC$253,77,FALSE) -> 27% | I15: =VLOOKUP($C15,'RECAP SECT'!$G$6:$DC$253,78,FALSE) -> 12 | J15: =VLOOKUP($C15,'RECAP SECT'!$G$6:$DC$253,79,FALSE) -> 1,321 | K15: =VLOOKUP($C15,'RECAP SECT'!$G$6:$DC$253,80,FALSE) -> 21.43 | L15: =VLOOKUP($C15,'RECAP SECT'!$G$6:$DC$253,81,FALSE) -> 35% | M15: =VLOOKUP($C15,'RECAP SECT'!$G$6:$DC$253,82,FALSE) -> 16 | N15: =VLOOKUP($C15,'RECAP SECT'!$G$6:$DC$253,83,FALSE) -> 29% | O15: =VLOOKUP($C15,'RECAP SECT'!$G$6:$DC$253,84,FALSE) -> 26% | P15: =VLOOKUP($C15,'RECAP SECT'!$G$6:$DC$253,85,FALSE) -> 13
A16: 264 | B16: HAUT-RHIN | C16: 5169 | D16: MULHOUSE | E16: =VLOOKUP($C16,'RECAP SECT'!$G$6:$DC$253,3,FALSE) -> 61.0 | F16: =VLOOKUP($C16,'RECAP SECT'!$G$6:$DC$253,75,FALSE) -> 5,111 | G16: =VLOOKUP($C16,'RECAP SECT'!$G$6:$DC$253,76,FALSE) -> 83.78 | H16: =VLOOKUP($C16,'RECAP SECT'!$G$6:$DC$253,77,FALSE) -> 58% | I16: =VLOOKUP($C16,'RECAP SECT'!$G$6:$DC$253,78,FALSE) -> 18 | J16: =VLOOKUP($C16,'RECAP SECT'!$G$6:$DC$253,79,FALSE) -> 1,453 | K16: =VLOOKUP($C16,'RECAP SECT'!$G$6:$DC$253,80,FALSE) -> 23.82 | L16: =VLOOKUP($C16,'RECAP SECT'!$G$6:$DC$253,81,FALSE) -> 28% | M16: =VLOOKUP($C16,'RECAP SECT'!$G$6:$DC$253,82,FALSE) -> 15 | N16: =VLOOKUP($C16,'RECAP SECT'!$G$6:$DC$253,83,FALSE) -> 49% | O16: =VLOOKUP($C16,'RECAP SECT'!$G$6:$DC$253,84,FALSE) -> 45% | P16: =VLOOKUP($C16,'RECAP SECT'!$G$6:$DC$253,85,FALSE) -> 18
A17: 30 | B17: MARNE-ARDENNES | C17: 6 | D17: CHALONS EN CHAMPAGNE | E17: =VLOOKUP($C17,'RECAP SECT'!$G$6:$DC$253,3,FALSE) -> 44.6 | F17: =VLOOKUP($C17,'RECAP SECT'!$G$6:$DC$253,75,FALSE) -> 7,469 | G17: =VLOOKUP($C17,'RECAP SECT'!$G$6:$DC$253,76,FALSE) -> 167.43 | H17: =VLOOKUP($C17,'RECAP SECT'!$G$6:$DC$253,77,FALSE) -> 15% | I17: =VLOOKUP($C17,'RECAP SECT'!$G$6:$DC$253,78,FALSE) -> 6 | J17: =VLOOKUP($C17,'RECAP SECT'!$G$6:$DC$253,79,FALSE) -> 1,235 | K17: =VLOOKUP($C17,'RECAP SECT'!$G$6:$DC$253,80,FALSE) -> 27.69 | L17: =VLOOKUP($C17,'RECAP SECT'!$G$6:$DC$253,81,FALSE) -> 16% | M17: =VLOOKUP($C17,'RECAP SECT'!$G$6:$DC$253,82,FALSE) -> 6 | N17: =VLOOKUP($C17,'RECAP SECT'!$G$6:$DC$253,83,FALSE) -> 16% | O17: =VLOOKUP($C17,'RECAP SECT'!$G$6:$DC$253,84,FALSE) -> 12% | P17: =VLOOKUP($C17,'RECAP SECT'!$G$6:$DC$253,85,FALSE) -> 5
A18: 30 | B18: MARNE-ARDENNES | C18: 2 | D18: CHARLEVILLE MEZIERES | E18: =VLOOKUP($C18,'RECAP SECT'!$G$6:$DC$253,3,FALSE) -> 56.3 | F18: =VLOOKUP($C18,'RECAP SECT'!$G$6:$DC$253,75,FALSE) -> 11,107 | G18: =VLOOKUP($C18,'RECAP SECT'!$G$6:$DC$253,76,FALSE) -> 197.45 | H18: =VLOOKUP($C18,'RECAP SECT'!$G$6:$DC$253,77,FALSE) -> 0% | I18: =VLOOKUP($C18,'RECAP SECT'!$G$6:$DC$253,78,FALSE) -> 1 | J18: =VLOOKUP($C18,'RECAP SECT'!$G$6:$DC$253,79,FALSE) -> 1,496 | K18: =VLOOKUP($C18,'RECAP SECT'!$G$6:$DC$253,80,FALSE) -> 26.59 | L18: =VLOOKUP($C18,'RECAP SECT'!$G$6:$DC$253,81,FALSE) -> 20% | M18: =VLOOKUP($C18,'RECAP SECT'!$G$6:$DC$253,82,FALSE) -> 8 | N18: =VLOOKUP($C18,'RECAP SECT'!$G$6:$DC$253,83,FALSE) -> 6% | O18: =VLOOKUP($C18,'RECAP SECT'!$G$6:$DC$253,84,FALSE) -> 2% | P18: =VLOOKUP($C18,'RECAP SECT'!$G$6:$DC$253,85,FALSE) -> 3
A19: 30 | B19: MARNE-ARDENNES | C19: 11 | D19: REIMS | E19: =VLOOKUP($C19,'RECAP SECT'!$G$6:$DC$253,3,FALSE) -> 79.9 | F19: =VLOOKUP($C19,'RECAP SECT'!$G$6:$DC$253,75,FALSE) -> 14,482 | G19: =VLOOKUP($C19,'RECAP SECT'!$G$6:$DC$253,76,FALSE) -> 181.30 | H19: =VLOOKUP($C19,'RECAP SECT'!$G$6:$DC$253,77,FALSE) -> 8% | I19: =VLOOKUP($C19,'RECAP SECT'!$G$6:$DC$253,78,FALSE) -> 4 | J19: =VLOOKUP($C19,'RECAP SECT'!$G$6:$DC$253,79,FALSE) -> 2,390 | K19: =VLOOKUP($C19,'RECAP SECT'!$G$6:$DC$253,80,FALSE) -> 29.92 | L19: =VLOOKUP($C19,'RECAP SECT'!$G$6:$DC$253,81,FALSE) -> 10% | M19: =VLOOKUP($C19,'RECAP SECT'!$G$6:$DC$253,82,FALSE) -> 2 | N19: =VLOOKUP($C19,'RECAP SECT'!$G$6:$DC$253,83,FALSE) -> 9% | O19: =VLOOKUP($C19,'RECAP SECT'!$G$6:$DC$253,84,FALSE) -> 5% | P19: =VLOOKUP($C19,'RECAP SECT'!$G$6:$DC$253,85,FALSE) -> 4
A20: 110 | B20: MEURTHE ET MOSELLE MEUSE | C20: 26 | D20: NANCY | E20: =VLOOKUP($C20,'RECAP SECT'!$G$6:$DC$253,3,FALSE) -> 66.4 | F20: =VLOOKUP($C20,'RECAP SECT'!$G$6:$DC$253,75,FALSE) -> 12,380 | G20: =VLOOKUP($C20,'RECAP SECT'!$G$6:$DC$253,76,FALSE) -> 186.55 | H20: =VLOOKUP($C20,'RECAP SECT'!$G$6:$DC$253,77,FALSE) -> 6% | I20: =VLOOKUP($C20,'RECAP SECT'!$G$6:$DC$253,78,FALSE) -> 3 | J20: =VLOOKUP($C20,'RECAP SECT'!$G$6:$DC$253,79,FALSE) -> 2,196 | K20: =VLOOKUP($C20,'RECAP SECT'!$G$6:$DC$253,80,FALSE) -> 33.09 | L20: =VLOOKUP($C20,'RECAP SECT'!$G$6:$DC$253,81,FALSE) -> 0% | M20: =VLOOKUP($C20,'RECAP SECT'!$G$6:$DC$253,82,FALSE) -> 1 | N20: =VLOOKUP($C20,'RECAP SECT'!$G$6:$DC$253,83,FALSE) -> 4% | O20: =VLOOKUP($C20,'RECAP SECT'!$G$6:$DC$253,84,FALSE) -> 0% | P20: =VLOOKUP($C20,'RECAP SECT'!$G$6:$DC$253,85,FALSE) -> 1
A21: 110 | B21: MEURTHE ET MOSELLE MEUSE | C21: 27 | D21: PONT A MOUSSON | E21: =VLOOKUP($C21,'RECAP SECT'!$G$6:$DC$253,3,FALSE) -> 76.3 | F21: =VLOOKUP($C21,'RECAP SECT'!$G$6:$DC$253,75,FALSE) -> 11,589 | G21: =VLOOKUP($C21,'RECAP SECT'!$G$6:$DC$253,76,FALSE) -> 151.82 | H21: =VLOOKUP($C21,'RECAP SECT'!$G$6:$DC$253,77,FALSE) -> 23% | I21: =VLOOKUP($C21,'RECAP SECT'!$G$6:$DC$253,78,FALSE) -> 11 | J21: =VLOOKUP($C21,'RECAP SECT'!$G$6:$DC$253,79,FALSE) -> 2,283 | K21: =VLOOKUP($C21,'RECAP SECT'!$G$6:$DC$253,80,FALSE) -> 29.91 | L21: =VLOOKUP($C21,'RECAP SECT'!$G$6:$DC$253,81,FALSE) -> 10% | M21: =VLOOKUP($C21,'RECAP SECT'!$G$6:$DC$253,82,FALSE) -> 3 | N21: =VLOOKUP($C21,'RECAP SECT'!$G$6:$DC$253,83,FALSE) -> 19% | O21: =VLOOKUP($C21,'RECAP SECT'!$G$6:$DC$253,84,FALSE) -> 15% | P21: =VLOOKUP($C21,'RECAP SECT'!$G$6:$DC$253,85,FALSE) -> 9
A22: 110 | B22: MEURTHE ET MOSELLE MEUSE | C22: 31 | D22: VERDUN | E22: =VLOOKUP($C22,'RECAP SECT'!$G$6:$DC$253,3,FALSE) -> 54.9 | F22: =VLOOKUP($C22,'RECAP SECT'!$G$6:$DC$253,75,FALSE) -> 7,658 | G22: =VLOOKUP($C22,'RECAP SECT'!$G$6:$DC$253,76,FALSE) -> 139.58 | H22: =VLOOKUP($C22,'RECAP SECT'!$G$6:$DC$253,77,FALSE) -> 29% | I22: =VLOOKUP($C22,'RECAP SECT'!$G$6:$DC$253,78,FALSE) -> 13 | J22: =VLOOKUP($C22,'RECAP SECT'!$G$6:$DC$253,79,FALSE) -> 1,458 | K22: =VLOOKUP($C22,'RECAP SECT'!$G$6:$DC$253,80,FALSE) -> 26.57 | L22: =VLOOKUP($C22,'RECAP SECT'!$G$6:$DC$253,81,FALSE) -> 20% | M22: =VLOOKUP($C22,'RECAP SECT'!$G$6:$DC$253,82,FALSE) -> 9 | N22: =VLOOKUP($C22,'RECAP SECT'!$G$6:$DC$253,83,FALSE) -> 26% | O22: =VLOOKUP($C22,'RECAP SECT'!$G$6:$DC$253,84,FALSE) -> 23% | P22: =VLOOKUP($C22,'RECAP SECT'!$G$6:$DC$253,85,FALSE) -> 12
A23: 160 | B23: MOSELLE | C23: 45 | D23: METZ | E23: =VLOOKUP($C23,'RECAP SECT'!$G$6:$DC$253,3,FALSE) -> 89.0 | F23: =VLOOKUP($C23,'RECAP SECT'!$G$6:$DC$253,75,FALSE) -> 11,761 | G23: =VLOOKUP($C23,'RECAP SECT'!$G$6:$DC$253,76,FALSE) -> 132.09 | H23: =VLOOKUP($C23,'RECAP SECT'!$G$6:$DC$253,77,FALSE) -> 33% | I23: =VLOOKUP($C23,'RECAP SECT'!$G$6:$DC$253,78,FALSE) -> 14 | J23: =VLOOKUP($C23,'RECAP SECT'!$G$6:$DC$253,79,FALSE) -> 2,240 | K23: =VLOOKUP($C23,'RECAP SECT'!$G$6:$DC$253,80,FALSE) -> 25.16 | L23: =VLOOKUP($C23,'RECAP SECT'!$G$6:$DC$253,81,FALSE) -> 24% | M23: =VLOOKUP($C23,'RECAP SECT'!$G$6:$DC$253,82,FALSE) -> 10 | N23: =VLOOKUP($C23,'RECAP SECT'!$G$6:$DC$253,83,FALSE) -> 30% | O23: =VLOOKUP($C23,'RECAP SECT'!$G$6:$DC$253,84,FALSE) -> 26% | P23: =VLOOKUP($C23,'RECAP SECT'!$G$6:$DC$253,85,FALSE) -> 14
A24: 160 | B24: MOSELLE | C24: 42 | D24: MOSELLE EST | E24: =VLOOKUP($C24,'RECAP SECT'!$G$6:$DC$253,3,FALSE) -> 70.4 | F24: =VLOOKUP($C24,'RECAP SECT'!$G$6:$DC$253,75,FALSE) -> 11,533 | G24: =VLOOKUP($C24,'RECAP SECT'!$G$6:$DC$253,76,FALSE) -> 163.87 | H24: =VLOOKUP($C24,'RECAP SECT'!$G$6:$DC$253,77,FALSE) -> 17% | I24: =VLOOKUP($C24,'RECAP SECT'!$G$6:$DC$253,78,FALSE) -> 7 | J24: =VLOOKUP($C24,'RECAP SECT'!$G$6:$DC$253,79,FALSE) -> 1,770 | K24: =VLOOKUP($C24,'RECAP SECT'!$G$6:$DC$253,80,FALSE) -> 25.15 | L24: =VLOOKUP($C24,'RECAP SECT'!$G$6:$DC$253,81,FALSE) -> 24% | M24: =VLOOKUP($C24,'RECAP SECT'!$G$6:$DC$253,82,FALSE) -> 11 | N24: =VLOOKUP($C24,'RECAP SECT'!$G$6:$DC$253,83,FALSE) -> 19% | O24: =VLOOKUP($C24,'RECAP SECT'!$G$6:$DC$253,84,FALSE) -> 15% | P24: =VLOOKUP($C24,'RECAP SECT'!$G$6:$DC$253,85,FALSE) -> 10
A25: 160 | B25: MOSELLE | C25: 44 | D25: MOSELLE NORD | E25: =VLOOKUP($C25,'RECAP SECT'!$G$6:$DC$253,3,FALSE) -> 65.5 | F25: =VLOOKUP($C25,'RECAP SECT'!$G$6:$DC$253,75,FALSE) -> 10,500 | G25: =VLOOKUP($C25,'RECAP SECT'!$G$6:$DC$253,76,FALSE) -> 160.30 | H25: =VLOOKUP($C25,'RECAP SECT'!$G$6:$DC$253,77,FALSE) -> 19% | I25: =VLOOKUP($C25,'RECAP SECT'!$G$6:$DC$253,78,FALSE) -> 9 | J25: =VLOOKUP($C25,'RECAP SECT'!$G$6:$DC$253,79,FALSE) -> 1,761 | K25: =VLOOKUP($C25,'RECAP SECT'!$G$6:$DC$253,80,FALSE) -> 26.88 | L25: =VLOOKUP($C25,'RECAP SECT'!$G$6:$DC$253,81,FALSE) -> 19% | M25: =VLOOKUP($C25,'RECAP SECT'!$G$6:$DC$253,82,FALSE) -> 7 | N25: =VLOOKUP($C25,'RECAP SECT'!$G$6:$DC$253,83,FALSE) -> 19% | O25: =VLOOKUP($C25,'RECAP SECT'!$G$6:$DC$253,84,FALSE) -> 15% | P25: =VLOOKUP($C25,'RECAP SECT'!$G$6:$DC$253,85,FALSE) -> 8
A26: 80 | B26: VOSGES | C26: 57 | D26: EPINAL | E26: =VLOOKUP($C26,'RECAP SECT'!$G$6:$DC$253,3,FALSE) -> 61.2 | F26: =VLOOKUP($C26,'RECAP SECT'!$G$6:$DC$253,75,FALSE) -> 10,411 | G26: =VLOOKUP($C26,'RECAP SECT'!$G$6:$DC$253,76,FALSE) -> 170.04 | H26: =VLOOKUP($C26,'RECAP SECT'!$G$6:$DC$253,77,FALSE) -> 14% | I26: =VLOOKUP($C26,'RECAP SECT'!$G$6:$DC$253,78,FALSE) -> 5 | J26: =VLOOKUP($C26,'RECAP SECT'!$G$6:$DC$253,79,FALSE) -> 1,467 | K26: =VLOOKUP($C26,'RECAP SECT'!$G$6:$DC$253,80,FALSE) -> 23.96 | L26: =VLOOKUP($C26,'RECAP SECT'!$G$6:$DC$253,81,FALSE) -> 28% | M26: =VLOOKUP($C26,'RECAP SECT'!$G$6:$DC$253,82,FALSE) -> 13 | N26: =VLOOKUP($C26,'RECAP SECT'!$G$6:$DC$253,83,FALSE) -> 18% | O26: =VLOOKUP($C26,'RECAP SECT'!$G$6:$DC$253,84,FALSE) -> 14% | P26: =VLOOKUP($C26,'RECAP SECT'!$G$6:$DC$253,85,FALSE) -> 6
A27: 80 | B27: VOSGES | C27: 55 | D27: SAINT DIE | E27: =VLOOKUP($C27,'RECAP SECT'!$G$6:$DC$253,3,FALSE) -> 47.1 | F27: =VLOOKUP($C27,'RECAP SECT'!$G$6:$DC$253,75,FALSE) -> 6,138 | G27: =VLOOKUP($C27,'RECAP SECT'!$G$6:$DC$253,76,FALSE) -> 130.45 | H27: =VLOOKUP($C27,'RECAP SECT'!$G$6:$DC$253,77,FALSE) -> 34% | I27: =VLOOKUP($C27,'RECAP SECT'!$G$6:$DC$253,78,FALSE) -> 15 | J27: =VLOOKUP($C27,'RECAP SECT'!$G$6:$DC$253,79,FALSE) -> 993 | K27: =VLOOKUP($C27,'RECAP SECT'!$G$6:$DC$253,80,FALSE) -> 21.10 | L27: =VLOOKUP($C27,'RECAP SECT'!$G$6:$DC$253,81,FALSE) -> 36% | M27: =VLOOKUP($C27,'RECAP SECT'!$G$6:$DC$253,82,FALSE) -> 18 | N27: =VLOOKUP($C27,'RECAP SECT'!$G$6:$DC$253,83,FALSE) -> 35% | O27: =VLOOKUP($C27,'RECAP SECT'!$G$6:$DC$253,84,FALSE) -> 31% | P27: =VLOOKUP($C27,'RECAP SECT'!$G$6:$DC$253,85,FALSE) -> 15
A28: Total CEGEE Directions Régionales | E28: =SUM(E10:E27) -> 1140

Sheet SE_SATISFACTION
B1: Accueil | F1: BAROMETRE BDD - TERRITOIRES
F2: SATISFACTION
F3: =ACCUEIL!F7 -> 2021-07-04
F7: NPS à froid (SAE) | I7: NPS à chaud (QHD) | L7: Total Satisfaction Clients
F8: =DATEMAJ!E4 -> au 31/05 | G8: coef | H8: ='RECAP DIRCOM'!M4 -> 10% | I8: =DATEMAJ!C5 -> au 31/05 | J8: coef | K8: ='RECAP DIRCOM'!P4 -> 10% | M8: coef | N8: ='RECAP DIRCOM'!S4 -> 20%
B9: Direction | C9: eds | D9: Territoire | E9: ="ETP perf "&DATEMAJ!$C$28 -> ETP perf 31-mai | G9: % Ecart au 1er | H9: Rang | J9: % Ecart au 1er | K9: Rang | L9: Moyenne ecart au 1er | M9: % Ecart au 1er | N9: Rang CEGEE
A10: 50 | B10: AUBE HAUTE MARNE | C10: 21 | D10: CHAUMONT | E10: =VLOOKUP($C10,'RECAP SECT'!$G$6:$DC$253,3,FALSE) -> 33.8 | F10: =VLOOKUP($C10,'RECAP SECT'!$G$6:$DC$253,5,FALSE) -> 10 | G10: =VLOOKUP($C10,'RECAP SECT'!$G$6:$DC$253,6,FALSE) -> 58% | H10: =VLOOKUP($C10,'RECAP SECT'!$G$6:$DC$253,7,FALSE) -> 12 | I10: =VLOOKUP($C10,'RECAP SECT'!$G$6:$DC$253,8,FALSE) -> 63% | J10: =VLOOKUP($C10,'RECAP SECT'!$G$6:$DC$253,9,FALSE) -> 14% | K10: =VLOOKUP($C10,'RECAP SECT'!$G$6:$DC$253,10,FALSE) -> 5 | L10: =VLOOKUP($C10,'RECAP SECT'!$G$6:$DC$253,11,FALSE) -> 36% | M10: =VLOOKUP($C10,'RECAP SECT'!$G$6:$DC$253,12,FALSE) -> 32% | N10: =VLOOKUP($C10,'RECAP SECT'!$G$6:$DC$253,13,FALSE) -> 11
A11: 50 | B11: AUBE HAUTE MARNE | C11: 14 | D11: TROYES | E11: =VLOOKUP($C11,'RECAP SECT'!$G$6:$DC$253,3,FALSE) -> 66.8 | F11: =VLOOKUP($C11,'RECAP SECT'!$G$6:$DC$253,5,FALSE) -> 19 | G11: =VLOOKUP($C11,'RECAP SECT'!$G$6:$DC$253,6,FALSE) -> 21% | H11: =VLOOKUP($C11,'RECAP SECT'!$G$6:$DC$253,7,FALSE) -> 5 | I11: =VLOOKUP($C11,'RECAP SECT'!$G$6:$DC$253,8,FALSE) -> 53% | J11: =VLOOKUP($C11,'RECAP SECT'!$G$6:$DC$253,9,FALSE) -> 28% | K11: =VLOOKUP($C11,'RECAP SECT'!$G$6:$DC$253,10,FALSE) -> 13 | L11: =VLOOKUP($C11,'RECAP SECT'!$G$6:$DC$253,11,FALSE) -> 24% | M11: =VLOOKUP($C11,'RECAP SECT'!$G$6:$DC$253,12,FALSE) -> 20% | N11: =VLOOKUP($C11,'RECAP SECT'!$G$6:$DC$253,13,FALSE) -> 6
A12: 262 | B12: BAS-RHIN | C12: 5060 | D12: HAGUENAU | E12: =VLOOKUP($C12,'RECAP SECT'!$G$6:$DC$253,3,FALSE) -> 69.7 | F12: =VLOOKUP($C12,'RECAP SECT'!$G$6:$DC$253,5,FALSE) -> 12 | G12: =VLOOKUP($C12,'RECAP SECT'!$G$6:$DC$253,6,FALSE) -> 50% | H12: =VLOOKUP($C12,'RECAP SECT'!$G$6:$DC$253,7,FALSE) -> 9 | I12: =VLOOKUP($C12,'RECAP SECT'!$G$6:$DC$253,8,FALSE) -> 54% | J12: =VLOOKUP($C12,'RECAP SECT'!$G$6:$DC$253,9,FALSE) -> 25% | K12: =VLOOKUP($C12,'RECAP SECT'!$G$6:$DC$253,10,FALSE) -> 11 | L12: =VLOOKUP($C12,'RECAP SECT'!$G$6:$DC$253,11,FALSE) -> 38% | M12: =VLOOKUP($C12,'RECAP SECT'!$G$6:$DC$253,12,FALSE) -> 34% | N12: =VLOOKUP($C12,'RECAP SECT'!$G$6:$DC$253,13,FALSE) -> 13
A13: 262 | B13: BAS-RHIN | C13: 5101 | D13: SELESTAT | E13: =VLOOKUP($C13,'RECAP SECT'!$G$6:$DC$253,3,FALSE) -> 59.7 | F13: =VLOOKUP($C13,'RECAP SECT'!$G$6:$DC$253,5,FALSE) -> 10 | G13: =VLOOKUP($C13,'RECAP SECT'!$G$6:$DC$253,6,FALSE) -> 58% | H13: =VLOOKUP($C13,'RECAP SECT'!$G$6:$DC$253,7,FALSE) -> 12 | I13: =VLOOKUP($C13,'RECAP SECT'!$G$6:$DC$253,8,FALSE) -> 53% | J13: =VLOOKUP($C13,'RECAP SECT'!$G$6:$DC$253,9,FALSE) -> 28% | K13: =VLOOKUP($C13,'RECAP SECT'!$G$6:$DC$253,10,FALSE) -> 12 | L13: =VLOOKUP($C13,'RECAP SECT'!$G$6:$DC$253,11,FALSE) -> 43% | M13: =VLOOKUP($C13,'RECAP SECT'!$G$6:$DC$253,12,FALSE) -> 39% | N13: =VLOOKUP($C13,'RECAP SECT'!$G$6:$DC$253,13,FALSE) -> 14
A14: 262 | B14: BAS-RHIN | C14: 5006 | D14: STRASBOURG | E14: =VLOOKUP($C14,'RECAP SECT'!$G$6:$DC$253,3,FALSE) -> 75.6 | F14: =VLOOKUP($C14,'RECAP SECT'!$G$6:$DC$253,5,FALSE) -> 14 | G14: =VLOOKUP($C14,'RECAP SECT'!$G$6:$DC$253,6,FALSE) -> 42% | H14: =VLOOKUP($C14,'RECAP SECT'!$G$6:$DC$253,7,FALSE) -> 8 | I14: =VLOOKUP($C14,'RECAP SECT'!$G$6:$DC$253,8,FALSE) -> 51% | J14: =VLOOKUP($C14,'RECAP SECT'!$G$6:$DC$253,9,FALSE) -> 30% | K14: =VLOOKUP($C14,'RECAP SECT'!$G$6:$DC$253,10,FALSE) -> 15 | L14: =VLOOKUP($C14,'RECAP SECT'!$G$6:$DC$253,11,FALSE) -> 36% | M14: =VLOOKUP($C14,'RECAP SECT'!$G$6:$DC$253,12,FALSE) -> 32% | N14: =VLOOKUP($C14,'RECAP SECT'!$G$6:$DC$253,13,FALSE) -> 10
A15: 264 | B15: HAUT-RHIN | C15: 5130 | D15: COLMAR | E15: =VLOOKUP($C15,'RECAP SECT'!$G$6:$DC$253,3,FALSE) -> 61.6 | F15: =VLOOKUP($C15,'RECAP SECT'!$G$6:$DC$253,5,FALSE) -> 6 | G15: =VLOOKUP($C15,'RECAP SECT'!$G$6:$DC$253,6,FALSE) -> 75% | H15: =VLOOKUP($C15,'RECAP SECT'!$G$6:$DC$253,7,FALSE) -> 17 | I15: =VLOOKUP($C15,'RECAP SECT'!$G$6:$DC$253,8,FALSE) -> 47% | J15: =VLOOKUP($C15,'RECAP SECT'!$G$6:$DC$253,9,FALSE) -> 35% | K15: =VLOOKUP($C15,'RECAP SECT'!$G$6:$DC$253,10,FALSE) -> 17 | L15: =VLOOKUP($C15,'RECAP SECT'!$G$6:$DC$253,11,FALSE) -> 55% | M15: =VLOOKUP($C15,'RECAP SECT'!$G$6:$DC$253,12,FALSE) -> 51% | N15: =VLOOKUP($C15,'RECAP SECT'!$G$6:$DC$253,13,FALSE) -> 17
A16: 264 | B16: HAUT-RHIN | C16: 5169 | D16: MULHOUSE | E16: =VLOOKUP($C16,'RECAP SECT'!$G$6:$DC$253,3,FALSE) -> 61.0 | F16: =VLOOKUP($C16,'RECAP SECT'!$G$6:$DC$253,5,FALSE) -> 6 | G16: =VLOOKUP($C16,'RECAP SECT'!$G$6:$DC$253,6,FALSE) -> 75% | H16: =VLOOKUP($C16,'RECAP SECT'!$G$6:$DC$253,7,FALSE) -> 17 | I16: =VLOOKUP($C16,'RECAP SECT'!$G$6:$DC$253,8,FALSE) -> 31% | J16: =VLOOKUP($C16,'RECAP SECT'!$G$6:$DC$253,9,FALSE) -> 58% | K16: =VLOOKUP($C16,'RECAP SECT'!$G$6:$DC$253,10,FALSE) -> 18 | L16: =VLOOKUP($C16,'RECAP SECT'!$G$6:$DC$253,11,FALSE) -> 66% | M16: =VLOOKUP($C16,'RECAP SECT'!$G$6:$DC$253,12,FALSE) -> 63% | N16: =VLOOKUP($C16,'RECAP SECT'!$G$6:$DC$253,13,FALSE) -> 18
A17: 30 | B17: MARNE-ARDENNES | C17: 6 | D17: CHALONS EN CHAMPAGNE | E17: =VLOOKUP($C17,'RECAP SECT'!$G$6:$DC$253,3,FALSE) -> 44.6 | F17: =VLOOKUP($C17,'RECAP SECT'!$G$6:$DC$253,5,FALSE) -> 21 | G17: =VLOOKUP($C17,'RECAP SECT'!$G$6:$DC$253,6,FALSE) -> 13% | H17: =VLOOKUP($C17,'RECAP SECT'!$G$6:$DC$253,7,FALSE) -> 3 | I17: =VLOOKUP($C17,'RECAP SECT'!$G$6:$DC$253,8,FALSE) -> 73% | J17: =VLOOKUP($C17,'RECAP SECT'!$G$6:$DC$253,9,FALSE) -> 0% | K17: =VLOOKUP($C17,'RECAP SECT'!$G$6:$DC$253,10,FALSE) -> 1 | L17: =VLOOKUP($C17,'RECAP SECT'!$G$6:$DC$253,11,FALSE) -> 6% | M17: =VLOOKUP($C17,'RECAP SECT'!$G$6:$DC$253,12,FALSE) -> 2% | N17: =VLOOKUP($C17,'RECAP SECT'!$G$6:$DC$253,13,FALSE) -> 3
A18: 30 | B18: MARNE-ARDENNES | C18: 2 | D18: CHARLEVILLE MEZIERES | E18: =VLOOKUP($C18,'RECAP SECT'!$G$6:$DC$253,3,FALSE) -> 56.3 | F18: =VLOOKUP($C18,'RECAP SECT'!$G$6:$DC$253,5,FALSE) -> 21 | G18: =VLOOKUP($C18,'RECAP SECT'!$G$6:$DC$253,6,FALSE) -> 13% | H18: =VLOOKUP($C18,'RECAP SECT'!$G$6:$DC$253,7,FALSE) -> 3 | I18: =VLOOKUP($C18,'RECAP SECT'!$G$6:$DC$253,8,FALSE) -> 66% | J18: =VLOOKUP($C18,'RECAP SECT'!$G$6:$DC$253,9,FALSE) -> 9% | K18: =VLOOKUP($C18,'RECAP SECT'!$G$6:$DC$253,10,FALSE) -> 4 | L18: =VLOOKUP($C18,'RECAP SECT'!$G$6:$DC$253,11,FALSE) -> 11% | M18: =VLOOKUP($C18,'RECAP SECT'!$G$6:$DC$253,12,FALSE) -> 7% | N18: =VLOOKUP($C18,'RECAP SECT'!$G$6:$DC$253,13,FALSE) -> 4
A19: 30 | B19: MARNE-ARDENNES | C19: 11 | D19: REIMS | E19: =VLOOKUP($C19,'RECAP SECT'!$G$6:$DC$253,3,FALSE) -> 79.9 | F19: =VLOOKUP($C19,'RECAP SECT'!$G$6:$DC$253,5,FALSE) -> 10 | G19: =VLOOKUP($C19,'RECAP SECT'!$G$6:$DC$253,6,FALSE) -> 58% | H19: =VLOOKUP($C19,'RECAP SECT'!$G$6:$DC$253,7,FALSE) -> 12 | I19: =VLOOKUP($C19,'RECAP SECT'!$G$6:$DC$253,8,FALSE) -> 61% | J19: =VLOOKUP($C19,'RECAP SECT'!$G$6:$DC$253,9,FALSE) -> 17% | K19: =VLOOKUP($C19,'RECAP SECT'!$G$6:$DC$253,10,FALSE) -> 8 | L19: =VLOOKUP($C19,'RECAP SECT'!$G$6:$DC$253,11,FALSE) -> 37% | M19: =VLOOKUP($C19,'RECAP SECT'!$G$6:$DC$253,12,FALSE) -> 34% | N19: =VLOOKUP($C19,'RECAP SECT'!$G$6:$DC$253,13,FALSE) -> 12
A20: 110 | B20: MEURTHE ET MOSELLE MEUSE | C20: 26 | D20: NANCY | E20: =VLOOKUP($C20,'RECAP SECT'!$G$6:$DC$253,3,FALSE) -> 66.4 | F20: =VLOOKUP($C20,'RECAP SECT'!$G$6:$DC$253,5,FALSE) -> 12 | G20: =VLOOKUP($C20,'RECAP SECT'!$G$6:$DC$253,6,FALSE) -> 50% | H20: =VLOOKUP($C20,'RECAP SECT'!$G$6:$DC$253,7,FALSE) -> 9 | I20: =VLOOKUP($C20,'RECAP SECT'!$G$6:$DC$253,8,FALSE) -> 57% | J20: =VLOOKUP($C20,'RECAP SECT'!$G$6:$DC$253,9,FALSE) -> 21% | K20: =VLOOKUP($C20,'RECAP SECT'!$G$6:$DC$253,10,FALSE) -> 10 | L20: =VLOOKUP($C20,'RECAP SECT'!$G$6:$DC$253,11,FALSE) -> 36% | M20: =VLOOKUP($C20,'RECAP SECT'!$G$6:$DC$253,12,FALSE) -> 32% | N20: =VLOOKUP($C20,'RECAP SECT'!$G$6:$DC$253,13,FALSE) -> 9
A21: 110 | B21: MEURTHE ET MOSELLE MEUSE | C21: 27 | D21: PONT A MOUSSON | E21: =VLOOKUP($C21,'RECAP SECT'!$G$6:$DC$253,3,FALSE) -> 76.3 | F21: =VLOOKUP($C21,'RECAP SECT'!$G$6:$DC$253,5,FALSE) -> 9 | G21: =VLOOKUP($C21,'RECAP SECT'!$G$6:$DC$253,6,FALSE) -> 63% | H21: =VLOOKUP($C21,'RECAP SECT'!$G$6:$DC$253,7,FALSE) -> 15 | I21: =VLOOKUP($C21,'RECAP SECT'!$G$6:$DC$253,8,FALSE) -> 51% | J21: =VLOOKUP($C21,'RECAP SECT'!$G$6:$DC$253,9,FALSE) -> 31% | K21: =VLOOKUP($C21,'RECAP SECT'!$G$6:$DC$253,10,FALSE) -> 16 | L21: =VLOOKUP($C21,'RECAP SECT'!$G$6:$DC$253,11,FALSE) -> 47% | M21: =VLOOKUP($C21,'RECAP SECT'!$G$6:$DC$253,12,FALSE) -> 43% | N21: =VLOOKUP($C21,'RECAP SECT'!$G$6:$DC$253,13,FALSE) -> 15
A22: 110 | B22: MEURTHE ET MOSELLE MEUSE | C22: 31 | D22: VERDUN | E22: =VLOOKUP($C22,'RECAP SECT'!$G$6:$DC$253,3,FALSE) -> 54.9 | F22: =VLOOKUP($C22,'RECAP SECT'!$G$6:$DC$253,5,FALSE) -> 19 | G22: =VLOOKUP($C22,'RECAP SECT'!$G$6:$DC$253,6,FALSE) -> 21% | H22: =VLOOKUP($C22,'RECAP SECT'!$G$6:$DC$253,7,FALSE) -> 5 | I22: =VLOOKUP($C22,'RECAP SECT'!$G$6:$DC$253,8,FALSE) -> 62% | J22: =VLOOKUP($C22,'RECAP SECT'!$G$6:$DC$253,9,FALSE) -> 15% | K22: =VLOOKUP($C22,'RECAP SECT'!$G$6:$DC$253,10,FALSE) -> 6 | L22: =VLOOKUP($C22,'RECAP SECT'!$G$6:$DC$253,11,FALSE) -> 18% | M22: =VLOOKUP($C22,'RECAP SECT'!$G$6:$DC$253,12,FALSE) -> 14% | N22: =VLOOKUP($C22,'RECAP SECT'!$G$6:$DC$253,13,FALSE) -> 5
A23: 160 | B23: MOSELLE | C23: 45 | D23: METZ | E23: =VLOOKUP($C23,'RECAP SECT'!$G$6:$DC$253,3,FALSE) -> 89.0 | F23: =VLOOKUP($C23,'RECAP SECT'!$G$6:$DC$253,5,FALSE) -> 12 | G23: =VLOOKUP($C23,'RECAP SECT'!$G$6:$DC$253,6,FALSE) -> 50% | H23: =VLOOKUP($C23,'RECAP SECT'!$G$6:$DC$253,7,FALSE) -> 9 | I23: =VLOOKUP($C23,'RECAP SECT'!$G$6:$DC$253,8,FALSE) -> 58% | J23: =VLOOKUP($C23,'RECAP SECT'!$G$6:$DC$253,9,FALSE) -> 21% | K23: =VLOOKUP($C23,'RECAP SECT'!$G$6:$DC$253,10,FALSE) -> 9 | L23: =VLOOKUP($C23,'RECAP SECT'!$G$6:$DC$253,11,FALSE) -> 36% | M23: =VLOOKUP($C23,'RECAP SECT'!$G$6:$DC$253,12,FALSE) -> 32% | N23: =VLOOKUP($C23,'RECAP SECT'!$G$6:$DC$253,13,FALSE) -> 8
A24: 160 | B24: MOSELLE | C24: 42 | D24: MOSELLE EST | E24: =VLOOKUP($C24,'RECAP SECT'!$G$6:$DC$253,3,FALSE) -> 70.4 | F24: =VLOOKUP($C24,'RECAP SECT'!$G$6:$DC$253,5,FALSE) -> 16 | G24: =VLOOKUP($C24,'RECAP SECT'!$G$6:$DC$253,6,FALSE) -> 33% | H24: =VLOOKUP($C24,'RECAP SECT'!$G$6:$DC$253,7,FALSE) -> 7 | I24: =VLOOKUP($C24,'RECAP SECT'!$G$6:$DC$253,8,FALSE) -> 62% | J24: =VLOOKUP($C24,'RECAP SECT'!$G$6:$DC$253,9,FALSE) -> 16% | K24: =VLOOKUP($C24,'RECAP SECT'!$G$6:$DC$253,10,FALSE) -> 7 | L24: =VLOOKUP($C24,'RECAP SECT'!$G$6:$DC$253,11,FALSE) -> 24% | M24: =VLOOKUP($C24,'RECAP SECT'!$G$6:$DC$253,12,FALSE) -> 21% | N24: =VLOOKUP($C24,'RECAP SECT'!$G$6:$DC$253,13,FALSE) -> 7
A25: 160 | B25: MOSELLE | C25: 44 | D25: MOSELLE NORD | E25: =VLOOKUP($C25,'RECAP SECT'!$G$6:$DC$253,3,FALSE) -> 65.5 | F25: =VLOOKUP($C25,'RECAP SECT'!$G$6:$DC$253,5,FALSE) -> 8 | G25: =VLOOKUP($C25,'RECAP SECT'!$G$6:$DC$253,6,FALSE) -> 67% | H25: =VLOOKUP($C25,'RECAP SECT'!$G$6:$DC$253,7,FALSE) -> 16 | I25: =VLOOKUP($C25,'RECAP SECT'!$G$6:$DC$253,8,FALSE) -> 51% | J25: =VLOOKUP($C25,'RECAP SECT'!$G$6:$DC$253,9,FALSE) -> 29% | K25: =VLOOKUP($C25,'RECAP SECT'!$G$6:$DC$253,10,FALSE) -> 14 | L25: =VLOOKUP($C25,'RECAP SECT'!$G$6:$DC$253,11,FALSE) -> 48% | M25: =VLOOKUP($C25,'RECAP SECT'!$G$6:$DC$253,12,FALSE) -> 44% | N25: =VLOOKUP($C25,'RECAP SECT'!$G$6:$DC$253,13,FALSE) -> 16
A26: 80 | B26: VOSGES | C26: 57 | D26: EPINAL | E26: =VLOOKUP($C26,'RECAP SECT'!$G$6:$DC$253,3,FALSE) -> 61.2 | F26: =VLOOKUP($C26,'RECAP SECT'!$G$6:$DC$253,5,FALSE) -> 24 | G26: =VLOOKUP($C26,'RECAP SECT'!$G$6:$DC$253,6,FALSE) -> 0% | H26: =VLOOKUP($C26,'RECAP SECT'!$G$6:$DC$253,7,FALSE) -> 1 | I26: =VLOOKUP($C26,'RECAP SECT'!$G$6:$DC$253,8,FALSE) -> 67% | J26: =VLOOKUP($C26,'RECAP SECT'!$G$6:$DC$253,9,FALSE) -> 8% | K26: =VLOOKUP($C26,'RECAP SECT'!$G$6:$DC$253,10,FALSE) -> 3 | L26: =VLOOKUP($C26,'RECAP SECT'!$G$6:$DC$253,11,FALSE) -> 4% | M26: =VLOOKUP($C26,'RECAP SECT'!$G$6:$DC$253,12,FALSE) -> 0% | N26: =VLOOKUP($C26,'RECAP SECT'!$G$6:$DC$253,13,FALSE) -> 1
A27: 80 | B27: VOSGES | C27: 55 | D27: SAINT DIE | E27: =VLOOKUP($C27,'RECAP SECT'!$G$6:$DC$253,3,FALSE) -> 47.1 | F27: =VLOOKUP($C27,'RECAP SECT'!$G$6:$DC$253,5,FALSE) -> 23 | G27: =VLOOKUP($C27,'RECAP SECT'!$G$6:$DC$253,6,FALSE) -> 4% | H27: =VLOOKUP($C27,'RECAP SECT'!$G$6:$DC$253,7,FALSE) -> 2 | I27: =VLOOKUP($C27,'RECAP SECT'!$G$6:$DC$253,8,FALSE) -> 69% | J27: =VLOOKUP($C27,'RECAP SECT'!$G$6:$DC$253,9,FALSE) -> 6% | K27: =VLOOKUP($C27,'RECAP SECT'!$G$6:$DC$253,10,FALSE) -> 2 | L27: =VLOOKUP($C27,'RECAP SECT'!$G$6:$DC$253,11,FALSE) -> 5% | M27: =VLOOKUP($C27,'RECAP SECT'!$G$6:$DC$253,12,FALSE) -> 1% | N27: =VLOOKUP($C27,'RECAP SECT'!$G$6:$DC$253,13,FALSE) -> 2
A28: Total CEGEE Directions Régionales | E28: =SUM(E10:E27) -> 1140

Sheet AG_CLASS
B1: Accueil | H1: BAROMETRE BDD - AGENCES
H2: CLASSEMENTS
H3: =ACCUEIL!F7 -> 2021-07-04
H8: CLASSEMENT GENERAL | I8: CRITERE Satisfaction Clients | J8: NPS à froid (SAE) | K8: NPS à chaud (QHD) | L8: CRITERE BANCARISATION | M8: Ventes Nettes produits pondérés | N8: Ventes sur client non détenteur de l’univers | O8: Mobilité Macron | P8: Remises commerciales | Q8: CRITERE EPARGNE | R8: Excédent Epargne y/c DAV pondéré | S8: Ventes sur client non détenteur de l’univers | T8: CRITERE IARD PREVOYANCE | U8: Ventes Nettes produits pondérés | V8: Ventes sur client non détenteur de l’univers | W8: CRITERE CREDITS | X8: Engagements et ventes accessoires pondérés Immo | Y8: Engagements et ventes accessoires pondérés Conso | Z8: Ventes sur client non détenteur de l’univers
B9: Direction | C9: eds | D9: Territoire | E9: eds | F9: Agence | G9: ="ETP perf "&DATEMAJ!$C$28 -> ETP perf 31-mai | H9: Rang | I9: Rang | J9: Rang | K9: Rang | L9: Rang | M9: Rang | N9: Rang | O9: Rang | P9: Rang | Q9: Rang | R9: Rang | S9: Rang | T9: Rang | U9: Rang | V9: Rang | W9: Rang | X9: Rang | Y9: Rang | Z9: Rang
A10: 50 | B10: MEURTHE ET MOSELLE MEUSE | C10: 26 | D10: NANCY | E10: 454481 | F10: NANCY PLACE DOMBASLE | G10: 11.7 | H10: 1 | I10: 122 | J10: 128 | K10: 128 | L10: 1 | M10: 2 | N10: 1 | O10: 1 | P10: 233 | Q10: 11 | R10: 64 | S10: 5 | T10: 4 | U10: 8 | V10: 4 | W10: 2 | X10: 2 | Y10: 79 | Z10: 2
A11: 50 | B11: MEURTHE ET MOSELLE MEUSE | C11: 27 | D11: PONT A MOUSSON | E11: 554531 | F11: POMPEY | G11: 2.8 | H11: 2 | I11: 94 | J11: 116 | K11: 72 | L11: 2 | M11: 1 | N11: 11 | O11: 4 | P11: 87 | Q11: 2 | R11: 5 | S11: 3 | T11: 16 | U11: 20 | V11: 15 | W11: 9 | X11: 12 | Y11: 10 | Z11: 17
A12: 50 | B12: MEURTHE ET MOSELLE MEUSE | C12: 26 | D12: NANCY | E12: 554356 | F12: JARVILLE LA MALGRANGE | G12: 3.6 | H12: 3 | I12: 36 | J12: 46 | K12: 55 | L12: 4 | M12: 15 | N12: 7 | O12: 2 | P12: 141 | Q12: 64 | R12: 116 | S12: 32 | T12: 17 | U12: 17 | V12: 20 | W12: 3 | X12: 3 | Y12: 123 | Z12: 3
A13: 50 | B13: MOSELLE | C13: 42 | D13: MOSELLE EST | E13: 457163 | F13: BEHREN LES FORBACH | G13: 2.4 | H13: 4 | I13: 3 | J13: 3 | K13: 16 | L13: 8 | M13: 44 | N13: 5 | O13: 19 | P13: 90 | Q13: 67 | R13: 146 | S13: 18 | T13: 30 | U13: 50 | V13: 24 | W13: 5 | X13: 13 | Y13: 3 | Z13: 4
A14: 50 | B14: MARNE-ARDENNES | C14: 2 | D14: CHARLEVILLE MEZIERES | E14: 508820 | F14: VOUZIERS | G14: 2.9 | H14: 5 | I14: 73 | J14: 71 | K14: 94 | L14: 59 | M14: 84 | N14: 12 | O14: 30 | P14: 197 | Q14: 113 | R14: 101 | S14: 128 | T14: 1 | U14: 1 | V14: 12 | W14: 23 | X14: 44 | Y14: 37 | Z14: 22
A15: 50 | B15: BAS-RHIN | C15: 5101 | D15: SELESTAT | E15: 4126 | F15: MUTZIG | G15: 2.0 | H15: 6 | I15: 62 | J15: 42 | K15: 130 | L15: 24 | M15: 34 | N15: 17 | O15: 13 | P15: 230 | Q15: 4 | R15: 6 | S15: 8 | T15: 74 | U15: 126 | V15: 28 | W15: 6 | X15: 29 | Y15: 1 | Z15: 8
A16: 50 | B16: VOSGES | C16: 57 | D16: EPINAL | E16: 488288 | F16: EPINAL LEOPOLD BOURG | G16: 1.9 | H16: 7 | I16: 56 | J16: 86 | K16: 44 | L16: 17 | M16: 29 | N16: 18 | O16: 10 | P16: 175 | Q16: 7 | R16: 3 | S16: 117 | T16: 80 | U16: 58 | V16: 151 | W16: 7 | X16: 6 | Y16: 17 | Z16: 11
A17: 50 | B17: MARNE-ARDENNES | C17: 6 | D17: CHALONS EN CHAMPAGNE | E17: 451115 | F17: MOURMELON LE GRAND | G17: 2.9 | H17: 8 | I17: 49 | J17: 91 | K17: 11 | L17: 12 | M17: 8 | N17: 40 | O17: 3 | P17: 238 | Q17: 14 | R17: 117 | S17: 2 | T17: 28 | U17: 32 | V17: 34 | W17: 14 | X17: 41 | Y17: 7 | Z17: 15
A18: 50 | B18: MOSELLE | C18: 44 | D18: MOSELLE NORD | E18: 557508 | F18: NILVANGE | G18: 2.6 | H18: 9 | I18: 109 | J18: 128 | K18: 101 | L18: 19 | M18: 16 | N18: 47 | O18: 64 | P18: 160 | Q18: 18 | R18: 98 | S18: 4 | T18: 3 | U18: 4 | V18: 6 | W18: 22 | X18: 35 | Y18: 45 | Z18: 19
A19: 50 | B19: MARNE-ARDENNES | C19: 2 | D19: CHARLEVILLE MEZIERES | E19: 408822 | F19: CHARLEVILLE MEZIERES | G19: 3.8 | H19: 10 | I19: 116 | J19: 128 | K19: 118 | L19: 57 | M19: 125 | N19: 9 | O19: 8 | P19: 167 | Q19: 3 | R19: 13 | S19: 1 | T19: 13 | U19: 15 | V19: 10 | W19: 20 | X19: 10 | Y19: 231 | Z19: 16
A20: 50 | B20: MARNE-ARDENNES | C20: 11 | D20: REIMS | E20: 551349 | F20: REIMS SAINT REMI | G20: 3.0 | H20: 11 | I20: 111 | J20: 136 | K20: 95 | L20: 29 | M20: 40 | N20: 20 | O20: 14 | P20: 224 | Q20: 28 | R20: 62 | S20: 13 | T20: 7 | U20: 9 | V20: 13 | W20: 13 | X20: 11 | Y20: 134 | Z20: 13
A21: 50 | B21: MARNE-ARDENNES | C21: 11 | D21: REIMS | E21: 451336 | F21: TINQUEUX | G21: 5.7 | H21: 12 | I21: 118 | J21: 145 | K21: 102 | L21: 54 | M21: 62 | N21: 24 | O21: 17 | P21: 234 | Q21: 1 | R21: 1 | S21: 167 | T21: 40 | U21: 38 | V21: 50 | W21: 32 | X21: 20 | Y21: 169 | Z21: 42
A22: 50 | B22: MOSELLE | C22: 44 | D22: MOSELLE NORD | E22: 557113 | F22: AUDUN LE TICHE | G22: 2.0 | H22: 13 | I22: 75 | J22: 31 | K22: 172 | L22: 22 | M22: 30 | N22: 3 | O22: 232 | P22: 202 | Q22: 82 | R22: 110 | S22: 59 | T22: 39 | U22: 70 | V22: 18 | W22: 4 | X22: 5 | Y22: 24 | Z22: 7
A23: 50 | B23: MEURTHE ET MOSELLE MEUSE | C23: 27 | D23: PONT A MOUSSON | E23: 454651 | F23: TOUL | G23: 10.3 | H23: 14 | I23: 236 | J23: 105 | K23: 260 | L23: 6 | M23: 9 | N23: 6 | O23: 5 | P23: 245 | Q23: 112 | R23: 109 | S23: 110 | T23: 41 | U23: 79 | V23: 14 | W23: 1 | X23: 1 | Y23: 16 | Z23: 1
A24: 50 | B24: MEURTHE ET MOSELLE MEUSE | C24: 31 | D24: VERDUN | E24: 554413 | F24: LONGWY BAS | G24: 3.5 | H24: 15 | I24: 32 | J24: 36 | K24: 60 | L24: 25 | M24: 26 | N24: 113 | O24: 194 | P24: 39 | Q24: 9 | R24: 27 | S24: 11 | T24: 131 | U24: 135 | V24: 121 | W24: 28 | X24: 26 | Y24: 26 | Z24: 114
A25: 50 | B25: BAS-RHIN | C25: 5101 | D25: SELESTAT | E25: 4113 | F25: BARR | G25: 3.0 | H25: 16 | I25: 48 | J25: 105 | K25: 7 | L25: 21 | M25: 41 | N25: 167 | O25: 26 | P25: 17 | Q25: 6 | R25: 11 | S25: 7 | T25: 33 | U25: 26 | V25: 133 | W25: 188 | X25: 163 | Y25: 215 | Z25: 139
A26: 50 | B26: MEURTHE ET MOSELLE MEUSE | C26: 31 | D26: VERDUN | E26: 454414 | F26: LONGWY HAUT | G26: 3.6 | H26: 17 | I26: 53 | J26: 22 | K26: 141 | L26: 69 | M26: 85 | N26: 51 | O26: 82 | P26: 129 | Q26: 5 | R26: 2 | S26: 36 | T26: 46 | U26: 68 | V26: 27 | W26: 63 | X26: 73 | Y26: 142 | Z26: 30
A27: 50 | B27: BAS-RHIN | C27: 5006 | D27: STRASBOURG | E27: 4010 | F27: STRASBOURG MEINAU | G27: 3.1 | H27: 18 | I27: 169 | J27: 152 | K27: 181 | L27: 11 | M27: 20 | N27: 4 | O27: 44 | P27: 207 | Q27: 47 | R27: 164 | S27: 6 | T27: 6 | U27: 6 | V27: 8 | W27: 95 | X27: 244 | Y27: 15 | Z27: 65
A28: 50 | B28: MOSELLE | C28: 42 | D28: MOSELLE EST | E28: 457165 | F28: BITCHE | G28: 2.0 | H28: 19 | I28: 112 | J28: 116 | K28: 119 | L28: 3 | M28: 3 | N28: 13 | O28: 168 | P28: 51 | Q28: 226 | R28: 260 | S28: 10 | T28: 8 | U28: 14 | V28: 2 | W28: 104 | X28: 192 | Y28: 35 | Z28: 127
A29: 50 | B29: BAS-RHIN | C29: 5101 | D29: SELESTAT | E29: 4121 | F29: SCHIRMECK | G29: 3.2 | H29: 20 | I29: 14 | J29: 18 | K29: 38 | L29: 72 | M29: 94 | N29: 134 | O29: 76 | P29: 48 | Q29: 24 | R29: 43 | S29: 24 | T29: 59 | U29: 48 | V29: 96 | W29: 71 | X29: 87 | Y29: 101 | Z29: 49
A30: 50 | B30: MOSELLE | C30: 45 | D30: METZ | E30: 557444 | F30: SAINT JULIEN LES METZ | G30: 4.9 | H30: 21 | I30: 131 | J30: 159 | K30: 107 | L30: 108 | M30: 104 | N30: 93 | O30: 132 | P30: 154 | Q30: 23 | R30: 28 | S30: 46 | T30: 12 | U30: 16 | V30: 7 | W30: 57 | X30: 77 | Y30: 14 | Z30: 112
A31: 262 | B31: MARNE-ARDENNES | C31: 6 | D31: CHALONS EN CHAMPAGNE | E31: 551330 | F31: MONTMIRAIL | G31: 2.9 | H31: 22 | I31: 11 | J31: 18 | K31: 13 | L31: 202 | M31: 228 | N31: 220 | O31: 67 | P31: 40 | Q31: 30 | R31: 65 | S31: 16 | T31: 35 | U31: 45 | V31: 37 | W31: 53 | X31: 42 | Y31: 64 | Z31: 96
A32: 262 | B32: MARNE-ARDENNES | C32: 2 | D32: CHARLEVILLE MEZIERES | E32: 508839 | F32: GIVET | G32: 3.6 | H32: 23 | I32: 23 | J32: 10 | K32: 112 | L32: 140 | M32: 203 | N32: 70 | O32: 91 | P32: 33 | Q32: 134 | R32: 172 | S32: 65 | T32: 2 | U32: 2 | V32: 77 | W32: 137 | X32: 137 | Y32: 76 | Z32: 177
A33: 262 | B33: BAS-RHIN | C33: 5006 | D33: STRASBOURG | E33: 4047 | F33: STRASBOURG CRONENBOURG | G33: 5.1 | H33: 24 | I33: 44 | J33: 54 | K33: 45 | L33: 112 | M33: 131 | N33: 49 | O33: 16 | P33: 219 | Q33: 46 | R33: 128 | S33: 9 | T33: 29 | U33: 25 | V33: 107 | W33: 51 | X33: 21 | Y33: 209 | Z33: 58
A34: 262 | B34: MEURTHE ET MOSELLE MEUSE | C34: 26 | D34: NANCY | E34: 554476 | F34: NANCY ARTEM | G34: 2.7 | H34: 25 | I34: 117 | J34: 194 | K34: 28 | L34: 33 | M34: 23 | N34: 29 | O34: 15 | P34: 253 | Q34: 19 | R34: 7 | S34: 121 | T34: 69 | U34: 76 | V34: 48 | W34: 42 | X34: 55 | Y34: 146 | Z34: 14
A35: 262 | B35: MARNE-ARDENNES | C35: 11 | D35: REIMS | E35: 551367 | F35: AY CHAMPAGNE | G35: 2.7 | H35: 26 | I35: 102 | J35: 71 | K35: 163 | L35: 30 | M35: 81 | N35: 14 | O35: 6 | P35: 99 | Q35: 235 | R35: 220 | S35: 191 | T35: 34 | U35: 49 | V35: 30 | W35: 8 | X35: 4 | Y35: 136 | Z35: 9
A36: 262 | B36: AUBE HAUTE MARNE | C36: 21 | D36: CHAUMONT | E36: 451151 | F36: WASSY | G36: 2.0 | H36: 27 | I36: 17 | J36: 14 | K36: 56 | L36: 45 | M36: 54 | N36: 90 | O36: 125 | P36: 54 | Q36: 144 | R36: 238 | S36: 15 | T36: 82 | U36: 84 | V36: 71 | W36: 30 | X36: 119 | Y36: 2 | Z36: 93
A37: 262 | B37: BAS-RHIN | C37: 5060 | D37: HAGUENAU | E37: 4092 | F37: HOCHFELDEN | G37: 2.3 | H37: 28 | I37: 139 | J37: 178 | K37: 80 | L37: 7 | M37: 6 | N37: 50 | O37: 70 | P37: 74 | Q37: 185 | R37: 245 | S37: 28 | T37: 60 | U37: 78 | V37: 32 | W37: 18 | X37: 27 | Y37: 11 | Z37: 50
A38: 262 | B38: MARNE-ARDENNES | C38: 11 | D38: REIMS | E38: 551340 | F38: BETHENY | G38: 3.0 | H38: 29 | I38: 110 | J38: 128 | K38: 108 | L38: 146 | M38: 157 | N38: 31 | O38: 12 | P38: 248 | Q38: 16 | R38: 29 | S38: 20 | T38: 97 | U38: 88 | V38: 101 | W38: 10 | X38: 15 | Y38: 62 | Z38: 6
A39: 262 | B39: MOSELLE | C39: 42 | D39: MOSELLE EST | E39: 557250 | F39: CREUTZWALD | G39: 2.7 | H39: 30 | I39: 129 | J39: 187 | K39: 58 | L39: 127 | M39: 175 | N39: 77 | O39: 163 | P39: 42 | Q39: 12 | R39: 30 | S39: 12 | T39: 21 | U39: 22 | V39: 42 | W39: 59 | X39: 124 | Y39: 12 | Z39: 101
A40: 262 | B40: MARNE-ARDENNES | C40: 2 | D40: CHARLEVILLE MEZIERES | E40: 508833 | F40: VILLERS SEMEUSE CORA | G40: 3.6 | H40: 31 | I40: 136 | J40: 152 | K40: 131 | L40: 41 | M40: 73 | N40: 10 | O40: 32 | P40: 155 | Q40: 48 | R40: 76 | S40: 25 | T40: 49 | U40: 52 | V40: 46 | W40: 26 | X40: 53 | Y40: 29 | Z40: 32
A41: 262 | B41: MARNE-ARDENNES | C41: 2 | D41: CHARLEVILLE MEZIERES | E41: 408801 | F41: CHARLEVILLE JEAN JAURES | G41: 9.4 | H41: 32 | I41: 58 | J41: 54 | K41: 84 | L41: 66 | M41: 112 | N41: 39 | O41: 7 | P41: 164 | Q41: 63 | R41: 131 | S41: 22 | T41: 137 | U41: 145 | V41: 119 | W41: 15 | X41: 14 | Y41: 128 | Z41: 10
A42: 262 | B42: MEURTHE ET MOSELLE MEUSE | C42: 31 | D42: VERDUN | E42: 555679 | F42: VERDUN MAZEL | G42: 3.8 | H42: 33 | I42: 19 | J42: 25 | K42: 40 | L42: 48 | M42: 65 | N42: 69 | O42: 97 | P42: 46 | Q42: 17 | R42: 23 | S42: 29 | T42: 186 | U42: 199 | V42: 153 | W42: 83 | X42: 71 | Y42: 114 | Z42: 94
A43: 262 | B43: MEURTHE ET MOSELLE MEUSE | C43: 31 | D43: VERDUN | E43: 555624 | F43: STENAY | G43: 2.8 | H43: 34 | I43: 21 | J43: 14 | K43: 70 | L43: 13 | M43: 21 | N43: 44 | O43: 154 | P43: 20 | Q43: 78 | R43: 129 | S43: 35 | T43: 125 | U43: 127 | V43: 116 | W43: 134 | X43: 171 | Y43: 63 | Z43: 144
A44: 262 | B44: MOSELLE | C44: 42 | D44: MOSELLE EST | E44: 557305 | F44: FAULQUEMONT | G44: 2.5 | H44: 35 | I44: 27 | J44: 12 | K44: 120 | L44: 49 | M44: 66 | N44: 38 | O44: 40 | P44: 136 | Q44: 106 | R44: 141 | S44: 51 | T44: 77 | U44: 96 | V44: 52 | W44: 56 | X44: 47 | Y44: 69 | Z44: 84
A45: 262 | B45: MARNE-ARDENNES | C45: 2 | D45: CHARLEVILLE MEZIERES | E45: 408862 | F45: REVIN | G45: 4.3 | H45: 36 | I45: 5 | J45: 2 | K45: 47 | L45: 122 | M45: 178 | N45: 83 | O45: 94 | P45: 38 | Q45: 35 | R45: 41 | S45: 55 | T45: 111 | U45: 110 | V45: 111 | W45: 149 | X45: 120 | Y45: 206 | Z45: 82
A46: 262 | B46: VOSGES | C46: 55 | D46: SAINT DIE | E46: 488246 | F46: CORNIMONT LA BRESSE | G46: 2.6 | H46: 37 | I46: 10 | J46: 31 | K46: 6 | L46: 148 | M46: 135 | N46: 91 | O46: 208 | P46: 149 | Q46: 168 | R46: 140 | S46: 213 | T46: 52 | U46: 33 | V46: 112 | W46: 35 | X46: 61 | Y46: 19 | Z46: 55
A47: 262 | B47: MEURTHE ET MOSELLE MEUSE | C47: 31 | D47: VERDUN | E47: 554412 | F47: LONGUYON | G47: 2.8 | H47: 38 | I47: 40 | J47: 57 | K47: 33 | L47: 124 | M47: 172 | N47: 74 | O47: 63 | P47: 104 | Q47: 115 | R47: 75 | S47: 199 | T47: 89 | U47: 87 | V47: 87 | W47: 19 | X47: 19 | Y47: 40 | Z47: 39
A48: 262 | B48: MOSELLE | C48: 42 | D48: MOSELLE EST | E48: 457308 | F48: FORBACH CENTRALE | G48: 11.3 | H48: 39 | I48: 43 | J48: 36 | K48: 76 | L48: 34 | M48: 37 | N48: 110 | O48: 143 | P48: 77 | Q48: 71 | R48: 95 | S48: 63 | T48: 75 | U48: 51 | V48: 157 | W48: 142 | X48: 147 | Y48: 67 | Z48: 190
A49: 262 | B49: BAS-RHIN | C49: 5060 | D49: HAGUENAU | E49: 4079 | F49: SOULTZ SOUS FORETS | G49: 2.2 | H49: 40 | I49: 137 | J49: 187 | K49: 71 | L49: 15 | M49: 13 | N49: 174 | O49: 43 | P49: 60 | Q49: 129 | R49: 199 | S49: 38 | T49: 55 | U49: 55 | V49: 56 | W49: 60 | X49: 58 | Y49: 66 | Z49: 79
A50: 262 | B50: HAUT-RHIN | C50: 5130 | D50: COLMAR | E50: 4144 | F50: RIBEAUVILLE | G50: 2.9 | H50: 41 | I50: 66 | J50: 57 | K50: 86 | L50: 32 | M50: 50 | N50: 57 | O50: 136 | P50: 28 | Q50: 45 | R50: 49 | S50: 56 | T50: 43 | U50: 21 | V50: 206 | W50: 236 | X50: 212 | Y50: 195 | Z50: 244
A51: 262 | B51: MEURTHE ET MOSELLE MEUSE | C51: 27 | D51: PONT A MOUSSON | E51: 554533 | F51: PONT A MOUSSON BREUIL | G51: 2.8 | H51: 42 | I51: 170 | J51: 145 | K51: 195 | L51: 50 | M51: 74 | N51: 27 | O51: 41 | P51: 128 | Q51: 10 | R51: 4 | S51: 157 | T51: 134 | U51: 140 | V51: 120 | W51: 29 | X51: 17 | Y51: 173 | Z51: 41
A52: 262 | B52: VOSGES | C52: 57 | D52: EPINAL | E52: 588631 | F52: THAON LES VOSGES | G52: 5.5 | H52: 43 | I52: 41 | J52: 57 | K52: 35 | L52: 100 | M52: 87 | N52: 73 | O52: 96 | P52: 179 | Q52: 152 | R52: 108 | S52: 240 | T52: 22 | U52: 24 | V52: 40 | W52: 116 | X52: 146 | Y52: 74 | Z52: 113
A53: 262 | B53: MARNE-ARDENNES | C53: 6 | D53: CHALONS EN CHAMPAGNE | E53: 451120 | F53: SARRY | G53: 2.5 | H53: 44 | I53: 9 | J53: 25 | K53: 4 | L53: 136 | M53: 206 | N53: 186 | O53: 52 | P53: 9 | Q53: 39 | R53: 45 | S53: 48 | T53: 102 | U53: 93 | V53: 102 | W53: 174 | X53: 117 | Y53: 226 | Z53: 150
A54: 262 | B54: MARNE-ARDENNES | C54: 11 | D54: REIMS | E54: 451350 | F54: REIMS CENTRE VILLE | G54: 7.2 | H54: 45 | I54: 166 | J54: 168 | K54: 159 | L54: 142 | M54: 155 | N54: 32 | O54: 24 | P54: 237 | Q54: 59 | R54: 51 | S54: 98 | T54: 58 | U54: 63 | V54: 47 | W54: 11 | X54: 8 | Y54: 53 | Z54: 28
A55: 262 | B55: MEURTHE ET MOSELLE MEUSE | C55: 27 | D55: PONT A MOUSSON | E55: 454535 | F55: PONT A MOUSSON CENTRALE | G55: 7.8 | H55: 46 | I55: 186 | J55: 159 | K55: 208 | L55: 9 | M55: 7 | N55: 25 | O55: 31 | P55: 171 | Q55: 70 | R55: 58 | S55: 141 | T55: 63 | U55: 75 | V55: 44 | W55: 65 | X55: 28 | Y55: 241 | Z55: 51
A56: 262 | B56: MARNE-ARDENNES | C56: 2 | D56: CHARLEVILLE MEZIERES | E56: 508802 | F56: CHARLEVILLE NEVERS | G56: 3.0 | H56: 47 | I56: 24 | J56: 22 | K56: 67 | L56: 179 | M56: 217 | N56: 178 | O56: 33 | P56: 68 | Q56: 194 | R56: 237 | S56: 40 | T56: 20 | U56: 18 | V56: 45 | W56: 85 | X56: 133 | Y56: 21 | Z56: 165
A57: 262 | B57: MEURTHE ET MOSELLE MEUSE | C57: 31 | D57: VERDUN | E57: 455456 | F57: MONTMEDY | G57: 1.8 | H57: 48 | I57: 97 | J57: 116 | K57: 78 | L57: 46 | M57: 63 | N57: 53 | O57: 182 | P57: 47 | Q57: 101 | R57: 93 | S57: 115 | T57: 124 | U57: 114 | V57: 148 | W57: 33 | X57: 68 | Y57: 18 | Z57: 45
A58: 262 | B58: MEURTHE ET MOSELLE MEUSE | C58: 27 | D58: PONT A MOUSSON | E58: 554381 | F58: LAXOU ARISTIDE BRIAND | G58: 4.1 | H58: 49 | I58: 85 | J58: 57 | K58: 145 | L58: 26 | M58: 4 | N58: 85 | O58: 122 | P58: 252 | Q58: 72 | R58: 99 | S58: 60 | T58: 76 | U58: 72 | V58: 86 | W58: 161 | X58: 105 | Y58: 221 | Z58: 119
A59: 262 | B59: MARNE-ARDENNES | C59: 11 | D59: REIMS | E59: 551305 | F59: REIMS HIPPODROME | G59: 3.9 | H59: 50 | I59: 12 | J59: 42 | K59: 5 | L59: 234 | M59: 233 | N59: 48 | O59: 9 | P59: 262 | Q59: 151 | R59: 176 | S59: 89 | T59: 37 | U59: 30 | V59: 76 | W59: 49 | X59: 25 | Y59: 222 | Z59: 37
A60: 262 | B60: MEURTHE ET MOSELLE MEUSE | C60: 26 | D60: NANCY | E60: 554601 | F60: SAINT MAX | G60: 4.5 | H60: 51 | I60: 28 | J60: 12 | K60: 123 | L60: 125 | M60: 128 | N60: 222 | O60: 51 | P60: 105 | Q60: 56 | R60: 118 | S60: 17 | T60: 67 | U60: 66 | V60: 66 | W60: 164 | X60: 139 | Y60: 170 | Z60: 152
A61: 262 | B61: MOSELLE | C61: 44 | D61: MOSELLE NORD | E61: 457348 | F61: HAGONDANGE | G61: 9.3 | H61: 52 | I61: 173 | J61: 203 | K61: 136 | L61: 28 | M61: 27 | N61: 187 | O61: 98 | P61: 52 | Q61: 81 | R61: 70 | S61: 130 | T61: 68 | U61: 43 | V61: 138 | W61: 54 | X61: 40 | Y61: 107 | Z61: 60
A62: 262 | B62: VOSGES | C62: 57 | D62: EPINAL | E62: 588716 | F62: XERTIGNY | G62: 2.9 | H62: 53 | I62: 145 | J62: 116 | K62: 173 | L62: 64 | M62: 77 | N62: 140 | O62: 192 | P62: 21 | Q62: 89 | R62: 71 | S62: 140 | T62: 14 | U62: 3 | V62: 92 | W62: 206 | X62: 203 | Y62: 190 | Z62: 162
A63: 262 | B63: MARNE-ARDENNES | C63: 2 | D63: CHARLEVILLE MEZIERES | E63: 508815 | F63: CARIGNAN | G63: 2.9 | H63: 54 | I63: 74 | J63: 78 | K63: 83 | L63: 110 | M63: 189 | N63: 45 | O63: 142 | P63: 23 | Q63: 8 | R63: 19 | S63: 19 | T63: 148 | U63: 141 | V63: 160 | W63: 117 | X63: 85 | Y63: 135 | Z63: 137
A64: 262 | B64: MEURTHE ET MOSELLE MEUSE | C64: 27 | D64: PONT A MOUSSON | E64: 554506 | F64: CHALIGNY NEUVES MAISONS | G64: 3.8 | H64: 55 | I64: 226 | J64: 203 | K64: 231 | L64: 5 | M64: 5 | N64: 19 | O64: 11 | P64: 119 | Q64: 225 | R64: 186 | S64: 239 | T64: 107 | U64: 133 | V64: 69 | W64: 12 | X64: 7 | Y64: 240 | Z64: 5
A65: 262 | B65: MOSELLE | C65: 45 | D65: METZ | E65: 557447 | F65: METZ SAINT MAXIMIN | G65: 3.1 | H65: 56 | I65: 113 | J65: 152 | K65: 77 | L65: 38 | M65: 160 | N65: 2 | O65: 21 | P65: 34 | Q65: 120 | R65: 106 | S65: 149 | T65: 126 | U65: 159 | V65: 67 | W65: 36 | X65: 23 | Y65: 158 | Z65: 36
A66: 262 | B66: MEURTHE ET MOSELLE MEUSE | C66: 27 | D66: PONT A MOUSSON | E66: 554376 | F66: LAXOU BOUFFLERS | G66: 2.7 | H66: 57 | I66: 175 | J66: 219 | K66: 89 | L66: 62 | M66: 42 | N66: 34 | O66: 23 | P66: 259 | Q66: 27 | R66: 10 | S66: 172 | T66: 99 | U66: 104 | V66: 85 | W66: 44 | X66: 43 | Y66: 49 | Z66: 100
A67: 262 | B67: MARNE-ARDENNES | C67: 6 | D67: CHALONS EN CHAMPAGNE | E67: 451101 | F67: CHALONS VIVIERS | G67: 9.2 | H67: 58 | I67: 38 | J67: 66 | K67: 26 | L67: 119 | M67: 117 | N67: 118 | O67: 50 | P67: 162 | Q67: 77 | R67: 124 | S67: 39 | T67: 108 | U67: 124 | V67: 78 | W67: 81 | X67: 65 | Y67: 122 | Z67: 87
A68: 262 | B68: MEURTHE ET MOSELLE MEUSE | C68: 26 | D68: NANCY | E68: 454426 | F68: LUNEVILLE CARNOT | G68: 10.1 | H68: 59 | I68: 133 | J68: 128 | K68: 150 | L68: 70 | M68: 64 | N68: 107 | O68: 72 | P68: 148 | Q68: 133 | R68: 105 | S68: 192 | T68: 50 | U68: 35 | V68: 75 | W68: 43 | X68: 38 | Y68: 88 | Z68: 57
A69: 262 | B69: MARNE-ARDENNES | C69: 6 | D69: CHALONS EN CHAMPAGNE | E69: 551354 | F69: VERTUS | G69: 2.5 | H69: 60 | I69: 4 | J69: 14 | K69: 1 | L69: 214 | M69: 164 | N69: 201 | O69: 120 | P69: 229 | Q69: 138 | R69: 150 | S69: 109 | T69: 91 | U69: 101 | V69: 73 | W69: 122 | X69: 130 | Y69: 75 | Z69: 151
A70: 262 | B70: MOSELLE | C70: 44 | D70: MOSELLE NORD | E70: 457306 | F70: FLORANGE | G70: 3.7 | H70: 61 | I70: 126 | J70: 78 | K70: 184 | L70: 94 | M70: 88 | N70: 146 | O70: 164 | P70: 89 | Q70: 20 | R70: 17 | S70: 64 | T70: 98 | U70: 97 | V70: 90 | W70: 97 | X70: 52 | Y70: 139 | Z70: 185
A71: 262 | B71: MEURTHE ET MOSELLE MEUSE | C71: 27 | D71: PONT A MOUSSON | E71: 554416 | F71: LUDRES | G71: 3.7 | H71: 62 | I71: 42 | J71: 57 | K71: 37 | L71: 141 | M71: 165 | N71: 64 | O71: 37 | P71: 180 | Q71: 25 | R71: 15 | S71: 91 | T71: 233 | U71: 236 | V71: 219 | W71: 47 | X71: 45 | Y71: 145 | Z71: 31
A72: 262 | B72: MEURTHE ET MOSELLE MEUSE | C72: 27 | D72: PONT A MOUSSON | E72: 554357 | F72: JOEUF | G72: 3.8 | H72: 63 | I72: 147 | J72: 194 | K72: 75 | L72: 81 | M72: 132 | N72: 35 | O72: 20 | P72: 150 | Q72: 251 | R72: 244 | S72: 220 | T72: 24 | U72: 31 | V72: 23 | W72: 16 | X72: 24 | Y72: 30 | Z72: 18
A73: 262 | B73: MARNE-ARDENNES | C73: 11 | D73: REIMS | E73: 551310 | F73: REIMS CHATILLONS | G73: 4.2 | H73: 64 | I73: 148 | J73: 178 | K73: 97 | L73: 89 | M73: 111 | N73: 135 | O73: 55 | P73: 71 | Q73: 80 | R73: 79 | S73: 90 | T73: 70 | U73: 53 | V73: 123 | W73: 34 | X73: 18 | Y73: 119 | Z73: 76
A74: 262 | B74: BAS-RHIN | C74: 5006 | D74: STRASBOURG | E74: 4037 | F74: MUNDOLSHEIM | G74: 4.0 | H74: 65 | I74: 195 | J74: 230 | K74: 135 | L74: 23 | M74: 12 | N74: 78 | O74: 78 | P74: 192 | Q74: 34 | R74: 33 | S74: 71 | T74: 57 | U74: 42 | V74: 99 | W74: 150 | X74: 177 | Y74: 129 | Z74: 92
A75: 262 | B75: MARNE-ARDENNES | C75: 6 | D75: CHALONS EN CHAMPAGNE | E75: 551110 | F75: CHALONS ROOSEVELT | G75: 5.0 | H75: 66 | I75: 22 | J75: 51 | K75: 15 | L75: 133 | M75: 173 | N75: 119 | O75: 47 | P75: 103 | Q75: 74 | R75: 115 | S75: 47 | T75: 90 | U75: 67 | V75: 146 | W75: 158 | X75: 98 | Y75: 212 | Z75: 129
A76: 262 | B76: AUBE HAUTE MARNE | C76: 21 | D76: CHAUMONT | E76: 510590 | F76: CHAUMONT REPUBLIQUE | G76: 4.4 | H76: 67 | I76: 120 | J76: 136 | K76: 115 | L76: 105 | M76: 158 | N76: 58 | O76: 84 | P76: 45 | Q76: 69 | R76: 60 | S76: 137 | T76: 61 | U76: 54 | V76: 83 | W76: 67 | X76: 159 | Y76: 13 | Z76: 89
A77: 262 | B77: MEURTHE ET MOSELLE MEUSE | C77: 26 | D77: NANCY | E77: 554636 | F77: TOMBLAINE | G77: 2.5 | H77: 68 | I77: 18 | J77: 46 | K77: 8 | L77: 225 | M77: 235 | N77: 75 | O77: 131 | P77: 204 | Q77: 108 | R77: 107 | S77: 99 | T77: 47 | U77: 83 | V77: 16 | W77: 113 | X77: 184 | Y77: 143 | Z77: 43
A78: 262 | B78: BAS-RHIN | C78: 5060 | D78: HAGUENAU | E78: 4082 | F78: BOUXWILLER | G78: 2.5 | H78: 69 | I78: 70 | J78: 91 | K78: 59 | L78: 163 | M78: 108 | N78: 207 | O78: 188 | P78: 183 | Q78: 37 | R78: 44 | S78: 50 | T78: 130 | U78: 182 | V78: 54 | W78: 70 | X78: 57 | Y78: 70 | Z78: 135
A79: 264 | B79: VOSGES | C79: 57 | D79: EPINAL | E79: 588501 | F79: NEUFCHATEAU | G79: 5.0 | H79: 70 | I79: 13 | J79: 10 | K79: 63 | L79: 196 | M79: 214 | N79: 116 | O79: 49 | P79: 140 | Q79: 110 | R79: 78 | S79: 163 | T79: 158 | U79: 153 | V79: 163 | W79: 64 | X79: 93 | Y79: 121 | Z79: 21
A80: 264 | B80: MARNE-ARDENNES | C80: 11 | D80: REIMS | E80: 551314 | F80: FISMES | G80: 3.0 | H80: 71 | I80: 72 | J80: 128 | K80: 27 | L80: 65 | M80: 110 | N80: 52 | O80: 18 | P80: 120 | Q80: 172 | R80: 223 | S80: 54 | T80: 136 | U80: 157 | V80: 88 | W80: 45 | X80: 39 | Y80: 138 | Z80: 38
A81: 264 | B81: BAS-RHIN | C81: 5101 | D81: SELESTAT | E81: 4120 | F81: WASSELONNE | G81: 4.4 | H81: 72 | I81: 183 | J81: 234 | K81: 81 | L81: 178 | M81: 139 | N81: 164 | O81: 249 | P81: 159 | Q81: 13 | R81: 22 | S81: 23 | T81: 45 | U81: 40 | V81: 61 | W81: 82 | X81: 204 | Y81: 22 | Z81: 67
A82: 264 | B82: MOSELLE | C82: 44 | D82: MOSELLE NORD | E82: 557352 | F82: HETTANGE GRANDE | G82: 4.1 | H82: 73 | I82: 174 | J82: 145 | K82: 200 | L82: 35 | M82: 19 | N82: 98 | O82: 200 | P82: 178 | Q82: 161 | R82: 168 | S82: 147 | T82: 36 | U82: 29 | V82: 81 | W82: 79 | X82: 82 | Y82: 51 | Z82: 132
A83: 264 | B83: BAS-RHIN | C83: 5006 | D83: STRASBOURG | E83: 4038 | F83: OBERHAUSBERGEN | G83: 4.8 | H83: 74 | I83: 127 | J83: 187 | K83: 51 | L83: 95 | M83: 53 | N83: 68 | O83: 68 | P83: 246 | Q83: 41 | R83: 61 | S83: 30 | T83: 100 | U83: 64 | V83: 176 | W83: 102 | X83: 64 | Y83: 150 | Z83: 143
A84: 264 | B84: BAS-RHIN | C84: 5006 | D84: STRASBOURG | E84: 4019 | F84: STRASBOURG ANVERS | G84: 4.3 | H84: 75 | I84: 107 | J84: 42 | K84: 204 | L84: 58 | M84: 24 | N84: 46 | O84: 46 | P84: 261 | Q84: 49 | R84: 47 | S84: 75 | T84: 115 | U84: 131 | V84: 82 | W84: 162 | X84: 99 | Y84: 205 | Z84: 153
A85: 264 | B85: MOSELLE | C85: 45 | D85: METZ | E85: 457453 | F85: MONTIGNY LES METZ | G85: 8.1 | H85: 76 | I85: 45 | J85: 78 | K85: 18 | L85: 68 | M85: 39 | N85: 185 | O85: 75 | P85: 227 | Q85: 83 | R85: 162 | S85: 21 | T85: 240 | U85: 221 | V85: 251 | W85: 62 | X85: 49 | Y85: 126 | Z85: 61
A86: 264 | B86: VOSGES | C86: 57 | D86: EPINAL | E86: 588206 | F86: CHARMES | G86: 2.8 | H86: 77 | I86: 52 | J86: 71 | K86: 43 | L86: 168 | M86: 109 | N86: 162 | O86: 175 | P86: 215 | Q86: 242 | R86: 214 | S86: 257 | T86: 26 | U86: 23 | V86: 79 | W86: 72 | X86: 84 | Y86: 50 | Z86: 105
A87: 264 | B87: VOSGES | C87: 57 | D87: EPINAL | E87: 588396 | F87: LE VAL D AJOL | G87: 2.9 | H87: 78 | I87: 1 | J87: 1 | K87: 2 | L87: 223 | M87: 210 | N87: 258 | O87: 219 | P87: 75 | Q87: 85 | R87: 36 | S87: 252 | T87: 153 | U87: 89 | V87: 246 | W87: 250 | X87: 205 | Y87: 259 | Z87: 240
A88: 264 | B88: MEURTHE ET MOSELLE MEUSE | C88: 31 | D88: VERDUN | E88: 455298 | F88: ETAIN | G88: 1.6 | H88: 79 | I88: 235 | J88: 230 | K88: 217 | L88: 102 | M88: 47 | N88: 197 | O88: 237 | P88: 222 | Q88: 96 | R88: 97 | S88: 94 | T88: 9 | U88: 10 | V88: 11 | W88: 96 | X88: 143 | Y88: 8 | Z88: 247
A89: 264 | B89: VOSGES | C89: 55 | D89: SAINT DIE | E89: 488586 | F89: SAINT DIE | G89: 10.6 | H89: 80 | I89: 8 | J89: 7 | K89: 42 | L89: 204 | M89: 181 | N89: 154 | O89: 155 | P89: 174 | Q89: 88 | R89: 85 | S89: 93 | T89: 167 | U89: 148 | V89: 221 | W89: 139 | X89: 114 | Y89: 176 | Z89: 109
A90: 264 | B90: BAS-RHIN | C90: 5006 | D90: STRASBOURG | E90: 4023 | F90: STRASBOURG VOSGES | G90: 3.3 | H90: 81 | I90: 149 | J90: 36 | K90: 243 | L90: 55 | M90: 56 | N90: 59 | O90: 74 | P90: 152 | Q90: 15 | R90: 24 | S90: 26 | T90: 177 | U90: 129 | V90: 247 | W90: 159 | X90: 150 | Y90: 154 | Z90: 131
A91: 264 | B91: MARNE-ARDENNES | C91: 2 | D91: CHARLEVILLE MEZIERES | E91: 508819 | F91: MOUZON | G91: 2.0 | H91: 82 | I91: 99 | J91: 78 | K91: 147 | L91: 239 | M91: 240 | N91: 80 | O91: 140 | P91: 217 | Q91: 75 | R91: 34 | S91: 248 | T91: 109 | U91: 150 | V91: 53 | W91: 21 | X91: 31 | Y91: 48 | Z91: 20
A92: 264 | B92: BAS-RHIN | C92: 5006 | D92: STRASBOURG | E92: 4054 | F92: STRASBOURG MONTAGNE VERTE | G92: 2.5 | H92: 83 | I92: 196 | J92: 194 | K92: 190 | L92: 138 | M92: 198 | N92: 15 | O92: 103 | P92: 131 | Q92: 222 | R92: 206 | S92: 184 | T92: 5 | U92: 11 | V92: 1 | W92: 108 | X92: 182 | Y92: 72 | Z92: 63
A93: 264 | B93: VOSGES | C93: 57 | D93: EPINAL | E93: 488706 | F93: VITTEL | G93: 3.7 | H93: 84 | I93: 46 | J93: 78 | K93: 20 | L93: 228 | M93: 237 | N93: 204 | O93: 89 | P93: 161 | Q93: 99 | R93: 59 | S93: 205 | T93: 78 | U93: 44 | V93: 194 | W93: 109 | X93: 210 | Y93: 106 | Z93: 34
A94: 264 | B94: AUBE HAUTE MARNE | C94: 21 | D94: CHAUMONT | E94: 451154 | F94: JOINVILLE | G94: 1.9 | H94: 85 | I94: 2 | J94: 5 | K94: 3 | L94: 240 | M94: 230 | N94: 88 | O94: 205 | P94: 225 | Q94: 259 | R94: 254 | S94: 258 | T94: 87 | U94: 138 | V94: 33 | W94: 73 | X94: 190 | Y94: 54 | Z94: 25
A95: 264 | B95: BAS-RHIN | C95: 5006 | D95: STRASBOURG | E95: 4024 | F95: STRASBOURG AUSTERLITZ | G95: 2.4 | H95: 86 | I95: 249 | J95: 236 | K95: 248 | L95: 18 | M95: 11 | N95: 22 | O95: 59 | P95: 206 | Q95: 60 | R95: 80 | S95: 52 | T95: 53 | U95: 74 | V95: 25 | W95: 77 | X95: 60 | Y95: 214 | Z95: 46
A96: 264 | B96: VOSGES | C96: 55 | D96: SAINT DIE | E96: 588666 | F96: VAGNEY | G96: 3.8 | H96: 87 | I96: 6 | J96: 5 | K96: 41 | L96: 139 | M96: 143 | N96: 206 | O96: 147 | P96: 70 | Q96: 132 | R96: 91 | S96: 214 | T96: 216 | U96: 161 | V96: 249 | W96: 178 | X96: 200 | Y96: 174 | Z96: 123
A97: 264 | B97: AUBE HAUTE MARNE | C97: 14 | D97: TROYES | E97: 510511 | F97: TROYES BROSSOLETTE | G97: 2.6 | H97: 88 | I97: 89 | J97: 152 | K97: 39 | L97: 56 | M97: 55 | N97: 76 | O97: 110 | P97: 122 | Q97: 128 | R97: 154 | S97: 86 | T97: 174 | U97: 203 | V97: 131 | W97: 94 | X97: 80 | Y97: 78 | Z97: 136
A98: 264 | B98: VOSGES | C98: 57 | D98: EPINAL | E98: 488451 | F98: MIRECOURT | G98: 4.8 | H98: 89 | I98: 39 | J98: 57 | K98: 31 | L98: 210 | M98: 212 | N98: 89 | O98: 81 | P98: 177 | Q98: 104 | R98: 83 | S98: 144 | T98: 103 | U98: 102 | V98: 114 | W98: 143 | X98: 158 | Y98: 168 | Z98: 64
A99: 264 | B99: BAS-RHIN | C99: 5060 | D99: HAGUENAU | E99: 4085 | F99: INGWILLER | G99: 3.2 | H99: 90 | I99: 95 | J99: 42 | K99: 185 | L99: 39 | M99: 17 | N99: 87 | O99: 261 | P99: 223 | Q99: 155 | R99: 196 | S99: 84 | T99: 155 | U99: 191 | V99: 95 | W99: 145 | X99: 232 | Y99: 6 | Z99: 245
A100: 264 | B100: AUBE HAUTE MARNE | C100: 21 | D100: CHAUMONT | E100: 410560 | F100: BOURBONNE LES BAINS | G100: 2.0 | H100: 91 | I100: 25 | J100: 57 | K100: 10 | L100: 85 | M100: 69 | N100: 211 | O100: 180 | P100: 81 | Q100: 209 | R100: 184 | S100: 204 | T100: 122 | U100: 146 | V100: 84 | W100: 207 | X100: 216 | Y100: 91 | Z100: 236
A101: 264 | B101: MARNE-ARDENNES | C101: 6 | D101: CHALONS EN CHAMPAGNE | E101: 551103 | F101: FAGNIERES LECLERC | G101: 3.0 | H101: 92 | I101: 33 | J101: 36 | K101: 61 | L101: 75 | M101: 116 | N101: 42 | O101: 39 | P101: 123 | Q101: 240 | R101: 233 | S101: 208 | T101: 165 | U101: 235 | V101: 60 | W101: 86 | X101: 94 | Y101: 120 | Z101: 56
A102: 264 | B102: MEURTHE ET MOSELLE MEUSE | C102: 31 | D102: VERDUN | E102: 554700 | F102: VILLERUPT | G102: 2.9 | H102: 93 | I102: 26 | J102: 9 | K102: 146 | L102: 128 | M102: 122 | N102: 129 | O102: 218 | P102: 91 | Q102: 111 | R102: 132 | S102: 66 | T102: 224 | U102: 219 | V102: 216 | W102: 125 | X102: 168 | Y102: 27 | Z102: 214
A103: 30 | B103: MEURTHE ET MOSELLE MEUSE | C103: 31 | D103: VERDUN | E103: 455151 | F103: BAR LE DUC | G103: 8.8 | H103: 94 | I103: 103 | J103: 97 | K103: 133 | L103: 78 | M103: 80 | N103: 156 | O103: 87 | P103: 92 | Q103: 164 | R103: 121 | S103: 236 | T103: 120 | U103: 132 | V103: 98 | W103: 90 | X103: 160 | Y103: 52 | Z103: 66
A104: 30 | B104: AUBE HAUTE MARNE | C104: 14 | D104: TROYES | E104: 510523 | F104: LA CHAPELLE ST LUC | G104: 5.5 | H104: 95 | I104: 180 | J104: 168 | K104: 188 | L104: 37 | M104: 46 | N104: 28 | O104: 124 | P104: 121 | Q104: 207 | R104: 234 | S104: 69 | T104: 25 | U104: 65 | V104: 5 | W104: 189 | X104: 181 | Y104: 156 | Z104: 188
A105: 30 | B105: VOSGES | C105: 57 | D105: EPINAL | E105: 488286 | F105: EPINAL ARISTIDE BRIAND | G105: 9.1 | H105: 96 | I105: 31 | J105: 18 | K105: 90 | L105: 117 | M105: 86 | N105: 60 | O105: 109 | P105: 226 | Q105: 203 | R105: 158 | S105: 235 | T105: 92 | U105: 71 | V105: 130 | W105: 208 | X105: 155 | Y105: 246 | Z105: 134
A106: 30 | B106: AUBE HAUTE MARNE | C106: 21 | D106: CHAUMONT | E106: 451156 | F106: SAINT DIZIER CENTRE | G106: 9.4 | H106: 97 | I106: 104 | J106: 91 | K106: 144 | L106: 147 | M106: 137 | N106: 82 | O106: 119 | P106: 169 | Q106: 100 | R106: 84 | S106: 136 | T106: 96 | U106: 109 | V106: 74 | W106: 121 | X106: 191 | Y106: 81 | Z106: 68
A107: 30 | B107: MEURTHE ET MOSELLE MEUSE | C107: 26 | D107: NANCY | E107: 554116 | F107: BACCARAT | G107: 2.5 | H107: 98 | I107: 64 | J107: 91 | K107: 46 | L107: 92 | M107: 82 | N107: 180 | O107: 202 | P107: 64 | Q107: 139 | R107: 113 | S107: 195 | T107: 178 | U107: 172 | V107: 189 | W107: 118 | X107: 145 | Y107: 59 | Z107: 149
A108: 30 | B108: MEURTHE ET MOSELLE MEUSE | C108: 26 | D108: NANCY | E108: 554166 | F108: BLAINVILLE | G108: 3.1 | H108: 99 | I108: 230 | J108: 178 | K108: 242 | L108: 79 | M108: 114 | N108: 33 | O108: 36 | P108: 151 | Q108: 55 | R108: 52 | S108: 87 | T108: 105 | U108: 163 | V108: 35 | W108: 40 | X108: 66 | Y108: 55 | Z108: 24
A109: 30 | B109: VOSGES | C109: 55 | D109: SAINT DIE | E109: 488326 | F109: GERARDMER | G109: 5.2 | H109: 100 | I109: 47 | J109: 66 | K109: 34 | L109: 212 | M109: 169 | N109: 250 | O109: 133 | P109: 182 | Q109: 50 | R109: 16 | S109: 237 | T109: 213 | U109: 175 | V109: 241 | W109: 110 | X109: 92 | Y109: 89 | Z109: 147
A110: 30 | B110: VOSGES | C110: 57 | D110: EPINAL | E110: 588336 | F110: GOLBEY | G110: 3.1 | H110: 101 | I110: 121 | J110: 145 | K110: 106 | L110: 199 | M110: 200 | N110: 66 | O110: 57 | P110: 208 | Q110: 118 | R110: 72 | S110: 216 | T110: 123 | U110: 123 | V110: 127 | W110: 38 | X110: 33 | Y110: 211 | Z110: 12
A111: 30 | B111: BAS-RHIN | C111: 5006 | D111: STRASBOURG | E111: 4006 | F111: STRASBOURG NEUDORF | G111: 8.6 | H111: 102 | I111: 50 | J111: 31 | K111: 103 | L111: 74 | M111: 76 | N111: 65 | O111: 100 | P111: 156 | Q111: 183 | R111: 183 | S111: 154 | T111: 113 | U111: 121 | V111: 97 | W111: 219 | X111: 169 | Y111: 242 | Z111: 170
A112: 30 | B112: BAS-RHIN | C112: 5101 | D112: SELESTAT | E112: 4107 | F112: VILLE | G112: 2.8 | H112: 103 | I112: 254 | J112: 258 | K112: 171 | L112: 14 | M112: 10 | N112: 130 | O112: 189 | P112: 19 | Q112: 42 | R112: 38 | S112: 77 | T112: 31 | U112: 12 | V112: 234 | W112: 210 | X112: 258 | Y112: 87 | Z112: 154
A113: 30 | B113: MEURTHE ET MOSELLE MEUSE | C113: 26 | D113: NANCY | E113: 554266 | F113: DOMBASLE SUR MEURTHE | G113: 3.7 | H113: 104 | I113: 224 | J113: 213 | K113: 219 | L113: 193 | M113: 168 | N113: 109 | O113: 61 | P113: 232 | Q113: 36 | R113: 39 | S113: 61 | T113: 56 | U113: 81 | V113: 26 | W113: 50 | X113: 59 | Y113: 39 | Z113: 81
A114: 30 | B114: MOSELLE | C114: 45 | D114: METZ | E114: 457443 | F114: METZ REPUBLIQUE | G114: 4.2 | H114: 105 | I114: 7 | J114: 7 | K114: 23 | L114: 177 | M114: 186 | N114: 193 | O114: 209 | P114: 55 | Q114: 158 | R114: 119 | S114: 233 | T114: 235 | U114: 244 | V114: 187 | W114: 126 | X114: 109 | Y114: 188 | Z114: 77
A115: 30 | B115: MARNE-ARDENNES | C115: 11 | D115: REIMS | E115: 451370 | F115: EPERNAY | G115: 11.5 | H115: 106 | I115: 76 | J115: 111 | K115: 49 | L115: 90 | M115: 96 | N115: 141 | O115: 56 | P115: 126 | Q115: 170 | R115: 144 | S115: 211 | T115: 128 | U115: 108 | V115: 183 | W115: 131 | X115: 97 | Y115: 187 | Z115: 106
A116: 30 | B116: AUBE HAUTE MARNE | C116: 14 | D116: TROYES | E116: 510520 | F116: SAINT ANDRE LES VERGERS | G116: 4.1 | H116: 107 | I116: 123 | J116: 91 | K116: 168 | L116: 83 | M116: 115 | N116: 61 | O116: 107 | P116: 59 | Q116: 57 | R116: 53 | S116: 92 | T116: 228 | U116: 240 | V116: 178 | W116: 80 | X116: 141 | Y116: 44 | Z116: 80
A117: 30 | B117: VOSGES | C117: 55 | D117: SAINT DIE | E117: 588386 | F117: LE THILLOT | G117: 2.4 | H117: 108 | I117: 92 | J117: 71 | K117: 143 | L117: 161 | M117: 209 | N117: 195 | O117: 156 | P117: 7 | Q117: 95 | R117: 138 | S117: 43 | T117: 66 | U117: 47 | V117: 129 | W117: 215 | X117: 255 | Y117: 58 | Z117: 228
A118: 30 | B118: MARNE-ARDENNES | C118: 11 | D118: REIMS | E118: 551309 | F118: REIMS EUROPE | G118: 2.7 | H118: 109 | I118: 86 | J118: 71 | K118: 132 | L118: 206 | M118: 218 | N118: 120 | O118: 105 | P118: 130 | Q118: 94 | R118: 77 | S118: 127 | T118: 86 | U118: 137 | V118: 31 | W118: 151 | X118: 129 | Y118: 151 | Z118: 140
A119: 30 | B119: BAS-RHIN | C119: 5101 | D119: SELESTAT | E119: 4109 | F119: MARCKOLSHEIM | G119: 2.7 | H119: 110 | I119: 67 | J119: 54 | K119: 105 | L119: 152 | M119: 98 | N119: 188 | O119: 185 | P119: 196 | Q119: 135 | R119: 143 | S119: 107 | T119: 156 | U119: 176 | V119: 117 | W119: 106 | X119: 135 | Y119: 56 | Z119: 142
A120: 30 | B120: MEURTHE ET MOSELLE MEUSE | C120: 31 | D120: VERDUN | E120: 455678 | F120: VERDUN CENTRALE | G120: 10.7 | H120: 111 | I120: 82 | J120: 97 | K120: 74 | L120: 91 | M120: 83 | N120: 101 | O120: 38 | P120: 188 | Q120: 216 | R120: 202 | S120: 175 | T120: 206 | U120: 220 | V120: 152 | W120: 55 | X120: 30 | Y120: 167 | Z120: 52
A121: 30 | B121: MOSELLE | C121: 42 | D121: MOSELLE EST | E121: 557210 | F121: CHATEAU SALINS | G121: 2.6 | H121: 112 | I121: 208 | J121: 248 | K121: 64 | L121: 20 | M121: 18 | N121: 169 | O121: 193 | P121: 25 | Q121: 149 | R121: 193 | S121: 73 | T121: 127 | U121: 105 | V121: 182 | W121: 89 | X121: 161 | Y121: 32 | Z121: 115
A122: 30 | B122: MARNE-ARDENNES | C122: 11 | D122: REIMS | E122: 451301 | F122: REIMS HOTEL DE VILLE | G122: 7.7 | H122: 113 | I122: 153 | J122: 175 | K122: 121 | L122: 40 | M122: 43 | N122: 56 | O122: 28 | P122: 210 | Q122: 260 | R122: 257 | S122: 234 | T122: 44 | U122: 37 | V122: 58 | W122: 103 | X122: 69 | Y122: 171 | Z122: 108
A123: 30 | B123: MARNE-ARDENNES | C123: 6 | D123: CHALONS EN CHAMPAGNE | E123: 551128 | F123: SAINTE MENEHOULD | G123: 3.3 | H123: 114 | I123: 96 | J123: 91 | K123: 117 | L123: 98 | M123: 113 | N123: 125 | O123: 80 | P123: 69 | Q123: 217 | R123: 235 | S123: 74 | T123: 51 | U123: 39 | V123: 72 | W123: 226 | X123: 224 | Y123: 177 | Z123: 213
A124: 30 | B124: MOSELLE | C124: 42 | D124: MOSELLE EST | E124: 457614 | F124: SARREBOURG | G124: 8.5 | H124: 115 | I124: 144 | J124: 105 | K124: 183 | L124: 88 | M124: 91 | N124: 168 | O124: 159 | P124: 56 | Q124: 87 | R124: 88 | S124: 83 | T124: 149 | U124: 113 | V124: 213 | W124: 140 | X124: 149 | Y124: 82 | Z124: 159
A125: 30 | B125: MOSELLE | C125: 42 | D125: MOSELLE EST | E125: 457583 | F125: SAINT AVOLD | G125: 7.7 | H125: 116 | I125: 119 | J125: 136 | K125: 114 | L125: 132 | M125: 127 | N125: 148 | O125: 111 | P125: 124 | Q125: 116 | R125: 103 | S125: 146 | T125: 104 | U125: 116 | V125: 94 | W125: 148 | X125: 140 | Y125: 94 | Z125: 169
A126: 30 | B126: MARNE-ARDENNES | C126: 6 | D126: CHALONS EN CHAMPAGNE | E126: 451381 | F126: SEZANNE | G126: 6.5 | H126: 117 | I126: 83 | J126: 105 | K126: 68 | L126: 115 | M126: 154 | N126: 115 | O126: 48 | P126: 93 | Q126: 202 | R126: 203 | S126: 139 | T126: 119 | U126: 98 | V126: 159 | W126: 128 | X126: 91 | Y126: 213 | Z126: 73
A127: 30 | B127: AUBE HAUTE MARNE | C127: 14 | D127: TROYES | E127: 510570 | F127: NOGENT SUR SEINE | G127: 4.4 | H127: 118 | I127: 15 | J127: 25 | K127: 25 | L127: 144 | M127: 161 | N127: 165 | O127: 69 | P127: 108 | Q127: 215 | R127: 182 | S127: 221 | T127: 236 | U127: 206 | V127: 256 | W127: 88 | X127: 78 | Y127: 104 | Z127: 102
A128: 30 | B128: HAUT-RHIN | C128: 5130 | D128: COLMAR | E128: 4153 | F128: ROUFFACH | G128: 3.7 | H128: 119 | I128: 108 | J128: 128 | K128: 98 | L128: 226 | M128: 221 | N128: 142 | O128: 226 | P128: 176 | Q128: 175 | R128: 188 | S128: 143 | T128: 23 | U128: 27 | V128: 39 | W128: 154 | X128: 193 | Y128: 68 | Z128: 148
A129: 30 | B129: VOSGES | C129: 57 | D129: EPINAL | E129: 488561 | F129: REMIREMONT | G129: 6.6 | H129: 120 | I129: 90 | J129: 128 | K129: 62 | L129: 149 | M129: 151 | N129: 157 | O129: 150 | P129: 115 | Q129: 79 | R129: 54 | S129: 179 | T129: 154 | U129: 128 | V129: 207 | W129: 160 | X129: 127 | Y129: 235 | Z129: 78
A130: 30 | B130: BAS-RHIN | C130: 5060 | D130: HAGUENAU | E130: 4030 | F130: BRUMATH | G130: 5.3 | H130: 121 | I130: 128 | J130: 71 | K130: 192 | L130: 170 | M130: 92 | N130: 216 | O130: 129 | P130: 235 | Q130: 40 | R130: 56 | S130: 31 | T130: 214 | U130: 197 | V130: 226 | W130: 87 | X130: 79 | Y130: 116 | Z130: 83
A131: 30 | B131: BAS-RHIN | C131: 5006 | D131: STRASBOURG | E131: 4043 | F131: STRASBOURG HALLES | G131: 8.3 | H131: 122 | I131: 105 | J131: 86 | K131: 154 | L131: 185 | M131: 106 | N131: 23 | O131: 54 | P131: 264 | Q131: 86 | R131: 94 | S131: 82 | T131: 142 | U131: 143 | V131: 136 | W131: 111 | X131: 54 | Y131: 251 | Z131: 72
A132: 30 | B132: MARNE-ARDENNES | C132: 11 | D132: REIMS | E132: 451361 | F132: PIERRY LECLERC | G132: 1.9 | H132: 123 | I132: 79 | J132: 136 | K132: 30 | L132: 159 | M132: 232 | N132: 121 | O132: 53 | P132: 14 | Q132: 186 | R132: 135 | S132: 241 | T132: 106 | U132: 95 | V132: 128 | W132: 127 | X132: 102 | Y132: 152 | Z132: 124
A133: 30 | B133: BAS-RHIN | C133: 5060 | D133: HAGUENAU | E133: 4066 | F133: NIEDERBRONN LES BAINS | G133: 6.1 | H133: 124 | I133: 37 | J133: 71 | K133: 19 | L133: 188 | M133: 183 | N133: 230 | O133: 172 | P133: 80 | Q133: 105 | R133: 55 | S133: 231 | T133: 173 | U133: 151 | V133: 222 | W133: 192 | X133: 187 | Y133: 110 | Z133: 225
A134: 30 | B134: AUBE HAUTE MARNE | C134: 14 | D134: TROYES | E134: 410550 | F134: BAR SUR AUBE | G134: 5.9 | H134: 125 | I134: 59 | J134: 51 | K134: 100 | L134: 145 | M134: 142 | N134: 161 | O134: 220 | P134: 84 | Q134: 243 | R134: 232 | S134: 229 | T134: 83 | U134: 90 | V134: 68 | W134: 135 | X134: 221 | Y134: 41 | Z134: 141
A135: 30 | B135: MOSELLE | C135: 45 | D135: METZ | E135: 557437 | F135: METZ SARRE | G135: 3.8 | H135: 126 | I135: 168 | J135: 46 | K135: 247 | L135: 126 | M135: 119 | N135: 41 | O135: 212 | P135: 168 | Q135: 246 | R135: 251 | S135: 176 | T135: 10 | U135: 5 | V135: 22 | W135: 231 | X135: 237 | Y135: 103 | Z135: 251
A136: 30 | B136: VOSGES | C136: 57 | D136: EPINAL | E136: 488281 | F136: ELOYES | G136: 4.7 | H136: 127 | I136: 30 | J136: 18 | K136: 88 | L136: 167 | M136: 153 | N136: 237 | O136: 213 | P136: 72 | Q136: 121 | R136: 74 | S136: 219 | T136: 211 | U136: 217 | V136: 175 | W136: 171 | X136: 153 | Y136: 144 | Z136: 193
A137: 30 | B137: AUBE HAUTE MARNE | C137: 21 | D137: CHAUMONT | E137: 410541 | F137: LANGRES | G137: 6.5 | H137: 128 | I137: 159 | J137: 194 | K137: 111 | L137: 84 | M137: 68 | N137: 144 | O137: 104 | P137: 147 | Q137: 193 | R137: 207 | S137: 97 | T137: 85 | U137: 73 | V137: 108 | W137: 107 | X137: 188 | Y137: 73 | Z137: 59
A138: 30 | B138: MOSELLE | C138: 45 | D138: METZ | E138: 457574 | F138: ROMBAS | G138: 3.2 | H138: 129 | I138: 200 | J138: 222 | K138: 155 | L138: 31 | M138: 58 | N138: 111 | O138: 149 | P138: 3 | Q138: 31 | R138: 31 | S138: 72 | T138: 145 | U138: 134 | V138: 158 | W138: 244 | X138: 214 | Y138: 233 | Z138: 234
A139: 30 | B139: MEURTHE ET MOSELLE MEUSE | C139: 31 | D139: VERDUN | E139: 455676 | F139: VAUCOULEURS | G139: 1.8 | H139: 130 | I139: 262 | J139: 261 | K139: 244 | L139: 10 | M139: 22 | N139: 97 | O139: 29 | P139: 22 | Q139: 231 | R139: 195 | S139: 244 | T139: 18 | U139: 19 | V139: 17 | W139: 37 | X139: 70 | Y139: 28 | Z139: 44
A140: 30 | B140: MEURTHE ET MOSELLE MEUSE | C140: 31 | D140: VERDUN | E140: 555406 | F140: LIGNY EN BARROIS | G140: 2.8 | H140: 131 | I140: 34 | J140: 31 | K140: 73 | L140: 153 | M140: 136 | N140: 145 | O140: 152 | P140: 146 | Q140: 159 | R140: 173 | S140: 126 | T140: 191 | U140: 181 | V140: 199 | W140: 163 | X140: 180 | Y140: 83 | Z140: 178
A141: 30 | B141: MOSELLE | C141: 44 | D141: MOSELLE NORD | E141: 457632 | F141: THIONVILLE CENTRALE | G141: 11.7 | H141: 132 | I141: 140 | J141: 97 | K141: 187 | L141: 80 | M141: 101 | N141: 100 | O141: 199 | P141: 36 | Q141: 130 | R141: 175 | S141: 58 | T141: 101 | U141: 92 | V141: 103 | W141: 187 | X141: 186 | Y141: 96 | Z141: 231
A142: 30 | B142: MOSELLE | C142: 45 | D142: METZ | E142: 557612 | F142: SAINTE MARIE AUX CHENES | G142: 3.9 | H142: 133 | I142: 20 | J142: 22 | K142: 57 | L142: 231 | M142: 244 | N142: 240 | O142: 238 | P142: 43 | Q142: 148 | R142: 189 | S142: 76 | T142: 117 | U142: 119 | V142: 113 | W142: 183 | X142: 175 | Y142: 219 | Z142: 110
A143: 30 | B143: VOSGES | C143: 55 | D143: SAINT DIE | E143: 588186 | F143: BRUYERES | G143: 3.7 | H143: 134 | I143: 78 | J143: 111 | K143: 52 | L143: 135 | M143: 163 | N143: 126 | O143: 181 | P143: 49 | Q143: 261 | R143: 259 | S143: 232 | T143: 94 | U143: 100 | V143: 80 | W143: 52 | X143: 104 | Y143: 38 | Z143: 40
A144: 110 | B144: MARNE-ARDENNES | C144: 11 | D144: REIMS | E144: 551365 | F144: DORMANS | G144: 2.7 | H144: 135 | I144: 63 | J144: 36 | K144: 137 | L144: 238 | M144: 246 | N144: 217 | O144: 35 | P144: 184 | Q144: 123 | R144: 160 | S144: 67 | T144: 172 | U144: 189 | V144: 144 | W144: 66 | X144: 46 | Y144: 166 | Z144: 62
A145: 110 | B145: MOSELLE | C145: 44 | D145: MOSELLE NORD | E145: 457350 | F145: HAYANGE | G145: 7.2 | H145: 136 | I145: 155 | J145: 78 | K145: 222 | L145: 42 | M145: 51 | N145: 132 | O145: 128 | P145: 27 | Q145: 184 | R145: 246 | S145: 27 | T145: 144 | U145: 144 | V145: 140 | W145: 156 | X145: 131 | Y145: 140 | Z145: 166
A146: 110 | B146: MOSELLE | C146: 42 | D146: MOSELLE EST | E146: 457617 | F146: SARREGUEMINES | G146: 8.3 | H146: 137 | I146: 93 | J146: 86 | K146: 125 | L146: 130 | M146: 102 | N146: 212 | O146: 161 | P146: 139 | Q146: 125 | R146: 163 | S146: 68 | T146: 151 | U146: 142 | V146: 170 | W146: 170 | X146: 111 | Y146: 204 | Z146: 183
A147: 110 | B147: MOSELLE | C147: 42 | D147: MOSELLE EST | E147: 557503 | F147: NEUNKIRCH | G147: 3.8 | H147: 138 | I147: 29 | J147: 57 | K147: 21 | L147: 209 | M147: 197 | N147: 213 | O147: 252 | P147: 94 | Q147: 92 | R147: 40 | S147: 251 | T147: 207 | U147: 187 | V147: 223 | W147: 199 | X147: 233 | Y147: 71 | Z147: 216
A148: 110 | B148: MOSELLE | C148: 44 | D148: MOSELLE NORD | E148: 557622 | F148: SIERCK LES BAINS | G148: 1.3 | H148: 139 | I148: 181 | J148: 218 | K148: 124 | L148: 114 | M148: 211 | N148: 16 | O148: 83 | P148: 35 | Q148: 38 | R148: 20 | S148: 168 | T148: 234 | U148: 251 | V148: 135 | W148: 61 | X148: 48 | Y148: 223 | Z148: 23
A149: 110 | B149: AUBE HAUTE MARNE | C149: 14 | D149: TROYES | E149: 410571 | F149: ROMILLY SUR SEINE | G149: 6.7 | H149: 140 | I149: 69 | J149: 51 | K149: 129 | L149: 96 | M149: 95 | N149: 182 | O149: 102 | P149: 79 | Q149: 211 | R149: 205 | S149: 161 | T149: 199 | U149: 194 | V149: 200 | W149: 132 | X149: 142 | Y149: 98 | Z149: 133
A150: 110 | B150: MOSELLE | C150: 45 | D150: METZ | E150: 557712 | F150: WOIPPY | G150: 5.5 | H150: 141 | I150: 114 | J150: 97 | K150: 152 | L150: 99 | M150: 123 | N150: 54 | O150: 112 | P150: 98 | Q150: 218 | R150: 198 | S150: 206 | T150: 93 | U150: 130 | V150: 43 | W150: 173 | X150: 116 | Y150: 220 | Z150: 163
A151: 110 | B151: MEURTHE ET MOSELLE MEUSE | C151: 27 | D151: PONT A MOUSSON | E151: 554321 | F151: FROUARD | G151: 3.0 | H151: 142 | I151: 241 | J151: 251 | K151: 177 | L151: 77 | M151: 133 | N151: 124 | O151: 62 | P151: 13 | Q151: 32 | R151: 12 | S151: 196 | T151: 116 | U151: 154 | V151: 59 | W151: 93 | X151: 56 | Y151: 197 | Z151: 97
A152: 110 | B152: MARNE-ARDENNES | C152: 2 | D152: CHARLEVILLE MEZIERES | E152: 408806 | F152: SEDAN | G152: 9.1 | H152: 143 | I152: 81 | J152: 163 | K152: 9 | L152: 207 | M152: 220 | N152: 191 | O152: 65 | P152: 111 | Q152: 91 | R152: 48 | S152: 223 | T152: 208 | U152: 168 | V152: 240 | W152: 115 | X152: 74 | Y152: 207 | Z152: 91
A153: 110 | B153: MEURTHE ET MOSELLE MEUSE | C153: 27 | D153: PONT A MOUSSON | E153: 554184 | F153: BRIEY | G153: 4.6 | H153: 144 | I153: 106 | J153: 136 | K153: 82 | L153: 213 | M153: 238 | N153: 219 | O153: 158 | P153: 29 | Q153: 53 | R153: 35 | S153: 158 | T153: 227 | U153: 223 | V153: 225 | W153: 78 | X153: 106 | Y153: 42 | Z153: 116
A154: 110 | B154: BAS-RHIN | C154: 5101 | D154: SELESTAT | E154: 4015 | F154: LINGOLSHEIM | G154: 4.5 | H154: 145 | I154: 141 | J154: 116 | K154: 167 | L154: 189 | M154: 162 | N154: 236 | O154: 223 | P154: 102 | Q154: 73 | R154: 68 | S154: 119 | T154: 84 | U154: 99 | V154: 64 | W154: 202 | X154: 183 | Y154: 133 | Z154: 229
A155: 110 | B155: MOSELLE | C155: 45 | D155: METZ | E155: 557105 | F155: ARS SUR MOSELLE | G155: 3.7 | H155: 146 | I155: 150 | J155: 145 | K155: 158 | L155: 203 | M155: 138 | N155: 150 | O155: 88 | P155: 241 | Q155: 201 | R155: 190 | S155: 174 | T155: 197 | U155: 190 | V155: 202 | W155: 17 | X155: 9 | Y155: 95 | Z155: 47
A156: 110 | B156: BAS-RHIN | C156: 5060 | D156: HAGUENAU | E156: 4057 | F156: BISCHWILLER | G156: 6.2 | H156: 147 | I156: 190 | J156: 168 | K156: 202 | L156: 51 | M156: 48 | N156: 163 | O156: 222 | P156: 67 | Q156: 167 | R156: 185 | S156: 123 | T156: 71 | U156: 60 | V156: 100 | W156: 193 | X156: 197 | Y156: 84 | Z156: 238
A157: 110 | B157: MEURTHE ET MOSELLE MEUSE | C157: 26 | D157: NANCY | E157: 554296 | F157: ESSEY LES NANCY | G157: 3.9 | H157: 148 | I157: 138 | J157: 152 | K157: 134 | L157: 82 | M157: 61 | N157: 117 | O157: 85 | P157: 200 | Q157: 140 | R157: 87 | S157: 228 | T157: 210 | U157: 202 | V157: 203 | W157: 100 | X157: 67 | Y157: 185 | Z157: 98
A158: 110 | B158: HAUT-RHIN | C158: 5169 | D158: MULHOUSE | E158: 4195 | F158: CERNAY | G158: 2.5 | H158: 149 | I158: 135 | J158: 116 | K158: 160 | L158: 220 | M158: 252 | N158: 95 | O158: 139 | P158: 58 | Q158: 21 | R158: 8 | S158: 131 | T158: 242 | U158: 253 | V158: 125 | W158: 84 | X158: 76 | Y158: 124 | Z158: 69
A159: 110 | B159: MEURTHE ET MOSELLE MEUSE | C159: 27 | D159: PONT A MOUSSON | E159: 454355 | F159: JARNY | G159: 4.6 | H159: 150 | I159: 202 | J159: 230 | K159: 148 | L159: 67 | M159: 49 | N159: 202 | O159: 95 | P159: 163 | Q159: 192 | R159: 187 | S159: 162 | T159: 79 | U159: 103 | V159: 49 | W159: 119 | X159: 51 | Y159: 237 | Z159: 120
A160: 110 | B160: MOSELLE | C160: 42 | D160: MOSELLE EST | E160: 557523 | F160: PHALSBOURG | G160: 2.2 | H160: 151 | I160: 171 | J160: 194 | K160: 139 | L160: 247 | M160: 224 | N160: 112 | O160: 93 | P160: 255 | Q160: 98 | R160: 90 | S160: 103 | T160: 139 | U160: 107 | V160: 204 | W160: 25 | X160: 96 | Y160: 5 | Z160: 33
A161: 110 | B161: BAS-RHIN | C161: 5060 | D161: HAGUENAU | E161: 4071 | F161: WISSEMBOURG | G161: 8.4 | H161: 152 | I161: 84 | J161: 163 | K161: 12 | L161: 164 | M161: 167 | N161: 172 | O161: 210 | P161: 86 | Q161: 68 | R161: 66 | S161: 105 | T161: 166 | U161: 178 | V161: 156 | W161: 235 | X161: 236 | Y161: 194 | Z161: 212
A162: 110 | B162: MOSELLE | C162: 45 | D162: METZ | E162: 557178 | F162: BOULAY | G162: 4.0 | H162: 153 | I162: 51 | J162: 31 | K162: 104 | L162: 183 | M162: 185 | N162: 173 | O162: 153 | P162: 113 | Q162: 141 | R162: 136 | S162: 133 | T162: 175 | U162: 204 | V162: 134 | W162: 221 | X162: 231 | Y162: 118 | Z162: 232
A163: 110 | B163: MEURTHE ET MOSELLE MEUSE | C163: 31 | D163: VERDUN | E163: 455231 | F163: COMMERCY | G163: 4.7 | H163: 154 | I163: 154 | J163: 136 | K163: 176 | L163: 131 | M163: 149 | N163: 94 | O163: 123 | P163: 116 | Q163: 200 | R163: 174 | S163: 198 | T163: 140 | U163: 111 | V163: 196 | W163: 74 | X163: 122 | Y163: 46 | Z163: 75
A164: 110 | B164: BAS-RHIN | C164: 5006 | D164: STRASBOURG | E164: 4027 | F164: SCHILTIGHEIM CENTRE | G164: 3.9 | H164: 155 | I164: 187 | J164: 168 | K164: 199 | L164: 116 | M164: 120 | N164: 43 | O164: 45 | P164: 209 | Q164: 52 | R164: 67 | S164: 49 | T164: 185 | U164: 185 | V164: 188 | W164: 123 | X164: 62 | Y164: 228 | Z164: 107
A165: 110 | B165: MOSELLE | C165: 45 | D165: METZ | E165: 557559 | F165: REMILLY | G165: 4.2 | H165: 156 | I165: 160 | J165: 168 | K165: 151 | L165: 184 | M165: 184 | N165: 227 | O165: 201 | P165: 53 | Q165: 90 | R165: 57 | S165: 185 | T165: 118 | U165: 117 | V165: 122 | W165: 155 | X165: 125 | Y165: 117 | Z165: 186
A166: 110 | B166: BAS-RHIN | C166: 5101 | D166: SELESTAT | E166: 4007 | F166: ILLKIRCH CENTRE | G166: 7.3 | H166: 157 | I166: 167 | J166: 163 | K166: 166 | L166: 52 | M166: 25 | N166: 192 | O166: 138 | P166: 213 | Q166: 174 | R166: 208 | S166: 85 | T166: 114 | U166: 82 | V166: 165 | W166: 216 | X166: 206 | Y166: 172 | Z166: 204
A167: 110 | B167: MOSELLE | C167: 44 | D167: MOSELLE NORD | E167: 457158 | F167: YUTZ | G167: 4.6 | H167: 158 | I167: 125 | J167: 78 | K167: 182 | L167: 104 | M167: 70 | N167: 246 | O167: 235 | P167: 66 | Q167: 188 | R167: 148 | S167: 227 | T167: 138 | U167: 118 | V167: 179 | W167: 181 | X167: 144 | Y167: 163 | Z167: 210
A168: 110 | B168: AUBE HAUTE MARNE | C168: 14 | D168: TROYES | E168: 510530 | F168: ARCIS SUR AUBE | G168: 3.9 | H168: 159 | I168: 57 | J168: 4 | K168: 226 | L168: 93 | M168: 93 | N168: 234 | O168: 126 | P168: 37 | Q168: 232 | R168: 241 | S168: 96 | T168: 194 | U168: 192 | V168: 191 | W168: 214 | X168: 225 | Y168: 183 | Z168: 156
A169: 110 | B169: MOSELLE | C169: 44 | D169: MOSELLE NORD | E169: 557347 | F169: GUENANGE | G169: 5.0 | H169: 160 | I169: 233 | J169: 222 | K169: 218 | L169: 103 | M169: 144 | N169: 102 | O169: 134 | P169: 26 | Q169: 97 | R169: 69 | S169: 170 | T169: 161 | U169: 196 | V169: 105 | W169: 48 | X169: 37 | Y169: 149 | Z169: 35
A170: 110 | B170: MEURTHE ET MOSELLE MEUSE | C170: 26 | D170: NANCY | E170: 454171 | F170: BLAMONT | G170: 1.5 | H170: 161 | I170: 244 | J170: 259 | K170: 91 | L170: 16 | M170: 32 | N170: 21 | O170: 121 | P170: 31 | Q170: 253 | R170: 243 | S170: 245 | T170: 42 | U170: 57 | V170: 36 | W170: 138 | X170: 126 | Y170: 186 | Z170: 88
A171: 110 | B171: MEURTHE ET MOSELLE MEUSE | C171: 27 | D171: PONT A MOUSSON | E171: 454696 | F171: VILLERS GENERAL LECLERC | G171: 6.1 | H171: 162 | I171: 77 | J171: 66 | K171: 113 | L171: 171 | M171: 171 | N171: 231 | O171: 108 | P171: 101 | Q171: 131 | R171: 120 | S171: 155 | T171: 169 | U171: 169 | V171: 180 | W171: 218 | X171: 202 | Y171: 184 | Z171: 211
A172: 110 | B172: BAS-RHIN | C172: 5060 | D172: HAGUENAU | E172: 4087 | F172: SAVERNE | G172: 7.8 | H172: 163 | I172: 178 | J172: 111 | K172: 228 | L172: 101 | M172: 45 | N172: 103 | O172: 116 | P172: 256 | Q172: 150 | R172: 142 | S172: 160 | T172: 160 | U172: 167 | V172: 141 | W172: 99 | X172: 83 | Y172: 100 | Z172: 128
A173: 110 | B173: MOSELLE | C173: 45 | D173: METZ | E173: 557439 | F173: METZ POMPIDOU | G173: 3.9 | H173: 164 | I173: 142 | J173: 116 | K173: 170 | L173: 197 | M173: 148 | N173: 209 | O173: 171 | P173: 198 | Q173: 137 | R173: 191 | S173: 53 | T173: 88 | U173: 125 | V173: 41 | W173: 182 | X173: 151 | Y173: 199 | Z173: 175
A174: 110 | B174: VOSGES | C174: 55 | D174: SAINT DIE | E174: 588461 | F174: MOYENMOUTIER | G174: 2.6 | H174: 165 | I174: 212 | J174: 178 | K174: 229 | L174: 71 | M174: 67 | N174: 99 | O174: 241 | P174: 76 | Q174: 61 | R174: 25 | S174: 249 | T174: 204 | U174: 183 | V174: 220 | W174: 124 | X174: 215 | Y174: 25 | Z174: 167
A175: 110 | B175: MEURTHE ET MOSELLE MEUSE | C175: 27 | D175: PONT A MOUSSON | E175: 554496 | F175: NANCY TROIS MAISONS | G175: 2.5 | H175: 166 | I175: 253 | J175: 251 | K175: 225 | L175: 53 | M175: 60 | N175: 224 | O175: 191 | P175: 11 | Q175: 76 | R175: 104 | S175: 62 | T175: 62 | U175: 91 | V175: 29 | W175: 146 | X175: 162 | Y175: 31 | Z175: 246
A176: 110 | B176: MARNE-ARDENNES | C176: 11 | D176: REIMS | E176: 451308 | F176: REIMS SAINT THOMAS | G176: 7.4 | H176: 167 | I176: 197 | J176: 145 | K176: 234 | L176: 191 | M176: 170 | N176: 96 | O176: 77 | P176: 218 | Q176: 176 | R176: 156 | S176: 202 | T176: 147 | U176: 162 | V176: 106 | W176: 27 | X176: 16 | Y176: 113 | Z176: 54
A177: 110 | B177: BAS-RHIN | C177: 5006 | D177: STRASBOURG | E177: 4026 | F177: STRASBOURG DANUBE | G177: 4.5 | H177: 168 | I177: 188 | J177: 36 | K177: 258 | L177: 219 | M177: 118 | N177: 232 | O177: 251 | P177: 239 | Q177: 233 | R177: 255 | S177: 44 | T177: 15 | U177: 7 | V177: 51 | W177: 212 | X177: 218 | Y177: 85 | Z177: 243
A178: 110 | B178: MEURTHE ET MOSELLE MEUSE | C178: 31 | D178: VERDUN | E178: 455566 | F178: REVIGNY SUR ORNAIN | G178: 3.4 | H178: 169 | I178: 80 | J178: 116 | K178: 48 | L178: 87 | M178: 124 | N178: 138 | O178: 169 | P178: 6 | Q178: 241 | R178: 225 | S178: 230 | T178: 179 | U178: 186 | V178: 171 | W178: 179 | X178: 222 | Y178: 92 | Z178: 174
A179: 110 | B179: MARNE-ARDENNES | C179: 11 | D179: REIMS | E179: 551369 | F179: DAMERY | G179: 2.4 | H179: 170 | I179: 209 | J179: 206 | K179: 205 | L179: 211 | M179: 195 | N179: 36 | O179: 22 | P179: 260 | Q179: 230 | R179: 211 | S179: 203 | T179: 54 | U179: 80 | V179: 19 | W179: 41 | X179: 36 | Y179: 80 | Z179: 53
A180: 110 | B180: BAS-RHIN | C180: 5006 | D180: STRASBOURG | E180: 4045 | F180: STRASBOURG FRANCS BOURGEOIS | G180: 4.6 | H180: 171 | I180: 203 | J180: 178 | K180: 213 | L180: 111 | M180: 103 | N180: 108 | O180: 157 | P180: 138 | Q180: 22 | R180: 9 | S180: 142 | T180: 231 | U180: 180 | V180: 258 | W180: 157 | X180: 81 | Y180: 208 | Z180: 164
A181: 110 | B181: VOSGES | C181: 55 | D181: SAINT DIE | E181: 588587 | F181: SAINT DIE CATHEDRALE | G181: 3.9 | H181: 172 | I181: 55 | J181: 105 | K181: 22 | L181: 218 | M181: 216 | N181: 205 | O181: 230 | P181: 82 | Q181: 122 | R181: 89 | S181: 178 | T181: 225 | U181: 231 | V181: 197 | W181: 172 | X181: 138 | Y181: 189 | Z181: 172
A182: 110 | B182: MOSELLE | C182: 42 | D182: MOSELLE EST | E182: 457258 | F182: DIEUZE | G182: 3.1 | H182: 173 | I182: 143 | J182: 178 | K182: 85 | L182: 106 | M182: 145 | N182: 208 | O182: 170 | P182: 4 | Q182: 166 | R182: 166 | S182: 165 | T182: 121 | U182: 106 | V182: 150 | W182: 222 | X182: 238 | Y182: 147 | Z182: 202
A183: 110 | B183: MARNE-ARDENNES | C183: 11 | D183: REIMS | E183: 551341 | F183: REIMS JEAN JAURES | G183: 4.4 | H183: 174 | I183: 194 | J183: 206 | K183: 175 | L183: 86 | M183: 152 | N183: 149 | O183: 42 | P183: 12 | Q183: 160 | R183: 217 | S183: 45 | T183: 132 | U183: 164 | V183: 70 | W183: 144 | X183: 113 | Y183: 217 | Z183: 74
A184: 110 | B184: MOSELLE | C184: 45 | D184: METZ | E184: 557434 | F184: MARLY | G184: 3.7 | H184: 175 | I184: 71 | J184: 86 | K184: 69 | L184: 109 | M184: 107 | N184: 159 | O184: 141 | P184: 96 | Q184: 136 | R184: 155 | S184: 88 | T184: 248 | U184: 249 | V184: 230 | W184: 204 | X184: 164 | Y184: 180 | Z184: 209
A185: 110 | B185: MEURTHE ET MOSELLE MEUSE | C185: 26 | D185: NANCY | E185: 454671 | F185: VANDOEUVRE LES NANCY | G185: 4.6 | H185: 176 | I185: 211 | J185: 222 | K185: 178 | L185: 73 | M185: 99 | N185: 26 | O185: 27 | P185: 201 | Q185: 239 | R185: 221 | S185: 226 | T185: 163 | U185: 193 | V185: 124 | W185: 31 | X185: 22 | Y185: 175 | Z185: 26
A186: 110 | B186: BAS-RHIN | C186: 5101 | D186: SELESTAT | E186: 4119 | F186: OBERNAI | G186: 3.6 | H186: 177 | I186: 248 | J186: 240 | K186: 245 | L186: 27 | M186: 14 | N186: 86 | O186: 176 | P186: 185 | Q186: 126 | R186: 224 | S186: 14 | T186: 65 | U186: 46 | V186: 126 | W186: 213 | X186: 245 | Y186: 102 | Z186: 191
A187: 110 | B187: HAUT-RHIN | C187: 5169 | D187: MULHOUSE | E187: 4181 | F187: WITTELSHEIM | G187: 3.3 | H187: 178 | I187: 177 | J187: 194 | K187: 153 | L187: 205 | M187: 205 | N187: 67 | O187: 113 | P187: 186 | Q187: 221 | R187: 215 | S187: 156 | T187: 146 | U187: 195 | V187: 63 | W187: 39 | X187: 90 | Y187: 20 | Z187: 29
A188: 110 | B188: BAS-RHIN | C188: 5101 | D188: SELESTAT | E188: 4116 | F188: MOLSHEIM | G188: 5.1 | H188: 179 | I188: 192 | J188: 178 | K188: 191 | L188: 190 | M188: 130 | N188: 214 | O188: 184 | P188: 187 | Q188: 29 | R188: 18 | S188: 112 | T188: 198 | U188: 184 | V188: 212 | W188: 165 | X188: 167 | Y188: 164 | Z188: 125
A189: 110 | B189: MARNE-ARDENNES | C189: 2 | D189: CHARLEVILLE MEZIERES | E189: 408840 | F189: RETHEL | G189: 5.0 | H189: 180 | I189: 60 | J189: 97 | K189: 32 | L189: 165 | M189: 193 | N189: 189 | O189: 167 | P189: 30 | Q189: 179 | R189: 170 | S189: 177 | T189: 212 | U189: 177 | V189: 235 | W189: 217 | X189: 132 | Y189: 250 | Z189: 201
A190: 110 | B190: MEURTHE ET MOSELLE MEUSE | C190: 27 | D190: PONT A MOUSSON | E190: 554196 | F190: CHAMPIGNEULLES | G190: 3.5 | H190: 181 | I190: 201 | J190: 222 | K190: 157 | L190: 43 | M190: 31 | N190: 210 | O190: 144 | P190: 127 | Q190: 199 | R190: 212 | S190: 95 | T190: 112 | U190: 122 | V190: 93 | W190: 220 | X190: 185 | Y190: 203 | Z190: 217
A191: 110 | B191: HAUT-RHIN | C191: 5130 | D191: COLMAR | E191: 4143 | F191: MUNSTER | G191: 5.1 | H191: 182 | I191: 164 | J191: 163 | K191: 161 | L191: 61 | M191: 57 | N191: 133 | O191: 130 | P191: 78 | Q191: 220 | R191: 200 | S191: 207 | T191: 159 | U191: 136 | V191: 198 | W191: 190 | X191: 241 | Y191: 61 | Z191: 203
A192: 160 | B192: BAS-RHIN | C192: 5060 | D192: HAGUENAU | E192: 4041 | F192: HOERDT | G192: 2.0 | H192: 183 | I192: 215 | J192: 255 | K192: 17 | L192: 60 | M192: 36 | N192: 257 | O192: 179 | P192: 97 | Q192: 44 | R192: 14 | S192: 212 | T192: 135 | U192: 69 | V192: 248 | W192: 256 | X192: 249 | Y192: 248 | Z192: 255
A193: 160 | B193: MARNE-ARDENNES | C193: 2 | D193: CHARLEVILLE MEZIERES | E193: 508817 | F193: CHARLEVILLE MOHON | G193: 3.4 | H193: 184 | I193: 88 | J193: 136 | K193: 54 | L193: 175 | M193: 250 | N193: 104 | O193: 60 | P193: 5 | Q193: 208 | R193: 153 | S193: 246 | T193: 209 | U193: 226 | V193: 154 | W193: 141 | X193: 123 | Y193: 181 | Z193: 99
A194: 160 | B194: HAUT-RHIN | C194: 5130 | D194: COLMAR | E194: 4157 | F194: NEUF BRISACH | G194: 3.6 | H194: 185 | I194: 100 | J194: 66 | K194: 162 | L194: 224 | M194: 234 | N194: 152 | O194: 240 | P194: 132 | Q194: 212 | R194: 204 | S194: 169 | T194: 95 | U194: 61 | V194: 184 | W194: 169 | X194: 201 | Y194: 77 | Z194: 189
A195: 160 | B195: VOSGES | C195: 55 | D195: SAINT DIE | E195: 588551 | F195: RAMBERVILLERS | G195: 3.5 | H195: 186 | I195: 61 | J195: 116 | K195: 14 | L195: 242 | M195: 201 | N195: 198 | O195: 86 | P195: 247 | Q195: 154 | R195: 100 | S195: 256 | T195: 215 | U195: 213 | V195: 201 | W195: 120 | X195: 101 | Y195: 90 | Z195: 168
A196: 160 | B196: BAS-RHIN | C196: 5006 | D196: STRASBOURG | E196: 4020 | F196: STRASBOURG ROBERTSAU | G196: 6.1 | H196: 187 | I196: 207 | J196: 222 | K196: 169 | L196: 120 | M196: 75 | N196: 196 | O196: 90 | P196: 199 | Q196: 93 | R196: 111 | S196: 70 | T196: 195 | U196: 158 | V196: 238 | W196: 98 | X196: 63 | Y196: 161 | Z196: 118
A197: 160 | B197: AUBE HAUTE MARNE | C197: 21 | D197: CHAUMONT | E197: 410566 | F197: CHAUMONT HOTEL DE VILLE | G197: 7.7 | H197: 188 | I197: 158 | J197: 203 | K197: 96 | L197: 134 | M197: 147 | N197: 81 | O197: 99 | P197: 137 | Q197: 214 | R197: 213 | S197: 138 | T197: 176 | U197: 188 | V197: 161 | W197: 92 | X197: 156 | Y197: 33 | Z197: 126
A198: 160 | B198: MOSELLE | C198: 42 | D198: MOSELLE EST | E198: 557668 | F198: VALMONT | G198: 4.6 | H198: 189 | I198: 16 | J198: 25 | K198: 29 | L198: 229 | M198: 215 | N198: 253 | O198: 245 | P198: 109 | Q198: 182 | R198: 194 | S198: 132 | T198: 188 | U198: 166 | V198: 210 | W198: 249 | X198: 228 | Y198: 230 | Z198: 248
A199: 160 | B199: MARNE-ARDENNES | C199: 6 | D199: CHALONS EN CHAMPAGNE | E199: 451166 | F199: VITRY LE FRANCOIS | G199: 7.0 | H199: 190 | I199: 115 | J199: 175 | K199: 50 | L199: 217 | M199: 226 | N199: 177 | O199: 34 | P199: 172 | Q199: 191 | R199: 180 | S199: 171 | T199: 162 | U199: 149 | V199: 208 | W199: 114 | X199: 72 | Y199: 227 | Z199: 70
A200: 160 | B200: AUBE HAUTE MARNE | C200: 14 | D200: TROYES | E200: 510513 | F200: TROYES 1ER MAI | G200: 3.4 | H200: 191 | I200: 199 | J200: 66 | K200: 255 | L200: 156 | M200: 208 | N200: 30 | O200: 106 | P200: 106 | Q200: 213 | R200: 219 | S200: 108 | T200: 164 | U200: 179 | V200: 147 | W200: 46 | X200: 34 | Y200: 191 | Z200: 27
A201: 160 | B201: HAUT-RHIN | C201: 5130 | D201: COLMAR | E201: 4132 | F201: COLMAR MARAICHERS | G201: 4.7 | H201: 192 | I201: 176 | J201: 175 | K201: 174 | L201: 36 | M201: 28 | N201: 143 | O201: 227 | P201: 83 | Q201: 180 | R201: 197 | S201: 122 | T201: 150 | U201: 94 | V201: 233 | W201: 259 | X201: 246 | Y201: 247 | Z201: 258
A202: 160 | B202: MARNE-ARDENNES | C202: 2 | D202: CHARLEVILLE MEZIERES | E202: 508860 | F202: ROCROI | G202: 3.4 | H202: 193 | I202: 68 | J202: 25 | K202: 164 | L202: 176 | M202: 202 | N202: 229 | O202: 162 | P202: 15 | Q202: 237 | R202: 248 | S202: 102 | T202: 205 | U202: 160 | V202: 242 | W202: 191 | X202: 176 | Y202: 153 | Z202: 199
A203: 160 | B203: MOSELLE | C203: 45 | D203: METZ | E203: 557433 | F203: MARANGE SILVANGE | G203: 2.6 | H203: 194 | I203: 172 | J203: 145 | K203: 198 | L203: 173 | M203: 174 | N203: 199 | O203: 247 | P203: 50 | Q203: 254 | R203: 258 | S203: 100 | T203: 129 | U203: 112 | V203: 167 | W203: 58 | X203: 110 | Y203: 4 | Z203: 179
A204: 160 | B204: MOSELLE | C204: 45 | D204: METZ | E204: 557445 | F204: METZ SAINT LIVIER | G204: 3.0 | H204: 195 | I204: 134 | J204: 168 | K204: 87 | L204: 113 | M204: 100 | N204: 226 | O204: 206 | P204: 65 | Q204: 195 | R204: 177 | S204: 180 | T204: 200 | U204: 170 | V204: 229 | W204: 200 | X204: 128 | Y204: 252 | Z204: 146
... 70 more rows

Sheet AG_FICHE
A1: Accueil
A2: BAROMETRE GRAND PUBLIC
A4: UNITE: | B4: Agence | E4: ETP perf : | F4: =VLOOKUP(A5,'RECAP AG'!$G$6:$DG$271,3,FALSE) -> 8.01
A5: =VLOOKUP(B5,LISTES!$C$6:$D$271,2,FALSE) -> 4189 | B5: ALTKIRCH
C6: Coefficient du critère | E6: Résultats | I6: Ecart au 1ier | K6: =IF(OR(A5=4017,A5=4022),"Rang estimé","Rang") -> Rang
E7: du 1ier | G7: de l'Agence | I7: Du mois
A9: RANG GRAND PUBLIC | K9: =VLOOKUP($A$5,'RECAP AG'!$G$6:$DG$271,104,FALSE) -> 257
A11: SATISFACTION CLIENTS | C11: 20% | K11: =VLOOKUP($A$5,'RECAP AG'!$G$6:$DG$271,13,FALSE) -> 220
B12: NPS à froid (SAE) | C12: 10% | E12: =+'RECAP AG'!K4 -> 51 | G12: =VLOOKUP($A$5,'RECAP AG'!$G$6:$DG$271,5,FALSE) -> 10.0 | I12: =VLOOKUP($A$5,'RECAP AG'!$G$6:$DG$271,6,FALSE) -> 60% | K12: =VLOOKUP($A$5,'RECAP AG'!$G$6:$DG$271,7,FALSE) -> 163
B13: NPS à chaud (QHD) | C13: 10% | E13: =+'RECAP AG'!M4 -> 10% | G13: =VLOOKUP($A$5,'RECAP AG'!$G$6:$DG$271,8,FALSE) -> 33% | I13: =VLOOKUP($A$5,'RECAP AG'!$G$6:$DG$271,9,FALSE) -> 62% | K13: =VLOOKUP($A$5,'RECAP AG'!$G$6:$DG$271,10,FALSE) -> 241
A15: BANCARISATION | C15: 20% | K15: =VLOOKUP($A$5,'RECAP AG'!$G$6:$DG$271,36,FALSE) -> 263
B16: Ventes Nettes produits pondérés | C16: 10% | E16: ='RECAP AG'!X4 -> 122.7 | G16: =VLOOKUP($A$5,'RECAP AG'!$G$6:$DG$271,19,FALSE) -> 11.0 | I16: =VLOOKUP($A$5,'RECAP AG'!$G$6:$DG$271,20,FALSE) -> 91% | K16: =VLOOKUP($A$5,'RECAP AG'!$G$6:$DG$271,21,FALSE) -> 257
B17: Ventes sur client non détenteur de l’univers | C17: 4% | E17: ='RECAP AG'!AB4 -> 60.9 | G17: =VLOOKUP($A$5,'RECAP AG'!$G$6:$DG$271,23,FALSE) -> 16.9 | I17: =VLOOKUP($A$5,'RECAP AG'!$G$6:$DG$271,24,FALSE) -> 72% | K17: =VLOOKUP($A$5,'RECAP AG'!$G$6:$DG$271,25,FALSE) -> 252
B18: Mobilité Macron | C18: 3% | E18: ='RECAP AG'!AF4 -> 32.0 | G18: =VLOOKUP($A$5,'RECAP AG'!$G$6:$DG$271,27,FALSE) -> 2.6 | I18: =VLOOKUP($A$5,'RECAP AG'!$G$6:$DG$271,28,FALSE) -> 92% | K18: =VLOOKUP($A$5,'RECAP AG'!$G$6:$DG$271,29,FALSE) -> 211
B19: Remises commerciales | C19: 3% | E19: ='RECAP AG'!AJ4 -> -0.0 | G19: =VLOOKUP($A$5,'RECAP AG'!$G$6:$DG$271,31,FALSE) -> -2.7 | I19: =VLOOKUP($A$5,'RECAP AG'!$G$6:$DG$271,32,FALSE) -> 114% | K19: =VLOOKUP($A$5,'RECAP AG'!$G$6:$DG$271,33,FALSE) -> 244
A21: EPARGNE | C21: 20% | K21: =VLOOKUP($A$5,'RECAP AG'!$G$6:$DG$271,51,FALSE) -> 249
B22: Excédent Epargne y/c DAV pondéré | C22: 14% | E22: ='RECAP AG'!AU4 -> 2150.5 | G22: =VLOOKUP($A$5,'RECAP AG'!$G$6:$DG$271,42,FALSE) -> 41.6 | I22: =VLOOKUP($A$5,'RECAP AG'!$G$6:$DG$271,43,FALSE) -> 77% | K22: =VLOOKUP($A$5,'RECAP AG'!$G$6:$DG$271,44,FALSE) -> 222
B23: Ventes sur client non détenteur de l’univers | C23: 6% | E23: ='RECAP AG'!AY4 -> 46.9 | G23: =VLOOKUP($A$5,'RECAP AG'!$G$6:$DG$271,46,FALSE) -> 6.5 | I23: =VLOOKUP($A$5,'RECAP AG'!$G$6:$DG$271,47,FALSE) -> 86% | K23: =VLOOKUP($A$5,'RECAP AG'!$G$6:$DG$271,48,FALSE) -> 261
A25: IARD PREVOYANCE | C25: 20% | K25: =VLOOKUP($A$5,'RECAP AG'!$G$6:$DG$271,85,FALSE) -> 258
B26: Ventes Nettes produits pondérés | C26: 14% | E26: ='RECAP AG'!CC4 -> 596.7 | G26: =VLOOKUP($A$5,'RECAP AG'!$G$6:$DG$271,76,FALSE) -> -5.0 | I26: =VLOOKUP($A$5,'RECAP AG'!$G$6:$DG$271,77,FALSE) -> 101% | K26: =VLOOKUP($A$5,'RECAP AG'!$G$6:$DG$271,78,FALSE) -> 260
B27: Ventes sur client non détenteur de l’univers | C27: 6% | E27: ='RECAP AG'!CG4 -> 52.2 | G27: =VLOOKUP($A$5,'RECAP AG'!$G$6:$DG$271,80,FALSE) -> 17.2 | I27: =VLOOKUP($A$5,'RECAP AG'!$G$6:$DG$271,81,FALSE) -> 67% | K27: =VLOOKUP($A$5,'RECAP AG'!$G$6:$DG$271,82,FALSE) -> 236
A29: CREDITS | C29: 20% | K29: =VLOOKUP($A$5,'RECAP AG'!$G$6:$DG$271,70,FALSE) -> 225
B30: Engagements et ventes accessoires pondérés Immo | C30: 8% | E30: ='RECAP AG'!BJ4 -> 371.0 | G30: =VLOOKUP($A$5,'RECAP AG'!$G$6:$DG$271,57,FALSE) -> 37.9 | I30: =VLOOKUP($A$5,'RECAP AG'!$G$6:$DG$271,58,FALSE) -> 90% | K30: =VLOOKUP($A$5,'RECAP AG'!$G$6:$DG$271,59,FALSE) -> 235
B31: Engagements et ventes accessoires pondérés Conso | C31: 6% | E31: ='RECAP AG'!BN4 -> 93.3 | G31: =VLOOKUP($A$5,'RECAP AG'!$G$6:$DG$271,61,FALSE) -> 42.3 | I31: =VLOOKUP($A$5,'RECAP AG'!$G$6:$DG$271,62,FALSE) -> 55% | K31: =VLOOKUP($A$5,'RECAP AG'!$G$6:$DG$271,63,FALSE) -> 115
B32: Ventes sur client non détenteur de l’univers | C32: 6% | E32: ='RECAP AG'!BR4 -> 30.6 | G32: =VLOOKUP($A$5,'RECAP AG'!$G$6:$DG$271,65,FALSE) -> 6.6 | I32: =VLOOKUP($A$5,'RECAP AG'!$G$6:$DG$271,66,FALSE) -> 78% | K32: =VLOOKUP($A$5,'RECAP AG'!$G$6:$DG$271,67,FALSE) -> 242

Sheet AG_TOTAL
B1: Accueil | H1: BAROMETRE BDD - AGENCES
H2: TOTAL GENERAL
H3: =ACCUEIL!F7 -> 2021-07-04
H7: TOTAL GENERAL | K7: Total Satisfaction Clients | N7: Total Bancarisation | Q7: Total Epargne | T7: Total IARD Prévoyance | W7: Total Crédits
I8: coef | J8: 100% | L8: coef | M8: =AG_SATISFACTION!P8 -> 20% | O8: coef | P8: =AG_BANCA!Z8 -> 20% | R8: coef | S8: =AG_EPARGNE!R8 -> 20% | U8: coef | V8: =AG_IARD!R8 -> 20% | X8: coef | Y8: =AG_CREDIT!V8 -> 20%
B9: Direction | C9: eds | D9: Territoire | E9: eds | F9: Agence | G9: ="ETP perf "&DATEMAJ!$C$28 -> ETP perf 31-mai | H9: Moyenne ecart au 1er | I9: % Ecart au 1er | J9: Rang CEGEE | K9: Moyenne ecart au 1er | L9: % Ecart au 1er | M9: Rang CEGEE | N9: Moyenne ecart au 1er | O9: % Ecart au 1er | P9: Rang CEGEE | Q9: Moyenne ecart au 1er | R9: % Ecart au 1er | S9: Rang CEGEE | T9: Moyenne ecart au 1er | U9: % Ecart au 1er | V9: Rang CEGEE | W9: Moyenne ecart au 1er | X9: % Ecart au 1er | Y9: Rang CEGEE
A10: 50 | B10: MEURTHE ET MOSELLE MEUSE | C10: 26 | D10: NANCY | E10: 454481 | F10: NANCY PLACE DOMBASLE | G10: 11.7 | H10: 21% | I10: 0% | J10: 1 | K10: 43% | L10: 41% | M10: 122 | N10: 16% | O10: 0% | P10: 1 | Q10: 46% | R10: 24% | S10: 11 | T10: 33% | U10: 28% | V10: 4 | W10: 21% | X10: 11% | Y10: 2
A11: 50 | B11: MEURTHE ET MOSELLE MEUSE | C11: 27 | D11: PONT A MOUSSON | E11: 554531 | F11: POMPEY | G11: 2.8 | H11: 23% | I11: 3% | J11: 2 | K11: 38% | L11: 36% | M11: 94 | N11: 21% | O11: 4% | P11: 2 | Q11: 31% | R11: 10% | S11: 2 | T11: 43% | U11: 38% | V11: 16 | W11: 38% | X11: 28% | Y11: 9
A12: 50 | B12: MEURTHE ET MOSELLE MEUSE | C12: 26 | D12: NANCY | E12: 554356 | F12: JARVILLE LA MALGRANGE | G12: 3.6 | H12: 28% | I12: 7% | J12: 3 | K12: 28% | L12: 26% | M12: 36 | N12: 33% | O12: 17% | P12: 4 | Q12: 59% | R12: 38% | S12: 64 | T12: 43% | U12: 39% | V12: 17 | W12: 30% | X12: 20% | Y12: 3
A13: 50 | B13: MOSELLE | C13: 42 | D13: MOSELLE EST | E13: 457163 | F13: BEHREN LES FORBACH | G13: 2.4 | H13: 28% | I13: 7% | J13: 4 | K13: 10% | L13: 8% | M13: 3 | N13: 41% | O13: 25% | P13: 8 | Q13: 60% | R13: 39% | S13: 67 | T13: 53% | U13: 48% | V13: 30 | W13: 31% | X13: 21% | Y13: 5
A14: 50 | B14: MARNE-ARDENNES | C14: 2 | D14: CHARLEVILLE MEZIERES | E14: 508820 | F14: VOUZIERS | G14: 2.9 | H14: 31% | I14: 10% | J14: 5 | K14: 35% | L14: 33% | M14: 73 | N14: 56% | O14: 40% | P14: 59 | Q14: 64% | R14: 43% | S14: 113 | T14: 5% | U14: 0% | V14: 1 | W14: 50% | X14: 39% | Y14: 23
A15: 50 | B15: BAS-RHIN | C15: 5101 | D15: SELESTAT | E15: 4126 | F15: MUTZIG | G15: 2.0 | H15: 31% | I15: 11% | J15: 6 | K15: 33% | L15: 31% | M15: 62 | N15: 48% | O15: 32% | P15: 24 | Q15: 37% | R15: 16% | S15: 4 | T15: 61% | U15: 56% | V15: 74 | W15: 33% | X15: 23% | Y15: 6
A16: 50 | B16: VOSGES | C16: 57 | D16: EPINAL | E16: 488288 | F16: EPINAL LEOPOLD BOURG | G16: 1.9 | H16: 32% | I16: 11% | J16: 7 | K16: 32% | L16: 30% | M16: 56 | N16: 44% | O16: 28% | P16: 17 | Q16: 43% | R16: 21% | S16: 7 | T16: 62% | U16: 57% | V16: 80 | W16: 34% | X16: 24% | Y16: 7
A17: 50 | B17: MARNE-ARDENNES | C17: 6 | D17: CHALONS EN CHAMPAGNE | E17: 451115 | F17: MOURMELON LE GRAND | G17: 2.9 | H17: 32% | I17: 11% | J17: 8 | K17: 29% | L17: 28% | M17: 49 | N17: 42% | O17: 26% | P17: 12 | Q17: 47% | R17: 26% | S17: 14 | T17: 51% | U17: 46% | V17: 28 | W17: 45% | X17: 34% | Y17: 14
A18: 50 | B18: MOSELLE | C18: 44 | D18: MOSELLE NORD | E18: 557508 | F18: NILVANGE | G18: 2.6 | H18: 32% | I18: 11% | J18: 9 | K18: 41% | L18: 39% | M18: 109 | N18: 45% | O18: 28% | P18: 19 | Q18: 49% | R18: 28% | S18: 18 | T18: 32% | U18: 27% | V18: 3 | W18: 49% | X18: 39% | Y18: 22
A19: 50 | B19: MARNE-ARDENNES | C19: 2 | D19: CHARLEVILLE MEZIERES | E19: 408822 | F19: CHARLEVILLE MEZIERES | G19: 3.8 | H19: 33% | I19: 12% | J19: 10 | K19: 42% | L19: 40% | M19: 116 | N19: 56% | O19: 40% | P19: 57 | Q19: 31% | R19: 10% | S19: 3 | T19: 39% | U19: 34% | V19: 13 | W19: 49% | X19: 39% | Y19: 20
A20: 50 | B20: MARNE-ARDENNES | C20: 11 | D20: REIMS | E20: 551349 | F20: REIMS SAINT REMI | G20: 3.0 | H20: 34% | I20: 13% | J20: 11 | K20: 41% | L20: 40% | M20: 111 | N20: 50% | O20: 33% | P20: 29 | Q20: 52% | R20: 30% | S20: 28 | T20: 35% | U20: 30% | V20: 7 | W20: 45% | X20: 34% | Y20: 13
A21: 50 | B21: MARNE-ARDENNES | C21: 11 | D21: REIMS | E21: 451336 | F21: TINQUEUX | G21: 5.7 | H21: 35% | I21: 14% | J21: 12 | K21: 43% | L21: 41% | M21: 118 | N21: 56% | O21: 40% | P21: 54 | Q21: 21% | R21: 0% | S21: 1 | T21: 55% | U21: 50% | V21: 40 | W21: 53% | X21: 43% | Y21: 32
A22: 50 | B22: MOSELLE | C22: 44 | D22: MOSELLE NORD | E22: 557113 | F22: AUDUN LE TICHE | G22: 2.0 | H22: 35% | I22: 14% | J22: 13 | K22: 35% | L22: 33% | M22: 75 | N22: 47% | O22: 31% | P22: 22 | Q22: 61% | R22: 40% | S22: 82 | T22: 55% | U22: 50% | V22: 39 | W22: 31% | X22: 21% | Y22: 4
A23: 50 | B23: MEURTHE ET MOSELLE MEUSE | C23: 27 | D23: PONT A MOUSSON | E23: 454651 | F23: TOUL | G23: 10.3 | H23: 36% | I23: 15% | J23: 14 | K23: 66% | L23: 64% | M23: 236 | N23: 39% | O23: 23% | P23: 6 | Q23: 64% | R23: 42% | S23: 112 | T23: 55% | U23: 50% | V23: 41 | W23: 10% | X23: 0% | Y23: 1
A24: 50 | B24: MEURTHE ET MOSELLE MEUSE | C24: 31 | D24: VERDUN | E24: 554413 | F24: LONGWY BAS | G24: 3.5 | H24: 37% | I24: 16% | J24: 15 | K24: 27% | L24: 25% | M24: 32 | N24: 48% | O24: 32% | P24: 25 | Q24: 45% | R24: 24% | S24: 9 | T24: 68% | U24: 63% | V24: 131 | W24: 52% | X24: 42% | Y24: 28
A25: 50 | B25: BAS-RHIN | C25: 5101 | D25: SELESTAT | E25: 4113 | F25: BARR | G25: 3.0 | H25: 37% | I25: 17% | J25: 16 | K25: 29% | L25: 27% | M25: 48 | N25: 47% | O25: 31% | P25: 21 | Q25: 39% | R25: 18% | S25: 6 | T25: 54% | U25: 49% | V25: 33 | W25: 72% | X25: 62% | Y25: 188
A26: 50 | B26: MEURTHE ET MOSELLE MEUSE | C26: 31 | D26: VERDUN | E26: 454414 | F26: LONGWY HAUT | G26: 3.6 | H26: 37% | I26: 17% | J26: 17 | K26: 31% | L26: 29% | M26: 53 | N26: 58% | O26: 42% | P26: 69 | Q26: 38% | R26: 17% | S26: 5 | T26: 56% | U26: 51% | V26: 46 | W26: 59% | X26: 49% | Y26: 63
A27: 50 | B27: BAS-RHIN | C27: 5006 | D27: STRASBOURG | E27: 4010 | F27: STRASBOURG MEINAU | G27: 3.1 | H27: 38% | I27: 17% | J27: 18 | K27: 50% | L27: 48% | M27: 169 | N27: 42% | O27: 26% | P27: 11 | Q27: 56% | R27: 34% | S27: 47 | T27: 33% | U27: 28% | V27: 6 | W27: 64% | X27: 53% | Y27: 95
A28: 50 | B28: MOSELLE | C28: 42 | D28: MOSELLE EST | E28: 457165 | F28: BITCHE | G28: 2.0 | H28: 38% | I28: 17% | J28: 19 | K28: 41% | L28: 40% | M28: 112 | N28: 30% | O28: 13% | P28: 3 | Q28: 74% | R28: 53% | S28: 226 | T28: 35% | U28: 30% | V28: 8 | W28: 65% | X28: 55% | Y28: 104
A29: 50 | B29: BAS-RHIN | C29: 5101 | D29: SELESTAT | E29: 4121 | F29: SCHIRMECK | G29: 3.2 | H29: 39% | I29: 18% | J29: 20 | K29: 22% | L29: 20% | M29: 14 | N29: 59% | O29: 43% | P29: 72 | Q29: 51% | R29: 29% | S29: 24 | T29: 58% | U29: 53% | V29: 59 | W29: 61% | X29: 50% | Y29: 71
A30: 50 | B30: MOSELLE | C30: 45 | D30: METZ | E30: 557444 | F30: SAINT JULIEN LES METZ | G30: 4.9 | H30: 40% | I30: 19% | J30: 21 | K30: 44% | L30: 42% | M30: 131 | N30: 63% | O30: 47% | P30: 108 | Q30: 51% | R30: 29% | S30: 23 | T30: 38% | U30: 33% | V30: 12 | W30: 57% | X30: 47% | Y30: 57
A31: 262 | B31: MARNE-ARDENNES | C31: 6 | D31: CHALONS EN CHAMPAGNE | E31: 551330 | F31: MONTMIRAIL | G31: 2.9 | H31: 40% | I31: 19% | J31: 22 | K31: 19% | L31: 18% | M31: 11 | N31: 72% | O31: 56% | P31: 202 | Q31: 53% | R31: 31% | S31: 30 | T31: 54% | U31: 49% | V31: 35 | W31: 57% | X31: 47% | Y31: 53
A32: 262 | B32: MARNE-ARDENNES | C32: 2 | D32: CHARLEVILLE MEZIERES | E32: 508839 | F32: GIVET | G32: 3.6 | H32: 40% | I32: 20% | J32: 23 | K32: 25% | L32: 23% | M32: 23 | N32: 67% | O32: 50% | P32: 140 | Q32: 67% | R32: 45% | S32: 134 | T32: 31% | U32: 26% | V32: 2 | W32: 67% | X32: 57% | Y32: 137
A33: 262 | B33: BAS-RHIN | C33: 5006 | D33: STRASBOURG | E33: 4047 | F33: STRASBOURG CRONENBOURG | G33: 5.1 | H33: 41% | I33: 20% | J33: 24 | K33: 28% | L33: 27% | M33: 44 | N33: 64% | O33: 47% | P33: 112 | Q33: 55% | R33: 34% | S33: 46 | T33: 53% | U33: 48% | V33: 29 | W33: 57% | X33: 46% | Y33: 51
A34: 262 | B34: MEURTHE ET MOSELLE MEUSE | C34: 26 | D34: NANCY | E34: 554476 | F34: NANCY ARTEM | G34: 2.7 | H34: 41% | I34: 20% | J34: 25 | K34: 42% | L34: 40% | M34: 117 | N34: 51% | O34: 35% | P34: 33 | Q34: 49% | R34: 28% | S34: 19 | T34: 60% | U34: 55% | V34: 69 | W34: 55% | X34: 45% | Y34: 42
A35: 262 | B35: MARNE-ARDENNES | C35: 11 | D35: REIMS | E35: 551367 | F35: AY CHAMPAGNE | G35: 2.7 | H35: 41% | I35: 20% | J35: 26 | K35: 40% | L35: 38% | M35: 102 | N35: 50% | O35: 33% | P35: 30 | Q35: 76% | R35: 55% | S35: 235 | T35: 54% | U35: 49% | V35: 34 | W35: 38% | X35: 27% | Y35: 8
A36: 262 | B36: AUBE HAUTE MARNE | C36: 21 | D36: CHAUMONT | E36: 451151 | F36: WASSY | G36: 2.0 | H36: 41% | I36: 20% | J36: 27 | K36: 23% | L36: 21% | M36: 17 | N36: 54% | O36: 38% | P36: 45 | Q36: 68% | R36: 47% | S36: 144 | T36: 62% | U36: 57% | V36: 82 | W36: 53% | X36: 43% | Y36: 30
A37: 262 | B37: BAS-RHIN | C37: 5060 | D37: HAGUENAU | E37: 4092 | F37: HOCHFELDEN | G37: 2.3 | H37: 41% | I37: 21% | J37: 28 | K37: 46% | L37: 44% | M37: 139 | N37: 40% | O37: 23% | P37: 7 | Q37: 71% | R37: 50% | S37: 185 | T37: 58% | U37: 53% | V37: 60 | W37: 47% | X37: 37% | Y37: 18
A38: 262 | B38: MARNE-ARDENNES | C38: 11 | D38: REIMS | E38: 551340 | F38: BETHENY | G38: 3.0 | H38: 41% | I38: 21% | J38: 29 | K38: 41% | L38: 40% | M38: 110 | N38: 67% | O38: 51% | P38: 146 | Q38: 47% | R38: 26% | S38: 16 | T38: 64% | U38: 59% | V38: 97 | W38: 42% | X38: 32% | Y38: 10
A39: 262 | B39: MOSELLE | C39: 42 | D39: MOSELLE EST | E39: 557250 | F39: CREUTZWALD | G39: 2.7 | H39: 41% | I39: 21% | J39: 30 | K39: 44% | L39: 42% | M39: 129 | N39: 65% | O39: 49% | P39: 127 | Q39: 46% | R39: 25% | S39: 12 | T39: 48% | U39: 43% | V39: 21 | W39: 58% | X39: 48% | Y39: 59
A40: 262 | B40: MARNE-ARDENNES | C40: 2 | D40: CHARLEVILLE MEZIERES | E40: 508833 | F40: VILLERS SEMEUSE CORA | G40: 3.6 | H40: 41% | I40: 21% | J40: 31 | K40: 45% | L40: 43% | M40: 136 | N40: 53% | O40: 37% | P40: 41 | Q40: 56% | R40: 34% | S40: 48 | T40: 56% | U40: 51% | V40: 49 | W40: 52% | X40: 41% | Y40: 26
A41: 262 | B41: MARNE-ARDENNES | C41: 2 | D41: CHARLEVILLE MEZIERES | E41: 408801 | F41: CHARLEVILLE JEAN JAURES | G41: 9.4 | H41: 42% | I41: 21% | J41: 32 | K41: 32% | L41: 30% | M41: 58 | N41: 58% | O41: 41% | P41: 66 | Q41: 59% | R41: 38% | S41: 63 | T41: 69% | U41: 64% | V41: 137 | W41: 45% | X41: 35% | Y41: 15
A42: 262 | B42: MEURTHE ET MOSELLE MEUSE | C42: 31 | D42: VERDUN | E42: 555679 | F42: VERDUN MAZEL | G42: 3.8 | H42: 42% | I42: 21% | J42: 33 | K42: 24% | L42: 22% | M42: 19 | N42: 55% | O42: 39% | P42: 48 | Q42: 48% | R42: 26% | S42: 17 | T42: 74% | U42: 69% | V42: 186 | W42: 62% | X42: 52% | Y42: 83
A43: 262 | B43: MEURTHE ET MOSELLE MEUSE | C43: 31 | D43: VERDUN | E43: 555624 | F43: STENAY | G43: 2.8 | H43: 42% | I43: 21% | J43: 34 | K43: 24% | L43: 23% | M43: 21 | N43: 43% | O43: 26% | P43: 13 | Q43: 61% | R43: 40% | S43: 78 | T43: 67% | U43: 63% | V43: 125 | W43: 67% | X43: 57% | Y43: 134
A44: 262 | B44: MOSELLE | C44: 42 | D44: MOSELLE EST | E44: 557305 | F44: FAULQUEMONT | G44: 2.5 | H44: 42% | I44: 21% | J44: 35 | K44: 26% | L44: 24% | M44: 27 | N44: 55% | O44: 39% | P44: 49 | Q44: 63% | R44: 42% | S44: 106 | T44: 61% | U44: 57% | V44: 77 | W44: 57% | X44: 47% | Y44: 56
A45: 262 | B45: MARNE-ARDENNES | C45: 2 | D45: CHARLEVILLE MEZIERES | E45: 408862 | F45: REVIN | G45: 4.3 | H45: 42% | I45: 21% | J45: 36 | K45: 12% | L45: 11% | M45: 5 | N45: 65% | O45: 48% | P45: 122 | Q45: 54% | R45: 32% | S45: 35 | T45: 66% | U45: 61% | V45: 111 | W45: 68% | X45: 58% | Y45: 149
A46: 262 | B46: VOSGES | C46: 55 | D46: SAINT DIE | E46: 488246 | F46: CORNIMONT LA BRESSE | G46: 2.6 | H46: 42% | I46: 22% | J46: 37 | K46: 19% | L46: 17% | M46: 10 | N46: 67% | O46: 51% | P46: 148 | Q46: 70% | R46: 49% | S46: 168 | T46: 56% | U46: 52% | V46: 52 | W46: 54% | X46: 43% | Y46: 35
A47: 262 | B47: MEURTHE ET MOSELLE MEUSE | C47: 31 | D47: VERDUN | E47: 554412 | F47: LONGUYON | G47: 2.8 | H47: 43% | I47: 22% | J47: 38 | K47: 28% | L47: 26% | M47: 40 | N47: 65% | O47: 49% | P47: 124 | Q47: 65% | R47: 43% | S47: 115 | T47: 63% | U47: 58% | V47: 89 | W47: 47% | X47: 37% | Y47: 19
A48: 262 | B48: MOSELLE | C48: 42 | D48: MOSELLE EST | E48: 457308 | F48: FORBACH CENTRALE | G48: 11.3 | H48: 43% | I48: 22% | J48: 39 | K48: 28% | L48: 27% | M48: 43 | N48: 51% | O48: 35% | P48: 34 | Q48: 60% | R48: 39% | S48: 71 | T48: 61% | U48: 56% | V48: 75 | W48: 68% | X48: 57% | Y48: 142
A49: 262 | B49: BAS-RHIN | C49: 5060 | D49: HAGUENAU | E49: 4079 | F49: SOULTZ SOUS FORETS | G49: 2.2 | H49: 43% | I49: 23% | J49: 40 | K49: 45% | L49: 44% | M49: 137 | N49: 44% | O49: 27% | P49: 15 | Q49: 66% | R49: 45% | S49: 129 | T49: 57% | U49: 52% | V49: 55 | W49: 59% | X49: 48% | Y49: 60
A50: 262 | B50: HAUT-RHIN | C50: 5130 | D50: COLMAR | E50: 4144 | F50: RIBEAUVILLE | G50: 2.9 | H50: 43% | I50: 23% | J50: 41 | K50: 33% | L50: 31% | M50: 66 | N50: 51% | O50: 34% | P50: 32 | Q50: 55% | R50: 34% | S50: 45 | T50: 55% | U50: 50% | V50: 43 | W50: 77% | X50: 67% | Y50: 236
A51: 262 | B51: MEURTHE ET MOSELLE MEUSE | C51: 27 | D51: PONT A MOUSSON | E51: 554533 | F51: PONT A MOUSSON BREUIL | G51: 2.8 | H51: 43% | I51: 23% | J51: 42 | K51: 51% | L51: 49% | M51: 170 | N51: 55% | O51: 39% | P51: 50 | Q51: 45% | R51: 24% | S51: 10 | T51: 68% | U51: 64% | V51: 134 | W51: 52% | X51: 42% | Y51: 29
A52: 262 | B52: VOSGES | C52: 57 | D52: EPINAL | E52: 588631 | F52: THAON LES VOSGES | G52: 5.5 | H52: 44% | I52: 23% | J52: 43 | K52: 28% | L52: 26% | M52: 41 | N52: 62% | O52: 46% | P52: 100 | Q52: 68% | R52: 47% | S52: 152 | T52: 48% | U52: 44% | V52: 22 | W52: 66% | X52: 55% | Y52: 116
A53: 262 | B53: MARNE-ARDENNES | C53: 6 | D53: CHALONS EN CHAMPAGNE | E53: 451120 | F53: SARRY | G53: 2.5 | H53: 44% | I53: 23% | J53: 44 | K53: 18% | L53: 16% | M53: 9 | N53: 66% | O53: 50% | P53: 136 | Q53: 54% | R53: 33% | S53: 39 | T53: 64% | U53: 59% | V53: 102 | W53: 71% | X53: 61% | Y53: 174
A54: 262 | B54: MARNE-ARDENNES | C54: 11 | D54: REIMS | E54: 451350 | F54: REIMS CENTRE VILLE | G54: 7.2 | H54: 44% | I54: 23% | J54: 45 | K54: 50% | L54: 48% | M54: 166 | N54: 67% | O54: 50% | P54: 142 | Q54: 58% | R54: 37% | S54: 59 | T54: 58% | U54: 53% | V54: 58 | W54: 42% | X54: 32% | Y54: 11
A55: 262 | B55: MEURTHE ET MOSELLE MEUSE | C55: 27 | D55: PONT A MOUSSON | E55: 454535 | F55: PONT A MOUSSON CENTRALE | G55: 7.8 | H55: 44% | I55: 23% | J55: 46 | K55: 54% | L55: 52% | M55: 186 | N55: 42% | O55: 25% | P55: 9 | Q55: 60% | R55: 39% | S55: 70 | T55: 59% | U55: 54% | V55: 63 | W55: 60% | X55: 49% | Y55: 65
A56: 262 | B56: MARNE-ARDENNES | C56: 2 | D56: CHARLEVILLE MEZIERES | E56: 508802 | F56: CHARLEVILLE NEVERS | G56: 3.0 | H56: 44% | I56: 24% | J56: 47 | K56: 25% | L56: 23% | M56: 24 | N56: 70% | O56: 54% | P56: 179 | Q56: 71% | R56: 50% | S56: 194 | T56: 47% | U56: 42% | V56: 20 | W56: 62% | X56: 52% | Y56: 85
A57: 262 | B57: MEURTHE ET MOSELLE MEUSE | C57: 31 | D57: VERDUN | E57: 455456 | F57: MONTMEDY | G57: 1.8 | H57: 44% | I57: 24% | J57: 48 | K57: 39% | L57: 37% | M57: 97 | N57: 54% | O57: 38% | P57: 46 | Q57: 63% | R57: 42% | S57: 101 | T57: 67% | U57: 63% | V57: 124 | W57: 53% | X57: 43% | Y57: 33
A58: 262 | B58: MEURTHE ET MOSELLE MEUSE | C58: 27 | D58: PONT A MOUSSON | E58: 554381 | F58: LAXOU ARISTIDE BRIAND | G58: 4.1 | H58: 44% | I58: 24% | J58: 49 | K58: 37% | L58: 35% | M58: 85 | N58: 49% | O58: 33% | P58: 26 | Q58: 61% | R58: 39% | S58: 72 | T58: 61% | U58: 56% | V58: 76 | W58: 69% | X58: 59% | Y58: 161
A59: 262 | B59: MARNE-ARDENNES | C59: 11 | D59: REIMS | E59: 551305 | F59: REIMS HIPPODROME | G59: 3.9 | H59: 45% | I59: 24% | J59: 50 | K59: 20% | L59: 18% | M59: 12 | N59: 78% | O59: 62% | P59: 234 | Q59: 68% | R59: 47% | S59: 151 | T59: 54% | U59: 49% | V59: 37 | W59: 57% | X59: 46% | Y59: 49
A60: 262 | B60: MEURTHE ET MOSELLE MEUSE | C60: 26 | D60: NANCY | E60: 554601 | F60: SAINT MAX | G60: 4.5 | H60: 45% | I60: 24% | J60: 51 | K60: 26% | L60: 24% | M60: 28 | N60: 65% | O60: 49% | P60: 125 | Q60: 57% | R60: 36% | S60: 56 | T60: 59% | U60: 55% | V60: 67 | W60: 70% | X60: 60% | Y60: 164
A61: 262 | B61: MOSELLE | C61: 44 | D61: MOSELLE NORD | E61: 457348 | F61: HAGONDANGE | G61: 9.3 | H61: 45% | I61: 24% | J61: 52 | K61: 51% | L61: 50% | M61: 173 | N61: 49% | O61: 33% | P61: 28 | Q61: 61% | R61: 40% | S61: 81 | T61: 60% | U61: 55% | V61: 68 | W61: 57% | X61: 47% | Y61: 54
A62: 262 | B62: VOSGES | C62: 57 | D62: EPINAL | E62: 588716 | F62: XERTIGNY | G62: 2.9 | H62: 45% | I62: 24% | J62: 53 | K62: 46% | L62: 44% | M62: 145 | N62: 58% | O62: 41% | P62: 64 | Q62: 62% | R62: 40% | S62: 89 | T62: 40% | U62: 35% | V62: 14 | W62: 73% | X62: 63% | Y62: 206
A63: 262 | B63: MARNE-ARDENNES | C63: 2 | D63: CHARLEVILLE MEZIERES | E63: 508815 | F63: CARIGNAN | G63: 2.9 | H63: 45% | I63: 24% | J63: 54 | K63: 35% | L63: 33% | M63: 74 | N63: 63% | O63: 47% | P63: 110 | Q63: 45% | R63: 24% | S63: 8 | T63: 70% | U63: 65% | V63: 148 | W63: 66% | X63: 55% | Y63: 117
A64: 262 | B64: MEURTHE ET MOSELLE MEUSE | C64: 27 | D64: PONT A MOUSSON | E64: 554506 | F64: CHALIGNY NEUVES MAISONS | G64: 3.8 | H64: 45% | I64: 24% | J64: 55 | K64: 63% | L64: 61% | M64: 226 | N64: 34% | O64: 18% | P64: 5 | Q64: 74% | R64: 53% | S64: 225 | T64: 65% | U64: 60% | V64: 107 | W64: 44% | X64: 33% | Y64: 12
A65: 262 | B65: MOSELLE | C65: 45 | D65: METZ | E65: 557447 | F65: METZ SAINT MAXIMIN | G65: 3.1 | H65: 45% | I65: 24% | J65: 56 | K65: 42% | L65: 40% | M65: 113 | N65: 52% | O65: 36% | P65: 38 | Q65: 65% | R65: 43% | S65: 120 | T65: 68% | U65: 63% | V65: 126 | W65: 54% | X65: 44% | Y65: 36
A66: 262 | B66: MEURTHE ET MOSELLE MEUSE | C66: 27 | D66: PONT A MOUSSON | E66: 554376 | F66: LAXOU BOUFFLERS | G66: 2.7 | H66: 45% | I66: 24% | J66: 57 | K66: 52% | L66: 50% | M66: 175 | N66: 57% | O66: 40% | P66: 62 | Q66: 51% | R66: 30% | S66: 27 | T66: 64% | U66: 59% | V66: 99 | W66: 56% | X66: 46% | Y66: 44
A67: 262 | B67: MARNE-ARDENNES | C67: 6 | D67: CHALONS EN CHAMPAGNE | E67: 451101 | F67: CHALONS VIVIERS | G67: 9.2 | H67: 45% | I67: 24% | J67: 58 | K67: 28% | L67: 26% | M67: 38 | N67: 64% | O67: 48% | P67: 119 | Q67: 61% | R67: 40% | S67: 77 | T67: 65% | U67: 61% | V67: 108 | W67: 62% | X67: 52% | Y67: 81
A68: 262 | B68: MEURTHE ET MOSELLE MEUSE | C68: 26 | D68: NANCY | E68: 454426 | F68: LUNEVILLE CARNOT | G68: 10.1 | H68: 45% | I68: 25% | J68: 59 | K68: 45% | L68: 43% | M68: 133 | N68: 59% | O68: 42% | P68: 70 | Q68: 66% | R68: 45% | S68: 133 | T68: 56% | U68: 51% | V68: 50 | W68: 56% | X68: 46% | Y68: 43
A69: 262 | B69: MARNE-ARDENNES | C69: 6 | D69: CHALONS EN CHAMPAGNE | E69: 551354 | F69: VERTUS | G69: 2.5 | H69: 45% | I69: 25% | J69: 60 | K69: 12% | L69: 10% | M69: 4 | N69: 74% | O69: 58% | P69: 214 | Q69: 67% | R69: 46% | S69: 138 | T69: 63% | U69: 58% | V69: 91 | W69: 66% | X69: 56% | Y69: 122
A70: 262 | B70: MOSELLE | C70: 44 | D70: MOSELLE NORD | E70: 457306 | F70: FLORANGE | G70: 3.7 | H70: 45% | I70: 25% | J70: 61 | K70: 43% | L70: 42% | M70: 126 | N70: 61% | O70: 45% | P70: 94 | Q70: 49% | R70: 28% | S70: 20 | T70: 64% | U70: 59% | V70: 98 | W70: 64% | X70: 54% | Y70: 97
A71: 262 | B71: MEURTHE ET MOSELLE MEUSE | C71: 27 | D71: PONT A MOUSSON | E71: 554416 | F71: LUDRES | G71: 3.7 | H71: 45% | I71: 25% | J71: 62 | K71: 28% | L71: 26% | M71: 42 | N71: 67% | O71: 50% | P71: 141 | Q71: 51% | R71: 30% | S71: 25 | T71: 80% | U71: 75% | V71: 233 | W71: 56% | X71: 46% | Y71: 47
A72: 262 | B72: MEURTHE ET MOSELLE MEUSE | C72: 27 | D72: PONT A MOUSSON | E72: 554357 | F72: JOEUF | G72: 3.8 | H72: 46% | I72: 25% | J72: 63 | K72: 46% | L72: 45% | M72: 147 | N72: 60% | O72: 44% | P72: 81 | Q72: 80% | R72: 59% | S72: 251 | T72: 49% | U72: 44% | V72: 24 | W72: 46% | X72: 36% | Y72: 16
A73: 262 | B73: MARNE-ARDENNES | C73: 11 | D73: REIMS | E73: 551310 | F73: REIMS CHATILLONS | G73: 4.2 | H73: 46% | I73: 25% | J73: 64 | K73: 47% | L73: 45% | M73: 148 | N73: 61% | O73: 45% | P73: 89 | Q73: 61% | R73: 40% | S73: 80 | T73: 60% | U73: 55% | V73: 70 | W73: 53% | X73: 43% | Y73: 34
A74: 262 | B74: BAS-RHIN | C74: 5006 | D74: STRASBOURG | E74: 4037 | F74: MUNDOLSHEIM | G74: 4.0 | H74: 46% | I74: 25% | J74: 65 | K74: 56% | L74: 55% | M74: 195 | N74: 48% | O74: 31% | P74: 23 | Q74: 53% | R74: 32% | S74: 34 | T74: 58% | U74: 53% | V74: 57 | W74: 68% | X74: 58% | Y74: 150
A75: 262 | B75: MARNE-ARDENNES | C75: 6 | D75: CHALONS EN CHAMPAGNE | E75: 551110 | F75: CHALONS ROOSEVELT | G75: 5.0 | H75: 46% | I75: 25% | J75: 66 | K75: 25% | L75: 23% | M75: 22 | N75: 66% | O75: 50% | P75: 133 | Q75: 61% | R75: 40% | S75: 74 | T75: 63% | U75: 58% | V75: 90 | W75: 69% | X75: 59% | Y75: 158
A76: 262 | B76: AUBE HAUTE MARNE | C76: 21 | D76: CHAUMONT | E76: 510590 | F76: CHAUMONT REPUBLIQUE | G76: 4.4 | H76: 46% | I76: 25% | J76: 67 | K76: 43% | L76: 41% | M76: 120 | N76: 63% | O76: 46% | P76: 105 | Q76: 60% | R76: 39% | S76: 69 | T76: 59% | U76: 54% | V76: 61 | W76: 60% | X76: 50% | Y76: 67
A77: 262 | B77: MEURTHE ET MOSELLE MEUSE | C77: 26 | D77: NANCY | E77: 554636 | F77: TOMBLAINE | G77: 2.5 | H77: 46% | I77: 25% | J77: 68 | K77: 23% | L77: 21% | M77: 18 | N77: 77% | O77: 61% | P77: 225 | Q77: 63% | R77: 42% | S77: 108 | T77: 56% | U77: 51% | V77: 47 | W77: 66% | X77: 55% | Y77: 113
A78: 262 | B78: BAS-RHIN | C78: 5060 | D78: HAGUENAU | E78: 4082 | F78: BOUXWILLER | G78: 2.5 | H78: 46% | I78: 25% | J78: 69 | K78: 34% | L78: 32% | M78: 70 | N78: 69% | O78: 52% | P78: 163 | Q78: 54% | R78: 33% | S78: 37 | T78: 68% | U78: 63% | V78: 130 | W78: 61% | X78: 50% | Y78: 70
A79: 264 | B79: VOSGES | C79: 57 | D79: EPINAL | E79: 588501 | F79: NEUFCHATEAU | G79: 5.0 | H79: 47% | I79: 26% | J79: 70 | K79: 21% | L79: 19% | M79: 13 | N79: 72% | O79: 55% | P79: 196 | Q79: 63% | R79: 42% | S79: 110 | T79: 71% | U79: 66% | V79: 158 | W79: 59% | X79: 49% | Y79: 64
A80: 264 | B80: MARNE-ARDENNES | C80: 11 | D80: REIMS | E80: 551314 | F80: FISMES | G80: 3.0 | H80: 47% | I80: 26% | J80: 71 | K80: 35% | L80: 33% | M80: 72 | N80: 58% | O80: 41% | P80: 65 | Q80: 71% | R80: 49% | S80: 172 | T80: 69% | U80: 64% | V80: 136 | W80: 56% | X80: 46% | Y80: 45
A81: 264 | B81: BAS-RHIN | C81: 5101 | D81: SELESTAT | E81: 4120 | F81: WASSELONNE | G81: 4.4 | H81: 47% | I81: 26% | J81: 72 | K81: 54% | L81: 52% | M81: 183 | N81: 70% | O81: 54% | P81: 178 | Q81: 46% | R81: 25% | S81: 13 | T81: 56% | U81: 51% | V81: 45 | W81: 62% | X81: 52% | Y81: 82
A82: 264 | B82: MOSELLE | C82: 44 | D82: MOSELLE NORD | E82: 557352 | F82: HETTANGE GRANDE | G82: 4.1 | H82: 47% | I82: 26% | J82: 73 | K82: 52% | L82: 50% | M82: 174 | N82: 51% | O82: 35% | P82: 35 | Q82: 69% | R82: 48% | S82: 161 | T82: 54% | U82: 49% | V82: 36 | W82: 62% | X82: 52% | Y82: 79
A83: 264 | B83: BAS-RHIN | C83: 5006 | D83: STRASBOURG | E83: 4038 | F83: OBERHAUSBERGEN | G83: 4.8 | H83: 47% | I83: 26% | J83: 74 | K83: 43% | L83: 42% | M83: 127 | N83: 62% | O83: 45% | P83: 95 | Q83: 54% | R83: 33% | S83: 41 | T83: 64% | U83: 59% | V83: 100 | W83: 65% | X83: 54% | Y83: 102
A84: 264 | B84: BAS-RHIN | C84: 5006 | D84: STRASBOURG | E84: 4019 | F84: STRASBOURG ANVERS | G84: 4.3 | H84: 47% | I84: 26% | J84: 75 | K84: 41% | L84: 39% | M84: 107 | N84: 56% | O84: 40% | P84: 58 | Q84: 56% | R84: 35% | S84: 49 | T84: 66% | U84: 61% | V84: 115 | W84: 69% | X84: 59% | Y84: 162
A85: 264 | B85: MOSELLE | C85: 45 | D85: METZ | E85: 457453 | F85: MONTIGNY LES METZ | G85: 8.1 | H85: 47% | I85: 26% | J85: 76 | K85: 28% | L85: 27% | M85: 45 | N85: 58% | O85: 42% | P85: 68 | Q85: 61% | R85: 40% | S85: 83 | T85: 82% | U85: 77% | V85: 240 | W85: 59% | X85: 49% | Y85: 62
A86: 264 | B86: VOSGES | C86: 57 | D86: EPINAL | E86: 588206 | F86: CHARMES | G86: 2.8 | H86: 47% | I86: 26% | J86: 77 | K86: 30% | L86: 29% | M86: 52 | N86: 69% | O86: 53% | P86: 168 | Q86: 78% | R86: 57% | S86: 242 | T86: 51% | U86: 46% | V86: 26 | W86: 61% | X86: 51% | Y86: 72
A87: 264 | B87: VOSGES | C87: 57 | D87: EPINAL | E87: 588396 | F87: LE VAL D AJOL | G87: 2.9 | H87: 47% | I87: 26% | J87: 78 | K87: 2% | L87: 0% | M87: 1 | N87: 76% | O87: 60% | P87: 223 | Q87: 61% | R87: 40% | S87: 85 | T87: 71% | U87: 66% | V87: 153 | W87: 80% | X87: 70% | Y87: 250
A88: 264 | B88: MEURTHE ET MOSELLE MEUSE | C88: 31 | D88: VERDUN | E88: 455298 | F88: ETAIN | G88: 1.6 | H88: 47% | I88: 27% | J88: 79 | K88: 66% | L88: 64% | M88: 235 | N88: 62% | O88: 46% | P88: 102 | Q88: 63% | R88: 41% | S88: 96 | T88: 36% | U88: 32% | V88: 9 | W88: 64% | X88: 54% | Y88: 96
A89: 264 | B89: VOSGES | C89: 55 | D89: SAINT DIE | E89: 488586 | F89: SAINT DIE | G89: 10.6 | H89: 47% | I89: 27% | J89: 80 | K89: 17% | L89: 16% | M89: 8 | N89: 72% | O89: 56% | P89: 204 | Q89: 62% | R89: 40% | S89: 88 | T89: 73% | U89: 68% | V89: 167 | W89: 67% | X89: 57% | Y89: 139
A90: 264 | B90: BAS-RHIN | C90: 5006 | D90: STRASBOURG | E90: 4023 | F90: STRASBOURG VOSGES | G90: 3.3 | H90: 48% | I90: 27% | J90: 81 | K90: 47% | L90: 45% | M90: 149 | N90: 56% | O90: 40% | P90: 55 | Q90: 47% | R90: 26% | S90: 15 | T90: 74% | U90: 69% | V90: 177 | W90: 69% | X90: 59% | Y90: 159
A91: 264 | B91: MARNE-ARDENNES | C91: 2 | D91: CHARLEVILLE MEZIERES | E91: 508819 | F91: MOUZON | G91: 2.0 | H91: 48% | I91: 27% | J91: 82 | K91: 39% | L91: 38% | M91: 99 | N91: 79% | O91: 63% | P91: 239 | Q91: 61% | R91: 40% | S91: 75 | T91: 65% | U91: 61% | V91: 109 | W91: 49% | X91: 39% | Y91: 21
A92: 264 | B92: BAS-RHIN | C92: 5006 | D92: STRASBOURG | E92: 4054 | F92: STRASBOURG MONTAGNE VERTE | G92: 2.5 | H92: 48% | I92: 27% | J92: 83 | K92: 56% | L92: 55% | M92: 196 | N92: 66% | O92: 50% | P92: 138 | Q92: 74% | R92: 53% | S92: 222 | T92: 33% | U92: 28% | V92: 5 | W92: 65% | X92: 55% | Y92: 108
A93: 264 | B93: VOSGES | C93: 57 | D93: EPINAL | E93: 488706 | F93: VITTEL | G93: 3.7 | H93: 48% | I93: 27% | J93: 84 | K93: 29% | L93: 27% | M93: 46 | N93: 78% | O93: 61% | P93: 228 | Q93: 63% | R93: 41% | S93: 99 | T93: 62% | U93: 57% | V93: 78 | W93: 65% | X93: 55% | Y93: 109
A94: 264 | B94: AUBE HAUTE MARNE | C94: 21 | D94: CHAUMONT | E94: 451154 | F94: JOINVILLE | G94: 1.9 | H94: 48% | I94: 28% | J94: 85 | K94: 7% | L94: 5% | M94: 2 | N94: 79% | O94: 63% | P94: 240 | Q94: 86% | R94: 64% | S94: 259 | T94: 63% | U94: 58% | V94: 87 | W94: 61% | X94: 51% | Y94: 73
A95: 264 | B95: BAS-RHIN | C95: 5006 | D95: STRASBOURG | E95: 4024 | F95: STRASBOURG AUSTERLITZ | G95: 2.4 | H95: 48% | I95: 28% | J95: 86 | K95: 75% | L95: 73% | M95: 249 | N95: 44% | O95: 28% | P95: 18 | Q95: 59% | R95: 37% | S95: 60 | T95: 57% | U95: 52% | V95: 53 | W95: 62% | X95: 51% | Y95: 77
A96: 264 | B96: VOSGES | C96: 55 | D96: SAINT DIE | E96: 588666 | F96: VAGNEY | G96: 3.8 | H96: 48% | I96: 28% | J96: 87 | K96: 15% | L96: 13% | M96: 6 | N96: 67% | O96: 50% | P96: 139 | Q96: 66% | R96: 45% | S96: 132 | T96: 77% | U96: 72% | V96: 216 | W96: 72% | X96: 61% | Y96: 178
A97: 264 | B97: AUBE HAUTE MARNE | C97: 14 | D97: TROYES | E97: 510511 | F97: TROYES BROSSOLETTE | G97: 2.6 | H97: 49% | I97: 28% | J97: 88 | K97: 38% | L97: 36% | M97: 89 | N97: 56% | O97: 40% | P97: 56 | Q97: 66% | R97: 45% | S97: 128 | T97: 73% | U97: 69% | V97: 174 | W97: 63% | X97: 53% | Y97: 94
A98: 264 | B98: VOSGES | C98: 57 | D98: EPINAL | E98: 488451 | F98: MIRECOURT | G98: 4.8 | H98: 49% | I98: 28% | J98: 89 | K98: 28% | L98: 26% | M98: 39 | N98: 74% | O98: 57% | P98: 210 | Q98: 63% | R98: 42% | S98: 104 | T98: 65% | U98: 60% | V98: 103 | W98: 68% | X98: 57% | Y98: 143
A99: 264 | B99: BAS-RHIN | C99: 5060 | D99: HAGUENAU | E99: 4085 | F99: INGWILLER | G99: 3.2 | H99: 49% | I99: 28% | J99: 90 | K99: 38% | L99: 37% | M99: 95 | N99: 53% | O99: 37% | P99: 39 | Q99: 69% | R99: 48% | S99: 155 | T99: 71% | U99: 66% | V99: 155 | W99: 68% | X99: 57% | Y99: 145
A100: 264 | B100: AUBE HAUTE MARNE | C100: 21 | D100: CHAUMONT | E100: 410560 | F100: BOURBONNE LES BAINS | G100: 2.0 | H100: 49% | I100: 28% | J100: 91 | K100: 25% | L100: 23% | M100: 25 | N100: 61% | O100: 44% | P100: 85 | Q100: 73% | R100: 51% | S100: 209 | T100: 67% | U100: 62% | V100: 122 | W100: 74% | X100: 63% | Y100: 207
A101: 264 | B101: MARNE-ARDENNES | C101: 6 | D101: CHALONS EN CHAMPAGNE | E101: 551103 | F101: FAGNIERES LECLERC | G101: 3.0 | H101: 49% | I101: 28% | J101: 92 | K101: 27% | L101: 25% | M101: 33 | N101: 60% | O101: 43% | P101: 75 | Q101: 78% | R101: 56% | S101: 240 | T101: 73% | U101: 68% | V101: 165 | W101: 62% | X101: 52% | Y101: 86
A102: 264 | B102: MEURTHE ET MOSELLE MEUSE | C102: 31 | D102: VERDUN | E102: 554700 | F102: VILLERUPT | G102: 2.9 | H102: 49% | I102: 28% | J102: 93 | K102: 26% | L102: 24% | M102: 26 | N102: 65% | O102: 49% | P102: 128 | Q102: 64% | R102: 42% | S102: 111 | T102: 78% | U102: 74% | V102: 224 | W102: 66% | X102: 56% | Y102: 125
A103: 30 | B103: MEURTHE ET MOSELLE MEUSE | C103: 31 | D103: VERDUN | E103: 455151 | F103: BAR LE DUC | G103: 8.8 | H103: 49% | I103: 28% | J103: 94 | K103: 40% | L103: 39% | M103: 103 | N103: 60% | O103: 44% | P103: 78 | Q103: 70% | R103: 48% | S103: 164 | T103: 67% | U103: 62% | V103: 120 | W103: 63% | X103: 53% | Y103: 90
A104: 30 | B104: AUBE HAUTE MARNE | C104: 14 | D104: TROYES | E104: 510523 | F104: LA CHAPELLE ST LUC | G104: 5.5 | H104: 49% | I104: 28% | J104: 95 | K104: 53% | L104: 52% | M104: 180 | N104: 51% | O104: 35% | P104: 37 | Q104: 73% | R104: 51% | S104: 207 | T104: 50% | U104: 45% | V104: 25 | W104: 72% | X104: 62% | Y104: 189
A105: 30 | B105: VOSGES | C105: 57 | D105: EPINAL | E105: 488286 | F105: EPINAL ARISTIDE BRIAND | G105: 9.1 | H105: 49% | I105: 28% | J105: 96 | K105: 27% | L105: 25% | M105: 31 | N105: 64% | O105: 48% | P105: 117 | Q105: 72% | R105: 51% | S105: 203 | T105: 63% | U105: 58% | V105: 92 | W105: 74% | X105: 63% | Y105: 208
A106: 30 | B106: AUBE HAUTE MARNE | C106: 21 | D106: CHAUMONT | E106: 451156 | F106: SAINT DIZIER CENTRE | G106: 9.4 | H106: 49% | I106: 28% | J106: 97 | K106: 40% | L106: 39% | M106: 104 | N106: 67% | O106: 51% | P106: 147 | Q106: 63% | R106: 41% | S106: 100 | T106: 64% | U106: 59% | V106: 96 | W106: 66% | X106: 56% | Y106: 121
A107: 30 | B107: MEURTHE ET MOSELLE MEUSE | C107: 26 | D107: NANCY | E107: 554116 | F107: BACCARAT | G107: 2.5 | H107: 49% | I107: 28% | J107: 98 | K107: 33% | L107: 31% | M107: 64 | N107: 61% | O107: 45% | P107: 92 | Q107: 67% | R107: 46% | S107: 139 | T107: 74% | U107: 69% | V107: 178 | W107: 66% | X107: 56% | Y107: 118
A108: 30 | B108: MEURTHE ET MOSELLE MEUSE | C108: 26 | D108: NANCY | E108: 554166 | F108: BLAINVILLE | G108: 3.1 | H108: 49% | I108: 28% | J108: 99 | K108: 63% | L108: 61% | M108: 230 | N108: 60% | O108: 44% | P108: 79 | Q108: 57% | R108: 36% | S108: 55 | T108: 65% | U108: 60% | V108: 105 | W108: 55% | X108: 45% | Y108: 40
A109: 30 | B109: VOSGES | C109: 55 | D109: SAINT DIE | E109: 488326 | F109: GERARDMER | G109: 5.2 | H109: 49% | I109: 28% | J109: 100 | K109: 29% | L109: 27% | M109: 47 | N109: 74% | O109: 58% | P109: 212 | Q109: 56% | R109: 35% | S109: 50 | T109: 77% | U109: 72% | V109: 213 | W109: 65% | X109: 55% | Y109: 110
A110: 30 | B110: VOSGES | C110: 57 | D110: EPINAL | E110: 588336 | F110: GOLBEY | G110: 3.1 | H110: 49% | I110: 29% | J110: 101 | K110: 43% | L110: 41% | M110: 121 | N110: 72% | O110: 56% | P110: 199 | Q110: 65% | R110: 43% | S110: 118 | T110: 67% | U110: 62% | V110: 123 | W110: 54% | X110: 44% | Y110: 38
A111: 30 | B111: BAS-RHIN | C111: 5006 | D111: STRASBOURG | E111: 4006 | F111: STRASBOURG NEUDORF | G111: 8.6 | H111: 49% | I111: 29% | J111: 102 | K111: 29% | L111: 28% | M111: 50 | N111: 60% | O111: 43% | P111: 74 | Q111: 71% | R111: 50% | S111: 183 | T111: 66% | U111: 61% | V111: 113 | W111: 75% | X111: 65% | Y111: 219
A112: 30 | B112: BAS-RHIN | C112: 5101 | D112: SELESTAT | E112: 4107 | F112: VILLE | G112: 2.8 | H112: 49% | I112: 29% | J112: 103 | K112: 77% | L112: 75% | M112: 254 | N112: 43% | O112: 27% | P112: 14 | Q112: 55% | R112: 33% | S112: 42 | T112: 53% | U112: 48% | V112: 31 | W112: 74% | X112: 64% | Y112: 210
A113: 30 | B113: MEURTHE ET MOSELLE MEUSE | C113: 26 | D113: NANCY | E113: 554266 | F113: DOMBASLE SUR MEURTHE | G113: 3.7 | H113: 49% | I113: 29% | J113: 104 | K113: 62% | L113: 61% | M113: 224 | N113: 71% | O113: 55% | P113: 193 | Q113: 54% | R113: 33% | S113: 36 | T113: 58% | U113: 53% | V113: 56 | W113: 57% | X113: 46% | Y113: 50
A114: 30 | B114: MOSELLE | C114: 45 | D114: METZ | E114: 457443 | F114: METZ REPUBLIQUE | G114: 4.2 | H114: 49% | I114: 29% | J114: 105 | K114: 15% | L114: 13% | M114: 7 | N114: 70% | O114: 54% | P114: 177 | Q114: 69% | R114: 48% | S114: 158 | T114: 81% | U114: 76% | V114: 235 | W114: 66% | X114: 56% | Y114: 126
A115: 30 | B115: MARNE-ARDENNES | C115: 11 | D115: REIMS | E115: 451370 | F115: EPERNAY | G115: 11.5 | H115: 49% | I115: 29% | J115: 106 | K115: 35% | L115: 33% | M115: 76 | N115: 61% | O115: 45% | P115: 90 | Q115: 70% | R115: 49% | S115: 170 | T115: 68% | U115: 63% | V115: 128 | W115: 67% | X115: 57% | Y115: 131
A116: 30 | B116: AUBE HAUTE MARNE | C116: 14 | D116: TROYES | E116: 510520 | F116: SAINT ANDRE LES VERGERS | G116: 4.1 | H116: 50% | I116: 29% | J116: 107 | K116: 43% | L116: 41% | M116: 123 | N116: 60% | O116: 44% | P116: 83 | Q116: 58% | R116: 36% | S116: 57 | T116: 80% | U116: 75% | V116: 228 | W116: 62% | X116: 52% | Y116: 80
A117: 30 | B117: VOSGES | C117: 55 | D117: SAINT DIE | E117: 588386 | F117: LE THILLOT | G117: 2.4 | H117: 50% | I117: 29% | J117: 108 | K117: 38% | L117: 36% | M117: 92 | N117: 69% | O117: 52% | P117: 161 | Q117: 62% | R117: 41% | S117: 95 | T117: 59% | U117: 54% | V117: 66 | W117: 74% | X117: 64% | Y117: 215
A118: 30 | B118: MARNE-ARDENNES | C118: 11 | D118: REIMS | E118: 551309 | F118: REIMS EUROPE | G118: 2.7 | H118: 50% | I118: 29% | J118: 109 | K118: 37% | L118: 35% | M118: 86 | N118: 73% | O118: 57% | P118: 206 | Q118: 62% | R118: 41% | S118: 94 | T118: 63% | U118: 58% | V118: 86 | W118: 68% | X118: 58% | Y118: 151
A119: 30 | B119: BAS-RHIN | C119: 5101 | D119: SELESTAT | E119: 4109 | F119: MARCKOLSHEIM | G119: 2.7 | H119: 50% | I119: 29% | J119: 110 | K119: 33% | L119: 31% | M119: 67 | N119: 68% | O119: 51% | P119: 152 | Q119: 67% | R119: 45% | S119: 135 | T119: 71% | U119: 66% | V119: 156 | W119: 65% | X119: 55% | Y119: 106
A120: 30 | B120: MEURTHE ET MOSELLE MEUSE | C120: 31 | D120: VERDUN | E120: 455678 | F120: VERDUN CENTRALE | G120: 10.7 | H120: 50% | I120: 29% | J120: 111 | K120: 36% | L120: 34% | M120: 82 | N120: 61% | O120: 45% | P120: 91 | Q120: 73% | R120: 52% | S120: 216 | T120: 76% | U120: 71% | V120: 206 | W120: 57% | X120: 47% | Y120: 55
A121: 30 | B121: MOSELLE | C121: 42 | D121: MOSELLE EST | E121: 557210 | F121: CHATEAU SALINS | G121: 2.6 | H121: 50% | I121: 29% | J121: 112 | K121: 59% | L121: 58% | M121: 208 | N121: 46% | O121: 29% | P121: 20 | Q121: 68% | R121: 47% | S121: 149 | T121: 68% | U121: 63% | V121: 127 | W121: 63% | X121: 53% | Y121: 89
A122: 30 | B122: MARNE-ARDENNES | C122: 11 | D122: REIMS | E122: 451301 | F122: REIMS HOTEL DE VILLE | G122: 7.7 | H122: 50% | I122: 30% | J122: 113 | K122: 47% | L122: 46% | M122: 153 | N122: 53% | O122: 37% | P122: 40 | Q122: 86% | R122: 64% | S122: 260 | T122: 55% | U122: 50% | V122: 44 | W122: 65% | X122: 54% | Y122: 103
A123: 30 | B123: MARNE-ARDENNES | C123: 6 | D123: CHALONS EN CHAMPAGNE | E123: 551128 | F123: SAINTE MENEHOULD | G123: 3.3 | H123: 50% | I123: 30% | J123: 114 | K123: 38% | L123: 37% | M123: 96 | N123: 62% | O123: 46% | P123: 98 | Q123: 74% | R123: 52% | S123: 217 | T123: 56% | U123: 51% | V123: 51 | W123: 76% | X123: 66% | Y123: 226
A124: 30 | B124: MOSELLE | C124: 42 | D124: MOSELLE EST | E124: 457614 | F124: SARREBOURG | G124: 8.5 | H124: 50% | I124: 30% | J124: 115 | K124: 46% | L124: 44% | M124: 144 | N124: 61% | O124: 45% | P124: 88 | Q124: 62% | R124: 40% | S124: 87 | T124: 70% | U124: 65% | V124: 149 | W124: 67% | X124: 57% | Y124: 140
A125: 30 | B125: MOSELLE | C125: 42 | D125: MOSELLE EST | E125: 457583 | F125: SAINT AVOLD | G125: 7.7 | H125: 50% | I125: 30% | J125: 116 | K125: 43% | L125: 41% | M125: 119 | N125: 66% | O125: 49% | P125: 132 | Q125: 65% | R125: 43% | S125: 116 | T125: 65% | U125: 60% | V125: 104 | W125: 68% | X125: 58% | Y125: 148
A126: 30 | B126: MARNE-ARDENNES | C126: 6 | D126: CHALONS EN CHAMPAGNE | E126: 451381 | F126: SEZANNE | G126: 6.5 | H126: 50% | I126: 30% | J126: 117 | K126: 36% | L126: 35% | M126: 83 | N126: 64% | O126: 48% | P126: 115 | Q126: 72% | R126: 51% | S126: 202 | T126: 67% | U126: 62% | V126: 119 | W126: 67% | X126: 56% | Y126: 128
A127: 30 | B127: AUBE HAUTE MARNE | C127: 14 | D127: TROYES | E127: 510570 | F127: NOGENT SUR SEINE | G127: 4.4 | H127: 50% | I127: 30% | J127: 118 | K127: 22% | L127: 20% | M127: 15 | N127: 67% | O127: 51% | P127: 144 | Q127: 73% | R127: 52% | S127: 215 | T127: 81% | U127: 76% | V127: 236 | W127: 63% | X127: 53% | Y127: 88
A128: 30 | B128: HAUT-RHIN | C128: 5130 | D128: COLMAR | E128: 4153 | F128: ROUFFACH | G128: 3.7 | H128: 50% | I128: 30% | J128: 119 | K128: 41% | L128: 39% | M128: 108 | N128: 77% | O128: 61% | P128: 226 | Q128: 71% | R128: 49% | S128: 175 | T128: 49% | U128: 44% | V128: 23 | W128: 68% | X128: 58% | Y128: 154
A129: 30 | B129: VOSGES | C129: 57 | D129: EPINAL | E129: 488561 | F129: REMIREMONT | G129: 6.6 | H129: 50% | I129: 30% | J129: 120 | K129: 38% | L129: 36% | M129: 90 | N129: 67% | O129: 51% | P129: 149 | Q129: 61% | R129: 40% | S129: 79 | T129: 71% | U129: 66% | V129: 154 | W129: 69% | X129: 59% | Y129: 160
A130: 30 | B130: BAS-RHIN | C130: 5060 | D130: HAGUENAU | E130: 4030 | F130: BRUMATH | G130: 5.3 | H130: 50% | I130: 30% | J130: 121 | K130: 43% | L130: 42% | M130: 128 | N130: 69% | O130: 53% | P130: 170 | Q130: 54% | R130: 33% | S130: 40 | T130: 77% | U130: 72% | V130: 214 | W130: 63% | X130: 53% | Y130: 87
A131: 30 | B131: BAS-RHIN | C131: 5006 | D131: STRASBOURG | E131: 4043 | F131: STRASBOURG HALLES | G131: 8.3 | H131: 50% | I131: 30% | J131: 122 | K131: 41% | L131: 39% | M131: 105 | N131: 70% | O131: 54% | P131: 185 | Q131: 62% | R131: 40% | S131: 86 | T131: 69% | U131: 64% | V131: 142 | W131: 65% | X131: 55% | Y131: 111
A132: 30 | B132: MARNE-ARDENNES | C132: 11 | D132: REIMS | E132: 451361 | F132: PIERRY LECLERC | G132: 1.9 | H132: 50% | I132: 30% | J132: 123 | K132: 36% | L132: 34% | M132: 79 | N132: 68% | O132: 52% | P132: 159 | Q132: 71% | R132: 50% | S132: 186 | T132: 65% | U132: 60% | V132: 106 | W132: 67% | X132: 56% | Y132: 127
A133: 30 | B133: BAS-RHIN | C133: 5060 | D133: HAGUENAU | E133: 4066 | F133: NIEDERBRONN LES BAINS | G133: 6.1 | H133: 51% | I133: 30% | J133: 124 | K133: 28% | L133: 26% | M133: 37 | N133: 71% | O133: 54% | P133: 188 | Q133: 63% | R133: 42% | S133: 105 | T133: 73% | U133: 68% | V133: 173 | W133: 72% | X133: 62% | Y133: 192
A134: 30 | B134: AUBE HAUTE MARNE | C134: 14 | D134: TROYES | E134: 410550 | F134: BAR SUR AUBE | G134: 5.9 | H134: 51% | I134: 30% | J134: 125 | K134: 32% | L134: 31% | M134: 59 | N134: 67% | O134: 51% | P134: 145 | Q134: 79% | R134: 57% | S134: 243 | T134: 62% | U134: 57% | V134: 83 | W134: 67% | X134: 57% | Y134: 135
A135: 30 | B135: MOSELLE | C135: 45 | D135: METZ | E135: 557437 | F135: METZ SARRE | G135: 3.8 | H135: 51% | I135: 30% | J135: 126 | K135: 50% | L135: 48% | M135: 168 | N135: 65% | O135: 49% | P135: 126 | Q135: 80% | R135: 58% | S135: 246 | T135: 37% | U135: 32% | V135: 10 | W135: 76% | X135: 66% | Y135: 231
A136: 30 | B136: VOSGES | C136: 57 | D136: EPINAL | E136: 488281 | F136: ELOYES | G136: 4.7 | H136: 51% | I136: 30% | J136: 127 | K136: 27% | L136: 25% | M136: 30 | N136: 69% | O136: 53% | P136: 167 | Q136: 65% | R136: 44% | S136: 121 | T136: 77% | U136: 72% | V136: 211 | W136: 71% | X136: 60% | Y136: 171
A137: 30 | B137: AUBE HAUTE MARNE | C137: 21 | D137: CHAUMONT | E137: 410541 | F137: LANGRES | G137: 6.5 | H137: 51% | I137: 30% | J137: 128 | K137: 49% | L137: 47% | M137: 159 | N137: 60% | O137: 44% | P137: 84 | Q137: 71% | R137: 50% | S137: 193 | T137: 63% | U137: 58% | V137: 85 | W137: 65% | X137: 55% | Y137: 107
A138: 30 | B138: MOSELLE | C138: 45 | D138: METZ | E138: 457574 | F138: ROMBAS | G138: 3.2 | H138: 51% | I138: 30% | J138: 129 | K138: 57% | L138: 56% | M138: 200 | N138: 51% | O138: 34% | P138: 31 | Q138: 53% | R138: 31% | S138: 31 | T138: 69% | U138: 65% | V138: 145 | W138: 78% | X138: 68% | Y138: 244
A139: 30 | B139: MEURTHE ET MOSELLE MEUSE | C139: 31 | D139: VERDUN | E139: 455676 | F139: VAUCOULEURS | G139: 1.8 | H139: 51% | I139: 30% | J139: 130 | K139: 93% | L139: 92% | M139: 262 | N139: 42% | O139: 26% | P139: 10 | Q139: 75% | R139: 54% | S139: 231 | T139: 43% | U139: 39% | V139: 18 | W139: 54% | X139: 44% | Y139: 37
A140: 30 | B140: MEURTHE ET MOSELLE MEUSE | C140: 31 | D140: VERDUN | E140: 555406 | F140: LIGNY EN BARROIS | G140: 2.8 | H140: 51% | I140: 30% | J140: 131 | K140: 27% | L140: 26% | M140: 34 | N140: 68% | O140: 51% | P140: 153 | Q140: 69% | R140: 48% | S140: 159 | T140: 75% | U140: 70% | V140: 191 | W140: 69% | X140: 59% | Y140: 163
A141: 30 | B141: MOSELLE | C141: 44 | D141: MOSELLE NORD | E141: 457632 | F141: THIONVILLE CENTRALE | G141: 11.7 | H141: 51% | I141: 30% | J141: 132 | K141: 46% | L141: 44% | M141: 140 | N141: 60% | O141: 44% | P141: 80 | Q141: 66% | R141: 45% | S141: 130 | T141: 64% | U141: 59% | V141: 101 | W141: 72% | X141: 62% | Y141: 187
A142: 30 | B142: MOSELLE | C142: 45 | D142: METZ | E142: 557612 | F142: SAINTE MARIE AUX CHENES | G142: 3.9 | H142: 51% | I142: 30% | J142: 133 | K142: 24% | L142: 22% | M142: 20 | N142: 78% | O142: 62% | P142: 231 | Q142: 68% | R142: 47% | S142: 148 | T142: 67% | U142: 62% | V142: 117 | W142: 72% | X142: 62% | Y142: 183
A143: 30 | B143: VOSGES | C143: 55 | D143: SAINT DIE | E143: 588186 | F143: BRUYERES | G143: 3.7 | H143: 51% | I143: 30% | J143: 134 | K143: 35% | L143: 34% | M143: 78 | N143: 66% | O143: 50% | P143: 135 | Q143: 87% | R143: 66% | S143: 261 | T143: 64% | U143: 59% | V143: 94 | W143: 57% | X143: 47% | Y143: 52
A144: 110 | B144: MARNE-ARDENNES | C144: 11 | D144: REIMS | E144: 551365 | F144: DORMANS | G144: 2.7 | H144: 51% | I144: 30% | J144: 135 | K144: 33% | L144: 31% | M144: 63 | N144: 79% | O144: 63% | P144: 238 | Q144: 66% | R144: 44% | S144: 123 | T144: 73% | U144: 68% | V144: 172 | W144: 60% | X144: 49% | Y144: 66
A145: 110 | B145: MOSELLE | C145: 44 | D145: MOSELLE NORD | E145: 457350 | F145: HAYANGE | G145: 7.2 | H145: 51% | I145: 30% | J145: 136 | K145: 48% | L145: 46% | M145: 155 | N145: 53% | O145: 37% | P145: 42 | Q145: 71% | R145: 50% | S145: 184 | T145: 69% | U145: 64% | V145: 144 | W145: 69% | X145: 58% | Y145: 156
A146: 110 | B146: MOSELLE | C146: 42 | D146: MOSELLE EST | E146: 457617 | F146: SARREGUEMINES | G146: 8.3 | H146: 51% | I146: 30% | J146: 137 | K146: 38% | L146: 36% | M146: 93 | N146: 66% | O146: 49% | P146: 130 | Q146: 66% | R146: 45% | S146: 125 | T146: 70% | U146: 65% | V146: 151 | W146: 71% | X146: 60% | Y146: 170
A147: 110 | B147: MOSELLE | C147: 42 | D147: MOSELLE EST | E147: 557503 | F147: NEUNKIRCH | G147: 3.8 | H147: 51% | I147: 31% | J147: 138 | K147: 27% | L147: 25% | M147: 29 | N147: 73% | O147: 57% | P147: 209 | Q147: 62% | R147: 41% | S147: 92 | T147: 76% | U147: 71% | V147: 207 | W147: 73% | X147: 63% | Y147: 199
A148: 110 | B148: MOSELLE | C148: 44 | D148: MOSELLE NORD | E148: 557622 | F148: SIERCK LES BAINS | G148: 1.3 | H148: 51% | I148: 31% | J148: 139 | K148: 53% | L148: 52% | M148: 181 | N148: 64% | O148: 48% | P148: 114 | Q148: 54% | R148: 33% | S148: 38 | T148: 81% | U148: 76% | V148: 234 | W148: 59% | X148: 49% | Y148: 61
A149: 110 | B149: AUBE HAUTE MARNE | C149: 14 | D149: TROYES | E149: 410571 | F149: ROMILLY SUR SEINE | G149: 6.7 | H149: 51% | I149: 31% | J149: 140 | K149: 34% | L149: 32% | M149: 69 | N149: 62% | O149: 45% | P149: 96 | Q149: 73% | R149: 52% | S149: 211 | T149: 76% | U149: 71% | V149: 199 | W149: 67% | X149: 57% | Y149: 132
A150: 110 | B150: MOSELLE | C150: 45 | D150: METZ | E150: 557712 | F150: WOIPPY | G150: 5.5 | H150: 51% | I150: 31% | J150: 141 | K150: 42% | L150: 40% | M150: 114 | N150: 62% | O150: 46% | P150: 99 | Q150: 74% | R150: 53% | S150: 218 | T150: 63% | U150: 58% | V150: 93 | W150: 71% | X150: 61% | Y150: 173
A151: 110 | B151: MEURTHE ET MOSELLE MEUSE | C151: 27 | D151: PONT A MOUSSON | E151: 554321 | F151: FROUARD | G151: 3.0 | H151: 52% | I151: 31% | J151: 142 | K151: 70% | L151: 68% | M151: 241 | N151: 60% | O151: 44% | P151: 77 | Q151: 53% | R151: 32% | S151: 32 | T151: 66% | U151: 62% | V151: 116 | W151: 63% | X151: 53% | Y151: 93
A152: 110 | B152: MARNE-ARDENNES | C152: 2 | D152: CHARLEVILLE MEZIERES | E152: 408806 | F152: SEDAN | G152: 9.1 | H152: 52% | I152: 31% | J152: 143 | K152: 36% | L152: 34% | M152: 81 | N152: 73% | O152: 57% | P152: 207 | Q152: 62% | R152: 41% | S152: 91 | T152: 76% | U152: 71% | V152: 208 | W152: 66% | X152: 55% | Y152: 115
A153: 110 | B153: MEURTHE ET MOSELLE MEUSE | C153: 27 | D153: PONT A MOUSSON | E153: 554184 | F153: BRIEY | G153: 4.6 | H153: 52% | I153: 31% | J153: 144 | K153: 41% | L153: 39% | M153: 106 | N153: 74% | O153: 58% | P153: 213 | Q153: 57% | R153: 36% | S153: 53 | T153: 79% | U153: 74% | V153: 227 | W153: 62% | X153: 51% | Y153: 78
A154: 110 | B154: BAS-RHIN | C154: 5101 | D154: SELESTAT | E154: 4015 | F154: LINGOLSHEIM | G154: 4.5 | H154: 52% | I154: 31% | J154: 145 | K154: 46% | L154: 44% | M154: 141 | N154: 71% | O154: 54% | P154: 189 | Q154: 61% | R154: 39% | S154: 73 | T154: 63% | U154: 58% | V154: 84 | W154: 73% | X154: 63% | Y154: 202
A155: 110 | B155: MOSELLE | C155: 45 | D155: METZ | E155: 557105 | F155: ARS SUR MOSELLE | G155: 3.7 | H155: 52% | I155: 31% | J155: 146 | K155: 47% | L155: 45% | M155: 150 | N155: 72% | O155: 56% | P155: 203 | Q155: 72% | R155: 51% | S155: 201 | T155: 75% | U155: 71% | V155: 197 | W155: 46% | X155: 36% | Y155: 17
A156: 110 | B156: BAS-RHIN | C156: 5060 | D156: HAGUENAU | E156: 4057 | F156: BISCHWILLER | G156: 6.2 | H156: 52% | I156: 31% | J156: 147 | K156: 55% | L156: 53% | M156: 190 | N156: 55% | O156: 39% | P156: 51 | Q156: 70% | R156: 49% | S156: 167 | T156: 60% | U156: 55% | V156: 71 | W156: 73% | X156: 62% | Y156: 193
A157: 110 | B157: MEURTHE ET MOSELLE MEUSE | C157: 26 | D157: NANCY | E157: 554296 | F157: ESSEY LES NANCY | G157: 3.9 | H157: 52% | I157: 31% | J157: 148 | K157: 45% | L157: 44% | M157: 138 | N157: 60% | O157: 44% | P157: 82 | Q157: 67% | R157: 46% | S157: 140 | T157: 76% | U157: 72% | V157: 210 | W157: 65% | X157: 54% | Y157: 100
A158: 110 | B158: HAUT-RHIN | C158: 5169 | D158: MULHOUSE | E158: 4195 | F158: CERNAY | G158: 2.5 | H158: 52% | I158: 31% | J158: 149 | K158: 45% | L158: 43% | M158: 135 | N158: 75% | O158: 59% | P158: 220 | Q158: 49% | R158: 28% | S158: 21 | T158: 82% | U158: 77% | V158: 242 | W158: 62% | X158: 52% | Y158: 84
A159: 110 | B159: MEURTHE ET MOSELLE MEUSE | C159: 27 | D159: PONT A MOUSSON | E159: 454355 | F159: JARNY | G159: 4.6 | H159: 52% | I159: 31% | J159: 150 | K159: 58% | L159: 56% | M159: 202 | N159: 58% | O159: 42% | P159: 67 | Q159: 71% | R159: 50% | S159: 192 | T159: 62% | U159: 57% | V159: 79 | W159: 66% | X159: 56% | Y159: 119
A160: 110 | B160: MOSELLE | C160: 42 | D160: MOSELLE EST | E160: 557523 | F160: PHALSBOURG | G160: 2.2 | H160: 52% | I160: 31% | J160: 151 | K160: 51% | L160: 49% | M160: 171 | N160: 81% | O160: 65% | P160: 247 | Q160: 63% | R160: 41% | S160: 98 | T160: 69% | U160: 64% | V160: 139 | W160: 51% | X160: 41% | Y160: 25
A161: 110 | B161: BAS-RHIN | C161: 5060 | D161: HAGUENAU | E161: 4071 | F161: WISSEMBOURG | G161: 8.4 | H161: 52% | I161: 31% | J161: 152 | K161: 37% | L161: 35% | M161: 84 | N161: 69% | O161: 53% | P161: 164 | Q161: 60% | R161: 39% | S161: 68 | T161: 73% | U161: 68% | V161: 166 | W161: 77% | X161: 67% | Y161: 235
A162: 110 | B162: MOSELLE | C162: 45 | D162: METZ | E162: 557178 | F162: BOULAY | G162: 4.0 | H162: 52% | I162: 31% | J162: 153 | K162: 29% | L162: 28% | M162: 51 | N162: 70% | O162: 54% | P162: 183 | Q162: 67% | R162: 46% | S162: 141 | T162: 74% | U162: 69% | V162: 175 | W162: 75% | X162: 65% | Y162: 221
A163: 110 | B163: MEURTHE ET MOSELLE MEUSE | C163: 31 | D163: VERDUN | E163: 455231 | F163: COMMERCY | G163: 4.7 | H163: 52% | I163: 31% | J163: 154 | K163: 48% | L163: 46% | M163: 154 | N163: 66% | O163: 49% | P163: 131 | Q163: 72% | R163: 51% | S163: 200 | T163: 69% | U163: 64% | V163: 140 | W163: 61% | X163: 51% | Y163: 74
A164: 110 | B164: BAS-RHIN | C164: 5006 | D164: STRASBOURG | E164: 4027 | F164: SCHILTIGHEIM CENTRE | G164: 3.9 | H164: 52% | I164: 31% | J164: 155 | K164: 54% | L164: 53% | M164: 187 | N164: 64% | O164: 48% | P164: 116 | Q164: 57% | R164: 35% | S164: 52 | T164: 74% | U164: 69% | V164: 185 | W164: 66% | X164: 56% | Y164: 123
A165: 110 | B165: MOSELLE | C165: 45 | D165: METZ | E165: 557559 | F165: REMILLY | G165: 4.2 | H165: 52% | I165: 32% | J165: 156 | K165: 49% | L165: 47% | M165: 160 | N165: 70% | O165: 54% | P165: 184 | Q165: 62% | R165: 41% | S165: 90 | T165: 67% | U165: 62% | V165: 118 | W165: 68% | X165: 58% | Y165: 155
A166: 110 | B166: BAS-RHIN | C166: 5101 | D166: SELESTAT | E166: 4007 | F166: ILLKIRCH CENTRE | G166: 7.3 | H166: 52% | I166: 32% | J166: 157 | K166: 50% | L166: 48% | M166: 167 | N166: 56% | O166: 39% | P166: 52 | Q166: 71% | R166: 49% | S166: 174 | T166: 66% | U166: 61% | V166: 114 | W166: 74% | X166: 64% | Y166: 216
A167: 110 | B167: MOSELLE | C167: 44 | D167: MOSELLE NORD | E167: 457158 | F167: YUTZ | G167: 4.6 | H167: 53% | I167: 32% | J167: 158 | K167: 43% | L167: 41% | M167: 125 | N167: 62% | O167: 46% | P167: 104 | Q167: 71% | R167: 50% | S167: 188 | T167: 69% | U167: 64% | V167: 138 | W167: 72% | X167: 61% | Y167: 181
A168: 110 | B168: AUBE HAUTE MARNE | C168: 14 | D168: TROYES | E168: 510530 | F168: ARCIS SUR AUBE | G168: 3.9 | H168: 53% | I168: 32% | J168: 159 | K168: 32% | L168: 30% | M168: 57 | N168: 61% | O168: 45% | P168: 93 | Q168: 75% | R168: 54% | S168: 232 | T168: 75% | U168: 70% | V168: 194 | W168: 74% | X168: 64% | Y168: 214
A169: 110 | B169: MOSELLE | C169: 44 | D169: MOSELLE NORD | E169: 557347 | F169: GUENANGE | G169: 5.0 | H169: 53% | I169: 32% | J169: 160 | K169: 65% | L169: 63% | M169: 233 | N169: 62% | O169: 46% | P169: 103 | Q169: 63% | R169: 41% | S169: 97 | T169: 72% | U169: 67% | V169: 161 | W169: 56% | X169: 46% | Y169: 48
A170: 110 | B170: MEURTHE ET MOSELLE MEUSE | C170: 26 | D170: NANCY | E170: 454171 | F170: BLAMONT | G170: 1.5 | H170: 53% | I170: 32% | J170: 161 | K170: 71% | L170: 69% | M170: 244 | N170: 44% | O170: 28% | P170: 16 | Q170: 81% | R170: 60% | S170: 253 | T170: 55% | U170: 50% | V170: 42 | W170: 67% | X170: 57% | Y170: 138
A171: 110 | B171: MEURTHE ET MOSELLE MEUSE | C171: 27 | D171: PONT A MOUSSON | E171: 454696 | F171: VILLERS GENERAL LECLERC | G171: 6.1 | H171: 53% | I171: 32% | J171: 162 | K171: 35% | L171: 33% | M171: 77 | N171: 69% | O171: 53% | P171: 171 | Q171: 66% | R171: 45% | S171: 131 | T171: 73% | U171: 68% | V171: 169 | W171: 75% | X171: 65% | Y171: 218
A172: 110 | B172: BAS-RHIN | C172: 5060 | D172: HAGUENAU | E172: 4087 | F172: SAVERNE | G172: 7.8 | H172: 53% | I172: 32% | J172: 163 | K172: 53% | L172: 51% | M172: 178 | N172: 62% | O172: 46% | P172: 101 | Q172: 68% | R172: 47% | S172: 150 | T172: 72% | U172: 67% | V172: 160 | W172: 64% | X172: 54% | Y172: 99
A173: 110 | B173: MOSELLE | C173: 45 | D173: METZ | E173: 557439 | F173: METZ POMPIDOU | G173: 3.9 | H173: 53% | I173: 32% | J173: 164 | K173: 46% | L173: 44% | M173: 142 | N173: 72% | O173: 56% | P173: 197 | Q173: 67% | R173: 46% | S173: 137 | T173: 63% | U173: 58% | V173: 88 | W173: 72% | X173: 62% | Y173: 182
A174: 110 | B174: VOSGES | C174: 55 | D174: SAINT DIE | E174: 588461 | F174: MOYENMOUTIER | G174: 2.6 | H174: 53% | I174: 32% | J174: 165 | K174: 60% | L174: 58% | M174: 212 | N174: 59% | O174: 43% | P174: 71 | Q174: 59% | R174: 37% | S174: 61 | T174: 76% | U174: 71% | V174: 204 | W174: 66% | X174: 56% | Y174: 124
A175: 110 | B175: MEURTHE ET MOSELLE MEUSE | C175: 27 | D175: PONT A MOUSSON | E175: 554496 | F175: NANCY TROIS MAISONS | G175: 2.5 | H175: 53% | I175: 32% | J175: 166 | K175: 76% | L175: 75% | M175: 253 | N175: 56% | O175: 39% | P175: 53 | Q175: 61% | R175: 40% | S175: 76 | T175: 59% | U175: 54% | V175: 62 | W175: 68% | X175: 58% | Y175: 146
A176: 110 | B176: MARNE-ARDENNES | C176: 11 | D176: REIMS | E176: 451308 | F176: REIMS SAINT THOMAS | G176: 7.4 | H176: 53% | I176: 32% | J176: 167 | K176: 57% | L176: 55% | M176: 197 | N176: 71% | O176: 55% | P176: 191 | Q176: 71% | R176: 49% | S176: 176 | T176: 70% | U176: 65% | V176: 147 | W176: 52% | X176: 41% | Y176: 27
A177: 110 | B177: BAS-RHIN | C177: 5006 | D177: STRASBOURG | E177: 4026 | F177: STRASBOURG DANUBE | G177: 4.5 | H177: 53% | I177: 32% | J177: 168 | K177: 54% | L177: 53% | M177: 188 | N177: 75% | O177: 58% | P177: 219 | Q177: 76% | R177: 55% | S177: 233 | T177: 40% | U177: 36% | V177: 15 | W177: 74% | X177: 64% | Y177: 212
A178: 110 | B178: MEURTHE ET MOSELLE MEUSE | C178: 31 | D178: VERDUN | E178: 455566 | F178: REVIGNY SUR ORNAIN | G178: 3.4 | H178: 53% | I178: 32% | J178: 169 | K178: 36% | L178: 34% | M178: 80 | N178: 61% | O178: 44% | P178: 87 | Q178: 78% | R178: 57% | S178: 241 | T178: 74% | U178: 69% | V178: 179 | W178: 72% | X178: 61% | Y178: 179
A179: 110 | B179: MARNE-ARDENNES | C179: 11 | D179: REIMS | E179: 551369 | F179: DAMERY | G179: 2.4 | H179: 53% | I179: 32% | J179: 170 | K179: 60% | L179: 58% | M179: 209 | N179: 74% | O179: 57% | P179: 211 | Q179: 75% | R179: 54% | S179: 230 | T179: 57% | U179: 52% | V179: 54 | W179: 55% | X179: 45% | Y179: 41
A180: 110 | B180: BAS-RHIN | C180: 5006 | D180: STRASBOURG | E180: 4045 | F180: STRASBOURG FRANCS BOURGEOIS | G180: 4.6 | H180: 53% | I180: 32% | J180: 171 | K180: 58% | L180: 56% | M180: 203 | N180: 64% | O180: 47% | P180: 111 | Q180: 50% | R180: 29% | S180: 22 | T180: 80% | U180: 75% | V180: 231 | W180: 69% | X180: 58% | Y180: 157
A181: 110 | B181: VOSGES | C181: 55 | D181: SAINT DIE | E181: 588587 | F181: SAINT DIE CATHEDRALE | G181: 3.9 | H181: 53% | I181: 33% | J181: 172 | K181: 32% | L181: 30% | M181: 55 | N181: 75% | O181: 58% | P181: 218 | Q181: 65% | R181: 44% | S181: 122 | T181: 79% | U181: 74% | V181: 225 | W181: 71% | X181: 61% | Y181: 172
A182: 110 | B182: MOSELLE | C182: 42 | D182: MOSELLE EST | E182: 457258 | F182: DIEUZE | G182: 3.1 | H182: 53% | I182: 33% | J182: 173 | K182: 46% | L182: 44% | M182: 143 | N182: 63% | O182: 47% | P182: 106 | Q182: 70% | R182: 49% | S182: 166 | T182: 67% | U182: 62% | V182: 121 | W182: 75% | X182: 65% | Y182: 222
A183: 110 | B183: MARNE-ARDENNES | C183: 11 | D183: REIMS | E183: 551341 | F183: REIMS JEAN JAURES | G183: 4.4 | H183: 53% | I183: 33% | J183: 174 | K183: 56% | L183: 54% | M183: 194 | N183: 61% | O183: 44% | P183: 86 | Q183: 69% | R183: 48% | S183: 160 | T183: 68% | U183: 63% | V183: 132 | W183: 68% | X183: 57% | Y183: 144
A184: 110 | B184: MOSELLE | C184: 45 | D184: METZ | E184: 557434 | F184: MARLY | G184: 3.7 | H184: 54% | I184: 33% | J184: 175 | K184: 34% | L184: 33% | M184: 71 | N184: 63% | O184: 47% | P184: 109 | Q184: 67% | R184: 46% | S184: 136 | T184: 85% | U184: 80% | V184: 248 | W184: 73% | X184: 63% | Y184: 204
A185: 110 | B185: MEURTHE ET MOSELLE MEUSE | C185: 26 | D185: NANCY | E185: 454671 | F185: VANDOEUVRE LES NANCY | G185: 4.6 | H185: 54% | I185: 33% | J185: 176 | K185: 60% | L185: 58% | M185: 211 | N185: 59% | O185: 43% | P185: 73 | Q185: 78% | R185: 56% | S185: 239 | T185: 72% | U185: 68% | V185: 163 | W185: 53% | X185: 43% | Y185: 31
A186: 110 | B186: BAS-RHIN | C186: 5101 | D186: SELESTAT | E186: 4119 | F186: OBERNAI | G186: 3.6 | H186: 54% | I186: 33% | J186: 177 | K186: 74% | L186: 73% | M186: 248 | N186: 49% | O186: 33% | P186: 27 | Q186: 66% | R186: 45% | S186: 126 | T186: 59% | U186: 54% | V186: 65 | W186: 74% | X186: 64% | Y186: 213
A187: 110 | B187: HAUT-RHIN | C187: 5169 | D187: MULHOUSE | E187: 4181 | F187: WITTELSHEIM | G187: 3.3 | H187: 54% | I187: 33% | J187: 178 | K187: 52% | L187: 51% | M187: 177 | N187: 73% | O187: 56% | P187: 205 | Q187: 74% | R187: 53% | S187: 221 | T187: 70% | U187: 65% | V187: 146 | W187: 54% | X187: 44% | Y187: 39
A188: 110 | B188: BAS-RHIN | C188: 5101 | D188: SELESTAT | E188: 4116 | F188: MOLSHEIM | G188: 5.1 | H188: 54% | I188: 33% | J188: 179 | K188: 55% | L188: 53% | M188: 192 | N188: 71% | O188: 55% | P188: 190 | Q188: 52% | R188: 30% | S188: 29 | T188: 76% | U188: 71% | V188: 198 | W188: 70% | X188: 60% | Y188: 165
A189: 110 | B189: MARNE-ARDENNES | C189: 2 | D189: CHARLEVILLE MEZIERES | E189: 408840 | F189: RETHEL | G189: 5.0 | H189: 54% | I189: 33% | J189: 180 | K189: 32% | L189: 31% | M189: 60 | N189: 69% | O189: 53% | P189: 165 | Q189: 71% | R189: 49% | S189: 179 | T189: 77% | U189: 72% | V189: 212 | W189: 75% | X189: 65% | Y189: 217
A190: 110 | B190: MEURTHE ET MOSELLE MEUSE | C190: 27 | D190: PONT A MOUSSON | E190: 554196 | F190: CHAMPIGNEULLES | G190: 3.5 | H190: 54% | I190: 33% | J190: 181 | K190: 58% | L190: 56% | M190: 201 | N190: 53% | O190: 37% | P190: 43 | Q190: 72% | R190: 51% | S190: 199 | T190: 66% | U190: 61% | V190: 112 | W190: 75% | X190: 65% | Y190: 220
A191: 110 | B191: HAUT-RHIN | C191: 5130 | D191: COLMAR | E191: 4143 | F191: MUNSTER | G191: 5.1 | H191: 54% | I191: 33% | J191: 182 | K191: 49% | L191: 48% | M191: 164 | N191: 56% | O191: 40% | P191: 61 | Q191: 74% | R191: 53% | S191: 220 | T191: 71% | U191: 66% | V191: 159 | W191: 72% | X191: 62% | Y191: 190
A192: 160 | B192: BAS-RHIN | C192: 5060 | D192: HAGUENAU | E192: 4041 | F192: HOERDT | G192: 2.0 | H192: 54% | I192: 33% | J192: 183 | K192: 60% | L192: 59% | M192: 215 | N192: 56% | O192: 40% | P192: 60 | Q192: 55% | R192: 34% | S192: 44 | T192: 69% | U192: 64% | V192: 135 | W192: 84% | X192: 73% | Y192: 256
A193: 160 | B193: MARNE-ARDENNES | C193: 2 | D193: CHARLEVILLE MEZIERES | E193: 508817 | F193: CHARLEVILLE MOHON | G193: 3.4 | H193: 54% | I193: 33% | J193: 184 | K193: 38% | L193: 36% | M193: 88 | N193: 70% | O193: 53% | P193: 175 | Q193: 73% | R193: 51% | S193: 208 | T193: 76% | U193: 72% | V193: 209 | W193: 68% | X193: 57% | Y193: 141
A194: 160 | B194: HAUT-RHIN | C194: 5130 | D194: COLMAR | E194: 4157 | F194: NEUF BRISACH | G194: 3.6 | H194: 54% | I194: 33% | J194: 185 | K194: 39% | L194: 38% | M194: 100 | N194: 77% | O194: 61% | P194: 224 | Q194: 73% | R194: 52% | S194: 212 | T194: 64% | U194: 59% | V194: 95 | W194: 70% | X194: 60% | Y194: 169
A195: 160 | B195: VOSGES | C195: 55 | D195: SAINT DIE | E195: 588551 | F195: RAMBERVILLERS | G195: 3.5 | H195: 54% | I195: 33% | J195: 186 | K195: 33% | L195: 31% | M195: 61 | N195: 79% | O195: 63% | P195: 242 | Q195: 69% | R195: 48% | S195: 154 | T195: 77% | U195: 72% | V195: 215 | W195: 66% | X195: 56% | Y195: 120
A196: 160 | B196: BAS-RHIN | C196: 5006 | D196: STRASBOURG | E196: 4020 | F196: STRASBOURG ROBERTSAU | G196: 6.1 | H196: 54% | I196: 33% | J196: 187 | K196: 59% | L196: 57% | M196: 207 | N196: 64% | O196: 48% | P196: 120 | Q196: 62% | R196: 41% | S196: 93 | T196: 75% | U196: 70% | V196: 195 | W196: 64% | X196: 54% | Y196: 98
A197: 160 | B197: AUBE HAUTE MARNE | C197: 21 | D197: CHAUMONT | E197: 410566 | F197: CHAUMONT HOTEL DE VILLE | G197: 7.7 | H197: 54% | I197: 33% | J197: 188 | K197: 49% | L197: 47% | M197: 158 | N197: 66% | O197: 50% | P197: 134 | Q197: 73% | R197: 52% | S197: 214 | T197: 74% | U197: 69% | V197: 176 | W197: 63% | X197: 53% | Y197: 92
A198: 160 | B198: MOSELLE | C198: 42 | D198: MOSELLE EST | E198: 557668 | F198: VALMONT | G198: 4.6 | H198: 54% | I198: 33% | J198: 189 | K198: 23% | L198: 21% | M198: 16 | N198: 78% | O198: 61% | P198: 229 | Q198: 71% | R198: 50% | S198: 182 | T198: 74% | U198: 69% | V198: 188 | W198: 80% | X198: 69% | Y198: 249
A199: 160 | B199: MARNE-ARDENNES | C199: 6 | D199: CHALONS EN CHAMPAGNE | E199: 451166 | F199: VITRY LE FRANCOIS | G199: 7.0 | H199: 54% | I199: 33% | J199: 190 | K199: 42% | L199: 40% | M199: 115 | N199: 75% | O199: 58% | P199: 217 | Q199: 71% | R199: 50% | S199: 191 | T199: 72% | U199: 67% | V199: 162 | W199: 66% | X199: 55% | Y199: 114
A200: 160 | B200: AUBE HAUTE MARNE | C200: 14 | D200: TROYES | E200: 510513 | F200: TROYES 1ER MAI | G200: 3.4 | H200: 54% | I200: 34% | J200: 191 | K200: 57% | L200: 55% | M200: 199 | N200: 68% | O200: 51% | P200: 156 | Q200: 73% | R200: 52% | S200: 213 | T200: 73% | U200: 68% | V200: 164 | W200: 56% | X200: 46% | Y200: 46
A201: 160 | B201: HAUT-RHIN | C201: 5130 | D201: COLMAR | E201: 4132 | F201: COLMAR MARAICHERS | G201: 4.7 | H201: 55% | I201: 34% | J201: 192 | K201: 52% | L201: 50% | M201: 176 | N201: 51% | O201: 35% | P201: 36 | Q201: 71% | R201: 50% | S201: 180 | T201: 70% | U201: 65% | V201: 150 | W201: 84% | X201: 74% | Y201: 259
A202: 160 | B202: MARNE-ARDENNES | C202: 2 | D202: CHARLEVILLE MEZIERES | E202: 508860 | F202: ROCROI | G202: 3.4 | H202: 55% | I202: 34% | J202: 193 | K202: 34% | L202: 32% | M202: 68 | N202: 70% | O202: 53% | P202: 176 | Q202: 77% | R202: 55% | S202: 237 | T202: 76% | U202: 71% | V202: 205 | W202: 72% | X202: 62% | Y202: 191
A203: 160 | B203: MOSELLE | C203: 45 | D203: METZ | E203: 557433 | F203: MARANGE SILVANGE | G203: 2.6 | H203: 55% | I203: 34% | J203: 194 | K203: 51% | L203: 50% | M203: 172 | N203: 69% | O203: 53% | P203: 173 | Q203: 82% | R203: 60% | S203: 254 | T203: 68% | U203: 63% | V203: 129 | W203: 58% | X203: 48% | Y203: 58
... 71 more rows

Sheet AG_BANCA
B1: Accueil | H1: BAROMETRE BDD - AGENCES
H2: BANCARISATION
H3: =ACCUEIL!F7 -> 2021-07-04
H7: Ventes Nettes produits pondérés | L7: Ventes sur client non détenteur de l’univers | P7: Mobilité Macron | T7: Remises commerciales | X7: Total Bancarisation
H8: =DATEMAJ!C8 -> au 04/07 | J8: coef | K8: ='RECAP DIRCOM'!AA4 -> 10% | L8: =DATEMAJ!C9 -> au 04/07 | N8: coef | O8: ='RECAP DIRCOM'!AE4 -> 4% | P8: =DATEMAJ!C10 -> au 04/07 | R8: coef | S8: ='RECAP DIRCOM'!AI4 -> 3% | T8: =DATEMAJ!C11 -> au 31/05 | V8: coef | W8: ='RECAP DIRCOM'!AM4 -> 3% | Y8: coef | Z8: ='RECAP DIRCOM'!$AP$4 -> 20%
B9: Direction | C9: eds | D9: Territoire | E9: eds | F9: Agence | G9: ="ETP perf "&DATEMAJ!$C$28 -> ETP perf 31-mai | H9: VN | I9: VN / ETP | J9: % Ecart au 1er | K9: Rang | L9: VB | M9: VB / ETP | N9: % Ecart au 1er | O9: Rang | P9: Nb | Q9: Nb / ETP | R9: % Ecart au 1er | S9: Rang | T9: Montant | U9: Montant / ETP | V9: % Ecart au 1er | W9: Rang | X9: Moyenne ecart au 1er | Y9: % Ecart au 1er | Z9: Rang CEGEE
A10: 50 | B10: AUBE HAUTE MARNE | C10: 21 | D10: CHAUMONT | E10: 410560 | F10: BOURBONNE LES BAINS | G10: =VLOOKUP($E10,'RECAP AG'!$G$6:$DC$270,3,FALSE) -> 2.0 | H10: =VLOOKUP($E10,'RECAP AG'!$G$6:$DC$270,18,FALSE) -> 118.7 | I10: =VLOOKUP($E10,'RECAP AG'!$G$6:$DC$270,19,FALSE) -> 59.35 | J10: =VLOOKUP($E10,'RECAP AG'!$G$6:$DC$270,20,FALSE) -> 52% | K10: =VLOOKUP($E10,'RECAP AG'!$G$6:$DC$270,21,FALSE) -> 69 | L10: =VLOOKUP($E10,'RECAP AG'!$G$6:$DC$270,22,FALSE) -> 45 | M10: =VLOOKUP($E10,'RECAP AG'!$G$6:$DC$270,23,FALSE) -> 22.50 | N10: =VLOOKUP($E10,'RECAP AG'!$G$6:$DC$270,24,FALSE) -> 63% | O10: =VLOOKUP($E10,'RECAP AG'!$G$6:$DC$270,25,FALSE) -> 211 | P10: =VLOOKUP($E10,'RECAP AG'!$G$6:$DC$270,26,FALSE) -> 7 | Q10: =VLOOKUP($E10,'RECAP AG'!$G$6:$DC$270,27,FALSE) -> 3.50 | R10: =VLOOKUP($E10,'RECAP AG'!$G$6:$DC$270,28,FALSE) -> 89% | S10: =VLOOKUP($E10,'RECAP AG'!$G$6:$DC$270,29,FALSE) -> 180 | T10: =VLOOKUP($E10,'RECAP AG'!$G$6:$DC$270,30,FALSE) -> -2.77 | U10: =VLOOKUP($E10,'RECAP AG'!$G$6:$DC$270,31,FALSE) -> -1.39 | V10: =VLOOKUP($E10,'RECAP AG'!$G$6:$DC$270,32,FALSE) -> 59% | W10: =VLOOKUP($E10,'RECAP AG'!$G$6:$DC$270,33,FALSE) -> 81 | X10: =VLOOKUP($E10,'RECAP AG'!$G$6:$DC$270,34,FALSE) -> 61% | Y10: =VLOOKUP($E10,'RECAP AG'!$G$6:$DC$270,35,FALSE) -> 44% | Z10: =VLOOKUP($E10,'RECAP AG'!$G$6:$DC$270,36,FALSE) -> 85
A11: 50 | B11: AUBE HAUTE MARNE | C11: 21 | D11: CHAUMONT | E11: 410566 | F11: CHAUMONT HOTEL DE VILLE | G11: =VLOOKUP($E11,'RECAP AG'!$G$6:$DC$270,3,FALSE) -> 7.7 | H11: =VLOOKUP($E11,'RECAP AG'!$G$6:$DC$270,18,FALSE) -> 320.2 | I11: =VLOOKUP($E11,'RECAP AG'!$G$6:$DC$270,19,FALSE) -> 41.77 | J11: =VLOOKUP($E11,'RECAP AG'!$G$6:$DC$270,20,FALSE) -> 66% | K11: =VLOOKUP($E11,'RECAP AG'!$G$6:$DC$270,21,FALSE) -> 147 | L11: =VLOOKUP($E11,'RECAP AG'!$G$6:$DC$270,22,FALSE) -> 235 | M11: =VLOOKUP($E11,'RECAP AG'!$G$6:$DC$270,23,FALSE) -> 30.66 | N11: =VLOOKUP($E11,'RECAP AG'!$G$6:$DC$270,24,FALSE) -> 50% | O11: =VLOOKUP($E11,'RECAP AG'!$G$6:$DC$270,25,FALSE) -> 81 | P11: =VLOOKUP($E11,'RECAP AG'!$G$6:$DC$270,26,FALSE) -> 44 | Q11: =VLOOKUP($E11,'RECAP AG'!$G$6:$DC$270,27,FALSE) -> 5.74 | R11: =VLOOKUP($E11,'RECAP AG'!$G$6:$DC$270,28,FALSE) -> 82% | S11: =VLOOKUP($E11,'RECAP AG'!$G$6:$DC$270,29,FALSE) -> 99 | T11: =VLOOKUP($E11,'RECAP AG'!$G$6:$DC$270,30,FALSE) -> -12.82 | U11: =VLOOKUP($E11,'RECAP AG'!$G$6:$DC$270,31,FALSE) -> -1.67 | V11: =VLOOKUP($E11,'RECAP AG'!$G$6:$DC$270,32,FALSE) -> 72% | W11: =VLOOKUP($E11,'RECAP AG'!$G$6:$DC$270,33,FALSE) -> 137 | X11: =VLOOKUP($E11,'RECAP AG'!$G$6:$DC$270,34,FALSE) -> 66% | Y11: =VLOOKUP($E11,'RECAP AG'!$G$6:$DC$270,35,FALSE) -> 50% | Z11: =VLOOKUP($E11,'RECAP AG'!$G$6:$DC$270,36,FALSE) -> 134
A12: 50 | B12: AUBE HAUTE MARNE | C12: 21 | D12: CHAUMONT | E12: 510590 | F12: CHAUMONT REPUBLIQUE | G12: =VLOOKUP($E12,'RECAP AG'!$G$6:$DC$270,3,FALSE) -> 4.4 | H12: =VLOOKUP($E12,'RECAP AG'!$G$6:$DC$270,18,FALSE) -> 174.0 | I12: =VLOOKUP($E12,'RECAP AG'!$G$6:$DC$270,19,FALSE) -> 39.56 | J12: =VLOOKUP($E12,'RECAP AG'!$G$6:$DC$270,20,FALSE) -> 68% | K12: =VLOOKUP($E12,'RECAP AG'!$G$6:$DC$270,21,FALSE) -> 158 | L12: =VLOOKUP($E12,'RECAP AG'!$G$6:$DC$270,22,FALSE) -> 147 | M12: =VLOOKUP($E12,'RECAP AG'!$G$6:$DC$270,23,FALSE) -> 33.42 | N12: =VLOOKUP($E12,'RECAP AG'!$G$6:$DC$270,24,FALSE) -> 45% | O12: =VLOOKUP($E12,'RECAP AG'!$G$6:$DC$270,25,FALSE) -> 58 | P12: =VLOOKUP($E12,'RECAP AG'!$G$6:$DC$270,26,FALSE) -> 28 | Q12: =VLOOKUP($E12,'RECAP AG'!$G$6:$DC$270,27,FALSE) -> 6.37 | R12: =VLOOKUP($E12,'RECAP AG'!$G$6:$DC$270,28,FALSE) -> 80% | S12: =VLOOKUP($E12,'RECAP AG'!$G$6:$DC$270,29,FALSE) -> 84 | T12: =VLOOKUP($E12,'RECAP AG'!$G$6:$DC$270,30,FALSE) -> -5.26 | U12: =VLOOKUP($E12,'RECAP AG'!$G$6:$DC$270,31,FALSE) -> -1.19 | V12: =VLOOKUP($E12,'RECAP AG'!$G$6:$DC$270,32,FALSE) -> 51% | W12: =VLOOKUP($E12,'RECAP AG'!$G$6:$DC$270,33,FALSE) -> 45 | X12: =VLOOKUP($E12,'RECAP AG'!$G$6:$DC$270,34,FALSE) -> 63% | Y12: =VLOOKUP($E12,'RECAP AG'!$G$6:$DC$270,35,FALSE) -> 46% | Z12: =VLOOKUP($E12,'RECAP AG'!$G$6:$DC$270,36,FALSE) -> 105
A13: 50 | B13: AUBE HAUTE MARNE | C13: 21 | D13: CHAUMONT | E13: 451154 | F13: JOINVILLE | G13: =VLOOKUP($E13,'RECAP AG'!$G$6:$DC$270,3,FALSE) -> 1.9 | H13: =VLOOKUP($E13,'RECAP AG'!$G$6:$DC$270,18,FALSE) -> 43.6 | I13: =VLOOKUP($E13,'RECAP AG'!$G$6:$DC$270,19,FALSE) -> 23.40 | J13: =VLOOKUP($E13,'RECAP AG'!$G$6:$DC$270,20,FALSE) -> 81% | K13: =VLOOKUP($E13,'RECAP AG'!$G$6:$DC$270,21,FALSE) -> 230 | L13: =VLOOKUP($E13,'RECAP AG'!$G$6:$DC$270,22,FALSE) -> 56 | M13: =VLOOKUP($E13,'RECAP AG'!$G$6:$DC$270,23,FALSE) -> 30.06 | N13: =VLOOKUP($E13,'RECAP AG'!$G$6:$DC$270,24,FALSE) -> 51% | O13: =VLOOKUP($E13,'RECAP AG'!$G$6:$DC$270,25,FALSE) -> 88 | P13: =VLOOKUP($E13,'RECAP AG'!$G$6:$DC$270,26,FALSE) -> 5 | Q13: =VLOOKUP($E13,'RECAP AG'!$G$6:$DC$270,27,FALSE) -> 2.68 | R13: =VLOOKUP($E13,'RECAP AG'!$G$6:$DC$270,28,FALSE) -> 92% | S13: =VLOOKUP($E13,'RECAP AG'!$G$6:$DC$270,29,FALSE) -> 205 | T13: =VLOOKUP($E13,'RECAP AG'!$G$6:$DC$270,30,FALSE) -> -4.34 | U13: =VLOOKUP($E13,'RECAP AG'!$G$6:$DC$270,31,FALSE) -> -2.33 | V13: =VLOOKUP($E13,'RECAP AG'!$G$6:$DC$270,32,FALSE) -> 100% | W13: =VLOOKUP($E13,'RECAP AG'!$G$6:$DC$270,33,FALSE) -> 225 | X13: =VLOOKUP($E13,'RECAP AG'!$G$6:$DC$270,34,FALSE) -> 79% | Y13: =VLOOKUP($E13,'RECAP AG'!$G$6:$DC$270,35,FALSE) -> 63% | Z13: =VLOOKUP($E13,'RECAP AG'!$G$6:$DC$270,36,FALSE) -> 240
A14: 50 | B14: AUBE HAUTE MARNE | C14: 21 | D14: CHAUMONT | E14: 410541 | F14: LANGRES | G14: =VLOOKUP($E14,'RECAP AG'!$G$6:$DC$270,3,FALSE) -> 6.5 | H14: =VLOOKUP($E14,'RECAP AG'!$G$6:$DC$270,18,FALSE) -> 390.4 | I14: =VLOOKUP($E14,'RECAP AG'!$G$6:$DC$270,19,FALSE) -> 59.68 | J14: =VLOOKUP($E14,'RECAP AG'!$G$6:$DC$270,20,FALSE) -> 51% | K14: =VLOOKUP($E14,'RECAP AG'!$G$6:$DC$270,21,FALSE) -> 68 | L14: =VLOOKUP($E14,'RECAP AG'!$G$6:$DC$270,22,FALSE) -> 173 | M14: =VLOOKUP($E14,'RECAP AG'!$G$6:$DC$270,23,FALSE) -> 26.45 | N14: =VLOOKUP($E14,'RECAP AG'!$G$6:$DC$270,24,FALSE) -> 57% | O14: =VLOOKUP($E14,'RECAP AG'!$G$6:$DC$270,25,FALSE) -> 144 | P14: =VLOOKUP($E14,'RECAP AG'!$G$6:$DC$270,26,FALSE) -> 37 | Q14: =VLOOKUP($E14,'RECAP AG'!$G$6:$DC$270,27,FALSE) -> 5.66 | R14: =VLOOKUP($E14,'RECAP AG'!$G$6:$DC$270,28,FALSE) -> 82% | S14: =VLOOKUP($E14,'RECAP AG'!$G$6:$DC$270,29,FALSE) -> 104 | T14: =VLOOKUP($E14,'RECAP AG'!$G$6:$DC$270,30,FALSE) -> -11.26 | U14: =VLOOKUP($E14,'RECAP AG'!$G$6:$DC$270,31,FALSE) -> -1.72 | V14: =VLOOKUP($E14,'RECAP AG'!$G$6:$DC$270,32,FALSE) -> 74% | W14: =VLOOKUP($E14,'RECAP AG'!$G$6:$DC$270,33,FALSE) -> 147 | X14: =VLOOKUP($E14,'RECAP AG'!$G$6:$DC$270,34,FALSE) -> 60% | Y14: =VLOOKUP($E14,'RECAP AG'!$G$6:$DC$270,35,FALSE) -> 44% | Z14: =VLOOKUP($E14,'RECAP AG'!$G$6:$DC$270,36,FALSE) -> 84
A15: 50 | B15: AUBE HAUTE MARNE | C15: 21 | D15: CHAUMONT | E15: 451156 | F15: SAINT DIZIER CENTRE | G15: =VLOOKUP($E15,'RECAP AG'!$G$6:$DC$270,3,FALSE) -> 9.4 | H15: =VLOOKUP($E15,'RECAP AG'!$G$6:$DC$270,18,FALSE) -> 406.0 | I15: =VLOOKUP($E15,'RECAP AG'!$G$6:$DC$270,19,FALSE) -> 43.42 | J15: =VLOOKUP($E15,'RECAP AG'!$G$6:$DC$270,20,FALSE) -> 65% | K15: =VLOOKUP($E15,'RECAP AG'!$G$6:$DC$270,21,FALSE) -> 137 | L15: =VLOOKUP($E15,'RECAP AG'!$G$6:$DC$270,22,FALSE) -> 285 | M15: =VLOOKUP($E15,'RECAP AG'!$G$6:$DC$270,23,FALSE) -> 30.48 | N15: =VLOOKUP($E15,'RECAP AG'!$G$6:$DC$270,24,FALSE) -> 50% | O15: =VLOOKUP($E15,'RECAP AG'!$G$6:$DC$270,25,FALSE) -> 82 | P15: =VLOOKUP($E15,'RECAP AG'!$G$6:$DC$270,26,FALSE) -> 49 | Q15: =VLOOKUP($E15,'RECAP AG'!$G$6:$DC$270,27,FALSE) -> 5.24 | R15: =VLOOKUP($E15,'RECAP AG'!$G$6:$DC$270,28,FALSE) -> 84% | S15: =VLOOKUP($E15,'RECAP AG'!$G$6:$DC$270,29,FALSE) -> 119 | T15: =VLOOKUP($E15,'RECAP AG'!$G$6:$DC$270,30,FALSE) -> -17.76 | U15: =VLOOKUP($E15,'RECAP AG'!$G$6:$DC$270,31,FALSE) -> -1.90 | V15: =VLOOKUP($E15,'RECAP AG'!$G$6:$DC$270,32,FALSE) -> 81% | W15: =VLOOKUP($E15,'RECAP AG'!$G$6:$DC$270,33,FALSE) -> 169 | X15: =VLOOKUP($E15,'RECAP AG'!$G$6:$DC$270,34,FALSE) -> 67% | Y15: =VLOOKUP($E15,'RECAP AG'!$G$6:$DC$270,35,FALSE) -> 51% | Z15: =VLOOKUP($E15,'RECAP AG'!$G$6:$DC$270,36,FALSE) -> 147
A16: 50 | B16: AUBE HAUTE MARNE | C16: 21 | D16: CHAUMONT | E16: 451151 | F16: WASSY | G16: =VLOOKUP($E16,'RECAP AG'!$G$6:$DC$270,3,FALSE) -> 2.0 | H16: =VLOOKUP($E16,'RECAP AG'!$G$6:$DC$270,18,FALSE) -> 127.8 | I16: =VLOOKUP($E16,'RECAP AG'!$G$6:$DC$270,19,FALSE) -> 64.87 | J16: =VLOOKUP($E16,'RECAP AG'!$G$6:$DC$270,20,FALSE) -> 47% | K16: =VLOOKUP($E16,'RECAP AG'!$G$6:$DC$270,21,FALSE) -> 54 | L16: =VLOOKUP($E16,'RECAP AG'!$G$6:$DC$270,22,FALSE) -> 59 | M16: =VLOOKUP($E16,'RECAP AG'!$G$6:$DC$270,23,FALSE) -> 29.95 | N16: =VLOOKUP($E16,'RECAP AG'!$G$6:$DC$270,24,FALSE) -> 51% | O16: =VLOOKUP($E16,'RECAP AG'!$G$6:$DC$270,25,FALSE) -> 90 | P16: =VLOOKUP($E16,'RECAP AG'!$G$6:$DC$270,26,FALSE) -> 10 | Q16: =VLOOKUP($E16,'RECAP AG'!$G$6:$DC$270,27,FALSE) -> 5.08 | R16: =VLOOKUP($E16,'RECAP AG'!$G$6:$DC$270,28,FALSE) -> 84% | S16: =VLOOKUP($E16,'RECAP AG'!$G$6:$DC$270,29,FALSE) -> 125 | T16: =VLOOKUP($E16,'RECAP AG'!$G$6:$DC$270,30,FALSE) -> -2.48 | U16: =VLOOKUP($E16,'RECAP AG'!$G$6:$DC$270,31,FALSE) -> -1.26 | V16: =VLOOKUP($E16,'RECAP AG'!$G$6:$DC$270,32,FALSE) -> 54% | W16: =VLOOKUP($E16,'RECAP AG'!$G$6:$DC$270,33,FALSE) -> 54 | X16: =VLOOKUP($E16,'RECAP AG'!$G$6:$DC$270,34,FALSE) -> 54% | Y16: =VLOOKUP($E16,'RECAP AG'!$G$6:$DC$270,35,FALSE) -> 38% | Z16: =VLOOKUP($E16,'RECAP AG'!$G$6:$DC$270,36,FALSE) -> 45
A17: 50 | B17: AUBE HAUTE MARNE | C17: 14 | D17: TROYES | E17: 510530 | F17: ARCIS SUR AUBE | G17: =VLOOKUP($E17,'RECAP AG'!$G$6:$DC$270,3,FALSE) -> 3.9 | H17: =VLOOKUP($E17,'RECAP AG'!$G$6:$DC$270,18,FALSE) -> 209.3 | I17: =VLOOKUP($E17,'RECAP AG'!$G$6:$DC$270,19,FALSE) -> 53.05 | J17: =VLOOKUP($E17,'RECAP AG'!$G$6:$DC$270,20,FALSE) -> 57% | K17: =VLOOKUP($E17,'RECAP AG'!$G$6:$DC$270,21,FALSE) -> 93 | L17: =VLOOKUP($E17,'RECAP AG'!$G$6:$DC$270,22,FALSE) -> 81 | M17: =VLOOKUP($E17,'RECAP AG'!$G$6:$DC$270,23,FALSE) -> 20.53 | N17: =VLOOKUP($E17,'RECAP AG'!$G$6:$DC$270,24,FALSE) -> 66% | O17: =VLOOKUP($E17,'RECAP AG'!$G$6:$DC$270,25,FALSE) -> 234 | P17: =VLOOKUP($E17,'RECAP AG'!$G$6:$DC$270,26,FALSE) -> 20 | Q17: =VLOOKUP($E17,'RECAP AG'!$G$6:$DC$270,27,FALSE) -> 5.07 | R17: =VLOOKUP($E17,'RECAP AG'!$G$6:$DC$270,28,FALSE) -> 84% | S17: =VLOOKUP($E17,'RECAP AG'!$G$6:$DC$270,29,FALSE) -> 126 | T17: =VLOOKUP($E17,'RECAP AG'!$G$6:$DC$270,30,FALSE) -> -4.36 | U17: =VLOOKUP($E17,'RECAP AG'!$G$6:$DC$270,31,FALSE) -> -1.11 | V17: =VLOOKUP($E17,'RECAP AG'!$G$6:$DC$270,32,FALSE) -> 47% | W17: =VLOOKUP($E17,'RECAP AG'!$G$6:$DC$270,33,FALSE) -> 37 | X17: =VLOOKUP($E17,'RECAP AG'!$G$6:$DC$270,34,FALSE) -> 61% | Y17: =VLOOKUP($E17,'RECAP AG'!$G$6:$DC$270,35,FALSE) -> 45% | Z17: =VLOOKUP($E17,'RECAP AG'!$G$6:$DC$270,36,FALSE) -> 93
A18: 50 | B18: AUBE HAUTE MARNE | C18: 14 | D18: TROYES | E18: 410550 | F18: BAR SUR AUBE | G18: =VLOOKUP($E18,'RECAP AG'!$G$6:$DC$270,3,FALSE) -> 5.9 | H18: =VLOOKUP($E18,'RECAP AG'!$G$6:$DC$270,18,FALSE) -> 253.0 | I18: =VLOOKUP($E18,'RECAP AG'!$G$6:$DC$270,19,FALSE) -> 42.76 | J18: =VLOOKUP($E18,'RECAP AG'!$G$6:$DC$270,20,FALSE) -> 65% | K18: =VLOOKUP($E18,'RECAP AG'!$G$6:$DC$270,21,FALSE) -> 142 | L18: =VLOOKUP($E18,'RECAP AG'!$G$6:$DC$270,22,FALSE) -> 152 | M18: =VLOOKUP($E18,'RECAP AG'!$G$6:$DC$270,23,FALSE) -> 25.69 | N18: =VLOOKUP($E18,'RECAP AG'!$G$6:$DC$270,24,FALSE) -> 58% | O18: =VLOOKUP($E18,'RECAP AG'!$G$6:$DC$270,25,FALSE) -> 161 | P18: =VLOOKUP($E18,'RECAP AG'!$G$6:$DC$270,26,FALSE) -> 14 | Q18: =VLOOKUP($E18,'RECAP AG'!$G$6:$DC$270,27,FALSE) -> 2.37 | R18: =VLOOKUP($E18,'RECAP AG'!$G$6:$DC$270,28,FALSE) -> 93% | S18: =VLOOKUP($E18,'RECAP AG'!$G$6:$DC$270,29,FALSE) -> 220 | T18: =VLOOKUP($E18,'RECAP AG'!$G$6:$DC$270,30,FALSE) -> -8.28 | U18: =VLOOKUP($E18,'RECAP AG'!$G$6:$DC$270,31,FALSE) -> -1.40 | V18: =VLOOKUP($E18,'RECAP AG'!$G$6:$DC$270,32,FALSE) -> 60% | W18: =VLOOKUP($E18,'RECAP AG'!$G$6:$DC$270,33,FALSE) -> 84 | X18: =VLOOKUP($E18,'RECAP AG'!$G$6:$DC$270,34,FALSE) -> 67% | Y18: =VLOOKUP($E18,'RECAP AG'!$G$6:$DC$270,35,FALSE) -> 51% | Z18: =VLOOKUP($E18,'RECAP AG'!$G$6:$DC$270,36,FALSE) -> 145
A19: 50 | B19: AUBE HAUTE MARNE | C19: 14 | D19: TROYES | E19: 510556 | F19: BAR SUR SEINE | G19: =VLOOKUP($E19,'RECAP AG'!$G$6:$DC$270,3,FALSE) -> 3.5 | H19: =VLOOKUP($E19,'RECAP AG'!$G$6:$DC$270,18,FALSE) -> 156.1 | I19: =VLOOKUP($E19,'RECAP AG'!$G$6:$DC$270,19,FALSE) -> 45.01 | J19: =VLOOKUP($E19,'RECAP AG'!$G$6:$DC$270,20,FALSE) -> 63% | K19: =VLOOKUP($E19,'RECAP AG'!$G$6:$DC$270,21,FALSE) -> 126 | L19: =VLOOKUP($E19,'RECAP AG'!$G$6:$DC$270,22,FALSE) -> 101 | M19: =VLOOKUP($E19,'RECAP AG'!$G$6:$DC$270,23,FALSE) -> 29.12 | N19: =VLOOKUP($E19,'RECAP AG'!$G$6:$DC$270,24,FALSE) -> 52% | O19: =VLOOKUP($E19,'RECAP AG'!$G$6:$DC$270,25,FALSE) -> 106 | P19: =VLOOKUP($E19,'RECAP AG'!$G$6:$DC$270,26,FALSE) -> 24 | Q19: =VLOOKUP($E19,'RECAP AG'!$G$6:$DC$270,27,FALSE) -> 6.92 | R19: =VLOOKUP($E19,'RECAP AG'!$G$6:$DC$270,28,FALSE) -> 78% | S19: =VLOOKUP($E19,'RECAP AG'!$G$6:$DC$270,29,FALSE) -> 71 | T19: =VLOOKUP($E19,'RECAP AG'!$G$6:$DC$270,30,FALSE) -> -10.51 | U19: =VLOOKUP($E19,'RECAP AG'!$G$6:$DC$270,31,FALSE) -> -3.03 | V19: =VLOOKUP($E19,'RECAP AG'!$G$6:$DC$270,32,FALSE) -> 130% | W19: =VLOOKUP($E19,'RECAP AG'!$G$6:$DC$270,33,FALSE) -> 258 | X19: =VLOOKUP($E19,'RECAP AG'!$G$6:$DC$270,34,FALSE) -> 73% | Y19: =VLOOKUP($E19,'RECAP AG'!$G$6:$DC$270,35,FALSE) -> 57% | Z19: =VLOOKUP($E19,'RECAP AG'!$G$6:$DC$270,36,FALSE) -> 208
